Workbook

Sheet المقتنيات (hidden)
B1: الاسم | C1: حالة 1 | D1: حالة 2 | E1: حالة 3 | F1: حالة 4 | G1: حالة 5 | H1: حالة 6 | I1: حالة 7 | J1: حالة 8 | K1: حالة 9 | L1: حالة 10 | M1: حالة 11 | N1: . | O1: . | P1: . | Q1: .
A2: 1 | B2: ملف | C2: x | E2: x | G2: x | I2: x | L2: x
A3: 2 | B3: بطاقة(2) | C3: x | D3: x | E3: x | F3: x | I3: x | J3: x | L3: x | M3: x
A4: 3 | B4: بطاقة(3) | H4: x | I4: x | K4: x | M4: x
A5: 4 | B5: ملحق | C5: x | E5: x | L5: x | M5: x | R5: حالة 1
A6: 5 | B6: بطاقة(5) | G6: x | H6: x | I6: x | J6: x | L6: x | M6: x | P6: الاسم
A7: 6 | B7: صورة | C7: x | D7: x | F7: x | L7: x | M7: x | P7: =IFERROR(INDEX($B$2:$B$38,SMALL(IF(INDEX($B$2:$N$38,,MATCH($R$5,$C$1:$M$1,0)+1)="x",ROW($B$2:$B$38)-ROW($B$2)+1),ROWS($P$7:P7))),"") -> ملف
A8: 7 | B8: بطاقة(7) | K8: x | P8: =IFERROR(INDEX($B$2:$B$38,SMALL(IF(INDEX($B$2:$N$38,,MATCH($R$5,$C$1:$M$1,0)+1)="x",ROW($B$2:$B$38)-ROW($B$2)+1),ROWS($P$7:P8))),"") -> بطاقة(2)
A9: 8 | B9: بطاقة(8) | C9: x | D9: x | L9: x | P9: =IFERROR(INDEX($B$2:$B$38,SMALL(IF(INDEX($B$2:$N$38,,MATCH($R$5,$C$1:$M$1,0)+1)="x",ROW($B$2:$B$38)-ROW($B$2)+1),ROWS($P$7:P9))),"") -> ملحق
A10: 9 | B10: ءؤ | P10: =IFERROR(INDEX($B$2:$B$38,SMALL(IF(INDEX($B$2:$N$38,,MATCH($R$5,$C$1:$M$1,0)+1)="x",ROW($B$2:$B$38)-ROW($B$2)+1),ROWS($P$7:P10))),"") -> صورة
A11: 10 | B11: ... | G11: x | P11: =IFERROR(INDEX($B$2:$B$38,SMALL(IF(INDEX($B$2:$N$38,,MATCH($R$5,$C$1:$M$1,0)+1)="x",ROW($B$2:$B$38)-ROW($B$2)+1),ROWS($P$7:P11))),"") -> بطاقة(8)
A12: 11 | B12: قلافا | G12: x | P12: =IFERROR(INDEX($B$2:$B$38,SMALL(IF(INDEX($B$2:$N$38,,MATCH($R$5,$C$1:$M$1,0)+1)="x",ROW($B$2:$B$38)-ROW($B$2)+1),ROWS($P$7:P12))),"") -> 
A13: 12 | B13: اناتن | G13: x | P13: =IFERROR(INDEX($B$2:$B$38,SMALL(IF(INDEX($B$2:$N$38,,MATCH($R$5,$C$1:$M$1,0)+1)="x",ROW($B$2:$B$38)-ROW($B$2)+1),ROWS($P$7:P13))),"") -> 
A14: 13 | B14: ننكخك | G14: x | P14: =IFERROR(INDEX($B$2:$B$38,SMALL(IF(INDEX($B$2:$N$38,,MATCH($R$5,$C$1:$M$1,0)+1)="x",ROW($B$2:$B$38)-ROW($B$2)+1),ROWS($P$7:P14))),"") -> 
A15: 14 | B15: ... | G15: x | P15: =IFERROR(INDEX($B$2:$B$38,SMALL(IF(INDEX($B$2:$N$38,,MATCH($R$5,$C$1:$M$1,0)+1)="x",ROW($B$2:$B$38)-ROW($B$2)+1),ROWS($P$7:P15))),"") -> 
A16: 15 | B16: ... | P16: =IFERROR(INDEX($B$2:$B$38,SMALL(IF(INDEX($B$2:$N$38,,MATCH($R$5,$C$1:$M$1,0)+1)="x",ROW($B$2:$B$38)-ROW($B$2)+1),ROWS($P$7:P16))),"") -> 
A17: 16 | B17: ... | P17: =IFERROR(INDEX($B$2:$B$38,SMALL(IF(INDEX($B$2:$N$38,,MATCH($R$5,$C$1:$M$1,0)+1)="x",ROW($B$2:$B$38)-ROW($B$2)+1),ROWS($P$7:P17))),"") -> 
A18: 17 | B18: ... | P18: =IFERROR(INDEX($B$2:$B$38,SMALL(IF(INDEX($B$2:$N$38,,MATCH($R$5,$C$1:$M$1,0)+1)="x",ROW($B$2:$B$38)-ROW($B$2)+1),ROWS($P$7:P18))),"") -> 
A19: 18 | B19: ... | P19: =IFERROR(INDEX($B$2:$B$38,SMALL(IF(INDEX($B$2:$N$38,,MATCH($R$5,$C$1:$M$1,0)+1)="x",ROW($B$2:$B$38)-ROW($B$2)+1),ROWS($P$7:P19))),"") -> 
A20: 19 | B20: ... | P20: =IFERROR(INDEX($B$2:$B$38,SMALL(IF(INDEX($B$2:$N$38,,MATCH($R$5,$C$1:$M$1,0)+1)="x",ROW($B$2:$B$38)-ROW($B$2)+1),ROWS($P$7:P20))),"") -> 
A21: 20 | B21: ... | P21: =IFERROR(INDEX($B$2:$B$38,SMALL(IF(INDEX($B$2:$N$38,,MATCH($R$5,$C$1:$M$1,0)+1)="x",ROW($B$2:$B$38)-ROW($B$2)+1),ROWS($P$7:P21))),"") -> 
A22: 21 | B22: ... | P22: =IFERROR(INDEX($B$2:$B$38,SMALL(IF(INDEX($B$2:$N$38,,MATCH($R$5,$C$1:$M$1,0)+1)="x",ROW($B$2:$B$38)-ROW($B$2)+1),ROWS($P$7:P22))),"") -> 
B23: ... | P23: =IFERROR(INDEX($B$2:$B$38,SMALL(IF(INDEX($B$2:$N$38,,MATCH($R$5,$C$1:$M$1,0)+1)="x",ROW($B$2:$B$38)-ROW($B$2)+1),ROWS($P$7:P23))),"") -> 
P24: =IFERROR(INDEX($B$2:$B$38,SMALL(IF(INDEX($B$2:$N$38,,MATCH($R$5,$C$1:$M$1,0)+1)="x",ROW($B$2:$B$38)-ROW($B$2)+1),ROWS($P$7:P24))),"") -> 
P25: =IFERROR(INDEX($B$2:$B$38,SMALL(IF(INDEX($B$2:$N$38,,MATCH($R$5,$C$1:$M$1,0)+1)="x",ROW($B$2:$B$38)-ROW($B$2)+1),ROWS($P$7:P25))),"") -> 

Sheet Tableaux
C1: T a b l e a u x A n n u l e 2 0 2 0
C3: Total | F3: Janvier | I3: Février | L3: Mars | O3: Avril | R3: Mai | U3: Juin | X3: Juillet | AA3: Août | AD3: Septembre | AG3: Octobre | AJ3: Novembre | AM3: Décembre
A4: N° | B4: Nome | C4: Usine | D4: Route | E4: H-Sup | F4: Usine | G4: Route | H4: H-Sup | I4: Usine | J4: Route | K4: H-Sup | L4: Usine | M4: Route | N4: H-Sup | O4: Usine | P4: Route | Q4: H-Sup | R4: Usine | S4: Route | T4: H-Sup | U4: Usine | V4: Route | W4: H-Sup | X4: Usine | Y4: Route | Z4: H-Sup | AA4: Usine | AB4: Route | AC4: H-Sup | AD4: Usine | AE4: Route | AF4: H-Sup | AG4: Usine | AH4: Route | AI4: H-Sup | AJ4: Usine | AK4: Route | AL4: H-Sup | AM4: Usine | AN4: Route | AO4: H-Sup
A6: =IF(B6<>"",COUNTA($B$6:B6),"") -> 1 | B6: =IF(Base!E2="","",Base!E2) -> الموظف 1 | C6: =SUM(F6,I6,L6,O6,R6,U6,X6,AA6,AD6,AG6,AJ6,AM6) -> 6 | D6: =SUM(G6,J6,M6,P6,S6,V6,Y6,AB6,AE6,AH6,AK6,AN6) -> 0 | E6: =SUM(H6,K6,N6,Q6,T6,W6,Z6,AC6,AF6,AI6,AL6,AO6) -> 0 | F6: =IFERROR(VLOOKUP($B6,#REF!,2,0),"") ->  | G6: =IFERROR(VLOOKUP($B6,#REF!,3,0),"") ->  | H6: =IFERROR(VLOOKUP($B6,#REF!,4,0),"") ->  | I6: =IFERROR(VLOOKUP($B6,Fevrier!$B$6:$E$55,2,0),"") -> 6 | J6: =IFERROR(VLOOKUP($B6,Fevrier!$B$6:$E$55,3,0),"") -> 0 | K6: =IFERROR(VLOOKUP($B6,Fevrier!$B$6:$E$55,4,0),"") -> 0 | L6: =IFERROR(VLOOKUP($B6,Mars!$B$6:$E$55,2,0),"") -> 0 | M6: =IFERROR(VLOOKUP($B6,Mars!$B$6:$E$55,3,0),"") -> 0 | N6: =IFERROR(VLOOKUP($B6,Mars!$B$6:$E$55,4,0),"") -> 0 | O6: =IFERROR(VLOOKUP($B6,Avril!$B$6:$E$55,2,0),"") ->  | P6: =IFERROR(VLOOKUP($B6,Avril!$B$6:$E$55,3,0),"") ->  | Q6: =IFERROR(VLOOKUP($B6,Avril!$B$6:$E$55,4,0),"") ->  | R6: =IFERROR(VLOOKUP($B6,Mai!$B$6:$E$55,2,0),"") ->  | S6: =IFERROR(VLOOKUP($B6,Mai!$B$6:$E$55,3,0),"") ->  | T6: =IFERROR(VLOOKUP($B6,Mai!$B$6:$E$55,4,0),"") ->  | U6: =IFERROR(VLOOKUP($B6,#REF!,2,0),"") ->  | V6: =IFERROR(VLOOKUP($B6,#REF!,3,0),"") ->  | W6: =IFERROR(VLOOKUP($B6,#REF!,4,0),"") ->  | X6: =IFERROR(VLOOKUP($B6,#REF!,2,0),"") ->  | Y6: =IFERROR(VLOOKUP($B6,#REF!,3,0),"") ->  | Z6: =IFERROR(VLOOKUP($B6,#REF!,4,0),"") ->  | AA6: =IFERROR(VLOOKUP($B6,#REF!,2,0),"") ->  | AB6: =IFERROR(VLOOKUP($B6,#REF!,3,0),"") ->  | AC6: =IFERROR(VLOOKUP($B6,#REF!,4,0),"") ->  | AD6: =IFERROR(VLOOKUP($B6,#REF!,2,0),"") ->  | AE6: =IFERROR(VLOOKUP($B6,#REF!,3,0),"") ->  | AF6: =IFERROR(VLOOKUP($B6,#REF!,4,0),"") ->  | AG6: =IFERROR(VLOOKUP($B6,#REF!,2,0),"") ->  | AH6: =IFERROR(VLOOKUP($B6,#REF!,3,0),"") ->  | AI6: =IFERROR(VLOOKUP($B6,#REF!,4,0),"") ->  | AJ6: =IFERROR(VLOOKUP($B6,#REF!,2,0),"") ->  | AK6: =IFERROR(VLOOKUP($B6,#REF!,3,0),"") ->  | AL6: =IFERROR(VLOOKUP($B6,#REF!,4,0),"") ->  | AM6: =IFERROR(VLOOKUP($B6,#REF!,2,0),"") ->  | AN6: =IFERROR(VLOOKUP($B6,#REF!,3,0),"") ->  | AO6: =IFERROR(VLOOKUP($B6,#REF!,4,0),"") -> 
A7: =IF(B7<>"",COUNTA($B$6:B7),"") -> 2 | B7: =IF(Base!E3="","",Base!E3) -> الموظف 2 | C7: =SUM(F7,I7,L7,O7,R7,U7,X7,AA7,AD7,AG7,AJ7,AM7) -> 0 | D7: =SUM(G7,J7,M7,P7,S7,V7,Y7,AB7,AE7,AH7,AK7,AN7) -> 0 | E7: =SUM(H7,K7,N7,Q7,T7,W7,Z7,AC7,AF7,AI7,AL7,AO7) -> 0 | F7: =IFERROR(VLOOKUP($B7,#REF!,2,0),"") ->  | G7: =IFERROR(VLOOKUP($B7,#REF!,3,0),"") ->  | H7: =IFERROR(VLOOKUP($B7,#REF!,4,0),"") ->  | I7: =IFERROR(VLOOKUP($B7,Fevrier!$B$6:$E$55,2,0),"") ->  | J7: =IFERROR(VLOOKUP($B7,Fevrier!$B$6:$E$55,3,0),"") ->  | K7: =IFERROR(VLOOKUP($B7,Fevrier!$B$6:$E$55,4,0),"") ->  | L7: =IFERROR(VLOOKUP($B7,Mars!$B$6:$E$55,2,0),"") -> 0 | M7: =IFERROR(VLOOKUP($B7,Mars!$B$6:$E$55,3,0),"") -> 0 | N7: =IFERROR(VLOOKUP($B7,Mars!$B$6:$E$55,4,0),"") -> 0 | O7: =IFERROR(VLOOKUP($B7,Avril!$B$6:$E$55,2,0),"") ->  | P7: =IFERROR(VLOOKUP($B7,Avril!$B$6:$E$55,3,0),"") ->  | Q7: =IFERROR(VLOOKUP($B7,Avril!$B$6:$E$55,4,0),"") ->  | R7: =IFERROR(VLOOKUP($B7,Mai!$B$6:$E$55,2,0),"") ->  | S7: =IFERROR(VLOOKUP($B7,Mai!$B$6:$E$55,3,0),"") ->  | T7: =IFERROR(VLOOKUP($B7,Mai!$B$6:$E$55,4,0),"") -> 
A8: =IF(B8<>"",COUNTA($B$6:B8),"") -> 3 | B8: =IF(Base!E4="","",Base!E4) -> الموظف 3 | C8: 2 | D8: 0 | E8: 0 | F8: =IFERROR(VLOOKUP($B8,#REF!,2,0),"") ->  | G8: =IFERROR(VLOOKUP($B8,#REF!,3,0),"") ->  | H8: =IFERROR(VLOOKUP($B8,#REF!,4,0),"") ->  | I8: =IFERROR(VLOOKUP($B8,Fevrier!$B$6:$E$55,2,0),"") -> 2 | J8: =IFERROR(VLOOKUP($B8,Fevrier!$B$6:$E$55,3,0),"") -> 0 | K8: =IFERROR(VLOOKUP($B8,Fevrier!$B$6:$E$55,4,0),"") -> 0 | L8: =IFERROR(VLOOKUP($B8,Mars!$B$6:$E$55,2,0),"") ->  | M8: =IFERROR(VLOOKUP($B8,Mars!$B$6:$E$55,3,0),"") ->  | N8: =IFERROR(VLOOKUP($B8,Mars!$B$6:$E$55,4,0),"") ->  | O8: =IFERROR(VLOOKUP($B8,Avril!$B$6:$E$55,2,0),"") ->  | P8: =IFERROR(VLOOKUP($B8,Avril!$B$6:$E$55,3,0),"") ->  | Q8: =IFERROR(VLOOKUP($B8,Avril!$B$6:$E$55,4,0),"") ->  | R8: =IFERROR(VLOOKUP($B8,Mai!$B$6:$E$55,2,0),"") ->  | S8: =IFERROR(VLOOKUP($B8,Mai!$B$6:$E$55,3,0),"") ->  | T8: =IFERROR(VLOOKUP($B8,Mai!$B$6:$E$55,4,0),"") -> 
A9: =IF(B9<>"",COUNTA($B$6:B9),"") -> 4 | B9: =IF(Base!E5="","",Base!E5) -> الموظف 4 | C9: 0 | D9: 0 | E9: 0 | F9: =IFERROR(VLOOKUP($B9,#REF!,2,0),"") ->  | G9: =IFERROR(VLOOKUP($B9,#REF!,3,0),"") ->  | H9: =IFERROR(VLOOKUP($B9,#REF!,4,0),"") ->  | I9: =IFERROR(VLOOKUP($B9,Fevrier!$B$6:$E$55,2,0),"") ->  | J9: =IFERROR(VLOOKUP($B9,Fevrier!$B$6:$E$55,3,0),"") ->  | K9: =IFERROR(VLOOKUP($B9,Fevrier!$B$6:$E$55,4,0),"") ->  | L9: =IFERROR(VLOOKUP($B9,Mars!$B$6:$E$55,2,0),"") -> 0 | M9: =IFERROR(VLOOKUP($B9,Mars!$B$6:$E$55,3,0),"") -> 0 | N9: =IFERROR(VLOOKUP($B9,Mars!$B$6:$E$55,4,0),"") -> 0 | O9: =IFERROR(VLOOKUP($B9,Avril!$B$6:$E$55,2,0),"") ->  | P9: =IFERROR(VLOOKUP($B9,Avril!$B$6:$E$55,3,0),"") ->  | Q9: =IFERROR(VLOOKUP($B9,Avril!$B$6:$E$55,4,0),"") ->  | R9: =IFERROR(VLOOKUP($B9,Mai!$B$6:$E$55,2,0),"") ->  | S9: =IFERROR(VLOOKUP($B9,Mai!$B$6:$E$55,3,0),"") ->  | T9: =IFERROR(VLOOKUP($B9,Mai!$B$6:$E$55,4,0),"") -> 
A10: =IF(B10<>"",COUNTA($B$6:B10),"") -> 5 | B10: =IF(Base!E6="","",Base!E6) -> الموظف 5 | C10: 6 | D10: 0 | E10: 0 | F10: =IFERROR(VLOOKUP($B10,#REF!,2,0),"") ->  | G10: =IFERROR(VLOOKUP($B10,#REF!,3,0),"") ->  | H10: =IFERROR(VLOOKUP($B10,#REF!,4,0),"") ->  | I10: =IFERROR(VLOOKUP($B10,Fevrier!$B$6:$E$55,2,0),"") -> 6 | J10: =IFERROR(VLOOKUP($B10,Fevrier!$B$6:$E$55,3,0),"") -> 0 | K10: =IFERROR(VLOOKUP($B10,Fevrier!$B$6:$E$55,4,0),"") -> 0 | L10: =IFERROR(VLOOKUP($B10,Mars!$B$6:$E$55,2,0),"") -> 0 | M10: =IFERROR(VLOOKUP($B10,Mars!$B$6:$E$55,3,0),"") -> 0 | N10: =IFERROR(VLOOKUP($B10,Mars!$B$6:$E$55,4,0),"") -> 0 | O10: =IFERROR(VLOOKUP($B10,Avril!$B$6:$E$55,2,0),"") ->  | P10: =IFERROR(VLOOKUP($B10,Avril!$B$6:$E$55,3,0),"") ->  | Q10: =IFERROR(VLOOKUP($B10,Avril!$B$6:$E$55,4,0),"") ->  | R10: =IFERROR(VLOOKUP($B10,Mai!$B$6:$E$55,2,0),"") ->  | S10: =IFERROR(VLOOKUP($B10,Mai!$B$6:$E$55,3,0),"") ->  | T10: =IFERROR(VLOOKUP($B10,Mai!$B$6:$E$55,4,0),"") -> 
A11: =IF(B11<>"",COUNTA($B$6:B11),"") -> 6 | B11: =IF(Base!E7="","",Base!E7) -> الموظف 6 | C11: 6 | D11: 0 | E11: 0 | F11: =IFERROR(VLOOKUP($B11,#REF!,2,0),"") ->  | G11: =IFERROR(VLOOKUP($B11,#REF!,3,0),"") ->  | H11: =IFERROR(VLOOKUP($B11,#REF!,4,0),"") ->  | I11: =IFERROR(VLOOKUP($B11,Fevrier!$B$6:$E$55,2,0),"") -> 6 | J11: =IFERROR(VLOOKUP($B11,Fevrier!$B$6:$E$55,3,0),"") -> 0 | K11: =IFERROR(VLOOKUP($B11,Fevrier!$B$6:$E$55,4,0),"") -> 0 | L11: =IFERROR(VLOOKUP($B11,Mars!$B$6:$E$55,2,0),"") ->  | M11: =IFERROR(VLOOKUP($B11,Mars!$B$6:$E$55,3,0),"") ->  | N11: =IFERROR(VLOOKUP($B11,Mars!$B$6:$E$55,4,0),"") ->  | O11: =IFERROR(VLOOKUP($B11,Avril!$B$6:$E$55,2,0),"") ->  | P11: =IFERROR(VLOOKUP($B11,Avril!$B$6:$E$55,3,0),"") ->  | Q11: =IFERROR(VLOOKUP($B11,Avril!$B$6:$E$55,4,0),"") ->  | R11: =IFERROR(VLOOKUP($B11,Mai!$B$6:$E$55,2,0),"") ->  | S11: =IFERROR(VLOOKUP($B11,Mai!$B$6:$E$55,3,0),"") ->  | T11: =IFERROR(VLOOKUP($B11,Mai!$B$6:$E$55,4,0),"") -> 
A12: =IF(B12<>"",COUNTA($B$6:B12),"") -> 7 | B12: =IF(Base!E8="","",Base!E8) -> الموظف 7 | C12: 6 | D12: 0 | E12: 0 | F12: =IFERROR(VLOOKUP($B12,#REF!,2,0),"") ->  | G12: =IFERROR(VLOOKUP($B12,#REF!,3,0),"") ->  | H12: =IFERROR(VLOOKUP($B12,#REF!,4,0),"") ->  | I12: =IFERROR(VLOOKUP($B12,Fevrier!$B$6:$E$55,2,0),"") -> 6 | J12: =IFERROR(VLOOKUP($B12,Fevrier!$B$6:$E$55,3,0),"") -> 0 | K12: =IFERROR(VLOOKUP($B12,Fevrier!$B$6:$E$55,4,0),"") -> 0 | L12: =IFERROR(VLOOKUP($B12,Mars!$B$6:$E$55,2,0),"") ->  | M12: =IFERROR(VLOOKUP($B12,Mars!$B$6:$E$55,3,0),"") ->  | N12: =IFERROR(VLOOKUP($B12,Mars!$B$6:$E$55,4,0),"") ->  | O12: =IFERROR(VLOOKUP($B12,Avril!$B$6:$E$55,2,0),"") ->  | P12: =IFERROR(VLOOKUP($B12,Avril!$B$6:$E$55,3,0),"") ->  | Q12: =IFERROR(VLOOKUP($B12,Avril!$B$6:$E$55,4,0),"") ->  | R12: =IFERROR(VLOOKUP($B12,Mai!$B$6:$E$55,2,0),"") ->  | S12: =IFERROR(VLOOKUP($B12,Mai!$B$6:$E$55,3,0),"") ->  | T12: =IFERROR(VLOOKUP($B12,Mai!$B$6:$E$55,4,0),"") -> 
A13: =IF(B13<>"",COUNTA($B$6:B13),"") -> 8 | B13: =IF(Base!E9="","",Base!E9) -> الموظف 8 | C13: 5 | D13: 0 | E13: 0 | F13: =IFERROR(VLOOKUP($B13,#REF!,2,0),"") ->  | G13: =IFERROR(VLOOKUP($B13,#REF!,3,0),"") ->  | H13: =IFERROR(VLOOKUP($B13,#REF!,4,0),"") ->  | I13: =IFERROR(VLOOKUP($B13,Fevrier!$B$6:$E$55,2,0),"") -> 5 | J13: =IFERROR(VLOOKUP($B13,Fevrier!$B$6:$E$55,3,0),"") -> 0 | K13: =IFERROR(VLOOKUP($B13,Fevrier!$B$6:$E$55,4,0),"") -> 0 | L13: =IFERROR(VLOOKUP($B13,Mars!$B$6:$E$55,2,0),"") ->  | M13: =IFERROR(VLOOKUP($B13,Mars!$B$6:$E$55,3,0),"") ->  | N13: =IFERROR(VLOOKUP($B13,Mars!$B$6:$E$55,4,0),"") ->  | O13: =IFERROR(VLOOKUP($B13,Avril!$B$6:$E$55,2,0),"") ->  | P13: =IFERROR(VLOOKUP($B13,Avril!$B$6:$E$55,3,0),"") ->  | Q13: =IFERROR(VLOOKUP($B13,Avril!$B$6:$E$55,4,0),"") ->  | R13: =IFERROR(VLOOKUP($B13,Mai!$B$6:$E$55,2,0),"") ->  | S13: =IFERROR(VLOOKUP($B13,Mai!$B$6:$E$55,3,0),"") ->  | T13: =IFERROR(VLOOKUP($B13,Mai!$B$6:$E$55,4,0),"") -> 
A14: =IF(B14<>"",COUNTA($B$6:B14),"") -> 9 | B14: =IF(Base!E10="","",Base!E10) -> الموظف 9 | C14: 7 | D14: 0 | E14: 0 | F14: =IFERROR(VLOOKUP($B14,#REF!,2,0),"") ->  | G14: =IFERROR(VLOOKUP($B14,#REF!,3,0),"") ->  | H14: =IFERROR(VLOOKUP($B14,#REF!,4,0),"") ->  | I14: =IFERROR(VLOOKUP($B14,Fevrier!$B$6:$E$55,2,0),"") -> 7 | J14: =IFERROR(VLOOKUP($B14,Fevrier!$B$6:$E$55,3,0),"") -> 0 | K14: =IFERROR(VLOOKUP($B14,Fevrier!$B$6:$E$55,4,0),"") -> 0 | L14: =IFERROR(VLOOKUP($B14,Mars!$B$6:$E$55,2,0),"") ->  | M14: =IFERROR(VLOOKUP($B14,Mars!$B$6:$E$55,3,0),"") ->  | N14: =IFERROR(VLOOKUP($B14,Mars!$B$6:$E$55,4,0),"") ->  | O14: =IFERROR(VLOOKUP($B14,Avril!$B$6:$E$55,2,0),"") ->  | P14: =IFERROR(VLOOKUP($B14,Avril!$B$6:$E$55,3,0),"") ->  | Q14: =IFERROR(VLOOKUP($B14,Avril!$B$6:$E$55,4,0),"") ->  | R14: =IFERROR(VLOOKUP($B14,Mai!$B$6:$E$55,2,0),"") ->  | S14: =IFERROR(VLOOKUP($B14,Mai!$B$6:$E$55,3,0),"") ->  | T14: =IFERROR(VLOOKUP($B14,Mai!$B$6:$E$55,4,0),"") -> 
A15: =IF(B15<>"",COUNTA($B$6:B15),"") -> 10 | B15: =IF(Base!E11="","",Base!E11) -> الموظف 10 | C15: 0 | D15: 0 | E15: 0 | F15: =IFERROR(VLOOKUP($B15,#REF!,2,0),"") ->  | G15: =IFERROR(VLOOKUP($B15,#REF!,3,0),"") ->  | H15: =IFERROR(VLOOKUP($B15,#REF!,4,0),"") ->  | I15: =IFERROR(VLOOKUP($B15,Fevrier!$B$6:$E$55,2,0),"") -> 0 | J15: =IFERROR(VLOOKUP($B15,Fevrier!$B$6:$E$55,3,0),"") -> 0 | K15: =IFERROR(VLOOKUP($B15,Fevrier!$B$6:$E$55,4,0),"") -> 0 | L15: =IFERROR(VLOOKUP($B15,Mars!$B$6:$E$55,2,0),"") ->  | M15: =IFERROR(VLOOKUP($B15,Mars!$B$6:$E$55,3,0),"") ->  | N15: =IFERROR(VLOOKUP($B15,Mars!$B$6:$E$55,4,0),"") ->  | O15: =IFERROR(VLOOKUP($B15,Avril!$B$6:$E$55,2,0),"") ->  | P15: =IFERROR(VLOOKUP($B15,Avril!$B$6:$E$55,3,0),"") ->  | Q15: =IFERROR(VLOOKUP($B15,Avril!$B$6:$E$55,4,0),"") ->  | R15: =IFERROR(VLOOKUP($B15,Mai!$B$6:$E$55,2,0),"") ->  | S15: =IFERROR(VLOOKUP($B15,Mai!$B$6:$E$55,3,0),"") ->  | T15: =IFERROR(VLOOKUP($B15,Mai!$B$6:$E$55,4,0),"") -> 
A16: =IF(B16<>"",COUNTA($B$6:B16),"") -> 11 | B16: =IF(Base!E12="","",Base!E12) -> الموظف 11 | C16: 5 | D16: 0 | E16: 0 | F16: =IFERROR(VLOOKUP($B16,#REF!,2,0),"") ->  | G16: =IFERROR(VLOOKUP($B16,#REF!,3,0),"") ->  | H16: =IFERROR(VLOOKUP($B16,#REF!,4,0),"") ->  | I16: =IFERROR(VLOOKUP($B16,Fevrier!$B$6:$E$55,2,0),"") -> 5 | J16: =IFERROR(VLOOKUP($B16,Fevrier!$B$6:$E$55,3,0),"") -> 0 | K16: =IFERROR(VLOOKUP($B16,Fevrier!$B$6:$E$55,4,0),"") -> 0 | L16: =IFERROR(VLOOKUP($B16,Mars!$B$6:$E$55,2,0),"") ->  | M16: =IFERROR(VLOOKUP($B16,Mars!$B$6:$E$55,3,0),"") ->  | N16: =IFERROR(VLOOKUP($B16,Mars!$B$6:$E$55,4,0),"") ->  | O16: =IFERROR(VLOOKUP($B16,Avril!$B$6:$E$55,2,0),"") ->  | P16: =IFERROR(VLOOKUP($B16,Avril!$B$6:$E$55,3,0),"") ->  | Q16: =IFERROR(VLOOKUP($B16,Avril!$B$6:$E$55,4,0),"") ->  | R16: =IFERROR(VLOOKUP($B16,Mai!$B$6:$E$55,2,0),"") ->  | S16: =IFERROR(VLOOKUP($B16,Mai!$B$6:$E$55,3,0),"") ->  | T16: =IFERROR(VLOOKUP($B16,Mai!$B$6:$E$55,4,0),"") -> 
A17: =IF(B17<>"",COUNTA($B$6:B17),"") -> 12 | B17: =IF(Base!E13="","",Base!E13) -> الموظف 12 | C17: 0 | D17: 0 | E17: 0 | F17: =IFERROR(VLOOKUP($B17,#REF!,2,0),"") ->  | G17: =IFERROR(VLOOKUP($B17,#REF!,3,0),"") ->  | H17: =IFERROR(VLOOKUP($B17,#REF!,4,0),"") ->  | I17: =IFERROR(VLOOKUP($B17,Fevrier!$B$6:$E$55,2,0),"") ->  | J17: =IFERROR(VLOOKUP($B17,Fevrier!$B$6:$E$55,3,0),"") ->  | K17: =IFERROR(VLOOKUP($B17,Fevrier!$B$6:$E$55,4,0),"") ->  | L17: =IFERROR(VLOOKUP($B17,Mars!$B$6:$E$55,2,0),"") -> 0 | M17: =IFERROR(VLOOKUP($B17,Mars!$B$6:$E$55,3,0),"") -> 0 | N17: =IFERROR(VLOOKUP($B17,Mars!$B$6:$E$55,4,0),"") -> 0 | O17: =IFERROR(VLOOKUP($B17,Avril!$B$6:$E$55,2,0),"") ->  | P17: =IFERROR(VLOOKUP($B17,Avril!$B$6:$E$55,3,0),"") ->  | Q17: =IFERROR(VLOOKUP($B17,Avril!$B$6:$E$55,4,0),"") ->  | R17: =IFERROR(VLOOKUP($B17,Mai!$B$6:$E$55,2,0),"") ->  | S17: =IFERROR(VLOOKUP($B17,Mai!$B$6:$E$55,3,0),"") ->  | T17: =IFERROR(VLOOKUP($B17,Mai!$B$6:$E$55,4,0),"") -> 
A18: =IF(B18<>"",COUNTA($B$6:B18),"") -> 13 | B18: =IF(Base!E14="","",Base!E14) -> الموظف 13 | C18: 6 | D18: 0 | E18: 0 | F18: =IFERROR(VLOOKUP($B18,#REF!,2,0),"") ->  | G18: =IFERROR(VLOOKUP($B18,#REF!,3,0),"") ->  | H18: =IFERROR(VLOOKUP($B18,#REF!,4,0),"") ->  | I18: =IFERROR(VLOOKUP($B18,Fevrier!$B$6:$E$55,2,0),"") -> 6 | J18: =IFERROR(VLOOKUP($B18,Fevrier!$B$6:$E$55,3,0),"") -> 0 | K18: =IFERROR(VLOOKUP($B18,Fevrier!$B$6:$E$55,4,0),"") -> 0 | L18: =IFERROR(VLOOKUP($B18,Mars!$B$6:$E$55,2,0),"") ->  | M18: =IFERROR(VLOOKUP($B18,Mars!$B$6:$E$55,3,0),"") ->  | N18: =IFERROR(VLOOKUP($B18,Mars!$B$6:$E$55,4,0),"") ->  | O18: =IFERROR(VLOOKUP($B18,Avril!$B$6:$E$55,2,0),"") ->  | P18: =IFERROR(VLOOKUP($B18,Avril!$B$6:$E$55,3,0),"") ->  | Q18: =IFERROR(VLOOKUP($B18,Avril!$B$6:$E$55,4,0),"") ->  | R18: =IFERROR(VLOOKUP($B18,Mai!$B$6:$E$55,2,0),"") ->  | S18: =IFERROR(VLOOKUP($B18,Mai!$B$6:$E$55,3,0),"") ->  | T18: =IFERROR(VLOOKUP($B18,Mai!$B$6:$E$55,4,0),"") -> 
A19: =IF(B19<>"",COUNTA($B$6:B19),"") -> 14 | B19: =IF(Base!E15="","",Base!E15) -> الموظف 14 | C19: 8 | D19: 0 | E19: 0 | F19: =IFERROR(VLOOKUP($B19,#REF!,2,0),"") ->  | G19: =IFERROR(VLOOKUP($B19,#REF!,3,0),"") ->  | H19: =IFERROR(VLOOKUP($B19,#REF!,4,0),"") ->  | I19: =IFERROR(VLOOKUP($B19,Fevrier!$B$6:$E$55,2,0),"") -> 8 | J19: =IFERROR(VLOOKUP($B19,Fevrier!$B$6:$E$55,3,0),"") -> 0 | K19: =IFERROR(VLOOKUP($B19,Fevrier!$B$6:$E$55,4,0),"") -> 0 | L19: =IFERROR(VLOOKUP($B19,Mars!$B$6:$E$55,2,0),"") ->  | M19: =IFERROR(VLOOKUP($B19,Mars!$B$6:$E$55,3,0),"") ->  | N19: =IFERROR(VLOOKUP($B19,Mars!$B$6:$E$55,4,0),"") ->  | O19: =IFERROR(VLOOKUP($B19,Avril!$B$6:$E$55,2,0),"") ->  | P19: =IFERROR(VLOOKUP($B19,Avril!$B$6:$E$55,3,0),"") ->  | Q19: =IFERROR(VLOOKUP($B19,Avril!$B$6:$E$55,4,0),"") ->  | R19: =IFERROR(VLOOKUP($B19,Mai!$B$6:$E$55,2,0),"") ->  | S19: =IFERROR(VLOOKUP($B19,Mai!$B$6:$E$55,3,0),"") ->  | T19: =IFERROR(VLOOKUP($B19,Mai!$B$6:$E$55,4,0),"") -> 
A20: =IF(B20<>"",COUNTA($B$6:B20),"") -> 15 | B20: =IF(Base!E16="","",Base!E16) -> الموظف 15 | C20: 0 | D20: 0 | E20: 0 | F20: =IFERROR(VLOOKUP($B20,#REF!,2,0),"") ->  | G20: =IFERROR(VLOOKUP($B20,#REF!,3,0),"") ->  | H20: =IFERROR(VLOOKUP($B20,#REF!,4,0),"") ->  | I20: =IFERROR(VLOOKUP($B20,Fevrier!$B$6:$E$55,2,0),"") ->  | J20: =IFERROR(VLOOKUP($B20,Fevrier!$B$6:$E$55,3,0),"") ->  | K20: =IFERROR(VLOOKUP($B20,Fevrier!$B$6:$E$55,4,0),"") ->  | L20: =IFERROR(VLOOKUP($B20,Mars!$B$6:$E$55,2,0),"") ->  | M20: =IFERROR(VLOOKUP($B20,Mars!$B$6:$E$55,3,0),"") ->  | N20: =IFERROR(VLOOKUP($B20,Mars!$B$6:$E$55,4,0),"") ->  | O20: =IFERROR(VLOOKUP($B20,Avril!$B$6:$E$55,2,0),"") ->  | P20: =IFERROR(VLOOKUP($B20,Avril!$B$6:$E$55,3,0),"") ->  | Q20: =IFERROR(VLOOKUP($B20,Avril!$B$6:$E$55,4,0),"") ->  | R20: =IFERROR(VLOOKUP($B20,Mai!$B$6:$E$55,2,0),"") ->  | S20: =IFERROR(VLOOKUP($B20,Mai!$B$6:$E$55,3,0),"") ->  | T20: =IFERROR(VLOOKUP($B20,Mai!$B$6:$E$55,4,0),"") -> 
A21: =IF(B21<>"",COUNTA($B$6:B21),"") -> 16 | B21: =IF(Base!E17="","",Base!E17) -> الموظف 16 | C21: 2 | D21: 0 | E21: 0 | F21: =IFERROR(VLOOKUP($B21,#REF!,2,0),"") ->  | G21: =IFERROR(VLOOKUP($B21,#REF!,3,0),"") ->  | H21: =IFERROR(VLOOKUP($B21,#REF!,4,0),"") ->  | I21: =IFERROR(VLOOKUP($B21,Fevrier!$B$6:$E$55,2,0),"") -> 2 | J21: =IFERROR(VLOOKUP($B21,Fevrier!$B$6:$E$55,3,0),"") -> 0 | K21: =IFERROR(VLOOKUP($B21,Fevrier!$B$6:$E$55,4,0),"") -> 0 | L21: =IFERROR(VLOOKUP($B21,Mars!$B$6:$E$55,2,0),"") ->  | M21: =IFERROR(VLOOKUP($B21,Mars!$B$6:$E$55,3,0),"") ->  | N21: =IFERROR(VLOOKUP($B21,Mars!$B$6:$E$55,4,0),"") ->  | O21: =IFERROR(VLOOKUP($B21,Avril!$B$6:$E$55,2,0),"") ->  | P21: =IFERROR(VLOOKUP($B21,Avril!$B$6:$E$55,3,0),"") ->  | Q21: =IFERROR(VLOOKUP($B21,Avril!$B$6:$E$55,4,0),"") ->  | R21: =IFERROR(VLOOKUP($B21,Mai!$B$6:$E$55,2,0),"") ->  | S21: =IFERROR(VLOOKUP($B21,Mai!$B$6:$E$55,3,0),"") ->  | T21: =IFERROR(VLOOKUP($B21,Mai!$B$6:$E$55,4,0),"") -> 
A22: =IF(B22<>"",COUNTA($B$6:B22),"") -> 17 | B22: =IF(Base!E18="","",Base!E18) -> الموظف 17 | C22: 6 | D22: 2 | E22: 2 | F22: =IFERROR(VLOOKUP($B22,#REF!,2,0),"") ->  | G22: =IFERROR(VLOOKUP($B22,#REF!,3,0),"") ->  | H22: =IFERROR(VLOOKUP($B22,#REF!,4,0),"") ->  | I22: =IFERROR(VLOOKUP($B22,Fevrier!$B$6:$E$55,2,0),"") -> 6 | J22: =IFERROR(VLOOKUP($B22,Fevrier!$B$6:$E$55,3,0),"") -> 2 | K22: =IFERROR(VLOOKUP($B22,Fevrier!$B$6:$E$55,4,0),"") -> 2 | L22: =IFERROR(VLOOKUP($B22,Mars!$B$6:$E$55,2,0),"") ->  | M22: =IFERROR(VLOOKUP($B22,Mars!$B$6:$E$55,3,0),"") ->  | N22: =IFERROR(VLOOKUP($B22,Mars!$B$6:$E$55,4,0),"") ->  | O22: =IFERROR(VLOOKUP($B22,Avril!$B$6:$E$55,2,0),"") ->  | P22: =IFERROR(VLOOKUP($B22,Avril!$B$6:$E$55,3,0),"") ->  | Q22: =IFERROR(VLOOKUP($B22,Avril!$B$6:$E$55,4,0),"") ->  | R22: =IFERROR(VLOOKUP($B22,Mai!$B$6:$E$55,2,0),"") ->  | S22: =IFERROR(VLOOKUP($B22,Mai!$B$6:$E$55,3,0),"") ->  | T22: =IFERROR(VLOOKUP($B22,Mai!$B$6:$E$55,4,0),"") -> 
A23: =IF(B23<>"",COUNTA($B$6:B23),"") -> 18 | B23: =IF(Base!E19="","",Base!E19) -> الموظف 18 | C23: 6 | D23: 2 | E23: 0 | F23: =IFERROR(VLOOKUP($B23,#REF!,2,0),"") ->  | G23: =IFERROR(VLOOKUP($B23,#REF!,3,0),"") ->  | H23: =IFERROR(VLOOKUP($B23,#REF!,4,0),"") ->  | I23: =IFERROR(VLOOKUP($B23,Fevrier!$B$6:$E$55,2,0),"") -> 6 | J23: =IFERROR(VLOOKUP($B23,Fevrier!$B$6:$E$55,3,0),"") -> 2 | K23: =IFERROR(VLOOKUP($B23,Fevrier!$B$6:$E$55,4,0),"") -> 0 | L23: =IFERROR(VLOOKUP($B23,Mars!$B$6:$E$55,2,0),"") ->  | M23: =IFERROR(VLOOKUP($B23,Mars!$B$6:$E$55,3,0),"") ->  | N23: =IFERROR(VLOOKUP($B23,Mars!$B$6:$E$55,4,0),"") ->  | O23: =IFERROR(VLOOKUP($B23,Avril!$B$6:$E$55,2,0),"") ->  | P23: =IFERROR(VLOOKUP($B23,Avril!$B$6:$E$55,3,0),"") ->  | Q23: =IFERROR(VLOOKUP($B23,Avril!$B$6:$E$55,4,0),"") ->  | R23: =IFERROR(VLOOKUP($B23,Mai!$B$6:$E$55,2,0),"") ->  | S23: =IFERROR(VLOOKUP($B23,Mai!$B$6:$E$55,3,0),"") ->  | T23: =IFERROR(VLOOKUP($B23,Mai!$B$6:$E$55,4,0),"") -> 
A24: =IF(B24<>"",COUNTA($B$6:B24),"") -> 19 | B24: =IF(Base!E20="","",Base!E20) -> الموظف 19 | C24: 6 | D24: 2 | E24: 0 | F24: =IFERROR(VLOOKUP($B24,#REF!,2,0),"") ->  | G24: =IFERROR(VLOOKUP($B24,#REF!,3,0),"") ->  | H24: =IFERROR(VLOOKUP($B24,#REF!,4,0),"") ->  | I24: =IFERROR(VLOOKUP($B24,Fevrier!$B$6:$E$55,2,0),"") -> 6 | J24: =IFERROR(VLOOKUP($B24,Fevrier!$B$6:$E$55,3,0),"") -> 2 | K24: =IFERROR(VLOOKUP($B24,Fevrier!$B$6:$E$55,4,0),"") -> 0 | L24: =IFERROR(VLOOKUP($B24,Mars!$B$6:$E$55,2,0),"") ->  | M24: =IFERROR(VLOOKUP($B24,Mars!$B$6:$E$55,3,0),"") ->  | N24: =IFERROR(VLOOKUP($B24,Mars!$B$6:$E$55,4,0),"") ->  | O24: =IFERROR(VLOOKUP($B24,Avril!$B$6:$E$55,2,0),"") ->  | P24: =IFERROR(VLOOKUP($B24,Avril!$B$6:$E$55,3,0),"") ->  | Q24: =IFERROR(VLOOKUP($B24,Avril!$B$6:$E$55,4,0),"") ->  | R24: =IFERROR(VLOOKUP($B24,Mai!$B$6:$E$55,2,0),"") ->  | S24: =IFERROR(VLOOKUP($B24,Mai!$B$6:$E$55,3,0),"") ->  | T24: =IFERROR(VLOOKUP($B24,Mai!$B$6:$E$55,4,0),"") -> 
A25: =IF(B25<>"",COUNTA($B$6:B25),"") -> 20 | B25: =IF(Base!E21="","",Base!E21) -> الموظف 20 | C25: 0 | D25: 0 | E25: 0 | F25: =IFERROR(VLOOKUP($B25,#REF!,2,0),"") ->  | G25: =IFERROR(VLOOKUP($B25,#REF!,3,0),"") ->  | H25: =IFERROR(VLOOKUP($B25,#REF!,4,0),"") ->  | I25: =IFERROR(VLOOKUP($B25,Fevrier!$B$6:$E$55,2,0),"") ->  | J25: =IFERROR(VLOOKUP($B25,Fevrier!$B$6:$E$55,3,0),"") ->  | K25: =IFERROR(VLOOKUP($B25,Fevrier!$B$6:$E$55,4,0),"") ->  | L25: =IFERROR(VLOOKUP($B25,Mars!$B$6:$E$55,2,0),"") ->  | M25: =IFERROR(VLOOKUP($B25,Mars!$B$6:$E$55,3,0),"") ->  | N25: =IFERROR(VLOOKUP($B25,Mars!$B$6:$E$55,4,0),"") ->  | O25: =IFERROR(VLOOKUP($B25,Avril!$B$6:$E$55,2,0),"") ->  | P25: =IFERROR(VLOOKUP($B25,Avril!$B$6:$E$55,3,0),"") ->  | Q25: =IFERROR(VLOOKUP($B25,Avril!$B$6:$E$55,4,0),"") ->  | R25: =IFERROR(VLOOKUP($B25,Mai!$B$6:$E$55,2,0),"") ->  | S25: =IFERROR(VLOOKUP($B25,Mai!$B$6:$E$55,3,0),"") ->  | T25: =IFERROR(VLOOKUP($B25,Mai!$B$6:$E$55,4,0),"") -> 
A26: =IF(B26<>"",COUNTA($B$6:B26),"") -> 21 | B26: =IF(Base!E22="","",Base!E22) -> الموظف 21 | C26: 6 | D26: 2 | E26: 2 | F26: =IFERROR(VLOOKUP($B26,#REF!,2,0),"") ->  | G26: =IFERROR(VLOOKUP($B26,#REF!,3,0),"") ->  | H26: =IFERROR(VLOOKUP($B26,#REF!,4,0),"") ->  | I26: =IFERROR(VLOOKUP($B26,Fevrier!$B$6:$E$55,2,0),"") -> 6 | J26: =IFERROR(VLOOKUP($B26,Fevrier!$B$6:$E$55,3,0),"") -> 2 | K26: =IFERROR(VLOOKUP($B26,Fevrier!$B$6:$E$55,4,0),"") -> 2 | L26: =IFERROR(VLOOKUP($B26,Mars!$B$6:$E$55,2,0),"") ->  | M26: =IFERROR(VLOOKUP($B26,Mars!$B$6:$E$55,3,0),"") ->  | N26: =IFERROR(VLOOKUP($B26,Mars!$B$6:$E$55,4,0),"") ->  | O26: =IFERROR(VLOOKUP($B26,Avril!$B$6:$E$55,2,0),"") ->  | P26: =IFERROR(VLOOKUP($B26,Avril!$B$6:$E$55,3,0),"") ->  | Q26: =IFERROR(VLOOKUP($B26,Avril!$B$6:$E$55,4,0),"") ->  | R26: =IFERROR(VLOOKUP($B26,Mai!$B$6:$E$55,2,0),"") ->  | S26: =IFERROR(VLOOKUP($B26,Mai!$B$6:$E$55,3,0),"") ->  | T26: =IFERROR(VLOOKUP($B26,Mai!$B$6:$E$55,4,0),"") -> 
A27: =IF(B27<>"",COUNTA($B$6:B27),"") -> 22 | B27: =IF(Base!E23="","",Base!E23) -> الموظف 22 | C27: 4 | D27: 1 | E27: 0 | F27: =IFERROR(VLOOKUP($B27,#REF!,2,0),"") ->  | G27: =IFERROR(VLOOKUP($B27,#REF!,3,0),"") ->  | H27: =IFERROR(VLOOKUP($B27,#REF!,4,0),"") ->  | I27: =IFERROR(VLOOKUP($B27,Fevrier!$B$6:$E$55,2,0),"") -> 4 | J27: =IFERROR(VLOOKUP($B27,Fevrier!$B$6:$E$55,3,0),"") -> 1 | K27: =IFERROR(VLOOKUP($B27,Fevrier!$B$6:$E$55,4,0),"") -> 0 | L27: =IFERROR(VLOOKUP($B27,Mars!$B$6:$E$55,2,0),"") ->  | M27: =IFERROR(VLOOKUP($B27,Mars!$B$6:$E$55,3,0),"") ->  | N27: =IFERROR(VLOOKUP($B27,Mars!$B$6:$E$55,4,0),"") ->  | O27: =IFERROR(VLOOKUP($B27,Avril!$B$6:$E$55,2,0),"") ->  | P27: =IFERROR(VLOOKUP($B27,Avril!$B$6:$E$55,3,0),"") ->  | Q27: =IFERROR(VLOOKUP($B27,Avril!$B$6:$E$55,4,0),"") ->  | R27: =IFERROR(VLOOKUP($B27,Mai!$B$6:$E$55,2,0),"") ->  | S27: =IFERROR(VLOOKUP($B27,Mai!$B$6:$E$55,3,0),"") ->  | T27: =IFERROR(VLOOKUP($B27,Mai!$B$6:$E$55,4,0),"") -> 
A28: =IF(B28<>"",COUNTA($B$6:B28),"") -> 23 | B28: =IF(Base!E24="","",Base!E24) -> الموظف 23 | C28: 0 | D28: 0 | E28: 0 | F28: =IFERROR(VLOOKUP($B28,#REF!,2,0),"") ->  | G28: =IFERROR(VLOOKUP($B28,#REF!,3,0),"") ->  | H28: =IFERROR(VLOOKUP($B28,#REF!,4,0),"") ->  | I28: =IFERROR(VLOOKUP($B28,Fevrier!$B$6:$E$55,2,0),"") ->  | J28: =IFERROR(VLOOKUP($B28,Fevrier!$B$6:$E$55,3,0),"") ->  | K28: =IFERROR(VLOOKUP($B28,Fevrier!$B$6:$E$55,4,0),"") ->  | L28: =IFERROR(VLOOKUP($B28,Mars!$B$6:$E$55,2,0),"") ->  | M28: =IFERROR(VLOOKUP($B28,Mars!$B$6:$E$55,3,0),"") ->  | N28: =IFERROR(VLOOKUP($B28,Mars!$B$6:$E$55,4,0),"") ->  | O28: =IFERROR(VLOOKUP($B28,Avril!$B$6:$E$55,2,0),"") ->  | P28: =IFERROR(VLOOKUP($B28,Avril!$B$6:$E$55,3,0),"") ->  | Q28: =IFERROR(VLOOKUP($B28,Avril!$B$6:$E$55,4,0),"") ->  | R28: =IFERROR(VLOOKUP($B28,Mai!$B$6:$E$55,2,0),"") ->  | S28: =IFERROR(VLOOKUP($B28,Mai!$B$6:$E$55,3,0),"") ->  | T28: =IFERROR(VLOOKUP($B28,Mai!$B$6:$E$55,4,0),"") -> 
A29: =IF(B29<>"",COUNTA($B$6:B29),"") -> 24 | B29: =IF(Base!E25="","",Base!E25) -> الموظف 24 | C29: 0 | D29: 0 | E29: 0 | F29: =IFERROR(VLOOKUP($B29,#REF!,2,0),"") ->  | G29: =IFERROR(VLOOKUP($B29,#REF!,3,0),"") ->  | H29: =IFERROR(VLOOKUP($B29,#REF!,4,0),"") ->  | I29: =IFERROR(VLOOKUP($B29,Fevrier!$B$6:$E$55,2,0),"") ->  | J29: =IFERROR(VLOOKUP($B29,Fevrier!$B$6:$E$55,3,0),"") ->  | K29: =IFERROR(VLOOKUP($B29,Fevrier!$B$6:$E$55,4,0),"") ->  | L29: =IFERROR(VLOOKUP($B29,Mars!$B$6:$E$55,2,0),"") ->  | M29: =IFERROR(VLOOKUP($B29,Mars!$B$6:$E$55,3,0),"") ->  | N29: =IFERROR(VLOOKUP($B29,Mars!$B$6:$E$55,4,0),"") ->  | O29: =IFERROR(VLOOKUP($B29,Avril!$B$6:$E$55,2,0),"") ->  | P29: =IFERROR(VLOOKUP($B29,Avril!$B$6:$E$55,3,0),"") ->  | Q29: =IFERROR(VLOOKUP($B29,Avril!$B$6:$E$55,4,0),"") ->  | R29: =IFERROR(VLOOKUP($B29,Mai!$B$6:$E$55,2,0),"") ->  | S29: =IFERROR(VLOOKUP($B29,Mai!$B$6:$E$55,3,0),"") ->  | T29: =IFERROR(VLOOKUP($B29,Mai!$B$6:$E$55,4,0),"") -> 
A30: =IF(B30<>"",COUNTA($B$6:B30),"") -> 25 | B30: =IF(Base!E26="","",Base!E26) -> الموظف 25 | C30: 7 | D30: 0 | E30: 0 | F30: =IFERROR(VLOOKUP($B30,#REF!,2,0),"") ->  | G30: =IFERROR(VLOOKUP($B30,#REF!,3,0),"") ->  | H30: =IFERROR(VLOOKUP($B30,#REF!,4,0),"") ->  | I30: =IFERROR(VLOOKUP($B30,Fevrier!$B$6:$E$55,2,0),"") -> 7 | J30: =IFERROR(VLOOKUP($B30,Fevrier!$B$6:$E$55,3,0),"") -> 0 | K30: =IFERROR(VLOOKUP($B30,Fevrier!$B$6:$E$55,4,0),"") -> 0 | L30: =IFERROR(VLOOKUP($B30,Mars!$B$6:$E$55,2,0),"") ->  | M30: =IFERROR(VLOOKUP($B30,Mars!$B$6:$E$55,3,0),"") ->  | N30: =IFERROR(VLOOKUP($B30,Mars!$B$6:$E$55,4,0),"") ->  | O30: =IFERROR(VLOOKUP($B30,Avril!$B$6:$E$55,2,0),"") ->  | P30: =IFERROR(VLOOKUP($B30,Avril!$B$6:$E$55,3,0),"") ->  | Q30: =IFERROR(VLOOKUP($B30,Avril!$B$6:$E$55,4,0),"") ->  | R30: =IFERROR(VLOOKUP($B30,Mai!$B$6:$E$55,2,0),"") ->  | S30: =IFERROR(VLOOKUP($B30,Mai!$B$6:$E$55,3,0),"") ->  | T30: =IFERROR(VLOOKUP($B30,Mai!$B$6:$E$55,4,0),"") -> 
A31: =IF(B31<>"",COUNTA($B$6:B31),"") -> 26 | B31: =IF(Base!E27="","",Base!E27) -> الموظف 26 | C31: 0 | D31: 0 | E31: 0 | F31: =IFERROR(VLOOKUP($B31,#REF!,2,0),"") ->  | G31: =IFERROR(VLOOKUP($B31,#REF!,3,0),"") ->  | H31: =IFERROR(VLOOKUP($B31,#REF!,4,0),"") ->  | I31: =IFERROR(VLOOKUP($B31,Fevrier!$B$6:$E$55,2,0),"") ->  | J31: =IFERROR(VLOOKUP($B31,Fevrier!$B$6:$E$55,3,0),"") ->  | K31: =IFERROR(VLOOKUP($B31,Fevrier!$B$6:$E$55,4,0),"") ->  | L31: =IFERROR(VLOOKUP($B31,Mars!$B$6:$E$55,2,0),"") ->  | M31: =IFERROR(VLOOKUP($B31,Mars!$B$6:$E$55,3,0),"") ->  | N31: =IFERROR(VLOOKUP($B31,Mars!$B$6:$E$55,4,0),"") ->  | O31: =IFERROR(VLOOKUP($B31,Avril!$B$6:$E$55,2,0),"") ->  | P31: =IFERROR(VLOOKUP($B31,Avril!$B$6:$E$55,3,0),"") ->  | Q31: =IFERROR(VLOOKUP($B31,Avril!$B$6:$E$55,4,0),"") ->  | R31: =IFERROR(VLOOKUP($B31,Mai!$B$6:$E$55,2,0),"") ->  | S31: =IFERROR(VLOOKUP($B31,Mai!$B$6:$E$55,3,0),"") ->  | T31: =IFERROR(VLOOKUP($B31,Mai!$B$6:$E$55,4,0),"") -> 
A32: =IF(B32<>"",COUNTA($B$6:B32),"") -> 27 | B32: =IF(Base!E28="","",Base!E28) -> الموظف 27 | C32: 0 | D32: 0 | E32: 0 | F32: =IFERROR(VLOOKUP($B32,#REF!,2,0),"") ->  | G32: =IFERROR(VLOOKUP($B32,#REF!,3,0),"") ->  | H32: =IFERROR(VLOOKUP($B32,#REF!,4,0),"") ->  | I32: =IFERROR(VLOOKUP($B32,Fevrier!$B$6:$E$55,2,0),"") ->  | J32: =IFERROR(VLOOKUP($B32,Fevrier!$B$6:$E$55,3,0),"") ->  | K32: =IFERROR(VLOOKUP($B32,Fevrier!$B$6:$E$55,4,0),"") ->  | L32: =IFERROR(VLOOKUP($B32,Mars!$B$6:$E$55,2,0),"") ->  | M32: =IFERROR(VLOOKUP($B32,Mars!$B$6:$E$55,3,0),"") ->  | N32: =IFERROR(VLOOKUP($B32,Mars!$B$6:$E$55,4,0),"") ->  | O32: =IFERROR(VLOOKUP($B32,Avril!$B$6:$E$55,2,0),"") ->  | P32: =IFERROR(VLOOKUP($B32,Avril!$B$6:$E$55,3,0),"") ->  | Q32: =IFERROR(VLOOKUP($B32,Avril!$B$6:$E$55,4,0),"") ->  | R32: =IFERROR(VLOOKUP($B32,Mai!$B$6:$E$55,2,0),"") ->  | S32: =IFERROR(VLOOKUP($B32,Mai!$B$6:$E$55,3,0),"") ->  | T32: =IFERROR(VLOOKUP($B32,Mai!$B$6:$E$55,4,0),"") -> 
A33: =IF(B33<>"",COUNTA($B$6:B33),"") -> 28 | B33: =IF(Base!E29="","",Base!E29) -> الموظف 28 | C33: 0 | D33: 0 | E33: 0 | F33: =IFERROR(VLOOKUP($B33,#REF!,2,0),"") ->  | G33: =IFERROR(VLOOKUP($B33,#REF!,3,0),"") ->  | H33: =IFERROR(VLOOKUP($B33,#REF!,4,0),"") ->  | I33: =IFERROR(VLOOKUP($B33,Fevrier!$B$6:$E$55,2,0),"") ->  | J33: =IFERROR(VLOOKUP($B33,Fevrier!$B$6:$E$55,3,0),"") ->  | K33: =IFERROR(VLOOKUP($B33,Fevrier!$B$6:$E$55,4,0),"") ->  | L33: =IFERROR(VLOOKUP($B33,Mars!$B$6:$E$55,2,0),"") ->  | M33: =IFERROR(VLOOKUP($B33,Mars!$B$6:$E$55,3,0),"") ->  | N33: =IFERROR(VLOOKUP($B33,Mars!$B$6:$E$55,4,0),"") ->  | O33: =IFERROR(VLOOKUP($B33,Avril!$B$6:$E$55,2,0),"") ->  | P33: =IFERROR(VLOOKUP($B33,Avril!$B$6:$E$55,3,0),"") ->  | Q33: =IFERROR(VLOOKUP($B33,Avril!$B$6:$E$55,4,0),"") ->  | R33: =IFERROR(VLOOKUP($B33,Mai!$B$6:$E$55,2,0),"") ->  | S33: =IFERROR(VLOOKUP($B33,Mai!$B$6:$E$55,3,0),"") ->  | T33: =IFERROR(VLOOKUP($B33,Mai!$B$6:$E$55,4,0),"") -> 
A34: =IF(B34<>"",COUNTA($B$6:B34),"") -> 29 | B34: =IF(Base!E30="","",Base!E30) -> الموظف 29 | C34: 0 | D34: 0 | E34: 0 | F34: =IFERROR(VLOOKUP($B34,#REF!,2,0),"") ->  | G34: =IFERROR(VLOOKUP($B34,#REF!,3,0),"") ->  | H34: =IFERROR(VLOOKUP($B34,#REF!,4,0),"") ->  | I34: =IFERROR(VLOOKUP($B34,Fevrier!$B$6:$E$55,2,0),"") ->  | J34: =IFERROR(VLOOKUP($B34,Fevrier!$B$6:$E$55,3,0),"") ->  | K34: =IFERROR(VLOOKUP($B34,Fevrier!$B$6:$E$55,4,0),"") ->  | L34: =IFERROR(VLOOKUP($B34,Mars!$B$6:$E$55,2,0),"") ->  | M34: =IFERROR(VLOOKUP($B34,Mars!$B$6:$E$55,3,0),"") ->  | N34: =IFERROR(VLOOKUP($B34,Mars!$B$6:$E$55,4,0),"") ->  | O34: =IFERROR(VLOOKUP($B34,Avril!$B$6:$E$55,2,0),"") ->  | P34: =IFERROR(VLOOKUP($B34,Avril!$B$6:$E$55,3,0),"") ->  | Q34: =IFERROR(VLOOKUP($B34,Avril!$B$6:$E$55,4,0),"") ->  | R34: =IFERROR(VLOOKUP($B34,Mai!$B$6:$E$55,2,0),"") ->  | S34: =IFERROR(VLOOKUP($B34,Mai!$B$6:$E$55,3,0),"") ->  | T34: =IFERROR(VLOOKUP($B34,Mai!$B$6:$E$55,4,0),"") -> 
A35: =IF(B35<>"",COUNTA($B$6:B35),"") -> 30 | B35: =IF(Base!E31="","",Base!E31) -> الموظف 30 | C35: 0 | D35: 0 | E35: 0 | F35: =IFERROR(VLOOKUP($B35,#REF!,2,0),"") ->  | G35: =IFERROR(VLOOKUP($B35,#REF!,3,0),"") ->  | H35: =IFERROR(VLOOKUP($B35,#REF!,4,0),"") ->  | I35: =IFERROR(VLOOKUP($B35,Fevrier!$B$6:$E$55,2,0),"") ->  | J35: =IFERROR(VLOOKUP($B35,Fevrier!$B$6:$E$55,3,0),"") ->  | K35: =IFERROR(VLOOKUP($B35,Fevrier!$B$6:$E$55,4,0),"") ->  | L35: =IFERROR(VLOOKUP($B35,Mars!$B$6:$E$55,2,0),"") ->  | M35: =IFERROR(VLOOKUP($B35,Mars!$B$6:$E$55,3,0),"") ->  | N35: =IFERROR(VLOOKUP($B35,Mars!$B$6:$E$55,4,0),"") ->  | O35: =IFERROR(VLOOKUP($B35,Avril!$B$6:$E$55,2,0),"") ->  | P35: =IFERROR(VLOOKUP($B35,Avril!$B$6:$E$55,3,0),"") ->  | Q35: =IFERROR(VLOOKUP($B35,Avril!$B$6:$E$55,4,0),"") ->  | R35: =IFERROR(VLOOKUP($B35,Mai!$B$6:$E$55,2,0),"") ->  | S35: =IFERROR(VLOOKUP($B35,Mai!$B$6:$E$55,3,0),"") ->  | T35: =IFERROR(VLOOKUP($B35,Mai!$B$6:$E$55,4,0),"") -> 
A36: =IF(B36<>"",COUNTA($B$6:B36),"") -> 31 | B36: =IF(Base!E32="","",Base!E32) -> الموظف 31 | C36: 0 | D36: 0 | E36: 0 | F36: =IFERROR(VLOOKUP($B36,#REF!,2,0),"") ->  | G36: =IFERROR(VLOOKUP($B36,#REF!,3,0),"") ->  | H36: =IFERROR(VLOOKUP($B36,#REF!,4,0),"") ->  | I36: =IFERROR(VLOOKUP($B36,Fevrier!$B$6:$E$55,2,0),"") ->  | J36: =IFERROR(VLOOKUP($B36,Fevrier!$B$6:$E$55,3,0),"") ->  | K36: =IFERROR(VLOOKUP($B36,Fevrier!$B$6:$E$55,4,0),"") ->  | L36: =IFERROR(VLOOKUP($B36,Mars!$B$6:$E$55,2,0),"") ->  | M36: =IFERROR(VLOOKUP($B36,Mars!$B$6:$E$55,3,0),"") ->  | N36: =IFERROR(VLOOKUP($B36,Mars!$B$6:$E$55,4,0),"") ->  | O36: =IFERROR(VLOOKUP($B36,Avril!$B$6:$E$55,2,0),"") ->  | P36: =IFERROR(VLOOKUP($B36,Avril!$B$6:$E$55,3,0),"") ->  | Q36: =IFERROR(VLOOKUP($B36,Avril!$B$6:$E$55,4,0),"") ->  | R36: =IFERROR(VLOOKUP($B36,Mai!$B$6:$E$55,2,0),"") ->  | S36: =IFERROR(VLOOKUP($B36,Mai!$B$6:$E$55,3,0),"") ->  | T36: =IFERROR(VLOOKUP($B36,Mai!$B$6:$E$55,4,0),"") -> 
A37: =IF(B37<>"",COUNTA($B$6:B37),"") -> 32 | B37: =IF(Base!E33="","",Base!E33) -> الموظف 32 | C37: 0 | D37: 0 | E37: 0 | F37: =IFERROR(VLOOKUP($B37,#REF!,2,0),"") ->  | G37: =IFERROR(VLOOKUP($B37,#REF!,3,0),"") ->  | H37: =IFERROR(VLOOKUP($B37,#REF!,4,0),"") ->  | I37: =IFERROR(VLOOKUP($B37,Fevrier!$B$6:$E$55,2,0),"") ->  | J37: =IFERROR(VLOOKUP($B37,Fevrier!$B$6:$E$55,3,0),"") ->  | K37: =IFERROR(VLOOKUP($B37,Fevrier!$B$6:$E$55,4,0),"") ->  | L37: =IFERROR(VLOOKUP($B37,Mars!$B$6:$E$55,2,0),"") ->  | M37: =IFERROR(VLOOKUP($B37,Mars!$B$6:$E$55,3,0),"") ->  | N37: =IFERROR(VLOOKUP($B37,Mars!$B$6:$E$55,4,0),"") ->  | O37: =IFERROR(VLOOKUP($B37,Avril!$B$6:$E$55,2,0),"") ->  | P37: =IFERROR(VLOOKUP($B37,Avril!$B$6:$E$55,3,0),"") ->  | Q37: =IFERROR(VLOOKUP($B37,Avril!$B$6:$E$55,4,0),"") ->  | R37: =IFERROR(VLOOKUP($B37,Mai!$B$6:$E$55,2,0),"") ->  | S37: =IFERROR(VLOOKUP($B37,Mai!$B$6:$E$55,3,0),"") ->  | T37: =IFERROR(VLOOKUP($B37,Mai!$B$6:$E$55,4,0),"") -> 
A38: =IF(B38<>"",COUNTA($B$6:B38),"") -> 33 | B38: =IF(Base!E34="","",Base!E34) -> الموظف 33 | C38: 0 | D38: 0 | E38: 0 | F38: =IFERROR(VLOOKUP($B38,#REF!,2,0),"") ->  | G38: =IFERROR(VLOOKUP($B38,#REF!,3,0),"") ->  | H38: =IFERROR(VLOOKUP($B38,#REF!,4,0),"") ->  | I38: =IFERROR(VLOOKUP($B38,Fevrier!$B$6:$E$55,2,0),"") ->  | J38: =IFERROR(VLOOKUP($B38,Fevrier!$B$6:$E$55,3,0),"") ->  | K38: =IFERROR(VLOOKUP($B38,Fevrier!$B$6:$E$55,4,0),"") ->  | L38: =IFERROR(VLOOKUP($B38,Mars!$B$6:$E$55,2,0),"") ->  | M38: =IFERROR(VLOOKUP($B38,Mars!$B$6:$E$55,3,0),"") ->  | N38: =IFERROR(VLOOKUP($B38,Mars!$B$6:$E$55,4,0),"") ->  | O38: =IFERROR(VLOOKUP($B38,Avril!$B$6:$E$55,2,0),"") ->  | P38: =IFERROR(VLOOKUP($B38,Avril!$B$6:$E$55,3,0),"") ->  | Q38: =IFERROR(VLOOKUP($B38,Avril!$B$6:$E$55,4,0),"") ->  | R38: =IFERROR(VLOOKUP($B38,Mai!$B$6:$E$55,2,0),"") ->  | S38: =IFERROR(VLOOKUP($B38,Mai!$B$6:$E$55,3,0),"") ->  | T38: =IFERROR(VLOOKUP($B38,Mai!$B$6:$E$55,4,0),"") -> 
A39: =IF(B39<>"",COUNTA($B$6:B39),"") -> 34 | B39: =IF(Base!E35="","",Base!E35) -> الموظف 34 | C39: 0 | D39: 0 | E39: 0 | F39: =IFERROR(VLOOKUP($B39,#REF!,2,0),"") ->  | G39: =IFERROR(VLOOKUP($B39,#REF!,3,0),"") ->  | H39: =IFERROR(VLOOKUP($B39,#REF!,4,0),"") ->  | I39: =IFERROR(VLOOKUP($B39,Fevrier!$B$6:$E$55,2,0),"") ->  | J39: =IFERROR(VLOOKUP($B39,Fevrier!$B$6:$E$55,3,0),"") ->  | K39: =IFERROR(VLOOKUP($B39,Fevrier!$B$6:$E$55,4,0),"") ->  | L39: =IFERROR(VLOOKUP($B39,Mars!$B$6:$E$55,2,0),"") ->  | M39: =IFERROR(VLOOKUP($B39,Mars!$B$6:$E$55,3,0),"") ->  | N39: =IFERROR(VLOOKUP($B39,Mars!$B$6:$E$55,4,0),"") ->  | O39: =IFERROR(VLOOKUP($B39,Avril!$B$6:$E$55,2,0),"") ->  | P39: =IFERROR(VLOOKUP($B39,Avril!$B$6:$E$55,3,0),"") ->  | Q39: =IFERROR(VLOOKUP($B39,Avril!$B$6:$E$55,4,0),"") ->  | R39: =IFERROR(VLOOKUP($B39,Mai!$B$6:$E$55,2,0),"") ->  | S39: =IFERROR(VLOOKUP($B39,Mai!$B$6:$E$55,3,0),"") ->  | T39: =IFERROR(VLOOKUP($B39,Mai!$B$6:$E$55,4,0),"") -> 
A40: =IF(B40<>"",COUNTA($B$6:B40),"") -> 35 | B40: =IF(Base!E36="","",Base!E36) -> الموظف 35 | C40: 0 | D40: 0 | E40: 0 | F40: =IFERROR(VLOOKUP($B40,#REF!,2,0),"") ->  | G40: =IFERROR(VLOOKUP($B40,#REF!,3,0),"") ->  | H40: =IFERROR(VLOOKUP($B40,#REF!,4,0),"") ->  | I40: =IFERROR(VLOOKUP($B40,Fevrier!$B$6:$E$55,2,0),"") ->  | J40: =IFERROR(VLOOKUP($B40,Fevrier!$B$6:$E$55,3,0),"") ->  | K40: =IFERROR(VLOOKUP($B40,Fevrier!$B$6:$E$55,4,0),"") ->  | L40: =IFERROR(VLOOKUP($B40,Mars!$B$6:$E$55,2,0),"") ->  | M40: =IFERROR(VLOOKUP($B40,Mars!$B$6:$E$55,3,0),"") ->  | N40: =IFERROR(VLOOKUP($B40,Mars!$B$6:$E$55,4,0),"") ->  | O40: =IFERROR(VLOOKUP($B40,Avril!$B$6:$E$55,2,0),"") ->  | P40: =IFERROR(VLOOKUP($B40,Avril!$B$6:$E$55,3,0),"") ->  | Q40: =IFERROR(VLOOKUP($B40,Avril!$B$6:$E$55,4,0),"") ->  | R40: =IFERROR(VLOOKUP($B40,Mai!$B$6:$E$55,2,0),"") ->  | S40: =IFERROR(VLOOKUP($B40,Mai!$B$6:$E$55,3,0),"") ->  | T40: =IFERROR(VLOOKUP($B40,Mai!$B$6:$E$55,4,0),"") -> 
A41: =IF(B41<>"",COUNTA($B$6:B41),"") -> 36 | B41: =IF(Base!E37="","",Base!E37) -> الموظف 36 | C41: 0 | D41: 0 | E41: 0 | F41: =IFERROR(VLOOKUP($B41,#REF!,2,0),"") ->  | G41: =IFERROR(VLOOKUP($B41,#REF!,3,0),"") ->  | H41: =IFERROR(VLOOKUP($B41,#REF!,4,0),"") ->  | I41: =IFERROR(VLOOKUP($B41,Fevrier!$B$6:$E$55,2,0),"") ->  | J41: =IFERROR(VLOOKUP($B41,Fevrier!$B$6:$E$55,3,0),"") ->  | K41: =IFERROR(VLOOKUP($B41,Fevrier!$B$6:$E$55,4,0),"") ->  | L41: =IFERROR(VLOOKUP($B41,Mars!$B$6:$E$55,2,0),"") ->  | M41: =IFERROR(VLOOKUP($B41,Mars!$B$6:$E$55,3,0),"") ->  | N41: =IFERROR(VLOOKUP($B41,Mars!$B$6:$E$55,4,0),"") ->  | O41: =IFERROR(VLOOKUP($B41,Avril!$B$6:$E$55,2,0),"") ->  | P41: =IFERROR(VLOOKUP($B41,Avril!$B$6:$E$55,3,0),"") ->  | Q41: =IFERROR(VLOOKUP($B41,Avril!$B$6:$E$55,4,0),"") ->  | R41: =IFERROR(VLOOKUP($B41,Mai!$B$6:$E$55,2,0),"") ->  | S41: =IFERROR(VLOOKUP($B41,Mai!$B$6:$E$55,3,0),"") ->  | T41: =IFERROR(VLOOKUP($B41,Mai!$B$6:$E$55,4,0),"") -> 
A42: =IF(B42<>"",COUNTA($B$6:B42),"") -> 37 | B42: =IF(Base!E38="","",Base!E38) -> الموظف 37 | C42: 0 | D42: 0 | E42: 0 | F42: =IFERROR(VLOOKUP($B42,#REF!,2,0),"") ->  | G42: =IFERROR(VLOOKUP($B42,#REF!,3,0),"") ->  | H42: =IFERROR(VLOOKUP($B42,#REF!,4,0),"") ->  | I42: =IFERROR(VLOOKUP($B42,Fevrier!$B$6:$E$55,2,0),"") ->  | J42: =IFERROR(VLOOKUP($B42,Fevrier!$B$6:$E$55,3,0),"") ->  | K42: =IFERROR(VLOOKUP($B42,Fevrier!$B$6:$E$55,4,0),"") ->  | L42: =IFERROR(VLOOKUP($B42,Mars!$B$6:$E$55,2,0),"") ->  | M42: =IFERROR(VLOOKUP($B42,Mars!$B$6:$E$55,3,0),"") ->  | N42: =IFERROR(VLOOKUP($B42,Mars!$B$6:$E$55,4,0),"") ->  | O42: =IFERROR(VLOOKUP($B42,Avril!$B$6:$E$55,2,0),"") ->  | P42: =IFERROR(VLOOKUP($B42,Avril!$B$6:$E$55,3,0),"") ->  | Q42: =IFERROR(VLOOKUP($B42,Avril!$B$6:$E$55,4,0),"") ->  | R42: =IFERROR(VLOOKUP($B42,Mai!$B$6:$E$55,2,0),"") ->  | S42: =IFERROR(VLOOKUP($B42,Mai!$B$6:$E$55,3,0),"") ->  | T42: =IFERROR(VLOOKUP($B42,Mai!$B$6:$E$55,4,0),"") -> 
A43: =IF(B43<>"",COUNTA($B$6:B43),"") -> 38 | B43: =IF(Base!E39="","",Base!E39) -> الموظف 38 | C43: 0 | D43: 0 | E43: 0 | F43: =IFERROR(VLOOKUP($B43,#REF!,2,0),"") ->  | G43: =IFERROR(VLOOKUP($B43,#REF!,3,0),"") ->  | H43: =IFERROR(VLOOKUP($B43,#REF!,4,0),"") ->  | I43: =IFERROR(VLOOKUP($B43,Fevrier!$B$6:$E$55,2,0),"") ->  | J43: =IFERROR(VLOOKUP($B43,Fevrier!$B$6:$E$55,3,0),"") ->  | K43: =IFERROR(VLOOKUP($B43,Fevrier!$B$6:$E$55,4,0),"") ->  | L43: =IFERROR(VLOOKUP($B43,Mars!$B$6:$E$55,2,0),"") ->  | M43: =IFERROR(VLOOKUP($B43,Mars!$B$6:$E$55,3,0),"") ->  | N43: =IFERROR(VLOOKUP($B43,Mars!$B$6:$E$55,4,0),"") ->  | O43: =IFERROR(VLOOKUP($B43,Avril!$B$6:$E$55,2,0),"") ->  | P43: =IFERROR(VLOOKUP($B43,Avril!$B$6:$E$55,3,0),"") ->  | Q43: =IFERROR(VLOOKUP($B43,Avril!$B$6:$E$55,4,0),"") ->  | R43: =IFERROR(VLOOKUP($B43,Mai!$B$6:$E$55,2,0),"") ->  | S43: =IFERROR(VLOOKUP($B43,Mai!$B$6:$E$55,3,0),"") ->  | T43: =IFERROR(VLOOKUP($B43,Mai!$B$6:$E$55,4,0),"") -> 
A44: =IF(B44<>"",COUNTA($B$6:B44),"") -> 39 | B44: =IF(Base!E40="","",Base!E40) -> الموظف 39 | C44: 0 | D44: 0 | E44: 0 | F44: =IFERROR(VLOOKUP($B44,#REF!,2,0),"") ->  | G44: =IFERROR(VLOOKUP($B44,#REF!,3,0),"") ->  | H44: =IFERROR(VLOOKUP($B44,#REF!,4,0),"") ->  | I44: =IFERROR(VLOOKUP($B44,Fevrier!$B$6:$E$55,2,0),"") ->  | J44: =IFERROR(VLOOKUP($B44,Fevrier!$B$6:$E$55,3,0),"") ->  | K44: =IFERROR(VLOOKUP($B44,Fevrier!$B$6:$E$55,4,0),"") ->  | L44: =IFERROR(VLOOKUP($B44,Mars!$B$6:$E$55,2,0),"") ->  | M44: =IFERROR(VLOOKUP($B44,Mars!$B$6:$E$55,3,0),"") ->  | N44: =IFERROR(VLOOKUP($B44,Mars!$B$6:$E$55,4,0),"") ->  | O44: =IFERROR(VLOOKUP($B44,Avril!$B$6:$E$55,2,0),"") ->  | P44: =IFERROR(VLOOKUP($B44,Avril!$B$6:$E$55,3,0),"") ->  | Q44: =IFERROR(VLOOKUP($B44,Avril!$B$6:$E$55,4,0),"") ->  | R44: =IFERROR(VLOOKUP($B44,Mai!$B$6:$E$55,2,0),"") ->  | S44: =IFERROR(VLOOKUP($B44,Mai!$B$6:$E$55,3,0),"") ->  | T44: =IFERROR(VLOOKUP($B44,Mai!$B$6:$E$55,4,0),"") -> 
A45: =IF(B45<>"",COUNTA($B$6:B45),"") -> 40 | B45: =IF(Base!E41="","",Base!E41) -> الموظف 40 | C45: 0 | D45: 0 | E45: 0 | F45: =IFERROR(VLOOKUP($B45,#REF!,2,0),"") ->  | G45: =IFERROR(VLOOKUP($B45,#REF!,3,0),"") ->  | H45: =IFERROR(VLOOKUP($B45,#REF!,4,0),"") ->  | I45: =IFERROR(VLOOKUP($B45,Fevrier!$B$6:$E$55,2,0),"") ->  | J45: =IFERROR(VLOOKUP($B45,Fevrier!$B$6:$E$55,3,0),"") ->  | K45: =IFERROR(VLOOKUP($B45,Fevrier!$B$6:$E$55,4,0),"") ->  | L45: =IFERROR(VLOOKUP($B45,Mars!$B$6:$E$55,2,0),"") ->  | M45: =IFERROR(VLOOKUP($B45,Mars!$B$6:$E$55,3,0),"") ->  | N45: =IFERROR(VLOOKUP($B45,Mars!$B$6:$E$55,4,0),"") ->  | O45: =IFERROR(VLOOKUP($B45,Avril!$B$6:$E$55,2,0),"") ->  | P45: =IFERROR(VLOOKUP($B45,Avril!$B$6:$E$55,3,0),"") ->  | Q45: =IFERROR(VLOOKUP($B45,Avril!$B$6:$E$55,4,0),"") ->  | R45: =IFERROR(VLOOKUP($B45,Mai!$B$6:$E$55,2,0),"") ->  | S45: =IFERROR(VLOOKUP($B45,Mai!$B$6:$E$55,3,0),"") ->  | T45: =IFERROR(VLOOKUP($B45,Mai!$B$6:$E$55,4,0),"") -> 
A46: =IF(B46<>"",COUNTA($B$6:B46),"") ->  | B46: =IF(Base!E42="","",Base!E42) ->  | C46: 5 | D46: 0 | E46: 0 | F46: =IFERROR(VLOOKUP($B46,#REF!,2,0),"") ->  | G46: =IFERROR(VLOOKUP($B46,#REF!,3,0),"") ->  | H46: =IFERROR(VLOOKUP($B46,#REF!,4,0),"") ->  | I46: =IFERROR(VLOOKUP($B46,Fevrier!$B$6:$E$55,2,0),"") -> 5 | J46: =IFERROR(VLOOKUP($B46,Fevrier!$B$6:$E$55,3,0),"") -> 0 | K46: =IFERROR(VLOOKUP($B46,Fevrier!$B$6:$E$55,4,0),"") -> 0 | L46: =IFERROR(VLOOKUP($B46,Mars!$B$6:$E$55,2,0),"") -> 0 | M46: =IFERROR(VLOOKUP($B46,Mars!$B$6:$E$55,3,0),"") -> 0 | N46: =IFERROR(VLOOKUP($B46,Mars!$B$6:$E$55,4,0),"") -> 0 | O46: =IFERROR(VLOOKUP($B46,Avril!$B$6:$E$55,2,0),"") -> 0 | P46: =IFERROR(VLOOKUP($B46,Avril!$B$6:$E$55,3,0),"") -> 0 | Q46: =IFERROR(VLOOKUP($B46,Avril!$B$6:$E$55,4,0),"") -> 0 | R46: =IFERROR(VLOOKUP($B46,Mai!$B$6:$E$55,2,0),"") -> 0 | S46: =IFERROR(VLOOKUP($B46,Mai!$B$6:$E$55,3,0),"") -> 0 | T46: =IFERROR(VLOOKUP($B46,Mai!$B$6:$E$55,4,0),"") -> 0
A47: =IF(B47<>"",COUNTA($B$6:B47),"") ->  | B47: =IF(Base!E43="","",Base!E43) ->  | C47: 5 | D47: 0 | E47: 0 | F47: =IFERROR(VLOOKUP($B47,#REF!,2,0),"") ->  | G47: =IFERROR(VLOOKUP($B47,#REF!,3,0),"") ->  | H47: =IFERROR(VLOOKUP($B47,#REF!,4,0),"") ->  | I47: =IFERROR(VLOOKUP($B47,Fevrier!$B$6:$E$55,2,0),"") -> 5 | J47: =IFERROR(VLOOKUP($B47,Fevrier!$B$6:$E$55,3,0),"") -> 0 | K47: =IFERROR(VLOOKUP($B47,Fevrier!$B$6:$E$55,4,0),"") -> 0 | L47: =IFERROR(VLOOKUP($B47,Mars!$B$6:$E$55,2,0),"") -> 0 | M47: =IFERROR(VLOOKUP($B47,Mars!$B$6:$E$55,3,0),"") -> 0 | N47: =IFERROR(VLOOKUP($B47,Mars!$B$6:$E$55,4,0),"") -> 0 | O47: =IFERROR(VLOOKUP($B47,Avril!$B$6:$E$55,2,0),"") -> 0 | P47: =IFERROR(VLOOKUP($B47,Avril!$B$6:$E$55,3,0),"") -> 0 | Q47: =IFERROR(VLOOKUP($B47,Avril!$B$6:$E$55,4,0),"") -> 0 | R47: =IFERROR(VLOOKUP($B47,Mai!$B$6:$E$55,2,0),"") -> 0 | S47: =IFERROR(VLOOKUP($B47,Mai!$B$6:$E$55,3,0),"") -> 0 | T47: =IFERROR(VLOOKUP($B47,Mai!$B$6:$E$55,4,0),"") -> 0
A48: =IF(B48<>"",COUNTA($B$6:B48),"") ->  | B48: =IF(Base!E44="","",Base!E44) ->  | C48: 5 | D48: 0 | E48: 0 | F48: =IFERROR(VLOOKUP($B48,#REF!,2,0),"") ->  | G48: =IFERROR(VLOOKUP($B48,#REF!,3,0),"") ->  | H48: =IFERROR(VLOOKUP($B48,#REF!,4,0),"") ->  | I48: =IFERROR(VLOOKUP($B48,Fevrier!$B$6:$E$55,2,0),"") -> 5 | J48: =IFERROR(VLOOKUP($B48,Fevrier!$B$6:$E$55,3,0),"") -> 0 | K48: =IFERROR(VLOOKUP($B48,Fevrier!$B$6:$E$55,4,0),"") -> 0 | L48: =IFERROR(VLOOKUP($B48,Mars!$B$6:$E$55,2,0),"") -> 0 | M48: =IFERROR(VLOOKUP($B48,Mars!$B$6:$E$55,3,0),"") -> 0 | N48: =IFERROR(VLOOKUP($B48,Mars!$B$6:$E$55,4,0),"") -> 0 | O48: =IFERROR(VLOOKUP($B48,Avril!$B$6:$E$55,2,0),"") -> 0 | P48: =IFERROR(VLOOKUP($B48,Avril!$B$6:$E$55,3,0),"") -> 0 | Q48: =IFERROR(VLOOKUP($B48,Avril!$B$6:$E$55,4,0),"") -> 0 | R48: =IFERROR(VLOOKUP($B48,Mai!$B$6:$E$55,2,0),"") -> 0 | S48: =IFERROR(VLOOKUP($B48,Mai!$B$6:$E$55,3,0),"") -> 0 | T48: =IFERROR(VLOOKUP($B48,Mai!$B$6:$E$55,4,0),"") -> 0
A49: =IF(B49<>"",COUNTA($B$6:B49),"") ->  | B49: =IF(Base!E45="","",Base!E45) ->  | C49: 5 | D49: 0 | E49: 0 | F49: =IFERROR(VLOOKUP($B49,#REF!,2,0),"") ->  | G49: =IFERROR(VLOOKUP($B49,#REF!,3,0),"") ->  | H49: =IFERROR(VLOOKUP($B49,#REF!,4,0),"") ->  | I49: =IFERROR(VLOOKUP($B49,Fevrier!$B$6:$E$55,2,0),"") -> 5 | J49: =IFERROR(VLOOKUP($B49,Fevrier!$B$6:$E$55,3,0),"") -> 0 | K49: =IFERROR(VLOOKUP($B49,Fevrier!$B$6:$E$55,4,0),"") -> 0 | L49: =IFERROR(VLOOKUP($B49,Mars!$B$6:$E$55,2,0),"") -> 0 | M49: =IFERROR(VLOOKUP($B49,Mars!$B$6:$E$55,3,0),"") -> 0 | N49: =IFERROR(VLOOKUP($B49,Mars!$B$6:$E$55,4,0),"") -> 0 | O49: =IFERROR(VLOOKUP($B49,Avril!$B$6:$E$55,2,0),"") -> 0 | P49: =IFERROR(VLOOKUP($B49,Avril!$B$6:$E$55,3,0),"") -> 0 | Q49: =IFERROR(VLOOKUP($B49,Avril!$B$6:$E$55,4,0),"") -> 0 | R49: =IFERROR(VLOOKUP($B49,Mai!$B$6:$E$55,2,0),"") -> 0 | S49: =IFERROR(VLOOKUP($B49,Mai!$B$6:$E$55,3,0),"") -> 0 | T49: =IFERROR(VLOOKUP($B49,Mai!$B$6:$E$55,4,0),"") -> 0
A50: =IF(B50<>"",COUNTA($B$6:B50),"") ->  | B50: =IF(Base!E46="","",Base!E46) ->  | C50: 5 | D50: 0 | E50: 0 | F50: =IFERROR(VLOOKUP($B50,#REF!,2,0),"") ->  | G50: =IFERROR(VLOOKUP($B50,#REF!,3,0),"") ->  | H50: =IFERROR(VLOOKUP($B50,#REF!,4,0),"") ->  | I50: =IFERROR(VLOOKUP($B50,Fevrier!$B$6:$E$55,2,0),"") -> 5 | J50: =IFERROR(VLOOKUP($B50,Fevrier!$B$6:$E$55,3,0),"") -> 0 | K50: =IFERROR(VLOOKUP($B50,Fevrier!$B$6:$E$55,4,0),"") -> 0 | L50: =IFERROR(VLOOKUP($B50,Mars!$B$6:$E$55,2,0),"") -> 0 | M50: =IFERROR(VLOOKUP($B50,Mars!$B$6:$E$55,3,0),"") -> 0 | N50: =IFERROR(VLOOKUP($B50,Mars!$B$6:$E$55,4,0),"") -> 0 | O50: =IFERROR(VLOOKUP($B50,Avril!$B$6:$E$55,2,0),"") -> 0 | P50: =IFERROR(VLOOKUP($B50,Avril!$B$6:$E$55,3,0),"") -> 0 | Q50: =IFERROR(VLOOKUP($B50,Avril!$B$6:$E$55,4,0),"") -> 0 | R50: =IFERROR(VLOOKUP($B50,Mai!$B$6:$E$55,2,0),"") -> 0 | S50: =IFERROR(VLOOKUP($B50,Mai!$B$6:$E$55,3,0),"") -> 0 | T50: =IFERROR(VLOOKUP($B50,Mai!$B$6:$E$55,4,0),"") -> 0
A51: =IF(B51<>"",COUNTA($B$6:B51),"") ->  | B51: =IF(Base!E47="","",Base!E47) ->  | C51: 5 | D51: 0 | E51: 0 | F51: =IFERROR(VLOOKUP($B51,#REF!,2,0),"") ->  | G51: =IFERROR(VLOOKUP($B51,#REF!,3,0),"") ->  | H51: =IFERROR(VLOOKUP($B51,#REF!,4,0),"") ->  | I51: =IFERROR(VLOOKUP($B51,Fevrier!$B$6:$E$55,2,0),"") -> 5 | J51: =IFERROR(VLOOKUP($B51,Fevrier!$B$6:$E$55,3,0),"") -> 0 | K51: =IFERROR(VLOOKUP($B51,Fevrier!$B$6:$E$55,4,0),"") -> 0 | L51: =IFERROR(VLOOKUP($B51,Mars!$B$6:$E$55,2,0),"") -> 0 | M51: =IFERROR(VLOOKUP($B51,Mars!$B$6:$E$55,3,0),"") -> 0 | N51: =IFERROR(VLOOKUP($B51,Mars!$B$6:$E$55,4,0),"") -> 0 | O51: =IFERROR(VLOOKUP($B51,Avril!$B$6:$E$55,2,0),"") -> 0 | P51: =IFERROR(VLOOKUP($B51,Avril!$B$6:$E$55,3,0),"") -> 0 | Q51: =IFERROR(VLOOKUP($B51,Avril!$B$6:$E$55,4,0),"") -> 0 | R51: =IFERROR(VLOOKUP($B51,Mai!$B$6:$E$55,2,0),"") -> 0 | S51: =IFERROR(VLOOKUP($B51,Mai!$B$6:$E$55,3,0),"") -> 0 | T51: =IFERROR(VLOOKUP($B51,Mai!$B$6:$E$55,4,0),"") -> 0
A52: =IF(B52<>"",COUNTA($B$6:B52),"") ->  | B52: =IF(Base!E48="","",Base!E48) ->  | C52: 5 | D52: 0 | E52: 0 | F52: =IFERROR(VLOOKUP($B52,#REF!,2,0),"") ->  | G52: =IFERROR(VLOOKUP($B52,#REF!,3,0),"") ->  | H52: =IFERROR(VLOOKUP($B52,#REF!,4,0),"") ->  | I52: =IFERROR(VLOOKUP($B52,Fevrier!$B$6:$E$55,2,0),"") -> 5 | J52: =IFERROR(VLOOKUP($B52,Fevrier!$B$6:$E$55,3,0),"") -> 0 | K52: =IFERROR(VLOOKUP($B52,Fevrier!$B$6:$E$55,4,0),"") -> 0 | L52: =IFERROR(VLOOKUP($B52,Mars!$B$6:$E$55,2,0),"") -> 0 | M52: =IFERROR(VLOOKUP($B52,Mars!$B$6:$E$55,3,0),"") -> 0 | N52: =IFERROR(VLOOKUP($B52,Mars!$B$6:$E$55,4,0),"") -> 0 | O52: =IFERROR(VLOOKUP($B52,Avril!$B$6:$E$55,2,0),"") -> 0 | P52: =IFERROR(VLOOKUP($B52,Avril!$B$6:$E$55,3,0),"") -> 0 | Q52: =IFERROR(VLOOKUP($B52,Avril!$B$6:$E$55,4,0),"") -> 0 | R52: =IFERROR(VLOOKUP($B52,Mai!$B$6:$E$55,2,0),"") -> 0 | S52: =IFERROR(VLOOKUP($B52,Mai!$B$6:$E$55,3,0),"") -> 0 | T52: =IFERROR(VLOOKUP($B52,Mai!$B$6:$E$55,4,0),"") -> 0
A53: =IF(B53<>"",COUNTA($B$6:B53),"") ->  | B53: =IF(Base!E49="","",Base!E49) ->  | C53: 5 | D53: 0 | E53: 0 | F53: =IFERROR(VLOOKUP($B53,#REF!,2,0),"") ->  | G53: =IFERROR(VLOOKUP($B53,#REF!,3,0),"") ->  | H53: =IFERROR(VLOOKUP($B53,#REF!,4,0),"") ->  | I53: =IFERROR(VLOOKUP($B53,Fevrier!$B$6:$E$55,2,0),"") -> 5 | J53: =IFERROR(VLOOKUP($B53,Fevrier!$B$6:$E$55,3,0),"") -> 0 | K53: =IFERROR(VLOOKUP($B53,Fevrier!$B$6:$E$55,4,0),"") -> 0 | L53: =IFERROR(VLOOKUP($B53,Mars!$B$6:$E$55,2,0),"") -> 0 | M53: =IFERROR(VLOOKUP($B53,Mars!$B$6:$E$55,3,0),"") -> 0 | N53: =IFERROR(VLOOKUP($B53,Mars!$B$6:$E$55,4,0),"") -> 0 | O53: =IFERROR(VLOOKUP($B53,Avril!$B$6:$E$55,2,0),"") -> 0 | P53: =IFERROR(VLOOKUP($B53,Avril!$B$6:$E$55,3,0),"") -> 0 | Q53: =IFERROR(VLOOKUP($B53,Avril!$B$6:$E$55,4,0),"") -> 0 | R53: =IFERROR(VLOOKUP($B53,Mai!$B$6:$E$55,2,0),"") -> 0 | S53: =IFERROR(VLOOKUP($B53,Mai!$B$6:$E$55,3,0),"") -> 0 | T53: =IFERROR(VLOOKUP($B53,Mai!$B$6:$E$55,4,0),"") -> 0
A54: =IF(B54<>"",COUNTA($B$6:B54),"") ->  | B54: =IF(Base!E50="","",Base!E50) ->  | C54: 5 | D54: 0 | E54: 0 | F54: =IFERROR(VLOOKUP($B54,#REF!,2,0),"") ->  | G54: =IFERROR(VLOOKUP($B54,#REF!,3,0),"") ->  | H54: =IFERROR(VLOOKUP($B54,#REF!,4,0),"") ->  | I54: =IFERROR(VLOOKUP($B54,Fevrier!$B$6:$E$55,2,0),"") -> 5 | J54: =IFERROR(VLOOKUP($B54,Fevrier!$B$6:$E$55,3,0),"") -> 0 | K54: =IFERROR(VLOOKUP($B54,Fevrier!$B$6:$E$55,4,0),"") -> 0 | L54: =IFERROR(VLOOKUP($B54,Mars!$B$6:$E$55,2,0),"") -> 0 | M54: =IFERROR(VLOOKUP($B54,Mars!$B$6:$E$55,3,0),"") -> 0 | N54: =IFERROR(VLOOKUP($B54,Mars!$B$6:$E$55,4,0),"") -> 0 | O54: =IFERROR(VLOOKUP($B54,Avril!$B$6:$E$55,2,0),"") -> 0 | P54: =IFERROR(VLOOKUP($B54,Avril!$B$6:$E$55,3,0),"") -> 0 | Q54: =IFERROR(VLOOKUP($B54,Avril!$B$6:$E$55,4,0),"") -> 0 | R54: =IFERROR(VLOOKUP($B54,Mai!$B$6:$E$55,2,0),"") -> 0 | S54: =IFERROR(VLOOKUP($B54,Mai!$B$6:$E$55,3,0),"") -> 0 | T54: =IFERROR(VLOOKUP($B54,Mai!$B$6:$E$55,4,0),"") -> 0
A55: =IF(B55<>"",COUNTA($B$6:B55),"") ->  | B55: =IF(Base!E51="","",Base!E51) ->  | C55: 5 | D55: 0 | E55: 0 | F55: =IFERROR(VLOOKUP($B55,#REF!,2,0),"") ->  | G55: =IFERROR(VLOOKUP($B55,#REF!,3,0),"") ->  | H55: =IFERROR(VLOOKUP($B55,#REF!,4,0),"") ->  | I55: =IFERROR(VLOOKUP($B55,Fevrier!$B$6:$E$55,2,0),"") -> 5 | J55: =IFERROR(VLOOKUP($B55,Fevrier!$B$6:$E$55,3,0),"") -> 0 | K55: =IFERROR(VLOOKUP($B55,Fevrier!$B$6:$E$55,4,0),"") -> 0 | L55: =IFERROR(VLOOKUP($B55,Mars!$B$6:$E$55,2,0),"") -> 0 | M55: =IFERROR(VLOOKUP($B55,Mars!$B$6:$E$55,3,0),"") -> 0 | N55: =IFERROR(VLOOKUP($B55,Mars!$B$6:$E$55,4,0),"") -> 0 | O55: =IFERROR(VLOOKUP($B55,Avril!$B$6:$E$55,2,0),"") -> 0 | P55: =IFERROR(VLOOKUP($B55,Avril!$B$6:$E$55,3,0),"") -> 0 | Q55: =IFERROR(VLOOKUP($B55,Avril!$B$6:$E$55,4,0),"") -> 0 | R55: =IFERROR(VLOOKUP($B55,Mai!$B$6:$E$55,2,0),"") -> 0 | S55: =IFERROR(VLOOKUP($B55,Mai!$B$6:$E$55,3,0),"") -> 0 | T55: =IFERROR(VLOOKUP($B55,Mai!$B$6:$E$55,4,0),"") -> 0
A56: =IF(B56<>"",COUNTA($B$6:B56),"") ->  | B56: =IF(Base!E52="","",Base!E52) ->  | C56: 5 | D56: 0 | E56: 0 | F56: =IFERROR(VLOOKUP($B56,#REF!,2,0),"") ->  | G56: =IFERROR(VLOOKUP($B56,#REF!,3,0),"") ->  | H56: =IFERROR(VLOOKUP($B56,#REF!,4,0),"") ->  | I56: =IFERROR(VLOOKUP($B56,Fevrier!$B$6:$E$55,2,0),"") -> 5 | J56: =IFERROR(VLOOKUP($B56,Fevrier!$B$6:$E$55,3,0),"") -> 0 | K56: =IFERROR(VLOOKUP($B56,Fevrier!$B$6:$E$55,4,0),"") -> 0 | L56: =IFERROR(VLOOKUP($B56,Mars!$B$6:$E$55,2,0),"") -> 0 | M56: =IFERROR(VLOOKUP($B56,Mars!$B$6:$E$55,3,0),"") -> 0 | N56: =IFERROR(VLOOKUP($B56,Mars!$B$6:$E$55,4,0),"") -> 0 | O56: =IFERROR(VLOOKUP($B56,Avril!$B$6:$E$55,2,0),"") -> 0 | P56: =IFERROR(VLOOKUP($B56,Avril!$B$6:$E$55,3,0),"") -> 0 | Q56: =IFERROR(VLOOKUP($B56,Avril!$B$6:$E$55,4,0),"") -> 0 | R56: =IFERROR(VLOOKUP($B56,Mai!$B$6:$E$55,2,0),"") -> 0 | S56: =IFERROR(VLOOKUP($B56,Mai!$B$6:$E$55,3,0),"") -> 0 | T56: =IFERROR(VLOOKUP($B56,Mai!$B$6:$E$55,4,0),"") -> 0
A57: =IF(B57<>"",COUNTA($B$6:B57),"") ->  | B57: =IF(Base!E53="","",Base!E53) ->  | C57: 5 | D57: 0 | E57: 0 | F57: =IFERROR(VLOOKUP($B57,#REF!,2,0),"") ->  | G57: =IFERROR(VLOOKUP($B57,#REF!,3,0),"") ->  | H57: =IFERROR(VLOOKUP($B57,#REF!,4,0),"") ->  | I57: =IFERROR(VLOOKUP($B57,Fevrier!$B$6:$E$55,2,0),"") -> 5 | J57: =IFERROR(VLOOKUP($B57,Fevrier!$B$6:$E$55,3,0),"") -> 0 | K57: =IFERROR(VLOOKUP($B57,Fevrier!$B$6:$E$55,4,0),"") -> 0 | L57: =IFERROR(VLOOKUP($B57,Mars!$B$6:$E$55,2,0),"") -> 0 | M57: =IFERROR(VLOOKUP($B57,Mars!$B$6:$E$55,3,0),"") -> 0 | N57: =IFERROR(VLOOKUP($B57,Mars!$B$6:$E$55,4,0),"") -> 0 | O57: =IFERROR(VLOOKUP($B57,Avril!$B$6:$E$55,2,0),"") -> 0 | P57: =IFERROR(VLOOKUP($B57,Avril!$B$6:$E$55,3,0),"") -> 0 | Q57: =IFERROR(VLOOKUP($B57,Avril!$B$6:$E$55,4,0),"") -> 0 | R57: =IFERROR(VLOOKUP($B57,Mai!$B$6:$E$55,2,0),"") -> 0 | S57: =IFERROR(VLOOKUP($B57,Mai!$B$6:$E$55,3,0),"") -> 0 | T57: =IFERROR(VLOOKUP($B57,Mai!$B$6:$E$55,4,0),"") -> 0
A58: =IF(B58<>"",COUNTA($B$6:B58),"") ->  | B58: =IF(Base!E54="","",Base!E54) ->  | C58: 5 | D58: 0 | E58: 0 | F58: =IFERROR(VLOOKUP($B58,#REF!,2,0),"") ->  | G58: =IFERROR(VLOOKUP($B58,#REF!,3,0),"") ->  | H58: =IFERROR(VLOOKUP($B58,#REF!,4,0),"") ->  | I58: =IFERROR(VLOOKUP($B58,Fevrier!$B$6:$E$55,2,0),"") -> 5 | J58: =IFERROR(VLOOKUP($B58,Fevrier!$B$6:$E$55,3,0),"") -> 0 | K58: =IFERROR(VLOOKUP($B58,Fevrier!$B$6:$E$55,4,0),"") -> 0 | L58: =IFERROR(VLOOKUP($B58,Mars!$B$6:$E$55,2,0),"") -> 0 | M58: =IFERROR(VLOOKUP($B58,Mars!$B$6:$E$55,3,0),"") -> 0 | N58: =IFERROR(VLOOKUP($B58,Mars!$B$6:$E$55,4,0),"") -> 0 | O58: =IFERROR(VLOOKUP($B58,Avril!$B$6:$E$55,2,0),"") -> 0 | P58: =IFERROR(VLOOKUP($B58,Avril!$B$6:$E$55,3,0),"") -> 0 | Q58: =IFERROR(VLOOKUP($B58,Avril!$B$6:$E$55,4,0),"") -> 0 | R58: =IFERROR(VLOOKUP($B58,Mai!$B$6:$E$55,2,0),"") -> 0 | S58: =IFERROR(VLOOKUP($B58,Mai!$B$6:$E$55,3,0),"") -> 0 | T58: =IFERROR(VLOOKUP($B58,Mai!$B$6:$E$55,4,0),"") -> 0
A59: =IF(B59<>"",COUNTA($B$6:B59),"") ->  | B59: =IF(Base!E55="","",Base!E55) ->  | C59: 5 | D59: 0 | E59: 0 | F59: =IFERROR(VLOOKUP($B59,#REF!,2,0),"") ->  | G59: =IFERROR(VLOOKUP($B59,#REF!,3,0),"") ->  | H59: =IFERROR(VLOOKUP($B59,#REF!,4,0),"") ->  | I59: =IFERROR(VLOOKUP($B59,Fevrier!$B$6:$E$55,2,0),"") -> 5 | J59: =IFERROR(VLOOKUP($B59,Fevrier!$B$6:$E$55,3,0),"") -> 0 | K59: =IFERROR(VLOOKUP($B59,Fevrier!$B$6:$E$55,4,0),"") -> 0 | L59: =IFERROR(VLOOKUP($B59,Mars!$B$6:$E$55,2,0),"") -> 0 | M59: =IFERROR(VLOOKUP($B59,Mars!$B$6:$E$55,3,0),"") -> 0 | N59: =IFERROR(VLOOKUP($B59,Mars!$B$6:$E$55,4,0),"") -> 0 | O59: =IFERROR(VLOOKUP($B59,Avril!$B$6:$E$55,2,0),"") -> 0 | P59: =IFERROR(VLOOKUP($B59,Avril!$B$6:$E$55,3,0),"") -> 0 | Q59: =IFERROR(VLOOKUP($B59,Avril!$B$6:$E$55,4,0),"") -> 0 | R59: =IFERROR(VLOOKUP($B59,Mai!$B$6:$E$55,2,0),"") -> 0 | S59: =IFERROR(VLOOKUP($B59,Mai!$B$6:$E$55,3,0),"") -> 0 | T59: =IFERROR(VLOOKUP($B59,Mai!$B$6:$E$55,4,0),"") -> 0
A60: =IF(B60<>"",COUNTA($B$6:B60),"") ->  | B60: =IF(Base!E56="","",Base!E56) ->  | C60: 5 | D60: 0 | E60: 0 | F60: =IFERROR(VLOOKUP($B60,#REF!,2,0),"") ->  | G60: =IFERROR(VLOOKUP($B60,#REF!,3,0),"") ->  | H60: =IFERROR(VLOOKUP($B60,#REF!,4,0),"") ->  | I60: =IFERROR(VLOOKUP($B60,Fevrier!$B$6:$E$55,2,0),"") -> 5 | J60: =IFERROR(VLOOKUP($B60,Fevrier!$B$6:$E$55,3,0),"") -> 0 | K60: =IFERROR(VLOOKUP($B60,Fevrier!$B$6:$E$55,4,0),"") -> 0 | L60: =IFERROR(VLOOKUP($B60,Mars!$B$6:$E$55,2,0),"") -> 0 | M60: =IFERROR(VLOOKUP($B60,Mars!$B$6:$E$55,3,0),"") -> 0 | N60: =IFERROR(VLOOKUP($B60,Mars!$B$6:$E$55,4,0),"") -> 0 | O60: =IFERROR(VLOOKUP($B60,Avril!$B$6:$E$55,2,0),"") -> 0 | P60: =IFERROR(VLOOKUP($B60,Avril!$B$6:$E$55,3,0),"") -> 0 | Q60: =IFERROR(VLOOKUP($B60,Avril!$B$6:$E$55,4,0),"") -> 0 | R60: =IFERROR(VLOOKUP($B60,Mai!$B$6:$E$55,2,0),"") -> 0 | S60: =IFERROR(VLOOKUP($B60,Mai!$B$6:$E$55,3,0),"") -> 0 | T60: =IFERROR(VLOOKUP($B60,Mai!$B$6:$E$55,4,0),"") -> 0
A61: =IF(B61<>"",COUNTA($B$6:B61),"") ->  | B61: =IF(Base!E57="","",Base!E57) ->  | C61: 5 | D61: 0 | E61: 0 | F61: =IFERROR(VLOOKUP($B61,#REF!,2,0),"") ->  | G61: =IFERROR(VLOOKUP($B61,#REF!,3,0),"") ->  | H61: =IFERROR(VLOOKUP($B61,#REF!,4,0),"") ->  | I61: =IFERROR(VLOOKUP($B61,Fevrier!$B$6:$E$55,2,0),"") -> 5 | J61: =IFERROR(VLOOKUP($B61,Fevrier!$B$6:$E$55,3,0),"") -> 0 | K61: =IFERROR(VLOOKUP($B61,Fevrier!$B$6:$E$55,4,0),"") -> 0 | L61: =IFERROR(VLOOKUP($B61,Mars!$B$6:$E$55,2,0),"") -> 0 | M61: =IFERROR(VLOOKUP($B61,Mars!$B$6:$E$55,3,0),"") -> 0 | N61: =IFERROR(VLOOKUP($B61,Mars!$B$6:$E$55,4,0),"") -> 0 | O61: =IFERROR(VLOOKUP($B61,Avril!$B$6:$E$55,2,0),"") -> 0 | P61: =IFERROR(VLOOKUP($B61,Avril!$B$6:$E$55,3,0),"") -> 0 | Q61: =IFERROR(VLOOKUP($B61,Avril!$B$6:$E$55,4,0),"") -> 0 | R61: =IFERROR(VLOOKUP($B61,Mai!$B$6:$E$55,2,0),"") -> 0 | S61: =IFERROR(VLOOKUP($B61,Mai!$B$6:$E$55,3,0),"") -> 0 | T61: =IFERROR(VLOOKUP($B61,Mai!$B$6:$E$55,4,0),"") -> 0
A62: =IF(B62<>"",COUNTA($B$6:B62),"") ->  | B62: =IF(Base!E58="","",Base!E58) ->  | C62: 5 | D62: 0 | E62: 0 | F62: =IFERROR(VLOOKUP($B62,#REF!,2,0),"") ->  | G62: =IFERROR(VLOOKUP($B62,#REF!,3,0),"") ->  | H62: =IFERROR(VLOOKUP($B62,#REF!,4,0),"") ->  | I62: =IFERROR(VLOOKUP($B62,Fevrier!$B$6:$E$55,2,0),"") -> 5 | J62: =IFERROR(VLOOKUP($B62,Fevrier!$B$6:$E$55,3,0),"") -> 0 | K62: =IFERROR(VLOOKUP($B62,Fevrier!$B$6:$E$55,4,0),"") -> 0 | L62: =IFERROR(VLOOKUP($B62,Mars!$B$6:$E$55,2,0),"") -> 0 | M62: =IFERROR(VLOOKUP($B62,Mars!$B$6:$E$55,3,0),"") -> 0 | N62: =IFERROR(VLOOKUP($B62,Mars!$B$6:$E$55,4,0),"") -> 0 | O62: =IFERROR(VLOOKUP($B62,Avril!$B$6:$E$55,2,0),"") -> 0 | P62: =IFERROR(VLOOKUP($B62,Avril!$B$6:$E$55,3,0),"") -> 0 | Q62: =IFERROR(VLOOKUP($B62,Avril!$B$6:$E$55,4,0),"") -> 0 | R62: =IFERROR(VLOOKUP($B62,Mai!$B$6:$E$55,2,0),"") -> 0 | S62: =IFERROR(VLOOKUP($B62,Mai!$B$6:$E$55,3,0),"") -> 0 | T62: =IFERROR(VLOOKUP($B62,Mai!$B$6:$E$55,4,0),"") -> 0
A63: =IF(B63<>"",COUNTA($B$6:B63),"") ->  | B63: =IF(Base!E59="","",Base!E59) ->  | C63: 5 | D63: 0 | E63: 0 | F63: =IFERROR(VLOOKUP($B63,#REF!,2,0),"") ->  | G63: =IFERROR(VLOOKUP($B63,#REF!,3,0),"") ->  | H63: =IFERROR(VLOOKUP($B63,#REF!,4,0),"") ->  | I63: =IFERROR(VLOOKUP($B63,Fevrier!$B$6:$E$55,2,0),"") -> 5 | J63: =IFERROR(VLOOKUP($B63,Fevrier!$B$6:$E$55,3,0),"") -> 0 | K63: =IFERROR(VLOOKUP($B63,Fevrier!$B$6:$E$55,4,0),"") -> 0 | L63: =IFERROR(VLOOKUP($B63,Mars!$B$6:$E$55,2,0),"") -> 0 | M63: =IFERROR(VLOOKUP($B63,Mars!$B$6:$E$55,3,0),"") -> 0 | N63: =IFERROR(VLOOKUP($B63,Mars!$B$6:$E$55,4,0),"") -> 0 | O63: =IFERROR(VLOOKUP($B63,Avril!$B$6:$E$55,2,0),"") -> 0 | P63: =IFERROR(VLOOKUP($B63,Avril!$B$6:$E$55,3,0),"") -> 0 | Q63: =IFERROR(VLOOKUP($B63,Avril!$B$6:$E$55,4,0),"") -> 0 | R63: =IFERROR(VLOOKUP($B63,Mai!$B$6:$E$55,2,0),"") -> 0 | S63: =IFERROR(VLOOKUP($B63,Mai!$B$6:$E$55,3,0),"") -> 0 | T63: =IFERROR(VLOOKUP($B63,Mai!$B$6:$E$55,4,0),"") -> 0
A64: =IF(B64<>"",COUNTA($B$6:B64),"") ->  | B64: =IF(Base!E60="","",Base!E60) ->  | C64: 5 | D64: 0 | E64: 0 | F64: =IFERROR(VLOOKUP($B64,#REF!,2,0),"") ->  | G64: =IFERROR(VLOOKUP($B64,#REF!,3,0),"") ->  | H64: =IFERROR(VLOOKUP($B64,#REF!,4,0),"") ->  | I64: =IFERROR(VLOOKUP($B64,Fevrier!$B$6:$E$55,2,0),"") -> 5 | J64: =IFERROR(VLOOKUP($B64,Fevrier!$B$6:$E$55,3,0),"") -> 0 | K64: =IFERROR(VLOOKUP($B64,Fevrier!$B$6:$E$55,4,0),"") -> 0 | L64: =IFERROR(VLOOKUP($B64,Mars!$B$6:$E$55,2,0),"") -> 0 | M64: =IFERROR(VLOOKUP($B64,Mars!$B$6:$E$55,3,0),"") -> 0 | N64: =IFERROR(VLOOKUP($B64,Mars!$B$6:$E$55,4,0),"") -> 0 | O64: =IFERROR(VLOOKUP($B64,Avril!$B$6:$E$55,2,0),"") -> 0 | P64: =IFERROR(VLOOKUP($B64,Avril!$B$6:$E$55,3,0),"") -> 0 | Q64: =IFERROR(VLOOKUP($B64,Avril!$B$6:$E$55,4,0),"") -> 0 | R64: =IFERROR(VLOOKUP($B64,Mai!$B$6:$E$55,2,0),"") -> 0 | S64: =IFERROR(VLOOKUP($B64,Mai!$B$6:$E$55,3,0),"") -> 0 | T64: =IFERROR(VLOOKUP($B64,Mai!$B$6:$E$55,4,0),"") -> 0
A65: =IF(B65<>"",COUNTA($B$6:B65),"") ->  | B65: =IF(Base!E61="","",Base!E61) ->  | C65: 5 | D65: 0 | E65: 0 | F65: =IFERROR(VLOOKUP($B65,#REF!,2,0),"") ->  | G65: =IFERROR(VLOOKUP($B65,#REF!,3,0),"") ->  | H65: =IFERROR(VLOOKUP($B65,#REF!,4,0),"") ->  | I65: =IFERROR(VLOOKUP($B65,Fevrier!$B$6:$E$55,2,0),"") -> 5 | J65: =IFERROR(VLOOKUP($B65,Fevrier!$B$6:$E$55,3,0),"") -> 0 | K65: =IFERROR(VLOOKUP($B65,Fevrier!$B$6:$E$55,4,0),"") -> 0 | L65: =IFERROR(VLOOKUP($B65,Mars!$B$6:$E$55,2,0),"") -> 0 | M65: =IFERROR(VLOOKUP($B65,Mars!$B$6:$E$55,3,0),"") -> 0 | N65: =IFERROR(VLOOKUP($B65,Mars!$B$6:$E$55,4,0),"") -> 0 | O65: =IFERROR(VLOOKUP($B65,Avril!$B$6:$E$55,2,0),"") -> 0 | P65: =IFERROR(VLOOKUP($B65,Avril!$B$6:$E$55,3,0),"") -> 0 | Q65: =IFERROR(VLOOKUP($B65,Avril!$B$6:$E$55,4,0),"") -> 0 | R65: =IFERROR(VLOOKUP($B65,Mai!$B$6:$E$55,2,0),"") -> 0 | S65: =IFERROR(VLOOKUP($B65,Mai!$B$6:$E$55,3,0),"") -> 0 | T65: =IFERROR(VLOOKUP($B65,Mai!$B$6:$E$55,4,0),"") -> 0
A66: =IF(B66<>"",COUNTA($B$6:B66),"") ->  | B66: =IF(Base!E62="","",Base!E62) ->  | C66: 5 | D66: 0 | E66: 0 | F66: =IFERROR(VLOOKUP($B66,#REF!,2,0),"") ->  | G66: =IFERROR(VLOOKUP($B66,#REF!,3,0),"") ->  | H66: =IFERROR(VLOOKUP($B66,#REF!,4,0),"") ->  | I66: =IFERROR(VLOOKUP($B66,Fevrier!$B$6:$E$55,2,0),"") -> 5 | J66: =IFERROR(VLOOKUP($B66,Fevrier!$B$6:$E$55,3,0),"") -> 0 | K66: =IFERROR(VLOOKUP($B66,Fevrier!$B$6:$E$55,4,0),"") -> 0 | L66: =IFERROR(VLOOKUP($B66,Mars!$B$6:$E$55,2,0),"") -> 0 | M66: =IFERROR(VLOOKUP($B66,Mars!$B$6:$E$55,3,0),"") -> 0 | N66: =IFERROR(VLOOKUP($B66,Mars!$B$6:$E$55,4,0),"") -> 0 | O66: =IFERROR(VLOOKUP($B66,Avril!$B$6:$E$55,2,0),"") -> 0 | P66: =IFERROR(VLOOKUP($B66,Avril!$B$6:$E$55,3,0),"") -> 0 | Q66: =IFERROR(VLOOKUP($B66,Avril!$B$6:$E$55,4,0),"") -> 0 | R66: =IFERROR(VLOOKUP($B66,Mai!$B$6:$E$55,2,0),"") -> 0 | S66: =IFERROR(VLOOKUP($B66,Mai!$B$6:$E$55,3,0),"") -> 0 | T66: =IFERROR(VLOOKUP($B66,Mai!$B$6:$E$55,4,0),"") -> 0
A67: =IF(B67<>"",COUNTA($B$6:B67),"") ->  | B67: =IF(Base!E63="","",Base!E63) ->  | C67: 5 | D67: 0 | E67: 0 | F67: =IFERROR(VLOOKUP($B67,#REF!,2,0),"") ->  | G67: =IFERROR(VLOOKUP($B67,#REF!,3,0),"") ->  | H67: =IFERROR(VLOOKUP($B67,#REF!,4,0),"") ->  | I67: =IFERROR(VLOOKUP($B67,Fevrier!$B$6:$E$55,2,0),"") -> 5 | J67: =IFERROR(VLOOKUP($B67,Fevrier!$B$6:$E$55,3,0),"") -> 0 | K67: =IFERROR(VLOOKUP($B67,Fevrier!$B$6:$E$55,4,0),"") -> 0 | L67: =IFERROR(VLOOKUP($B67,Mars!$B$6:$E$55,2,0),"") -> 0 | M67: =IFERROR(VLOOKUP($B67,Mars!$B$6:$E$55,3,0),"") -> 0 | N67: =IFERROR(VLOOKUP($B67,Mars!$B$6:$E$55,4,0),"") -> 0 | O67: =IFERROR(VLOOKUP($B67,Avril!$B$6:$E$55,2,0),"") -> 0 | P67: =IFERROR(VLOOKUP($B67,Avril!$B$6:$E$55,3,0),"") -> 0 | Q67: =IFERROR(VLOOKUP($B67,Avril!$B$6:$E$55,4,0),"") -> 0 | R67: =IFERROR(VLOOKUP($B67,Mai!$B$6:$E$55,2,0),"") -> 0 | S67: =IFERROR(VLOOKUP($B67,Mai!$B$6:$E$55,3,0),"") -> 0 | T67: =IFERROR(VLOOKUP($B67,Mai!$B$6:$E$55,4,0),"") -> 0
A68: =IF(B68<>"",COUNTA($B$6:B68),"") ->  | B68: =IF(Base!E64="","",Base!E64) ->  | C68: 5 | D68: 0 | E68: 0 | F68: =IFERROR(VLOOKUP($B68,#REF!,2,0),"") ->  | G68: =IFERROR(VLOOKUP($B68,#REF!,3,0),"") ->  | H68: =IFERROR(VLOOKUP($B68,#REF!,4,0),"") ->  | I68: =IFERROR(VLOOKUP($B68,Fevrier!$B$6:$E$55,2,0),"") -> 5 | J68: =IFERROR(VLOOKUP($B68,Fevrier!$B$6:$E$55,3,0),"") -> 0 | K68: =IFERROR(VLOOKUP($B68,Fevrier!$B$6:$E$55,4,0),"") -> 0 | L68: =IFERROR(VLOOKUP($B68,Mars!$B$6:$E$55,2,0),"") -> 0 | M68: =IFERROR(VLOOKUP($B68,Mars!$B$6:$E$55,3,0),"") -> 0 | N68: =IFERROR(VLOOKUP($B68,Mars!$B$6:$E$55,4,0),"") -> 0 | O68: =IFERROR(VLOOKUP($B68,Avril!$B$6:$E$55,2,0),"") -> 0 | P68: =IFERROR(VLOOKUP($B68,Avril!$B$6:$E$55,3,0),"") -> 0 | Q68: =IFERROR(VLOOKUP($B68,Avril!$B$6:$E$55,4,0),"") -> 0 | R68: =IFERROR(VLOOKUP($B68,Mai!$B$6:$E$55,2,0),"") -> 0 | S68: =IFERROR(VLOOKUP($B68,Mai!$B$6:$E$55,3,0),"") -> 0 | T68: =IFERROR(VLOOKUP($B68,Mai!$B$6:$E$55,4,0),"") -> 0
A69: =IF(B69<>"",COUNTA($B$6:B69),"") ->  | B69: =IF(Base!E65="","",Base!E65) ->  | C69: 5 | D69: 0 | E69: 0 | F69: =IFERROR(VLOOKUP($B69,#REF!,2,0),"") ->  | G69: =IFERROR(VLOOKUP($B69,#REF!,3,0),"") ->  | H69: =IFERROR(VLOOKUP($B69,#REF!,4,0),"") ->  | I69: =IFERROR(VLOOKUP($B69,Fevrier!$B$6:$E$55,2,0),"") -> 5 | J69: =IFERROR(VLOOKUP($B69,Fevrier!$B$6:$E$55,3,0),"") -> 0 | K69: =IFERROR(VLOOKUP($B69,Fevrier!$B$6:$E$55,4,0),"") -> 0 | L69: =IFERROR(VLOOKUP($B69,Mars!$B$6:$E$55,2,0),"") -> 0 | M69: =IFERROR(VLOOKUP($B69,Mars!$B$6:$E$55,3,0),"") -> 0 | N69: =IFERROR(VLOOKUP($B69,Mars!$B$6:$E$55,4,0),"") -> 0 | O69: =IFERROR(VLOOKUP($B69,Avril!$B$6:$E$55,2,0),"") -> 0 | P69: =IFERROR(VLOOKUP($B69,Avril!$B$6:$E$55,3,0),"") -> 0 | Q69: =IFERROR(VLOOKUP($B69,Avril!$B$6:$E$55,4,0),"") -> 0 | R69: =IFERROR(VLOOKUP($B69,Mai!$B$6:$E$55,2,0),"") -> 0 | S69: =IFERROR(VLOOKUP($B69,Mai!$B$6:$E$55,3,0),"") -> 0 | T69: =IFERROR(VLOOKUP($B69,Mai!$B$6:$E$55,4,0),"") -> 0
A70: =IF(B70<>"",COUNTA($B$6:B70),"") ->  | B70: =IF(Base!E66="","",Base!E66) ->  | C70: 5 | D70: 0 | E70: 0 | F70: =IFERROR(VLOOKUP($B70,#REF!,2,0),"") ->  | G70: =IFERROR(VLOOKUP($B70,#REF!,3,0),"") ->  | H70: =IFERROR(VLOOKUP($B70,#REF!,4,0),"") ->  | I70: =IFERROR(VLOOKUP($B70,Fevrier!$B$6:$E$55,2,0),"") -> 5 | J70: =IFERROR(VLOOKUP($B70,Fevrier!$B$6:$E$55,3,0),"") -> 0 | K70: =IFERROR(VLOOKUP($B70,Fevrier!$B$6:$E$55,4,0),"") -> 0 | L70: =IFERROR(VLOOKUP($B70,Mars!$B$6:$E$55,2,0),"") -> 0 | M70: =IFERROR(VLOOKUP($B70,Mars!$B$6:$E$55,3,0),"") -> 0 | N70: =IFERROR(VLOOKUP($B70,Mars!$B$6:$E$55,4,0),"") -> 0 | O70: =IFERROR(VLOOKUP($B70,Avril!$B$6:$E$55,2,0),"") -> 0 | P70: =IFERROR(VLOOKUP($B70,Avril!$B$6:$E$55,3,0),"") -> 0 | Q70: =IFERROR(VLOOKUP($B70,Avril!$B$6:$E$55,4,0),"") -> 0 | R70: =IFERROR(VLOOKUP($B70,Mai!$B$6:$E$55,2,0),"") -> 0 | S70: =IFERROR(VLOOKUP($B70,Mai!$B$6:$E$55,3,0),"") -> 0 | T70: =IFERROR(VLOOKUP($B70,Mai!$B$6:$E$55,4,0),"") -> 0
A71: =IF(B71<>"",COUNTA($B$6:B71),"") ->  | B71: =IF(Base!E67="","",Base!E67) ->  | C71: =SUM(F71,I71,L71,O71,R71,U71,X71,AA71,AD71,AG71,AJ71,AM71) -> 5 | D71: =SUM(G71,J71,M71,P71,S71,V71,Y71,AB71,AE71,AH71,AK71,AN71) -> 0 | E71: =SUM(H71,K71,N71,Q71,T71,W71,Z71,AC71,AF71,AI71,AL71,AO71) -> 0 | F71: =IFERROR(VLOOKUP($B71,#REF!,2,0),"") ->  | G71: =IFERROR(VLOOKUP($B71,#REF!,3,0),"") ->  | H71: =IFERROR(VLOOKUP($B71,#REF!,4,0),"") ->  | I71: =IFERROR(VLOOKUP($B71,Fevrier!$B$6:$E$55,2,0),"") -> 5 | J71: =IFERROR(VLOOKUP($B71,Fevrier!$B$6:$E$55,3,0),"") -> 0 | K71: =IFERROR(VLOOKUP($B71,Fevrier!$B$6:$E$55,4,0),"") -> 0 | L71: =IFERROR(VLOOKUP($B71,Mars!$B$6:$E$55,2,0),"") -> 0 | M71: =IFERROR(VLOOKUP($B71,Mars!$B$6:$E$55,3,0),"") -> 0 | N71: =IFERROR(VLOOKUP($B71,Mars!$B$6:$E$55,4,0),"") -> 0 | O71: =IFERROR(VLOOKUP($B71,Avril!$B$6:$E$55,2,0),"") -> 0 | P71: =IFERROR(VLOOKUP($B71,Avril!$B$6:$E$55,3,0),"") -> 0 | Q71: =IFERROR(VLOOKUP($B71,Avril!$B$6:$E$55,4,0),"") -> 0 | R71: =IFERROR(VLOOKUP($B71,Mai!$B$6:$E$55,2,0),"") -> 0 | S71: =IFERROR(VLOOKUP($B71,Mai!$B$6:$E$55,3,0),"") -> 0 | T71: =IFERROR(VLOOKUP($B71,Mai!$B$6:$E$55,4,0),"") -> 0
A72: =IF(B72<>"",COUNTA($B$6:B72),"") ->  | B72: =IF(Base!E68="","",Base!E68) ->  | C72: 5 | D72: 0 | E72: 0 | F72: =IFERROR(VLOOKUP($B72,#REF!,2,0),"") ->  | G72: =IFERROR(VLOOKUP($B72,#REF!,3,0),"") ->  | H72: =IFERROR(VLOOKUP($B72,#REF!,4,0),"") ->  | I72: =IFERROR(VLOOKUP($B72,Fevrier!$B$6:$E$55,2,0),"") -> 5 | J72: =IFERROR(VLOOKUP($B72,Fevrier!$B$6:$E$55,3,0),"") -> 0 | K72: =IFERROR(VLOOKUP($B72,Fevrier!$B$6:$E$55,4,0),"") -> 0 | L72: =IFERROR(VLOOKUP($B72,Mars!$B$6:$E$55,2,0),"") -> 0 | M72: =IFERROR(VLOOKUP($B72,Mars!$B$6:$E$55,3,0),"") -> 0 | N72: =IFERROR(VLOOKUP($B72,Mars!$B$6:$E$55,4,0),"") -> 0 | O72: =IFERROR(VLOOKUP($B72,Avril!$B$6:$E$55,2,0),"") -> 0 | P72: =IFERROR(VLOOKUP($B72,Avril!$B$6:$E$55,3,0),"") -> 0 | Q72: =IFERROR(VLOOKUP($B72,Avril!$B$6:$E$55,4,0),"") -> 0 | R72: =IFERROR(VLOOKUP($B72,Mai!$B$6:$E$55,2,0),"") -> 0 | S72: =IFERROR(VLOOKUP($B72,Mai!$B$6:$E$55,3,0),"") -> 0 | T72: =IFERROR(VLOOKUP($B72,Mai!$B$6:$E$55,4,0),"") -> 0
A73: =IF(B73<>"",COUNTA($B$6:B73),"") ->  | B73: =IF(Base!E69="","",Base!E69) ->  | C73: 5 | D73: 0 | E73: 0 | F73: =IFERROR(VLOOKUP($B73,#REF!,2,0),"") ->  | G73: =IFERROR(VLOOKUP($B73,#REF!,3,0),"") ->  | H73: =IFERROR(VLOOKUP($B73,#REF!,4,0),"") ->  | I73: =IFERROR(VLOOKUP($B73,Fevrier!$B$6:$E$55,2,0),"") -> 5 | J73: =IFERROR(VLOOKUP($B73,Fevrier!$B$6:$E$55,3,0),"") -> 0 | K73: =IFERROR(VLOOKUP($B73,Fevrier!$B$6:$E$55,4,0),"") -> 0 | L73: =IFERROR(VLOOKUP($B73,Mars!$B$6:$E$55,2,0),"") -> 0 | M73: =IFERROR(VLOOKUP($B73,Mars!$B$6:$E$55,3,0),"") -> 0 | N73: =IFERROR(VLOOKUP($B73,Mars!$B$6:$E$55,4,0),"") -> 0 | O73: =IFERROR(VLOOKUP($B73,Avril!$B$6:$E$55,2,0),"") -> 0 | P73: =IFERROR(VLOOKUP($B73,Avril!$B$6:$E$55,3,0),"") -> 0 | Q73: =IFERROR(VLOOKUP($B73,Avril!$B$6:$E$55,4,0),"") -> 0 | R73: =IFERROR(VLOOKUP($B73,Mai!$B$6:$E$55,2,0),"") -> 0 | S73: =IFERROR(VLOOKUP($B73,Mai!$B$6:$E$55,3,0),"") -> 0 | T73: =IFERROR(VLOOKUP($B73,Mai!$B$6:$E$55,4,0),"") -> 0
A74: =IF(B74<>"",COUNTA($B$6:B74),"") ->  | B74: =IF(Base!E70="","",Base!E70) ->  | C74: 5 | D74: 0 | E74: 0 | F74: =IFERROR(VLOOKUP($B74,#REF!,2,0),"") ->  | G74: =IFERROR(VLOOKUP($B74,#REF!,3,0),"") ->  | H74: =IFERROR(VLOOKUP($B74,#REF!,4,0),"") ->  | I74: =IFERROR(VLOOKUP($B74,Fevrier!$B$6:$E$55,2,0),"") -> 5 | J74: =IFERROR(VLOOKUP($B74,Fevrier!$B$6:$E$55,3,0),"") -> 0 | K74: =IFERROR(VLOOKUP($B74,Fevrier!$B$6:$E$55,4,0),"") -> 0 | L74: =IFERROR(VLOOKUP($B74,Mars!$B$6:$E$55,2,0),"") -> 0 | M74: =IFERROR(VLOOKUP($B74,Mars!$B$6:$E$55,3,0),"") -> 0 | N74: =IFERROR(VLOOKUP($B74,Mars!$B$6:$E$55,4,0),"") -> 0 | O74: =IFERROR(VLOOKUP($B74,Avril!$B$6:$E$55,2,0),"") -> 0 | P74: =IFERROR(VLOOKUP($B74,Avril!$B$6:$E$55,3,0),"") -> 0 | Q74: =IFERROR(VLOOKUP($B74,Avril!$B$6:$E$55,4,0),"") -> 0 | R74: =IFERROR(VLOOKUP($B74,Mai!$B$6:$E$55,2,0),"") -> 0 | S74: =IFERROR(VLOOKUP($B74,Mai!$B$6:$E$55,3,0),"") -> 0 | T74: =IFERROR(VLOOKUP($B74,Mai!$B$6:$E$55,4,0),"") -> 0
A75: =IF(B75<>"",COUNTA($B$6:B75),"") ->  | B75: =IF(Base!E71="","",Base!E71) ->  | C75: 5 | D75: 0 | E75: 0 | F75: =IFERROR(VLOOKUP($B75,#REF!,2,0),"") ->  | G75: =IFERROR(VLOOKUP($B75,#REF!,3,0),"") ->  | H75: =IFERROR(VLOOKUP($B75,#REF!,4,0),"") ->  | I75: =IFERROR(VLOOKUP($B75,Fevrier!$B$6:$E$55,2,0),"") -> 5 | J75: =IFERROR(VLOOKUP($B75,Fevrier!$B$6:$E$55,3,0),"") -> 0 | K75: =IFERROR(VLOOKUP($B75,Fevrier!$B$6:$E$55,4,0),"") -> 0 | L75: =IFERROR(VLOOKUP($B75,Mars!$B$6:$E$55,2,0),"") -> 0 | M75: =IFERROR(VLOOKUP($B75,Mars!$B$6:$E$55,3,0),"") -> 0 | N75: =IFERROR(VLOOKUP($B75,Mars!$B$6:$E$55,4,0),"") -> 0 | O75: =IFERROR(VLOOKUP($B75,Avril!$B$6:$E$55,2,0),"") -> 0 | P75: =IFERROR(VLOOKUP($B75,Avril!$B$6:$E$55,3,0),"") -> 0 | Q75: =IFERROR(VLOOKUP($B75,Avril!$B$6:$E$55,4,0),"") -> 0 | R75: =IFERROR(VLOOKUP($B75,Mai!$B$6:$E$55,2,0),"") -> 0 | S75: =IFERROR(VLOOKUP($B75,Mai!$B$6:$E$55,3,0),"") -> 0 | T75: =IFERROR(VLOOKUP($B75,Mai!$B$6:$E$55,4,0),"") -> 0
A76: =IF(B76<>"",COUNTA($B$6:B76),"") ->  | B76: =IF(Base!E72="","",Base!E72) ->  | C76: 5 | D76: 0 | E76: 0 | F76: =IFERROR(VLOOKUP($B76,#REF!,2,0),"") ->  | G76: =IFERROR(VLOOKUP($B76,#REF!,3,0),"") ->  | H76: =IFERROR(VLOOKUP($B76,#REF!,4,0),"") ->  | I76: =IFERROR(VLOOKUP($B76,Fevrier!$B$6:$E$55,2,0),"") -> 5 | J76: =IFERROR(VLOOKUP($B76,Fevrier!$B$6:$E$55,3,0),"") -> 0 | K76: =IFERROR(VLOOKUP($B76,Fevrier!$B$6:$E$55,4,0),"") -> 0 | L76: =IFERROR(VLOOKUP($B76,Mars!$B$6:$E$55,2,0),"") -> 0 | M76: =IFERROR(VLOOKUP($B76,Mars!$B$6:$E$55,3,0),"") -> 0 | N76: =IFERROR(VLOOKUP($B76,Mars!$B$6:$E$55,4,0),"") -> 0 | O76: =IFERROR(VLOOKUP($B76,Avril!$B$6:$E$55,2,0),"") -> 0 | P76: =IFERROR(VLOOKUP($B76,Avril!$B$6:$E$55,3,0),"") -> 0 | Q76: =IFERROR(VLOOKUP($B76,Avril!$B$6:$E$55,4,0),"") -> 0 | R76: =IFERROR(VLOOKUP($B76,Mai!$B$6:$E$55,2,0),"") -> 0 | S76: =IFERROR(VLOOKUP($B76,Mai!$B$6:$E$55,3,0),"") -> 0 | T76: =IFERROR(VLOOKUP($B76,Mai!$B$6:$E$55,4,0),"") -> 0
A77: =IF(B77<>"",COUNTA($B$6:B77),"") ->  | B77: =IF(Base!E73="","",Base!E73) ->  | C77: 5 | D77: 0 | E77: 0 | F77: =IFERROR(VLOOKUP($B77,#REF!,2,0),"") ->  | G77: =IFERROR(VLOOKUP($B77,#REF!,3,0),"") ->  | H77: =IFERROR(VLOOKUP($B77,#REF!,4,0),"") ->  | I77: =IFERROR(VLOOKUP($B77,Fevrier!$B$6:$E$55,2,0),"") -> 5 | J77: =IFERROR(VLOOKUP($B77,Fevrier!$B$6:$E$55,3,0),"") -> 0 | K77: =IFERROR(VLOOKUP($B77,Fevrier!$B$6:$E$55,4,0),"") -> 0 | L77: =IFERROR(VLOOKUP($B77,Mars!$B$6:$E$55,2,0),"") -> 0 | M77: =IFERROR(VLOOKUP($B77,Mars!$B$6:$E$55,3,0),"") -> 0 | N77: =IFERROR(VLOOKUP($B77,Mars!$B$6:$E$55,4,0),"") -> 0 | O77: =IFERROR(VLOOKUP($B77,Avril!$B$6:$E$55,2,0),"") -> 0 | P77: =IFERROR(VLOOKUP($B77,Avril!$B$6:$E$55,3,0),"") -> 0 | Q77: =IFERROR(VLOOKUP($B77,Avril!$B$6:$E$55,4,0),"") -> 0 | R77: =IFERROR(VLOOKUP($B77,Mai!$B$6:$E$55,2,0),"") -> 0 | S77: =IFERROR(VLOOKUP($B77,Mai!$B$6:$E$55,3,0),"") -> 0 | T77: =IFERROR(VLOOKUP($B77,Mai!$B$6:$E$55,4,0),"") -> 0
A78: =IF(B78<>"",COUNTA($B$6:B78),"") ->  | B78: =IF(Base!E74="","",Base!E74) ->  | C78: 5 | D78: 0 | E78: 0 | F78: =IFERROR(VLOOKUP($B78,#REF!,2,0),"") ->  | G78: =IFERROR(VLOOKUP($B78,#REF!,3,0),"") ->  | H78: =IFERROR(VLOOKUP($B78,#REF!,4,0),"") ->  | I78: =IFERROR(VLOOKUP($B78,Fevrier!$B$6:$E$55,2,0),"") -> 5 | J78: =IFERROR(VLOOKUP($B78,Fevrier!$B$6:$E$55,3,0),"") -> 0 | K78: =IFERROR(VLOOKUP($B78,Fevrier!$B$6:$E$55,4,0),"") -> 0 | L78: =IFERROR(VLOOKUP($B78,Mars!$B$6:$E$55,2,0),"") -> 0 | M78: =IFERROR(VLOOKUP($B78,Mars!$B$6:$E$55,3,0),"") -> 0 | N78: =IFERROR(VLOOKUP($B78,Mars!$B$6:$E$55,4,0),"") -> 0 | O78: =IFERROR(VLOOKUP($B78,Avril!$B$6:$E$55,2,0),"") -> 0 | P78: =IFERROR(VLOOKUP($B78,Avril!$B$6:$E$55,3,0),"") -> 0 | Q78: =IFERROR(VLOOKUP($B78,Avril!$B$6:$E$55,4,0),"") -> 0 | R78: =IFERROR(VLOOKUP($B78,Mai!$B$6:$E$55,2,0),"") -> 0 | S78: =IFERROR(VLOOKUP($B78,Mai!$B$6:$E$55,3,0),"") -> 0 | T78: =IFERROR(VLOOKUP($B78,Mai!$B$6:$E$55,4,0),"") -> 0
A79: =IF(B79<>"",COUNTA($B$6:B79),"") ->  | B79: =IF(Base!E75="","",Base!E75) ->  | C79: 5 | D79: 0 | E79: 0 | F79: =IFERROR(VLOOKUP($B79,#REF!,2,0),"") ->  | G79: =IFERROR(VLOOKUP($B79,#REF!,3,0),"") ->  | H79: =IFERROR(VLOOKUP($B79,#REF!,4,0),"") ->  | I79: =IFERROR(VLOOKUP($B79,Fevrier!$B$6:$E$55,2,0),"") -> 5 | J79: =IFERROR(VLOOKUP($B79,Fevrier!$B$6:$E$55,3,0),"") -> 0 | K79: =IFERROR(VLOOKUP($B79,Fevrier!$B$6:$E$55,4,0),"") -> 0 | L79: =IFERROR(VLOOKUP($B79,Mars!$B$6:$E$55,2,0),"") -> 0 | M79: =IFERROR(VLOOKUP($B79,Mars!$B$6:$E$55,3,0),"") -> 0 | N79: =IFERROR(VLOOKUP($B79,Mars!$B$6:$E$55,4,0),"") -> 0 | O79: =IFERROR(VLOOKUP($B79,Avril!$B$6:$E$55,2,0),"") -> 0 | P79: =IFERROR(VLOOKUP($B79,Avril!$B$6:$E$55,3,0),"") -> 0 | Q79: =IFERROR(VLOOKUP($B79,Avril!$B$6:$E$55,4,0),"") -> 0 | R79: =IFERROR(VLOOKUP($B79,Mai!$B$6:$E$55,2,0),"") -> 0 | S79: =IFERROR(VLOOKUP($B79,Mai!$B$6:$E$55,3,0),"") -> 0 | T79: =IFERROR(VLOOKUP($B79,Mai!$B$6:$E$55,4,0),"") -> 0
A80: =IF(B80<>"",COUNTA($B$6:B80),"") ->  | B80: =IF(Base!E76="","",Base!E76) ->  | C80: 5 | D80: 0 | E80: 0 | F80: =IFERROR(VLOOKUP($B80,#REF!,2,0),"") ->  | G80: =IFERROR(VLOOKUP($B80,#REF!,3,0),"") ->  | H80: =IFERROR(VLOOKUP($B80,#REF!,4,0),"") ->  | I80: =IFERROR(VLOOKUP($B80,Fevrier!$B$6:$E$55,2,0),"") -> 5 | J80: =IFERROR(VLOOKUP($B80,Fevrier!$B$6:$E$55,3,0),"") -> 0 | K80: =IFERROR(VLOOKUP($B80,Fevrier!$B$6:$E$55,4,0),"") -> 0 | L80: =IFERROR(VLOOKUP($B80,Mars!$B$6:$E$55,2,0),"") -> 0 | M80: =IFERROR(VLOOKUP($B80,Mars!$B$6:$E$55,3,0),"") -> 0 | N80: =IFERROR(VLOOKUP($B80,Mars!$B$6:$E$55,4,0),"") -> 0 | O80: =IFERROR(VLOOKUP($B80,Avril!$B$6:$E$55,2,0),"") -> 0 | P80: =IFERROR(VLOOKUP($B80,Avril!$B$6:$E$55,3,0),"") -> 0 | Q80: =IFERROR(VLOOKUP($B80,Avril!$B$6:$E$55,4,0),"") -> 0 | R80: =IFERROR(VLOOKUP($B80,Mai!$B$6:$E$55,2,0),"") -> 0 | S80: =IFERROR(VLOOKUP($B80,Mai!$B$6:$E$55,3,0),"") -> 0 | T80: =IFERROR(VLOOKUP($B80,Mai!$B$6:$E$55,4,0),"") -> 0
A81: =IF(B81<>"",COUNTA($B$6:B81),"") ->  | B81: =IF(Base!E77="","",Base!E77) ->  | C81: 5 | D81: 0 | E81: 0 | F81: =IFERROR(VLOOKUP($B81,#REF!,2,0),"") ->  | G81: =IFERROR(VLOOKUP($B81,#REF!,3,0),"") ->  | H81: =IFERROR(VLOOKUP($B81,#REF!,4,0),"") ->  | I81: =IFERROR(VLOOKUP($B81,Fevrier!$B$6:$E$55,2,0),"") -> 5 | J81: =IFERROR(VLOOKUP($B81,Fevrier!$B$6:$E$55,3,0),"") -> 0 | K81: =IFERROR(VLOOKUP($B81,Fevrier!$B$6:$E$55,4,0),"") -> 0 | L81: =IFERROR(VLOOKUP($B81,Mars!$B$6:$E$55,2,0),"") -> 0 | M81: =IFERROR(VLOOKUP($B81,Mars!$B$6:$E$55,3,0),"") -> 0 | N81: =IFERROR(VLOOKUP($B81,Mars!$B$6:$E$55,4,0),"") -> 0 | O81: =IFERROR(VLOOKUP($B81,Avril!$B$6:$E$55,2,0),"") -> 0 | P81: =IFERROR(VLOOKUP($B81,Avril!$B$6:$E$55,3,0),"") -> 0 | Q81: =IFERROR(VLOOKUP($B81,Avril!$B$6:$E$55,4,0),"") -> 0 | R81: =IFERROR(VLOOKUP($B81,Mai!$B$6:$E$55,2,0),"") -> 0 | S81: =IFERROR(VLOOKUP($B81,Mai!$B$6:$E$55,3,0),"") -> 0 | T81: =IFERROR(VLOOKUP($B81,Mai!$B$6:$E$55,4,0),"") -> 0
A82: =IF(B82<>"",COUNTA($B$6:B82),"") ->  | B82: =IF(Base!E78="","",Base!E78) ->  | C82: 5 | D82: 0 | E82: 0 | F82: =IFERROR(VLOOKUP($B82,#REF!,2,0),"") ->  | G82: =IFERROR(VLOOKUP($B82,#REF!,3,0),"") ->  | H82: =IFERROR(VLOOKUP($B82,#REF!,4,0),"") ->  | I82: =IFERROR(VLOOKUP($B82,Fevrier!$B$6:$E$55,2,0),"") -> 5 | J82: =IFERROR(VLOOKUP($B82,Fevrier!$B$6:$E$55,3,0),"") -> 0 | K82: =IFERROR(VLOOKUP($B82,Fevrier!$B$6:$E$55,4,0),"") -> 0 | L82: =IFERROR(VLOOKUP($B82,Mars!$B$6:$E$55,2,0),"") -> 0 | M82: =IFERROR(VLOOKUP($B82,Mars!$B$6:$E$55,3,0),"") -> 0 | N82: =IFERROR(VLOOKUP($B82,Mars!$B$6:$E$55,4,0),"") -> 0 | O82: =IFERROR(VLOOKUP($B82,Avril!$B$6:$E$55,2,0),"") -> 0 | P82: =IFERROR(VLOOKUP($B82,Avril!$B$6:$E$55,3,0),"") -> 0 | Q82: =IFERROR(VLOOKUP($B82,Avril!$B$6:$E$55,4,0),"") -> 0 | R82: =IFERROR(VLOOKUP($B82,Mai!$B$6:$E$55,2,0),"") -> 0 | S82: =IFERROR(VLOOKUP($B82,Mai!$B$6:$E$55,3,0),"") -> 0 | T82: =IFERROR(VLOOKUP($B82,Mai!$B$6:$E$55,4,0),"") -> 0
A83: =IF(B83<>"",COUNTA($B$6:B83),"") ->  | B83: =IF(Base!E79="","",Base!E79) ->  | C83: 5 | D83: 0 | E83: 0 | F83: =IFERROR(VLOOKUP($B83,#REF!,2,0),"") ->  | G83: =IFERROR(VLOOKUP($B83,#REF!,3,0),"") ->  | H83: =IFERROR(VLOOKUP($B83,#REF!,4,0),"") ->  | I83: =IFERROR(VLOOKUP($B83,Fevrier!$B$6:$E$55,2,0),"") -> 5 | J83: =IFERROR(VLOOKUP($B83,Fevrier!$B$6:$E$55,3,0),"") -> 0 | K83: =IFERROR(VLOOKUP($B83,Fevrier!$B$6:$E$55,4,0),"") -> 0 | L83: =IFERROR(VLOOKUP($B83,Mars!$B$6:$E$55,2,0),"") -> 0 | M83: =IFERROR(VLOOKUP($B83,Mars!$B$6:$E$55,3,0),"") -> 0 | N83: =IFERROR(VLOOKUP($B83,Mars!$B$6:$E$55,4,0),"") -> 0 | O83: =IFERROR(VLOOKUP($B83,Avril!$B$6:$E$55,2,0),"") -> 0 | P83: =IFERROR(VLOOKUP($B83,Avril!$B$6:$E$55,3,0),"") -> 0 | Q83: =IFERROR(VLOOKUP($B83,Avril!$B$6:$E$55,4,0),"") -> 0 | R83: =IFERROR(VLOOKUP($B83,Mai!$B$6:$E$55,2,0),"") -> 0 | S83: =IFERROR(VLOOKUP($B83,Mai!$B$6:$E$55,3,0),"") -> 0 | T83: =IFERROR(VLOOKUP($B83,Mai!$B$6:$E$55,4,0),"") -> 0
A84: =IF(B84<>"",COUNTA($B$6:B84),"") ->  | B84: =IF(Base!E80="","",Base!E80) ->  | C84: 5 | D84: 0 | E84: 0 | F84: =IFERROR(VLOOKUP($B84,#REF!,2,0),"") ->  | G84: =IFERROR(VLOOKUP($B84,#REF!,3,0),"") ->  | H84: =IFERROR(VLOOKUP($B84,#REF!,4,0),"") ->  | I84: =IFERROR(VLOOKUP($B84,Fevrier!$B$6:$E$55,2,0),"") -> 5 | J84: =IFERROR(VLOOKUP($B84,Fevrier!$B$6:$E$55,3,0),"") -> 0 | K84: =IFERROR(VLOOKUP($B84,Fevrier!$B$6:$E$55,4,0),"") -> 0 | L84: =IFERROR(VLOOKUP($B84,Mars!$B$6:$E$55,2,0),"") -> 0 | M84: =IFERROR(VLOOKUP($B84,Mars!$B$6:$E$55,3,0),"") -> 0 | N84: =IFERROR(VLOOKUP($B84,Mars!$B$6:$E$55,4,0),"") -> 0 | O84: =IFERROR(VLOOKUP($B84,Avril!$B$6:$E$55,2,0),"") -> 0 | P84: =IFERROR(VLOOKUP($B84,Avril!$B$6:$E$55,3,0),"") -> 0 | Q84: =IFERROR(VLOOKUP($B84,Avril!$B$6:$E$55,4,0),"") -> 0 | R84: =IFERROR(VLOOKUP($B84,Mai!$B$6:$E$55,2,0),"") -> 0 | S84: =IFERROR(VLOOKUP($B84,Mai!$B$6:$E$55,3,0),"") -> 0 | T84: =IFERROR(VLOOKUP($B84,Mai!$B$6:$E$55,4,0),"") -> 0
A85: =IF(B85<>"",COUNTA($B$6:B85),"") ->  | B85: =IF(Base!E81="","",Base!E81) ->  | C85: 5 | D85: 0 | E85: 0 | F85: =IFERROR(VLOOKUP($B85,#REF!,2,0),"") ->  | G85: =IFERROR(VLOOKUP($B85,#REF!,3,0),"") ->  | H85: =IFERROR(VLOOKUP($B85,#REF!,4,0),"") ->  | I85: =IFERROR(VLOOKUP($B85,Fevrier!$B$6:$E$55,2,0),"") -> 5 | J85: =IFERROR(VLOOKUP($B85,Fevrier!$B$6:$E$55,3,0),"") -> 0 | K85: =IFERROR(VLOOKUP($B85,Fevrier!$B$6:$E$55,4,0),"") -> 0 | L85: =IFERROR(VLOOKUP($B85,Mars!$B$6:$E$55,2,0),"") -> 0 | M85: =IFERROR(VLOOKUP($B85,Mars!$B$6:$E$55,3,0),"") -> 0 | N85: =IFERROR(VLOOKUP($B85,Mars!$B$6:$E$55,4,0),"") -> 0 | O85: =IFERROR(VLOOKUP($B85,Avril!$B$6:$E$55,2,0),"") -> 0 | P85: =IFERROR(VLOOKUP($B85,Avril!$B$6:$E$55,3,0),"") -> 0 | Q85: =IFERROR(VLOOKUP($B85,Avril!$B$6:$E$55,4,0),"") -> 0 | R85: =IFERROR(VLOOKUP($B85,Mai!$B$6:$E$55,2,0),"") -> 0 | S85: =IFERROR(VLOOKUP($B85,Mai!$B$6:$E$55,3,0),"") -> 0 | T85: =IFERROR(VLOOKUP($B85,Mai!$B$6:$E$55,4,0),"") -> 0
A86: =IF(B86<>"",COUNTA($B$6:B86),"") ->  | B86: =IF(Base!E82="","",Base!E82) ->  | C86: 5 | D86: 0 | E86: 0 | F86: =IFERROR(VLOOKUP($B86,#REF!,2,0),"") ->  | G86: =IFERROR(VLOOKUP($B86,#REF!,3,0),"") ->  | H86: =IFERROR(VLOOKUP($B86,#REF!,4,0),"") ->  | I86: =IFERROR(VLOOKUP($B86,Fevrier!$B$6:$E$55,2,0),"") -> 5 | J86: =IFERROR(VLOOKUP($B86,Fevrier!$B$6:$E$55,3,0),"") -> 0 | K86: =IFERROR(VLOOKUP($B86,Fevrier!$B$6:$E$55,4,0),"") -> 0 | L86: =IFERROR(VLOOKUP($B86,Mars!$B$6:$E$55,2,0),"") -> 0 | M86: =IFERROR(VLOOKUP($B86,Mars!$B$6:$E$55,3,0),"") -> 0 | N86: =IFERROR(VLOOKUP($B86,Mars!$B$6:$E$55,4,0),"") -> 0 | O86: =IFERROR(VLOOKUP($B86,Avril!$B$6:$E$55,2,0),"") -> 0 | P86: =IFERROR(VLOOKUP($B86,Avril!$B$6:$E$55,3,0),"") -> 0 | Q86: =IFERROR(VLOOKUP($B86,Avril!$B$6:$E$55,4,0),"") -> 0 | R86: =IFERROR(VLOOKUP($B86,Mai!$B$6:$E$55,2,0),"") -> 0 | S86: =IFERROR(VLOOKUP($B86,Mai!$B$6:$E$55,3,0),"") -> 0 | T86: =IFERROR(VLOOKUP($B86,Mai!$B$6:$E$55,4,0),"") -> 0
A87: =IF(B87<>"",COUNTA($B$6:B87),"") ->  | B87: =IF(Base!E83="","",Base!E83) ->  | C87: 5 | D87: 0 | E87: 0 | F87: =IFERROR(VLOOKUP($B87,#REF!,2,0),"") ->  | G87: =IFERROR(VLOOKUP($B87,#REF!,3,0),"") ->  | H87: =IFERROR(VLOOKUP($B87,#REF!,4,0),"") ->  | I87: =IFERROR(VLOOKUP($B87,Fevrier!$B$6:$E$55,2,0),"") -> 5 | J87: =IFERROR(VLOOKUP($B87,Fevrier!$B$6:$E$55,3,0),"") -> 0 | K87: =IFERROR(VLOOKUP($B87,Fevrier!$B$6:$E$55,4,0),"") -> 0 | L87: =IFERROR(VLOOKUP($B87,Mars!$B$6:$E$55,2,0),"") -> 0 | M87: =IFERROR(VLOOKUP($B87,Mars!$B$6:$E$55,3,0),"") -> 0 | N87: =IFERROR(VLOOKUP($B87,Mars!$B$6:$E$55,4,0),"") -> 0 | O87: =IFERROR(VLOOKUP($B87,Avril!$B$6:$E$55,2,0),"") -> 0 | P87: =IFERROR(VLOOKUP($B87,Avril!$B$6:$E$55,3,0),"") -> 0 | Q87: =IFERROR(VLOOKUP($B87,Avril!$B$6:$E$55,4,0),"") -> 0 | R87: =IFERROR(VLOOKUP($B87,Mai!$B$6:$E$55,2,0),"") -> 0 | S87: =IFERROR(VLOOKUP($B87,Mai!$B$6:$E$55,3,0),"") -> 0 | T87: =IFERROR(VLOOKUP($B87,Mai!$B$6:$E$55,4,0),"") -> 0
A88: =IF(B88<>"",COUNTA($B$6:B88),"") ->  | B88: =IF(Base!E84="","",Base!E84) ->  | C88: 5 | D88: 0 | E88: 0 | F88: =IFERROR(VLOOKUP($B88,#REF!,2,0),"") ->  | G88: =IFERROR(VLOOKUP($B88,#REF!,3,0),"") ->  | H88: =IFERROR(VLOOKUP($B88,#REF!,4,0),"") ->  | I88: =IFERROR(VLOOKUP($B88,Fevrier!$B$6:$E$55,2,0),"") -> 5 | J88: =IFERROR(VLOOKUP($B88,Fevrier!$B$6:$E$55,3,0),"") -> 0 | K88: =IFERROR(VLOOKUP($B88,Fevrier!$B$6:$E$55,4,0),"") -> 0 | L88: =IFERROR(VLOOKUP($B88,Mars!$B$6:$E$55,2,0),"") -> 0 | M88: =IFERROR(VLOOKUP($B88,Mars!$B$6:$E$55,3,0),"") -> 0 | N88: =IFERROR(VLOOKUP($B88,Mars!$B$6:$E$55,4,0),"") -> 0 | O88: =IFERROR(VLOOKUP($B88,Avril!$B$6:$E$55,2,0),"") -> 0 | P88: =IFERROR(VLOOKUP($B88,Avril!$B$6:$E$55,3,0),"") -> 0 | Q88: =IFERROR(VLOOKUP($B88,Avril!$B$6:$E$55,4,0),"") -> 0 | R88: =IFERROR(VLOOKUP($B88,Mai!$B$6:$E$55,2,0),"") -> 0 | S88: =IFERROR(VLOOKUP($B88,Mai!$B$6:$E$55,3,0),"") -> 0 | T88: =IFERROR(VLOOKUP($B88,Mai!$B$6:$E$55,4,0),"") -> 0
A89: =IF(B89<>"",COUNTA($B$6:B89),"") ->  | B89: =IF(Base!E85="","",Base!E85) ->  | C89: 5 | D89: 0 | E89: 0 | F89: =IFERROR(VLOOKUP($B89,#REF!,2,0),"") ->  | G89: =IFERROR(VLOOKUP($B89,#REF!,3,0),"") ->  | H89: =IFERROR(VLOOKUP($B89,#REF!,4,0),"") ->  | I89: =IFERROR(VLOOKUP($B89,Fevrier!$B$6:$E$55,2,0),"") -> 5 | J89: =IFERROR(VLOOKUP($B89,Fevrier!$B$6:$E$55,3,0),"") -> 0 | K89: =IFERROR(VLOOKUP($B89,Fevrier!$B$6:$E$55,4,0),"") -> 0 | L89: =IFERROR(VLOOKUP($B89,Mars!$B$6:$E$55,2,0),"") -> 0 | M89: =IFERROR(VLOOKUP($B89,Mars!$B$6:$E$55,3,0),"") -> 0 | N89: =IFERROR(VLOOKUP($B89,Mars!$B$6:$E$55,4,0),"") -> 0 | O89: =IFERROR(VLOOKUP($B89,Avril!$B$6:$E$55,2,0),"") -> 0 | P89: =IFERROR(VLOOKUP($B89,Avril!$B$6:$E$55,3,0),"") -> 0 | Q89: =IFERROR(VLOOKUP($B89,Avril!$B$6:$E$55,4,0),"") -> 0 | R89: =IFERROR(VLOOKUP($B89,Mai!$B$6:$E$55,2,0),"") -> 0 | S89: =IFERROR(VLOOKUP($B89,Mai!$B$6:$E$55,3,0),"") -> 0 | T89: =IFERROR(VLOOKUP($B89,Mai!$B$6:$E$55,4,0),"") -> 0
A90: =IF(B90<>"",COUNTA($B$6:B90),"") ->  | B90: =IF(Base!E86="","",Base!E86) ->  | C90: 5 | D90: 0 | E90: 0 | F90: =IFERROR(VLOOKUP($B90,#REF!,2,0),"") ->  | G90: =IFERROR(VLOOKUP($B90,#REF!,3,0),"") ->  | H90: =IFERROR(VLOOKUP($B90,#REF!,4,0),"") ->  | I90: =IFERROR(VLOOKUP($B90,Fevrier!$B$6:$E$55,2,0),"") -> 5 | J90: =IFERROR(VLOOKUP($B90,Fevrier!$B$6:$E$55,3,0),"") -> 0 | K90: =IFERROR(VLOOKUP($B90,Fevrier!$B$6:$E$55,4,0),"") -> 0 | L90: =IFERROR(VLOOKUP($B90,Mars!$B$6:$E$55,2,0),"") -> 0 | M90: =IFERROR(VLOOKUP($B90,Mars!$B$6:$E$55,3,0),"") -> 0 | N90: =IFERROR(VLOOKUP($B90,Mars!$B$6:$E$55,4,0),"") -> 0 | O90: =IFERROR(VLOOKUP($B90,Avril!$B$6:$E$55,2,0),"") -> 0 | P90: =IFERROR(VLOOKUP($B90,Avril!$B$6:$E$55,3,0),"") -> 0 | Q90: =IFERROR(VLOOKUP($B90,Avril!$B$6:$E$55,4,0),"") -> 0 | R90: =IFERROR(VLOOKUP($B90,Mai!$B$6:$E$55,2,0),"") -> 0 | S90: =IFERROR(VLOOKUP($B90,Mai!$B$6:$E$55,3,0),"") -> 0 | T90: =IFERROR(VLOOKUP($B90,Mai!$B$6:$E$55,4,0),"") -> 0
A91: =IF(B91<>"",COUNTA($B$6:B91),"") ->  | B91: =IF(Base!E87="","",Base!E87) ->  | C91: 5 | D91: 0 | E91: 0 | F91: =IFERROR(VLOOKUP($B91,#REF!,2,0),"") ->  | G91: =IFERROR(VLOOKUP($B91,#REF!,3,0),"") ->  | H91: =IFERROR(VLOOKUP($B91,#REF!,4,0),"") ->  | I91: =IFERROR(VLOOKUP($B91,Fevrier!$B$6:$E$55,2,0),"") -> 5 | J91: =IFERROR(VLOOKUP($B91,Fevrier!$B$6:$E$55,3,0),"") -> 0 | K91: =IFERROR(VLOOKUP($B91,Fevrier!$B$6:$E$55,4,0),"") -> 0 | L91: =IFERROR(VLOOKUP($B91,Mars!$B$6:$E$55,2,0),"") -> 0 | M91: =IFERROR(VLOOKUP($B91,Mars!$B$6:$E$55,3,0),"") -> 0 | N91: =IFERROR(VLOOKUP($B91,Mars!$B$6:$E$55,4,0),"") -> 0 | O91: =IFERROR(VLOOKUP($B91,Avril!$B$6:$E$55,2,0),"") -> 0 | P91: =IFERROR(VLOOKUP($B91,Avril!$B$6:$E$55,3,0),"") -> 0 | Q91: =IFERROR(VLOOKUP($B91,Avril!$B$6:$E$55,4,0),"") -> 0 | R91: =IFERROR(VLOOKUP($B91,Mai!$B$6:$E$55,2,0),"") -> 0 | S91: =IFERROR(VLOOKUP($B91,Mai!$B$6:$E$55,3,0),"") -> 0 | T91: =IFERROR(VLOOKUP($B91,Mai!$B$6:$E$55,4,0),"") -> 0
A92: =IF(B92<>"",COUNTA($B$6:B92),"") ->  | B92: =IF(Base!E88="","",Base!E88) ->  | C92: 5 | D92: 0 | E92: 0 | F92: =IFERROR(VLOOKUP($B92,#REF!,2,0),"") ->  | G92: =IFERROR(VLOOKUP($B92,#REF!,3,0),"") ->  | H92: =IFERROR(VLOOKUP($B92,#REF!,4,0),"") ->  | I92: =IFERROR(VLOOKUP($B92,Fevrier!$B$6:$E$55,2,0),"") -> 5 | J92: =IFERROR(VLOOKUP($B92,Fevrier!$B$6:$E$55,3,0),"") -> 0 | K92: =IFERROR(VLOOKUP($B92,Fevrier!$B$6:$E$55,4,0),"") -> 0 | L92: =IFERROR(VLOOKUP($B92,Mars!$B$6:$E$55,2,0),"") -> 0 | M92: =IFERROR(VLOOKUP($B92,Mars!$B$6:$E$55,3,0),"") -> 0 | N92: =IFERROR(VLOOKUP($B92,Mars!$B$6:$E$55,4,0),"") -> 0 | O92: =IFERROR(VLOOKUP($B92,Avril!$B$6:$E$55,2,0),"") -> 0 | P92: =IFERROR(VLOOKUP($B92,Avril!$B$6:$E$55,3,0),"") -> 0 | Q92: =IFERROR(VLOOKUP($B92,Avril!$B$6:$E$55,4,0),"") -> 0 | R92: =IFERROR(VLOOKUP($B92,Mai!$B$6:$E$55,2,0),"") -> 0 | S92: =IFERROR(VLOOKUP($B92,Mai!$B$6:$E$55,3,0),"") -> 0 | T92: =IFERROR(VLOOKUP($B92,Mai!$B$6:$E$55,4,0),"") -> 0
A93: =IF(B93<>"",COUNTA($B$6:B93),"") ->  | B93: =IF(Base!E89="","",Base!E89) ->  | C93: 5 | D93: 0 | E93: 0 | F93: =IFERROR(VLOOKUP($B93,#REF!,2,0),"") ->  | G93: =IFERROR(VLOOKUP($B93,#REF!,3,0),"") ->  | H93: =IFERROR(VLOOKUP($B93,#REF!,4,0),"") ->  | I93: =IFERROR(VLOOKUP($B93,Fevrier!$B$6:$E$55,2,0),"") -> 5 | J93: =IFERROR(VLOOKUP($B93,Fevrier!$B$6:$E$55,3,0),"") -> 0 | K93: =IFERROR(VLOOKUP($B93,Fevrier!$B$6:$E$55,4,0),"") -> 0 | L93: =IFERROR(VLOOKUP($B93,Mars!$B$6:$E$55,2,0),"") -> 0 | M93: =IFERROR(VLOOKUP($B93,Mars!$B$6:$E$55,3,0),"") -> 0 | N93: =IFERROR(VLOOKUP($B93,Mars!$B$6:$E$55,4,0),"") -> 0 | O93: =IFERROR(VLOOKUP($B93,Avril!$B$6:$E$55,2,0),"") -> 0 | P93: =IFERROR(VLOOKUP($B93,Avril!$B$6:$E$55,3,0),"") -> 0 | Q93: =IFERROR(VLOOKUP($B93,Avril!$B$6:$E$55,4,0),"") -> 0 | R93: =IFERROR(VLOOKUP($B93,Mai!$B$6:$E$55,2,0),"") -> 0 | S93: =IFERROR(VLOOKUP($B93,Mai!$B$6:$E$55,3,0),"") -> 0 | T93: =IFERROR(VLOOKUP($B93,Mai!$B$6:$E$55,4,0),"") -> 0
A94: =IF(B94<>"",COUNTA($B$6:B94),"") ->  | B94: =IF(Base!E90="","",Base!E90) ->  | C94: 5 | D94: 0 | E94: 0 | F94: =IFERROR(VLOOKUP($B94,#REF!,2,0),"") ->  | G94: =IFERROR(VLOOKUP($B94,#REF!,3,0),"") ->  | H94: =IFERROR(VLOOKUP($B94,#REF!,4,0),"") ->  | I94: =IFERROR(VLOOKUP($B94,Fevrier!$B$6:$E$55,2,0),"") -> 5 | J94: =IFERROR(VLOOKUP($B94,Fevrier!$B$6:$E$55,3,0),"") -> 0 | K94: =IFERROR(VLOOKUP($B94,Fevrier!$B$6:$E$55,4,0),"") -> 0 | L94: =IFERROR(VLOOKUP($B94,Mars!$B$6:$E$55,2,0),"") -> 0 | M94: =IFERROR(VLOOKUP($B94,Mars!$B$6:$E$55,3,0),"") -> 0 | N94: =IFERROR(VLOOKUP($B94,Mars!$B$6:$E$55,4,0),"") -> 0 | O94: =IFERROR(VLOOKUP($B94,Avril!$B$6:$E$55,2,0),"") -> 0 | P94: =IFERROR(VLOOKUP($B94,Avril!$B$6:$E$55,3,0),"") -> 0 | Q94: =IFERROR(VLOOKUP($B94,Avril!$B$6:$E$55,4,0),"") -> 0 | R94: =IFERROR(VLOOKUP($B94,Mai!$B$6:$E$55,2,0),"") -> 0 | S94: =IFERROR(VLOOKUP($B94,Mai!$B$6:$E$55,3,0),"") -> 0 | T94: =IFERROR(VLOOKUP($B94,Mai!$B$6:$E$55,4,0),"") -> 0
A95: =IF(B95<>"",COUNTA($B$6:B95),"") ->  | B95: =IF(Base!E91="","",Base!E91) ->  | C95: 5 | D95: 0 | E95: 0 | F95: =IFERROR(VLOOKUP($B95,#REF!,2,0),"") ->  | G95: =IFERROR(VLOOKUP($B95,#REF!,3,0),"") ->  | H95: =IFERROR(VLOOKUP($B95,#REF!,4,0),"") ->  | I95: =IFERROR(VLOOKUP($B95,Fevrier!$B$6:$E$55,2,0),"") -> 5 | J95: =IFERROR(VLOOKUP($B95,Fevrier!$B$6:$E$55,3,0),"") -> 0 | K95: =IFERROR(VLOOKUP($B95,Fevrier!$B$6:$E$55,4,0),"") -> 0 | L95: =IFERROR(VLOOKUP($B95,Mars!$B$6:$E$55,2,0),"") -> 0 | M95: =IFERROR(VLOOKUP($B95,Mars!$B$6:$E$55,3,0),"") -> 0 | N95: =IFERROR(VLOOKUP($B95,Mars!$B$6:$E$55,4,0),"") -> 0 | O95: =IFERROR(VLOOKUP($B95,Avril!$B$6:$E$55,2,0),"") -> 0 | P95: =IFERROR(VLOOKUP($B95,Avril!$B$6:$E$55,3,0),"") -> 0 | Q95: =IFERROR(VLOOKUP($B95,Avril!$B$6:$E$55,4,0),"") -> 0 | R95: =IFERROR(VLOOKUP($B95,Mai!$B$6:$E$55,2,0),"") -> 0 | S95: =IFERROR(VLOOKUP($B95,Mai!$B$6:$E$55,3,0),"") -> 0 | T95: =IFERROR(VLOOKUP($B95,Mai!$B$6:$E$55,4,0),"") -> 0
A96: =IF(B96<>"",COUNTA($B$6:B96),"") ->  | B96: =IF(Base!E92="","",Base!E92) ->  | C96: 5 | D96: 0 | E96: 0 | F96: =IFERROR(VLOOKUP($B96,#REF!,2,0),"") ->  | G96: =IFERROR(VLOOKUP($B96,#REF!,3,0),"") ->  | H96: =IFERROR(VLOOKUP($B96,#REF!,4,0),"") ->  | I96: =IFERROR(VLOOKUP($B96,Fevrier!$B$6:$E$55,2,0),"") -> 5 | J96: =IFERROR(VLOOKUP($B96,Fevrier!$B$6:$E$55,3,0),"") -> 0 | K96: =IFERROR(VLOOKUP($B96,Fevrier!$B$6:$E$55,4,0),"") -> 0 | L96: =IFERROR(VLOOKUP($B96,Mars!$B$6:$E$55,2,0),"") -> 0 | M96: =IFERROR(VLOOKUP($B96,Mars!$B$6:$E$55,3,0),"") -> 0 | N96: =IFERROR(VLOOKUP($B96,Mars!$B$6:$E$55,4,0),"") -> 0 | O96: =IFERROR(VLOOKUP($B96,Avril!$B$6:$E$55,2,0),"") -> 0 | P96: =IFERROR(VLOOKUP($B96,Avril!$B$6:$E$55,3,0),"") -> 0 | Q96: =IFERROR(VLOOKUP($B96,Avril!$B$6:$E$55,4,0),"") -> 0 | R96: =IFERROR(VLOOKUP($B96,Mai!$B$6:$E$55,2,0),"") -> 0 | S96: =IFERROR(VLOOKUP($B96,Mai!$B$6:$E$55,3,0),"") -> 0 | T96: =IFERROR(VLOOKUP($B96,Mai!$B$6:$E$55,4,0),"") -> 0
A97: =IF(B97<>"",COUNTA($B$6:B97),"") ->  | B97: =IF(Base!E93="","",Base!E93) ->  | C97: 5 | D97: 0 | E97: 0 | F97: =IFERROR(VLOOKUP($B97,#REF!,2,0),"") ->  | G97: =IFERROR(VLOOKUP($B97,#REF!,3,0),"") ->  | H97: =IFERROR(VLOOKUP($B97,#REF!,4,0),"") ->  | I97: =IFERROR(VLOOKUP($B97,Fevrier!$B$6:$E$55,2,0),"") -> 5 | J97: =IFERROR(VLOOKUP($B97,Fevrier!$B$6:$E$55,3,0),"") -> 0 | K97: =IFERROR(VLOOKUP($B97,Fevrier!$B$6:$E$55,4,0),"") -> 0 | L97: =IFERROR(VLOOKUP($B97,Mars!$B$6:$E$55,2,0),"") -> 0 | M97: =IFERROR(VLOOKUP($B97,Mars!$B$6:$E$55,3,0),"") -> 0 | N97: =IFERROR(VLOOKUP($B97,Mars!$B$6:$E$55,4,0),"") -> 0 | O97: =IFERROR(VLOOKUP($B97,Avril!$B$6:$E$55,2,0),"") -> 0 | P97: =IFERROR(VLOOKUP($B97,Avril!$B$6:$E$55,3,0),"") -> 0 | Q97: =IFERROR(VLOOKUP($B97,Avril!$B$6:$E$55,4,0),"") -> 0 | R97: =IFERROR(VLOOKUP($B97,Mai!$B$6:$E$55,2,0),"") -> 0 | S97: =IFERROR(VLOOKUP($B97,Mai!$B$6:$E$55,3,0),"") -> 0 | T97: =IFERROR(VLOOKUP($B97,Mai!$B$6:$E$55,4,0),"") -> 0
A98: =IF(B98<>"",COUNTA($B$6:B98),"") ->  | B98: =IF(Base!E94="","",Base!E94) ->  | C98: 5 | D98: 0 | E98: 0 | F98: =IFERROR(VLOOKUP($B98,#REF!,2,0),"") ->  | G98: =IFERROR(VLOOKUP($B98,#REF!,3,0),"") ->  | H98: =IFERROR(VLOOKUP($B98,#REF!,4,0),"") ->  | I98: =IFERROR(VLOOKUP($B98,Fevrier!$B$6:$E$55,2,0),"") -> 5 | J98: =IFERROR(VLOOKUP($B98,Fevrier!$B$6:$E$55,3,0),"") -> 0 | K98: =IFERROR(VLOOKUP($B98,Fevrier!$B$6:$E$55,4,0),"") -> 0 | L98: =IFERROR(VLOOKUP($B98,Mars!$B$6:$E$55,2,0),"") -> 0 | M98: =IFERROR(VLOOKUP($B98,Mars!$B$6:$E$55,3,0),"") -> 0 | N98: =IFERROR(VLOOKUP($B98,Mars!$B$6:$E$55,4,0),"") -> 0 | O98: =IFERROR(VLOOKUP($B98,Avril!$B$6:$E$55,2,0),"") -> 0 | P98: =IFERROR(VLOOKUP($B98,Avril!$B$6:$E$55,3,0),"") -> 0 | Q98: =IFERROR(VLOOKUP($B98,Avril!$B$6:$E$55,4,0),"") -> 0 | R98: =IFERROR(VLOOKUP($B98,Mai!$B$6:$E$55,2,0),"") -> 0 | S98: =IFERROR(VLOOKUP($B98,Mai!$B$6:$E$55,3,0),"") -> 0 | T98: =IFERROR(VLOOKUP($B98,Mai!$B$6:$E$55,4,0),"") -> 0
A99: =IF(B99<>"",COUNTA($B$6:B99),"") ->  | B99: =IF(Base!E95="","",Base!E95) ->  | C99: 5 | D99: 0 | E99: 0 | F99: =IFERROR(VLOOKUP($B99,#REF!,2,0),"") ->  | G99: =IFERROR(VLOOKUP($B99,#REF!,3,0),"") ->  | H99: =IFERROR(VLOOKUP($B99,#REF!,4,0),"") ->  | I99: =IFERROR(VLOOKUP($B99,Fevrier!$B$6:$E$55,2,0),"") -> 5 | J99: =IFERROR(VLOOKUP($B99,Fevrier!$B$6:$E$55,3,0),"") -> 0 | K99: =IFERROR(VLOOKUP($B99,Fevrier!$B$6:$E$55,4,0),"") -> 0 | L99: =IFERROR(VLOOKUP($B99,Mars!$B$6:$E$55,2,0),"") -> 0 | M99: =IFERROR(VLOOKUP($B99,Mars!$B$6:$E$55,3,0),"") -> 0 | N99: =IFERROR(VLOOKUP($B99,Mars!$B$6:$E$55,4,0),"") -> 0 | O99: =IFERROR(VLOOKUP($B99,Avril!$B$6:$E$55,2,0),"") -> 0 | P99: =IFERROR(VLOOKUP($B99,Avril!$B$6:$E$55,3,0),"") -> 0 | Q99: =IFERROR(VLOOKUP($B99,Avril!$B$6:$E$55,4,0),"") -> 0 | R99: =IFERROR(VLOOKUP($B99,Mai!$B$6:$E$55,2,0),"") -> 0 | S99: =IFERROR(VLOOKUP($B99,Mai!$B$6:$E$55,3,0),"") -> 0 | T99: =IFERROR(VLOOKUP($B99,Mai!$B$6:$E$55,4,0),"") -> 0
A100: =IF(B100<>"",COUNTA($B$6:B100),"") ->  | B100: =IF(Base!E96="","",Base!E96) ->  | C100: 5 | D100: 0 | E100: 0 | F100: =IFERROR(VLOOKUP($B100,#REF!,2,0),"") ->  | G100: =IFERROR(VLOOKUP($B100,#REF!,3,0),"") ->  | H100: =IFERROR(VLOOKUP($B100,#REF!,4,0),"") ->  | I100: =IFERROR(VLOOKUP($B100,Fevrier!$B$6:$E$55,2,0),"") -> 5 | J100: =IFERROR(VLOOKUP($B100,Fevrier!$B$6:$E$55,3,0),"") -> 0 | K100: =IFERROR(VLOOKUP($B100,Fevrier!$B$6:$E$55,4,0),"") -> 0 | L100: =IFERROR(VLOOKUP($B100,Mars!$B$6:$E$55,2,0),"") -> 0 | M100: =IFERROR(VLOOKUP($B100,Mars!$B$6:$E$55,3,0),"") -> 0 | N100: =IFERROR(VLOOKUP($B100,Mars!$B$6:$E$55,4,0),"") -> 0 | O100: =IFERROR(VLOOKUP($B100,Avril!$B$6:$E$55,2,0),"") -> 0 | P100: =IFERROR(VLOOKUP($B100,Avril!$B$6:$E$55,3,0),"") -> 0 | Q100: =IFERROR(VLOOKUP($B100,Avril!$B$6:$E$55,4,0),"") -> 0 | R100: =IFERROR(VLOOKUP($B100,Mai!$B$6:$E$55,2,0),"") -> 0 | S100: =IFERROR(VLOOKUP($B100,Mai!$B$6:$E$55,3,0),"") -> 0 | T100: =IFERROR(VLOOKUP($B100,Mai!$B$6:$E$55,4,0),"") -> 0
A101: =IF(B101<>"",COUNTA($B$6:B101),"") ->  | B101: =IF(Base!E97="","",Base!E97) ->  | C101: 5 | D101: 0 | E101: 0 | F101: =IFERROR(VLOOKUP($B101,#REF!,2,0),"") ->  | G101: =IFERROR(VLOOKUP($B101,#REF!,3,0),"") ->  | H101: =IFERROR(VLOOKUP($B101,#REF!,4,0),"") ->  | I101: =IFERROR(VLOOKUP($B101,Fevrier!$B$6:$E$55,2,0),"") -> 5 | J101: =IFERROR(VLOOKUP($B101,Fevrier!$B$6:$E$55,3,0),"") -> 0 | K101: =IFERROR(VLOOKUP($B101,Fevrier!$B$6:$E$55,4,0),"") -> 0 | L101: =IFERROR(VLOOKUP($B101,Mars!$B$6:$E$55,2,0),"") -> 0 | M101: =IFERROR(VLOOKUP($B101,Mars!$B$6:$E$55,3,0),"") -> 0 | N101: =IFERROR(VLOOKUP($B101,Mars!$B$6:$E$55,4,0),"") -> 0 | O101: =IFERROR(VLOOKUP($B101,Avril!$B$6:$E$55,2,0),"") -> 0 | P101: =IFERROR(VLOOKUP($B101,Avril!$B$6:$E$55,3,0),"") -> 0 | Q101: =IFERROR(VLOOKUP($B101,Avril!$B$6:$E$55,4,0),"") -> 0 | R101: =IFERROR(VLOOKUP($B101,Mai!$B$6:$E$55,2,0),"") -> 0 | S101: =IFERROR(VLOOKUP($B101,Mai!$B$6:$E$55,3,0),"") -> 0 | T101: =IFERROR(VLOOKUP($B101,Mai!$B$6:$E$55,4,0),"") -> 0
A102: =IF(B102<>"",COUNTA($B$6:B102),"") ->  | B102: =IF(Base!E98="","",Base!E98) ->  | C102: 5 | D102: 0 | E102: 0 | F102: =IFERROR(VLOOKUP($B102,#REF!,2,0),"") ->  | G102: =IFERROR(VLOOKUP($B102,#REF!,3,0),"") ->  | H102: =IFERROR(VLOOKUP($B102,#REF!,4,0),"") ->  | I102: =IFERROR(VLOOKUP($B102,Fevrier!$B$6:$E$55,2,0),"") -> 5 | J102: =IFERROR(VLOOKUP($B102,Fevrier!$B$6:$E$55,3,0),"") -> 0 | K102: =IFERROR(VLOOKUP($B102,Fevrier!$B$6:$E$55,4,0),"") -> 0 | L102: =IFERROR(VLOOKUP($B102,Mars!$B$6:$E$55,2,0),"") -> 0 | M102: =IFERROR(VLOOKUP($B102,Mars!$B$6:$E$55,3,0),"") -> 0 | N102: =IFERROR(VLOOKUP($B102,Mars!$B$6:$E$55,4,0),"") -> 0 | O102: =IFERROR(VLOOKUP($B102,Avril!$B$6:$E$55,2,0),"") -> 0 | P102: =IFERROR(VLOOKUP($B102,Avril!$B$6:$E$55,3,0),"") -> 0 | Q102: =IFERROR(VLOOKUP($B102,Avril!$B$6:$E$55,4,0),"") -> 0 | R102: =IFERROR(VLOOKUP($B102,Mai!$B$6:$E$55,2,0),"") -> 0 | S102: =IFERROR(VLOOKUP($B102,Mai!$B$6:$E$55,3,0),"") -> 0 | T102: =IFERROR(VLOOKUP($B102,Mai!$B$6:$E$55,4,0),"") -> 0
A103: =IF(B103<>"",COUNTA($B$6:B103),"") ->  | B103: =IF(Base!E99="","",Base!E99) ->  | C103: 5 | D103: 0 | E103: 0 | F103: =IFERROR(VLOOKUP($B103,#REF!,2,0),"") ->  | G103: =IFERROR(VLOOKUP($B103,#REF!,3,0),"") ->  | H103: =IFERROR(VLOOKUP($B103,#REF!,4,0),"") ->  | I103: =IFERROR(VLOOKUP($B103,Fevrier!$B$6:$E$55,2,0),"") -> 5 | J103: =IFERROR(VLOOKUP($B103,Fevrier!$B$6:$E$55,3,0),"") -> 0 | K103: =IFERROR(VLOOKUP($B103,Fevrier!$B$6:$E$55,4,0),"") -> 0 | L103: =IFERROR(VLOOKUP($B103,Mars!$B$6:$E$55,2,0),"") -> 0 | M103: =IFERROR(VLOOKUP($B103,Mars!$B$6:$E$55,3,0),"") -> 0 | N103: =IFERROR(VLOOKUP($B103,Mars!$B$6:$E$55,4,0),"") -> 0 | O103: =IFERROR(VLOOKUP($B103,Avril!$B$6:$E$55,2,0),"") -> 0 | P103: =IFERROR(VLOOKUP($B103,Avril!$B$6:$E$55,3,0),"") -> 0 | Q103: =IFERROR(VLOOKUP($B103,Avril!$B$6:$E$55,4,0),"") -> 0 | R103: =IFERROR(VLOOKUP($B103,Mai!$B$6:$E$55,2,0),"") -> 0 | S103: =IFERROR(VLOOKUP($B103,Mai!$B$6:$E$55,3,0),"") -> 0 | T103: =IFERROR(VLOOKUP($B103,Mai!$B$6:$E$55,4,0),"") -> 0
A104: =IF(B104<>"",COUNTA($B$6:B104),"") ->  | B104: =IF(Base!E100="","",Base!E100) ->  | C104: 5 | D104: 0 | E104: 0 | F104: =IFERROR(VLOOKUP($B104,#REF!,2,0),"") ->  | G104: =IFERROR(VLOOKUP($B104,#REF!,3,0),"") ->  | H104: =IFERROR(VLOOKUP($B104,#REF!,4,0),"") ->  | I104: =IFERROR(VLOOKUP($B104,Fevrier!$B$6:$E$55,2,0),"") -> 5 | J104: =IFERROR(VLOOKUP($B104,Fevrier!$B$6:$E$55,3,0),"") -> 0 | K104: =IFERROR(VLOOKUP($B104,Fevrier!$B$6:$E$55,4,0),"") -> 0 | L104: =IFERROR(VLOOKUP($B104,Mars!$B$6:$E$55,2,0),"") -> 0 | M104: =IFERROR(VLOOKUP($B104,Mars!$B$6:$E$55,3,0),"") -> 0 | N104: =IFERROR(VLOOKUP($B104,Mars!$B$6:$E$55,4,0),"") -> 0 | O104: =IFERROR(VLOOKUP($B104,Avril!$B$6:$E$55,2,0),"") -> 0 | P104: =IFERROR(VLOOKUP($B104,Avril!$B$6:$E$55,3,0),"") -> 0 | Q104: =IFERROR(VLOOKUP($B104,Avril!$B$6:$E$55,4,0),"") -> 0 | R104: =IFERROR(VLOOKUP($B104,Mai!$B$6:$E$55,2,0),"") -> 0 | S104: =IFERROR(VLOOKUP($B104,Mai!$B$6:$E$55,3,0),"") -> 0 | T104: =IFERROR(VLOOKUP($B104,Mai!$B$6:$E$55,4,0),"") -> 0
A105: =IF(B105<>"",COUNTA($B$6:B105),"") ->  | B105: =IF(Base!E101="","",Base!E101) ->  | C105: 5 | D105: 0 | E105: 0 | F105: =IFERROR(VLOOKUP($B105,#REF!,2,0),"") ->  | G105: =IFERROR(VLOOKUP($B105,#REF!,3,0),"") ->  | H105: =IFERROR(VLOOKUP($B105,#REF!,4,0),"") ->  | I105: =IFERROR(VLOOKUP($B105,Fevrier!$B$6:$E$55,2,0),"") -> 5 | J105: =IFERROR(VLOOKUP($B105,Fevrier!$B$6:$E$55,3,0),"") -> 0 | K105: =IFERROR(VLOOKUP($B105,Fevrier!$B$6:$E$55,4,0),"") -> 0 | L105: =IFERROR(VLOOKUP($B105,Mars!$B$6:$E$55,2,0),"") -> 0 | M105: =IFERROR(VLOOKUP($B105,Mars!$B$6:$E$55,3,0),"") -> 0 | N105: =IFERROR(VLOOKUP($B105,Mars!$B$6:$E$55,4,0),"") -> 0 | O105: =IFERROR(VLOOKUP($B105,Avril!$B$6:$E$55,2,0),"") -> 0 | P105: =IFERROR(VLOOKUP($B105,Avril!$B$6:$E$55,3,0),"") -> 0 | Q105: =IFERROR(VLOOKUP($B105,Avril!$B$6:$E$55,4,0),"") -> 0 | R105: =IFERROR(VLOOKUP($B105,Mai!$B$6:$E$55,2,0),"") -> 0 | S105: =IFERROR(VLOOKUP($B105,Mai!$B$6:$E$55,3,0),"") -> 0 | T105: =IFERROR(VLOOKUP($B105,Mai!$B$6:$E$55,4,0),"") -> 0
A106: =IF(B106<>"",COUNTA($B$6:B106),"") ->  | B106: =IF(Base!E102="","",Base!E102) ->  | C106: 5 | D106: 0 | E106: 0 | F106: =IFERROR(VLOOKUP($B106,#REF!,2,0),"") ->  | G106: =IFERROR(VLOOKUP($B106,#REF!,3,0),"") ->  | H106: =IFERROR(VLOOKUP($B106,#REF!,4,0),"") ->  | I106: =IFERROR(VLOOKUP($B106,Fevrier!$B$6:$E$55,2,0),"") -> 5 | J106: =IFERROR(VLOOKUP($B106,Fevrier!$B$6:$E$55,3,0),"") -> 0 | K106: =IFERROR(VLOOKUP($B106,Fevrier!$B$6:$E$55,4,0),"") -> 0 | L106: =IFERROR(VLOOKUP($B106,Mars!$B$6:$E$55,2,0),"") -> 0 | M106: =IFERROR(VLOOKUP($B106,Mars!$B$6:$E$55,3,0),"") -> 0 | N106: =IFERROR(VLOOKUP($B106,Mars!$B$6:$E$55,4,0),"") -> 0 | O106: =IFERROR(VLOOKUP($B106,Avril!$B$6:$E$55,2,0),"") -> 0 | P106: =IFERROR(VLOOKUP($B106,Avril!$B$6:$E$55,3,0),"") -> 0 | Q106: =IFERROR(VLOOKUP($B106,Avril!$B$6:$E$55,4,0),"") -> 0 | R106: =IFERROR(VLOOKUP($B106,Mai!$B$6:$E$55,2,0),"") -> 0 | S106: =IFERROR(VLOOKUP($B106,Mai!$B$6:$E$55,3,0),"") -> 0 | T106: =IFERROR(VLOOKUP($B106,Mai!$B$6:$E$55,4,0),"") -> 0
B107: =IF(Base!E103="","",Base!E103) ->  | C107: =SUM(F107,I107,L107,O107,R107,U107,X107,AA107,AD107,AG107,AJ107,AM107) -> 5 | D107: =SUM(G107,J107,M107,P107,S107,V107,Y107,AB107,AE107,AH107,AK107,AN107) -> 0 | E107: =SUM(H107,K107,N107,Q107,T107,W107,Z107,AC107,AF107,AI107,AL107,AO107) -> 0 | F107: =IFERROR(VLOOKUP($B107,#REF!,2,0),"") ->  | G107: =IFERROR(VLOOKUP($B107,#REF!,3,0),"") ->  | H107: =IFERROR(VLOOKUP($B107,#REF!,4,0),"") ->  | I107: =IFERROR(VLOOKUP($B107,Fevrier!$B$6:$E$55,2,0),"") -> 5 | J107: =IFERROR(VLOOKUP($B107,Fevrier!$B$6:$E$55,3,0),"") -> 0 | K107: =IFERROR(VLOOKUP($B107,Fevrier!$B$6:$E$55,4,0),"") -> 0 | L107: =IFERROR(VLOOKUP($B107,Mars!$B$6:$E$55,2,0),"") -> 0 | M107: =IFERROR(VLOOKUP($B107,Mars!$B$6:$E$55,3,0),"") -> 0 | N107: =IFERROR(VLOOKUP($B107,Mars!$B$6:$E$55,4,0),"") -> 0 | O107: =IFERROR(VLOOKUP($B107,Avril!$B$6:$E$55,2,0),"") -> 0 | P107: =IFERROR(VLOOKUP($B107,Avril!$B$6:$E$55,3,0),"") -> 0 | Q107: =IFERROR(VLOOKUP($B107,Avril!$B$6:$E$55,4,0),"") -> 0 | R107: =IFERROR(VLOOKUP($B107,Mai!$B$6:$E$55,2,0),"") -> 0 | S107: =IFERROR(VLOOKUP($B107,Mai!$B$6:$E$55,3,0),"") -> 0 | T107: =IFERROR(VLOOKUP($B107,Mai!$B$6:$E$55,4,0),"") -> 0
B108: =IF(Base!E104="","",Base!E104) ->  | C108: 5 | D108: 0 | E108: 0 | F108: =IFERROR(VLOOKUP($B108,#REF!,2,0),"") ->  | G108: =IFERROR(VLOOKUP($B108,#REF!,3,0),"") ->  | H108: =IFERROR(VLOOKUP($B108,#REF!,4,0),"") ->  | I108: =IFERROR(VLOOKUP($B108,Fevrier!$B$6:$E$55,2,0),"") -> 5 | J108: =IFERROR(VLOOKUP($B108,Fevrier!$B$6:$E$55,3,0),"") -> 0 | K108: =IFERROR(VLOOKUP($B108,Fevrier!$B$6:$E$55,4,0),"") -> 0 | L108: =IFERROR(VLOOKUP($B108,Mars!$B$6:$E$55,2,0),"") -> 0 | M108: =IFERROR(VLOOKUP($B108,Mars!$B$6:$E$55,3,0),"") -> 0 | N108: =IFERROR(VLOOKUP($B108,Mars!$B$6:$E$55,4,0),"") -> 0 | O108: =IFERROR(VLOOKUP($B108,Avril!$B$6:$E$55,2,0),"") -> 0 | P108: =IFERROR(VLOOKUP($B108,Avril!$B$6:$E$55,3,0),"") -> 0 | Q108: =IFERROR(VLOOKUP($B108,Avril!$B$6:$E$55,4,0),"") -> 0 | R108: =IFERROR(VLOOKUP($B108,Mai!$B$6:$E$55,2,0),"") -> 0 | S108: =IFERROR(VLOOKUP($B108,Mai!$B$6:$E$55,3,0),"") -> 0 | T108: =IFERROR(VLOOKUP($B108,Mai!$B$6:$E$55,4,0),"") -> 0
B109: =IF(Base!E105="","",Base!E105) ->  | C109: 5 | D109: 0 | E109: 0 | F109: =IFERROR(VLOOKUP($B109,#REF!,2,0),"") ->  | G109: =IFERROR(VLOOKUP($B109,#REF!,3,0),"") ->  | H109: =IFERROR(VLOOKUP($B109,#REF!,4,0),"") ->  | I109: =IFERROR(VLOOKUP($B109,Fevrier!$B$6:$E$55,2,0),"") -> 5 | J109: =IFERROR(VLOOKUP($B109,Fevrier!$B$6:$E$55,3,0),"") -> 0 | K109: =IFERROR(VLOOKUP($B109,Fevrier!$B$6:$E$55,4,0),"") -> 0 | L109: =IFERROR(VLOOKUP($B109,Mars!$B$6:$E$55,2,0),"") -> 0 | M109: =IFERROR(VLOOKUP($B109,Mars!$B$6:$E$55,3,0),"") -> 0 | N109: =IFERROR(VLOOKUP($B109,Mars!$B$6:$E$55,4,0),"") -> 0 | O109: =IFERROR(VLOOKUP($B109,Avril!$B$6:$E$55,2,0),"") -> 0 | P109: =IFERROR(VLOOKUP($B109,Avril!$B$6:$E$55,3,0),"") -> 0 | Q109: =IFERROR(VLOOKUP($B109,Avril!$B$6:$E$55,4,0),"") -> 0 | R109: =IFERROR(VLOOKUP($B109,Mai!$B$6:$E$55,2,0),"") -> 0 | S109: =IFERROR(VLOOKUP($B109,Mai!$B$6:$E$55,3,0),"") -> 0 | T109: =IFERROR(VLOOKUP($B109,Mai!$B$6:$E$55,4,0),"") -> 0
B110: =IF(Base!E106="","",Base!E106) ->  | C110: 5 | D110: 0 | E110: 0 | F110: =IFERROR(VLOOKUP($B110,#REF!,2,0),"") ->  | G110: =IFERROR(VLOOKUP($B110,#REF!,3,0),"") ->  | H110: =IFERROR(VLOOKUP($B110,#REF!,4,0),"") ->  | I110: =IFERROR(VLOOKUP($B110,Fevrier!$B$6:$E$55,2,0),"") -> 5 | J110: =IFERROR(VLOOKUP($B110,Fevrier!$B$6:$E$55,3,0),"") -> 0 | K110: =IFERROR(VLOOKUP($B110,Fevrier!$B$6:$E$55,4,0),"") -> 0 | L110: =IFERROR(VLOOKUP($B110,Mars!$B$6:$E$55,2,0),"") -> 0 | M110: =IFERROR(VLOOKUP($B110,Mars!$B$6:$E$55,3,0),"") -> 0 | N110: =IFERROR(VLOOKUP($B110,Mars!$B$6:$E$55,4,0),"") -> 0 | O110: =IFERROR(VLOOKUP($B110,Avril!$B$6:$E$55,2,0),"") -> 0 | P110: =IFERROR(VLOOKUP($B110,Avril!$B$6:$E$55,3,0),"") -> 0 | Q110: =IFERROR(VLOOKUP($B110,Avril!$B$6:$E$55,4,0),"") -> 0 | R110: =IFERROR(VLOOKUP($B110,Mai!$B$6:$E$55,2,0),"") -> 0 | S110: =IFERROR(VLOOKUP($B110,Mai!$B$6:$E$55,3,0),"") -> 0 | T110: =IFERROR(VLOOKUP($B110,Mai!$B$6:$E$55,4,0),"") -> 0

Sheet Base
E1: Name | F1: Janvier | G1: Février | H1: Mars | I1: Avril | J1: Mai | K1: Juin | L1: Juillet | M1: Août | N1: Septembre | O1: Octobre | P1: Novembre | Q1: Décembre
D2: =IF(E2<>"",COUNTA($E$2:E2),"") -> 1 | E2: الموظف 1 | F2: X | G2: X | H2: X
A3: U | B3: 1000 | D3: =IF(E3<>"",COUNTA($E$2:E3),"") -> 2 | E3: الموظف 2 | F3: x | H3: X
A4: U 1 | B4: =$B$3+200*ROW(A1) -> 1200 | D4: =IF(E4<>"",COUNTA($E$2:E4),"") -> 3 | E4: الموظف 3 | F4: x | G4: X
A5: U 2 | B5: =$B$3+200*ROW(A2) -> 1400 | D5: =IF(E5<>"",COUNTA($E$2:E5),"") -> 4 | E5: الموظف 4 | F5: x | H5: X
A6: U 3 | B6: 1600 | D6: =IF(E6<>"",COUNTA($E$2:E6),"") -> 5 | E6: الموظف 5 | G6: X | H6: X
A7: U 4 | B7: 1800 | D7: =IF(E7<>"",COUNTA($E$2:E7),"") -> 6 | E7: الموظف 6 | F7: x | G7: X
A8: R | B8: 1200 | D8: =IF(E8<>"",COUNTA($E$2:E8),"") -> 7 | E8: الموظف 7 | F8: X | G8: X
A9: R 1 | B9: 1400 | D9: =IF(E9<>"",COUNTA($E$2:E9),"") -> 8 | E9: الموظف 8 | F9: x | G9: X
A10: R 2 | B10: 1600 | D10: =IF(E10<>"",COUNTA($E$2:E10),"") -> 9 | E10: الموظف 9 | F10: X | G10: X
A11: R 3 | B11: 1800 | D11: =IF(E11<>"",COUNTA($E$2:E11),"") -> 10 | E11: الموظف 10 | F11: X | G11: X
A12: R 4 | B12: 2000 | D12: =IF(E12<>"",COUNTA($E$2:E12),"") -> 11 | E12: الموظف 11 | F12: x | G12: X
A13: A | D13: =IF(E13<>"",COUNTA($E$2:E13),"") -> 12 | E13: الموظف 12 | F13: X | H13: X
A14: 500 | B14: 1000 | D14: =IF(E14<>"",COUNTA($E$2:E14),"") -> 13 | E14: الموظف 13 | G14: X
A15: 1000 | B15: 1000 | D15: =IF(E15<>"",COUNTA($E$2:E15),"") -> 14 | E15: الموظف 14 | F15: X | G15: X
A16: 1500 | B16: 1000 | D16: =IF(E16<>"",COUNTA($E$2:E16),"") -> 15 | E16: الموظف 15 | F16: X
A17: 2000 | B17: 1000 | D17: =IF(E17<>"",COUNTA($E$2:E17),"") -> 16 | E17: الموظف 16 | G17: X
A18: 3000 | B18: 1000 | D18: =IF(E18<>"",COUNTA($E$2:E18),"") -> 17 | E18: الموظف 17 | F18: X | G18: X
A19: 4000 | B19: 1000 | D19: =IF(E19<>"",COUNTA($E$2:E19),"") -> 18 | E19: الموظف 18 | F19: X | G19: X
A20: 5000 | B20: 1000 | D20: =IF(E20<>"",COUNTA($E$2:E20),"") -> 19 | E20: الموظف 19 | G20: X
D21: =IF(E21<>"",COUNTA($E$2:E21),"") -> 20 | E21: الموظف 20 | F21: X
D22: =IF(E22<>"",COUNTA($E$2:E22),"") -> 21 | E22: الموظف 21 | F22: X | G22: X
D23: =IF(E23<>"",COUNTA($E$2:E23),"") -> 22 | E23: الموظف 22 | G23: X
D24: =IF(E24<>"",COUNTA($E$2:E24),"") -> 23 | E24: الموظف 23 | F24: X
D25: =IF(E25<>"",COUNTA($E$2:E25),"") -> 24 | E25: الموظف 24 | F25: X
D26: =IF(E26<>"",COUNTA($E$2:E26),"") -> 25 | E26: الموظف 25 | G26: X
D27: =IF(E27<>"",COUNTA($E$2:E27),"") -> 26 | E27: الموظف 26
D28: =IF(E28<>"",COUNTA($E$2:E28),"") -> 27 | E28: الموظف 27 | F28: X
D29: =IF(E29<>"",COUNTA($E$2:E29),"") -> 28 | E29: الموظف 28
D30: =IF(E30<>"",COUNTA($E$2:E30),"") -> 29 | E30: الموظف 29 | F30: X
D31: =IF(E31<>"",COUNTA($E$2:E31),"") -> 30 | E31: الموظف 30
D32: =IF(E32<>"",COUNTA($E$2:E32),"") -> 31 | E32: الموظف 31 | F32: X
D33: =IF(E33<>"",COUNTA($E$2:E33),"") -> 32 | E33: الموظف 32 | F33: X
D34: =IF(E34<>"",COUNTA($E$2:E34),"") -> 33 | E34: الموظف 33
D35: =IF(E35<>"",COUNTA($E$2:E35),"") -> 34 | E35: الموظف 34
D36: =IF(E36<>"",COUNTA($E$2:E36),"") -> 35 | E36: الموظف 35
D37: =IF(E37<>"",COUNTA($E$2:E37),"") -> 36 | E37: الموظف 36
D38: =IF(E38<>"",COUNTA($E$2:E38),"") -> 37 | E38: الموظف 37
D39: =IF(E39<>"",COUNTA($E$2:E39),"") -> 38 | E39: الموظف 38
D40: =IF(E40<>"",COUNTA($E$2:E40),"") -> 39 | E40: الموظف 39
D41: =IF(E41<>"",COUNTA($E$2:E41),"") -> 40 | E41: الموظف 40 | F41: X
D42: =IF(E42<>"",COUNTA($E$2:E42),"") -> 
D43: =IF(E43<>"",COUNTA($E$2:E43),"") -> 
D44: =IF(E44<>"",COUNTA($E$2:E44),"") -> 
D45: =IF(E45<>"",COUNTA($E$2:E45),"") -> 
D46: =IF(E46<>"",COUNTA($E$2:E46),"") -> 
D47: =IF(E47<>"",COUNTA($E$2:E47),"") -> 
D48: =IF(E48<>"",COUNTA($E$2:E48),"") -> 
D49: =IF(E49<>"",COUNTA($E$2:E49),"") -> 
D50: =IF(E50<>"",COUNTA($E$2:E50),"") -> 
D51: =IF(E51<>"",COUNTA($E$2:E51),"") -> 
D52: =IF(E52<>"",COUNTA($E$2:E52),"") -> 
D53: =IF(E53<>"",COUNTA($E$2:E53),"") -> 
D54: =IF(E54<>"",COUNTA($E$2:E54),"") -> 
D55: =IF(E55<>"",COUNTA($E$2:E55),"") -> 
D56: =IF(E56<>"",COUNTA($E$2:E56),"") -> 
D57: =IF(E57<>"",COUNTA($E$2:E57),"") -> 
D58: =IF(E58<>"",COUNTA($E$2:E58),"") -> 
D59: =IF(E59<>"",COUNTA($E$2:E59),"") -> 
D60: =IF(E60<>"",COUNTA($E$2:E60),"") -> 
D61: =IF(E61<>"",COUNTA($E$2:E61),"") -> 
D62: =IF(E62<>"",COUNTA($E$2:E62),"") -> 
D63: =IF(E63<>"",COUNTA($E$2:E63),"") -> 
D64: =IF(E64<>"",COUNTA($E$2:E64),"") -> 
D65: =IF(E65<>"",COUNTA($E$2:E65),"") -> 
D66: =IF(E66<>"",COUNTA($E$2:E66),"") -> 
D67: =IF(E67<>"",COUNTA($E$2:E67),"") -> 
D68: =IF(E68<>"",COUNTA($E$2:E68),"") -> 
D69: =IF(E69<>"",COUNTA($E$2:E69),"") -> 
D70: =IF(E70<>"",COUNTA($E$2:E70),"") -> 
D71: =IF(E71<>"",COUNTA($E$2:E71),"") -> 
D72: =IF(E72<>"",COUNTA($E$2:E72),"") -> 
D73: =IF(E73<>"",COUNTA($E$2:E73),"") -> 
D74: =IF(E74<>"",COUNTA($E$2:E74),"") -> 
D75: =IF(E75<>"",COUNTA($E$2:E75),"") -> 
D76: =IF(E76<>"",COUNTA($E$2:E76),"") -> 
D77: =IF(E77<>"",COUNTA($E$2:E77),"") -> 
D78: =IF(E78<>"",COUNTA($E$2:E78),"") -> 
D79: =IF(E79<>"",COUNTA($E$2:E79),"") -> 
D80: =IF(E80<>"",COUNTA($E$2:E80),"") -> 
D81: =IF(E81<>"",COUNTA($E$2:E81),"") -> 
D82: =IF(E82<>"",COUNTA($E$2:E82),"") -> 
D83: =IF(E83<>"",COUNTA($E$2:E83),"") -> 
D84: =IF(E84<>"",COUNTA($E$2:E84),"") -> 
D85: =IF(E85<>"",COUNTA($E$2:E85),"") -> 
D86: =IF(E86<>"",COUNTA($E$2:E86),"") -> 
D87: =IF(E87<>"",COUNTA($E$2:E87),"") -> 
D88: =IF(E88<>"",COUNTA($E$2:E88),"") -> 
D89: =IF(E89<>"",COUNTA($E$2:E89),"") -> 
D90: =IF(E90<>"",COUNTA($E$2:E90),"") -> 
D91: =IF(E91<>"",COUNTA($E$2:E91),"") -> 
D92: =IF(E92<>"",COUNTA($E$2:E92),"") -> 
D93: =IF(E93<>"",COUNTA($E$2:E93),"") -> 
D94: =IF(E94<>"",COUNTA($E$2:E94),"") -> 
D95: =IF(E95<>"",COUNTA($E$2:E95),"") -> 
D96: =IF(E96<>"",COUNTA($E$2:E96),"") -> 
D97: =IF(E97<>"",COUNTA($E$2:E97),"") -> 
D98: =IF(E98<>"",COUNTA($E$2:E98),"") -> 
D99: =IF(E99<>"",COUNTA($E$2:E99),"") -> 
D100: =IF(E100<>"",COUNTA($E$2:E100),"") -> 
D101: =IF(E101<>"",COUNTA($E$2:E101),"") -> 
D102: =IF(E102<>"",COUNTA($E$2:E102),"") -> 
D103: =IF(E103<>"",COUNTA($E$2:E103),"") -> 
D104: =IF(E104<>"",COUNTA($E$2:E104),"") -> 

Sheet Janvier
B1: F E R I E R 2 0 2 0 | E1: 5
AW2: 1 | BC2: 1
B3: 2020-02-01 | C3: =EOMONTH(B3,0) -> 2020-02-29 | H3: =B3 -> 2020-02-01 | I3: =H3+1 -> 2020-02-02 | J3: =I3+1 -> 2020-02-03 | K3: 2020-02-04 | L3: 2020-02-05 | M3: 2020-02-06 | N3: 2020-02-07 | O3: 2020-02-08 | P3: 2020-02-09 | Q3: 2020-02-10 | R3: 2020-02-11 | S3: 2020-02-12 | T3: 2020-02-13 | U3: 2020-02-14 | V3: 2020-02-15 | W3: 2020-02-16 | X3: 2020-02-17 | Y3: 2020-02-18 | Z3: 2020-02-19 | AA3: 2020-02-20 | AB3: 2020-02-21 | AC3: 2020-02-22 | AD3: 2020-02-23 | AE3: 2020-02-24 | AF3: 2020-02-25 | AG3: 2020-02-26 | AH3: 2020-02-27 | AI3: 2020-02-28 | AJ3: =IFERROR(IF(AI3+1>C3,"",AI3+1),"") -> 2020-02-29 | AK3: 2020-03-01 | AL3: 2020-03-02
B4: Février | C4: العمليات الحسابيه | H4: =DAY(H3) -> 1 | I4: =DAY(I3) -> 2 | J4: 3 | K4: 4 | L4: 5 | M4: 6 | N4: 7 | O4: 8 | P4: 9 | Q4: 10 | R4: 11 | S4: 12 | T4: 13 | U4: 14 | V4: 15 | W4: 16 | X4: 17 | Y4: 18 | Z4: 19 | AA4: 20 | AB4: 21 | AC4: 22 | AD4: 23 | AE4: 24 | AF4: 25 | AG4: 26 | AH4: 27 | AI4: 28 | AJ4: 29 | AK4: 1 | AL4: 2 | AS4: Nom | AV4: =IFERROR(LOOKUP(BC2,Janvier!$A6:A102,Janvier!B6:B102),"") -> الموظف 1
B5: الموظف | C5: المكتب | D5: الرقابه | E5: إظافه | F5: سلف | G5: الاجر الصافي | H5: =WEEKDAY(H3) -> 1900-01-07 | I5: =WEEKDAY(I3) -> 1900-01-01 | J5: 1900-01-02 | K5: 1900-01-03 | L5: 1900-01-04 | M5: 1900-01-05 | N5: 1900-01-06 | O5: 1900-01-07 | P5: 1900-01-01 | Q5: 1900-01-02 | R5: 1900-01-03 | S5: 1900-01-04 | T5: 1900-01-05 | U5: 1900-01-06 | V5: 1900-01-07 | W5: 1900-01-01 | X5: 1900-01-02 | Y5: 1900-01-03 | Z5: 1900-01-04 | AA5: 1900-01-05 | AB5: 1900-01-06 | AC5: 1900-01-07 | AD5: 1900-01-01 | AE5: 1900-01-02 | AF5: 1900-01-03 | AG5: 1900-01-04 | AH5: 1900-01-05 | AI5: 1900-01-06 | AJ5: 1900-01-07 | AK5: 1900-01-01 | AL5: 1900-01-02 | AN5: ACOMPTE
A6: =IF(B6<>"",COUNTA($B$6:B6),"") -> 1 | B6: =IFERROR(INDEX(Base!$E$2:$E$102,SMALL(IF(INDEX(Base!$E$2:$Q$102,,MATCH(Janvier!$B$4,Base!$F$1:$Q$1,0)+1)="x",ROW(Base!$E$2:$E$102)-ROW(Base!$E$2)+1),ROWS($B$6:B6))),"") -> الموظف 1 | C6: =COUNTIF($H6:$AL6, "u")*1+COUNTIF($H6:$AL6, "U 1")*1+COUNTIF($H6:$AL6, "u 2")*1+COUNTIF($H6:$AL6, "u 3")*1+COUNTIF($H6:$AL6, "U 4")*1+COUNTIF($H6:$AL6, "u 5")*1+COUNTIF($H6:$AL6, "u 6")*1+COUNTIF($H6:$AL6, "U 7")*1+COUNTIF($H6:$AL6, "u 8")*1+COUNTIF($H6:$AL6, "u 9")*1+COUNTIF($H6:$AL6, "500")*1+COUNTIF($H6:$AL6, "1000")*1+COUNTIF($H6:$AL6, "1500")*1+COUNTIF($H6:$AL6, "2000")*1+COUNTIF($H6:$AL6, "3000")*1+COUNTIF($H6:$AL6, "4000")*1+COUNTIF($H6:$AL6, "5000")*1 -> 6 | D6: =COUNTIF($H6:$AL6, "R")*1+COUNTIF($H6:$AL6, "R 1")*1+COUNTIF($H6:$AL6, "R 2")*1+COUNTIF($H6:$AL6, "R 3")*1+COUNTIF($H6:$AL6, "R 4")*1+COUNTIF($H6:$AL6, "R 5")*1+COUNTIF($H6:$AL6, "R 6")*1+COUNTIF($H6:$AL6, "R 7")*1+COUNTIF($H6:$AL6, "R 8")*1+COUNTIF($H6:$AL6, "R 9")*1 -> 0 | E6: =COUNTIF($H6:$AL6, "U 1")*1+COUNTIF($H6:$AL6, "u 2")*2+COUNTIF($H6:$AL6, "u 3")*3+COUNTIF($H6:$AL6, "U 4")*4+COUNTIF($H6:$AL6, "u 5")*5+COUNTIF($H6:$AL6, "u 6")*6+COUNTIF($H6:$AL6, "U 7")*7+COUNTIF($H6:$AL6, "u 8")*8+COUNTIF($H6:$AL6, "u 9")*9+COUNTIF($H6:$AL6, "R 1")*1+COUNTIF($H6:$AL6, "R 2")*2+COUNTIF($H6:$AL6, "R 3")*3+COUNTIF($H6:$AL6, "R 4")*4+COUNTIF($H6:$AL6, "R 5")*5+COUNTIF($H6:$AL6, "R 6")*6+COUNTIF($H6:$AL6, "R 7")*7+COUNTIF($H6:$AL6, "R 8")*8+COUNTIF($H6:$AL6, "R 9")*9 -> 0 | F6: =SUM(H6:AL6) -> 2000 | G6: =SUMPRODUCT((H6:AL6=Som)*(Base!$B$3:$B$20))-F6 -> 4000 | I6: U | O6: A | P6: U | Q6: 2000 | R6: U | S6: U | T6: U | AS6: Usine | AV6: =IFERROR(LOOKUP(BC2,Janvier!A6:A102,Janvier!C6:C103),"") -> 6 | AX6: =IF(AV6="","",Base!$B$3) -> 1000 | AZ6: =IFERROR(SUM(AV6*AX6),"") -> 6000
A7: =IF(B7<>"",COUNTA($B$6:B7),"") -> 2 | B7: =IFERROR(INDEX(Base!$E$2:$E$102,SMALL(IF(INDEX(Base!$E$2:$Q$102,,MATCH(Janvier!$B$4,Base!$F$1:$Q$1,0)+1)="x",ROW(Base!$E$2:$E$102)-ROW(Base!$E$2)+1),ROWS($B$6:B7))),"") -> الموظف 3 | C7: =COUNTIF($H7:$AL7, "u")*1+COUNTIF($H7:$AL7, "U 1")*1+COUNTIF($H7:$AL7, "u 2")*1+COUNTIF($H7:$AL7, "u 3")*1+COUNTIF($H7:$AL7, "U 4")*1+COUNTIF($H7:$AL7, "u 5")*1+COUNTIF($H7:$AL7, "u 6")*1+COUNTIF($H7:$AL7, "U 7")*1+COUNTIF($H7:$AL7, "u 8")*1+COUNTIF($H7:$AL7, "u 9")*1+COUNTIF($H7:$AL7, "500")*1+COUNTIF($H7:$AL7, "1000")*1+COUNTIF($H7:$AL7, "1500")*1+COUNTIF($H7:$AL7, "2000")*1+COUNTIF($H7:$AL7, "3000")*1+COUNTIF($H7:$AL7, "4000")*1+COUNTIF($H7:$AL7, "5000")*1 -> 2 | D7: =COUNTIF($H7:$AL7, "R")*1+COUNTIF($H7:$AL7, "R 1")*1+COUNTIF($H7:$AL7, "R 2")*1+COUNTIF($H7:$AL7, "R 3")*1+COUNTIF($H7:$AL7, "R 4")*1+COUNTIF($H7:$AL7, "R 5")*1+COUNTIF($H7:$AL7, "R 6")*1+COUNTIF($H7:$AL7, "R 7")*1+COUNTIF($H7:$AL7, "R 8")*1+COUNTIF($H7:$AL7, "R 9")*1 -> 0 | E7: =COUNTIF($H7:$AL7, "U 1")*1+COUNTIF($H7:$AL7, "u 2")*2+COUNTIF($H7:$AL7, "u 3")*3+COUNTIF($H7:$AL7, "U 4")*4+COUNTIF($H7:$AL7, "u 5")*5+COUNTIF($H7:$AL7, "u 6")*6+COUNTIF($H7:$AL7, "U 7")*7+COUNTIF($H7:$AL7, "u 8")*8+COUNTIF($H7:$AL7, "u 9")*9+COUNTIF($H7:$AL7, "R 1")*1+COUNTIF($H7:$AL7, "R 2")*2+COUNTIF($H7:$AL7, "R 3")*3+COUNTIF($H7:$AL7, "R 4")*4+COUNTIF($H7:$AL7, "R 5")*5+COUNTIF($H7:$AL7, "R 6")*6+COUNTIF($H7:$AL7, "R 7")*7+COUNTIF($H7:$AL7, "R 8")*8+COUNTIF($H7:$AL7, "R 9")*9 -> 0 | F7: =SUM(H7:AL7) -> 0 | G7: =SUMPRODUCT((H7:AL7=Som)*(Base!$B$3:$B$20))-F7 -> 2000 | H7: U | I7: U | O7: A | P7: A | Q7: A | R7: A | S7: A | T7: A
A8: =IF(B8<>"",COUNTA($B$6:B8),"") -> 3 | B8: =IFERROR(INDEX(Base!$E$2:$E$102,SMALL(IF(INDEX(Base!$E$2:$Q$102,,MATCH(Janvier!$B$4,Base!$F$1:$Q$1,0)+1)="x",ROW(Base!$E$2:$E$102)-ROW(Base!$E$2)+1),ROWS($B$6:B8))),"") -> الموظف 5 | C8: 6 | D8: 0 | E8: 0 | F8: 1000 | G8: =SUMPRODUCT((H8:AL8=Som)*(Base!$B$3:$B$20))-F8 -> 5000 | I8: U | O8: A | P8: U | Q8: U | R8: U | S8: U | T8: 1000 | AS8: Route | AV8: =IFERROR(LOOKUP(BC2,Janvier!A53:A102,Janvier!D54:D103),"") ->  | AX8: =IF(AV8="","",Base!$B$13) ->  | AZ8: =IFERROR(SUM(AV8*AX8),"") -> 
A9: =IF(B9<>"",COUNTA($B$6:B9),"") -> 4 | B9: =IFERROR(INDEX(Base!$E$2:$E$102,SMALL(IF(INDEX(Base!$E$2:$Q$102,,MATCH(Janvier!$B$4,Base!$F$1:$Q$1,0)+1)="x",ROW(Base!$E$2:$E$102)-ROW(Base!$E$2)+1),ROWS($B$6:B9))),"") -> الموظف 6 | C9: 6 | D9: 0 | E9: 0 | F9: 0 | G9: =SUMPRODUCT((H9:AL9=Som)*(Base!$B$3:$B$20))-F9 -> 6000 | I9: U | O9: A | P9: U | Q9: U | R9: U | S9: U | T9: U
A10: =IF(B10<>"",COUNTA($B$6:B10),"") -> 5 | B10: =IFERROR(INDEX(Base!$E$2:$E$102,SMALL(IF(INDEX(Base!$E$2:$Q$102,,MATCH(Janvier!$B$4,Base!$F$1:$Q$1,0)+1)="x",ROW(Base!$E$2:$E$102)-ROW(Base!$E$2)+1),ROWS($B$6:B10))),"") -> الموظف 7 | C10: 6 | D10: 0 | E10: 0 | F10: 1000 | G10: =SUMPRODUCT((H10:AL10=Som)*(Base!$B$3:$B$20))-F10 -> 5000 | I10: U | O10: A | P10: U | Q10: U | R10: 500 | S10: U | T10: 500 | AS10: H-Sup | AV10: =IFERROR(LOOKUP(BC2,Janvier!A53:A102,Janvier!E54:E103),"") ->  | AX10: =IF(AV10="","",200) ->  | AZ10: =IFERROR(SUM(AV10*AX10),"") -> 
A11: =IF(B11<>"",COUNTA($B$6:B11),"") -> 6 | B11: =IFERROR(INDEX(Base!$E$2:$E$102,SMALL(IF(INDEX(Base!$E$2:$Q$102,,MATCH(Janvier!$B$4,Base!$F$1:$Q$1,0)+1)="x",ROW(Base!$E$2:$E$102)-ROW(Base!$E$2)+1),ROWS($B$6:B11))),"") -> الموظف 8 | C11: 5 | D11: 0 | E11: 0 | F11: 1000 | G11: =SUMPRODUCT((H11:AL11=Som)*(Base!$B$3:$B$20))-F11 -> 4000 | I11: U | O11: A | P11: U | Q11: U | R11: U | S11: A | T11: 1000
A12: =IF(B12<>"",COUNTA($B$6:B12),"") -> 7 | B12: =IFERROR(INDEX(Base!$E$2:$E$102,SMALL(IF(INDEX(Base!$E$2:$Q$102,,MATCH(Janvier!$B$4,Base!$F$1:$Q$1,0)+1)="x",ROW(Base!$E$2:$E$102)-ROW(Base!$E$2)+1),ROWS($B$6:B12))),"") -> الموظف 9 | C12: 7 | D12: 0 | E12: 0 | F12: 0 | G12: =SUMPRODUCT((H12:AL12=Som)*(Base!$B$3:$B$20))-F12 -> 7000 | I12: U | O12: U | P12: U | Q12: U | R12: U | S12: U | T12: U | AS12: Net A Paye | AV12: =SUM(AZ6:BA11)-AZ12 -> 6000 | AY12: AC
A13: =IF(B13<>"",COUNTA($B$6:B13),"") -> 8 | B13: =IFERROR(INDEX(Base!$E$2:$E$102,SMALL(IF(INDEX(Base!$E$2:$Q$102,,MATCH(Janvier!$B$4,Base!$F$1:$Q$1,0)+1)="x",ROW(Base!$E$2:$E$102)-ROW(Base!$E$2)+1),ROWS($B$6:B13))),"") -> الموظف 10 | C13: 0 | D13: 0 | E13: 0 | F13: 0 | G13: =SUMPRODUCT((H13:AL13=Som)*(Base!$B$3:$B$20))-F13 -> 0
A14: =IF(B14<>"",COUNTA($B$6:B14),"") -> 9 | B14: =IFERROR(INDEX(Base!$E$2:$E$102,SMALL(IF(INDEX(Base!$E$2:$Q$102,,MATCH(Janvier!$B$4,Base!$F$1:$Q$1,0)+1)="x",ROW(Base!$E$2:$E$102)-ROW(Base!$E$2)+1),ROWS($B$6:B14))),"") -> الموظف 11 | C14: 5 | D14: 0 | E14: 0 | F14: 4000 | G14: =SUMPRODUCT((H14:AL14=Som)*(Base!$B$3:$B$20))-F14 -> 1000 | I14: U | O14: A | P14: U | Q14: 1000 | R14: A | S14: U | T14: 3000 | AW14: 1 | BC14: =BC2+1 -> 2
A15: =IF(B15<>"",COUNTA($B$6:B15),"") -> 10 | B15: =IFERROR(INDEX(Base!$E$2:$E$102,SMALL(IF(INDEX(Base!$E$2:$Q$102,,MATCH(Janvier!$B$4,Base!$F$1:$Q$1,0)+1)="x",ROW(Base!$E$2:$E$102)-ROW(Base!$E$2)+1),ROWS($B$6:B15))),"") -> الموظف 13 | C15: 6 | D15: 0 | E15: 0 | F15: 0 | G15: =SUMPRODUCT((H15:AL15=Som)*(Base!$B$3:$B$20))-F15 -> 6000 | I15: U | O15: A | P15: U | Q15: U | R15: U | S15: U | T15: U
A16: =IF(B16<>"",COUNTA($B$6:B16),"") -> 11 | B16: =IFERROR(INDEX(Base!$E$2:$E$102,SMALL(IF(INDEX(Base!$E$2:$Q$102,,MATCH(Janvier!$B$4,Base!$F$1:$Q$1,0)+1)="x",ROW(Base!$E$2:$E$102)-ROW(Base!$E$2)+1),ROWS($B$6:B16))),"") -> الموظف 14 | C16: 8 | D16: 0 | E16: 0 | F16: 1000 | G16: =SUMPRODUCT((H16:AL16=Som)*(Base!$B$3:$B$20))-F16 -> 7000 | H16: U | I16: U | O16: U | P16: U | Q16: U | R16: U | S16: U | T16: 1000 | AS16: Nom | AV16: =IFERROR(LOOKUP(BC14,Janvier!$A7:A114,Janvier!B7:B114),"") -> الموظف 3
A17: =IF(B17<>"",COUNTA($B$6:B17),"") -> 12 | B17: =IFERROR(INDEX(Base!$E$2:$E$102,SMALL(IF(INDEX(Base!$E$2:$Q$102,,MATCH(Janvier!$B$4,Base!$F$1:$Q$1,0)+1)="x",ROW(Base!$E$2:$E$102)-ROW(Base!$E$2)+1),ROWS($B$6:B17))),"") -> الموظف 16 | C17: 2 | D17: 0 | E17: 0 | F17: 0 | G17: =SUMPRODUCT((H17:AL17=Som)*(Base!$B$3:$B$20))-F17 -> 2000 | H17: U | I17: U | O17: A | P17: A | Q17: A | R17: A | S17: A | T17: A
A18: =IF(B18<>"",COUNTA($B$6:B18),"") -> 13 | B18: =IFERROR(INDEX(Base!$E$2:$E$102,SMALL(IF(INDEX(Base!$E$2:$Q$102,,MATCH(Janvier!$B$4,Base!$F$1:$Q$1,0)+1)="x",ROW(Base!$E$2:$E$102)-ROW(Base!$E$2)+1),ROWS($B$6:B18))),"") -> الموظف 17 | C18: 6 | D18: 2 | E18: 2 | F18: 0 | G18: =SUMPRODUCT((H18:AL18=Som)*(Base!$B$3:$B$20))-F18 -> 8800 | H18: U | I18: U | O18: U | P18: U | Q18: R | R18: R | S18: U 1 | T18: U 1 | AS18: Usine | AV18: =IFERROR(LOOKUP(BC14,Janvier!A65:A114,Janvier!C66:C115),"") ->  | AX18: =IF(AV18="","",Base!$B$3) ->  | AZ18: =IFERROR(SUM(AV18*AX18),"") -> 
A19: =IF(B19<>"",COUNTA($B$6:B19),"") -> 14 | B19: =IFERROR(INDEX(Base!$E$2:$E$102,SMALL(IF(INDEX(Base!$E$2:$Q$102,,MATCH(Janvier!$B$4,Base!$F$1:$Q$1,0)+1)="x",ROW(Base!$E$2:$E$102)-ROW(Base!$E$2)+1),ROWS($B$6:B19))),"") -> الموظف 18 | C19: 6 | D19: 2 | E19: 0 | F19: 1000 | G19: =SUMPRODUCT((H19:AL19=Som)*(Base!$B$3:$B$20))-F19 -> 7400 | H19: U | I19: U | O19: U | P19: U | Q19: R | R19: R | S19: 1000 | T19: U
A20: =IF(B20<>"",COUNTA($B$6:B20),"") -> 15 | B20: =IFERROR(INDEX(Base!$E$2:$E$102,SMALL(IF(INDEX(Base!$E$2:$Q$102,,MATCH(Janvier!$B$4,Base!$F$1:$Q$1,0)+1)="x",ROW(Base!$E$2:$E$102)-ROW(Base!$E$2)+1),ROWS($B$6:B20))),"") -> الموظف 19 | C20: 6 | D20: 2 | E20: 0 | F20: 0 | G20: =SUMPRODUCT((H20:AL20=Som)*(Base!$B$3:$B$20))-F20 -> 8400 | H20: U | I20: U | O20: U | P20: U | Q20: R | R20: R | S20: U | T20: U | AS20: Route | AV20: =IFERROR(LOOKUP(BC14,Janvier!A65:A114,Janvier!D66:D115),"") ->  | AX20: =IF(AV20="","",Base!$B$13) ->  | AZ20: =IFERROR(SUM(AV20*AX20),"") -> 
A21: =IF(B21<>"",COUNTA($B$6:B21),"") -> 16 | B21: =IFERROR(INDEX(Base!$E$2:$E$102,SMALL(IF(INDEX(Base!$E$2:$Q$102,,MATCH(Janvier!$B$4,Base!$F$1:$Q$1,0)+1)="x",ROW(Base!$E$2:$E$102)-ROW(Base!$E$2)+1),ROWS($B$6:B21))),"") -> الموظف 21 | C21: 6 | D21: 2 | E21: 2 | F21: 0 | G21: =SUMPRODUCT((H21:AL21=Som)*(Base!$B$3:$B$20))-F21 -> 8800 | H21: U | I21: U | O21: U | P21: U | Q21: R | R21: R | S21: U 1 | T21: U 1
A22: =IF(B22<>"",COUNTA($B$6:B22),"") -> 17 | B22: =IFERROR(INDEX(Base!$E$2:$E$102,SMALL(IF(INDEX(Base!$E$2:$Q$102,,MATCH(Janvier!$B$4,Base!$F$1:$Q$1,0)+1)="x",ROW(Base!$E$2:$E$102)-ROW(Base!$E$2)+1),ROWS($B$6:B22))),"") -> الموظف 22 | C22: 4 | D22: 1 | E22: 0 | F22: 1000 | G22: =SUMPRODUCT((H22:AL22=Som)*(Base!$B$3:$B$20))-F22 -> 4200 | I22: U | O22: A | P22: U | R22: R | S22: U | T22: 1000 | AS22: H-Sup | AV22: =IFERROR(LOOKUP(BC14,Janvier!A65:A114,Janvier!E66:E115),"") ->  | AX22: =IF(AV22="","",200) ->  | AZ22: =IFERROR(SUM(AV22*AX22),"") -> 
A23: =IF(B23<>"",COUNTA($B$6:B23),"") -> 18 | B23: =IFERROR(INDEX(Base!$E$2:$E$102,SMALL(IF(INDEX(Base!$E$2:$Q$102,,MATCH(Janvier!$B$4,Base!$F$1:$Q$1,0)+1)="x",ROW(Base!$E$2:$E$102)-ROW(Base!$E$2)+1),ROWS($B$6:B23))),"") -> الموظف 25 | C23: 7 | D23: 0 | E23: 0 | F23: 0 | G23: =SUMPRODUCT((H23:AL23=Som)*(Base!$B$3:$B$20))-F23 -> 7000 | I23: U | O23: U | P23: U | Q23: U | R23: U | S23: U | T23: U
A24: =IF(B24<>"",COUNTA($B$6:B24),"") ->  | B24: =IFERROR(INDEX(Base!$E$2:$E$102,SMALL(IF(INDEX(Base!$E$2:$Q$102,,MATCH(Janvier!$B$4,Base!$F$1:$Q$1,0)+1)="x",ROW(Base!$E$2:$E$102)-ROW(Base!$E$2)+1),ROWS($B$6:B24))),"") ->  | C24: 5 | D24: 0 | E24: 0 | F24: 0 | G24: =SUMPRODUCT((H24:AL24=Som)*(Base!$B$3:$B$20))-F24 -> 5000 | I24: U | O24: A | P24: U | Q24: U | R24: U | S24: U | T24: A | AS24: Net A Paye | AV24: =SUM(AZ18:BA23)-AZ24 -> 0 | AY24: AC
A25: =IF(B25<>"",COUNTA($B$6:B25),"") ->  | B25: =IFERROR(INDEX(Base!$E$2:$E$102,SMALL(IF(INDEX(Base!$E$2:$Q$102,,MATCH(Janvier!$B$4,Base!$F$1:$Q$1,0)+1)="x",ROW(Base!$E$2:$E$102)-ROW(Base!$E$2)+1),ROWS($B$6:B25))),"") ->  | C25: 7 | D25: 0 | E25: 0 | F25: 0 | G25: =SUMPRODUCT((H25:AL25=Som)*(Base!$B$3:$B$20))-F25 -> 7000 | H25: U | I25: U | O25: A | P25: U | Q25: U | R25: U | S25: U | T25: U
A26: =IF(B26<>"",COUNTA($B$6:B26),"") ->  | B26: =IFERROR(INDEX(Base!$E$2:$E$102,SMALL(IF(INDEX(Base!$E$2:$Q$102,,MATCH(Janvier!$B$4,Base!$F$1:$Q$1,0)+1)="x",ROW(Base!$E$2:$E$102)-ROW(Base!$E$2)+1),ROWS($B$6:B26))),"") ->  | C26: 6 | D26: 0 | E26: 0 | F26: 0 | G26: =SUMPRODUCT((H26:AL26=Som)*(Base!$B$3:$B$20))-F26 -> 6000 | I26: U | O26: A | P26: U | Q26: U | R26: U | S26: U | T26: U | AW26: 1 | BC26: =BC14+1 -> 3
A27: =IF(B27<>"",COUNTA($B$6:B27),"") ->  | B27: =IFERROR(INDEX(Base!$E$2:$E$102,SMALL(IF(INDEX(Base!$E$2:$Q$102,,MATCH(Janvier!$B$4,Base!$F$1:$Q$1,0)+1)="x",ROW(Base!$E$2:$E$102)-ROW(Base!$E$2)+1),ROWS($B$6:B27))),"") ->  | C27: 4 | D27: 0 | E27: 0 | F27: 0 | G27: =SUMPRODUCT((H27:AL27=Som)*(Base!$B$3:$B$20))-F27 -> 4000 | O27: A | Q27: U | R27: U | S27: U | T27: U
A28: =IF(B28<>"",COUNTA($B$6:B28),"") ->  | B28: =IFERROR(INDEX(Base!$E$2:$E$102,SMALL(IF(INDEX(Base!$E$2:$Q$102,,MATCH(Janvier!$B$4,Base!$F$1:$Q$1,0)+1)="x",ROW(Base!$E$2:$E$102)-ROW(Base!$E$2)+1),ROWS($B$6:B28))),"") ->  | C28: 0 | D28: 0 | E28: 0 | F28: 0 | G28: =SUMPRODUCT((H28:AL28=Som)*(Base!$B$3:$B$20))-F28 -> 0 | AS28: Nom | AV28: =IFERROR(LOOKUP(BC26,Janvier!$A77:A126,Janvier!B77:B126),"") -> 
A29: =IF(B29<>"",COUNTA($B$6:B29),"") ->  | B29: =IFERROR(INDEX(Base!$E$2:$E$102,SMALL(IF(INDEX(Base!$E$2:$Q$102,,MATCH(Janvier!$B$4,Base!$F$1:$Q$1,0)+1)="x",ROW(Base!$E$2:$E$102)-ROW(Base!$E$2)+1),ROWS($B$6:B29))),"") ->  | C29: 0 | D29: 0 | E29: 0 | F29: 0 | G29: =SUMPRODUCT((H29:AL29=Som)*(Base!$B$3:$B$20))-F29 -> 0
A30: =IF(B30<>"",COUNTA($B$6:B30),"") ->  | B30: =IFERROR(INDEX(Base!$E$2:$E$102,SMALL(IF(INDEX(Base!$E$2:$Q$102,,MATCH(Janvier!$B$4,Base!$F$1:$Q$1,0)+1)="x",ROW(Base!$E$2:$E$102)-ROW(Base!$E$2)+1),ROWS($B$6:B30))),"") ->  | C30: 0 | D30: 0 | E30: 0 | F30: 0 | G30: =SUMPRODUCT((H30:AL30=Som)*(Base!$B$3:$B$20))-F30 -> 0 | AS30: Usine | AV30: =IFERROR(LOOKUP(BC26,Janvier!A77:A126,Janvier!C78:C127),"") ->  | AX30: =IF(AV30="","",Base!$B$3) ->  | AZ30: =IFERROR(SUM(AV30*AX30),"") -> 
A31: =IF(B31<>"",COUNTA($B$6:B31),"") ->  | B31: =IFERROR(INDEX(Base!$E$2:$E$102,SMALL(IF(INDEX(Base!$E$2:$Q$102,,MATCH(Janvier!$B$4,Base!$F$1:$Q$1,0)+1)="x",ROW(Base!$E$2:$E$102)-ROW(Base!$E$2)+1),ROWS($B$6:B31))),"") ->  | C31: 0 | D31: 0 | E31: 0 | F31: 0 | G31: =SUMPRODUCT((H31:AL31=Som)*(Base!$B$3:$B$20))-F31 -> 0
A32: =IF(B32<>"",COUNTA($B$6:B32),"") ->  | B32: =IFERROR(INDEX(Base!$E$2:$E$102,SMALL(IF(INDEX(Base!$E$2:$Q$102,,MATCH(Janvier!$B$4,Base!$F$1:$Q$1,0)+1)="x",ROW(Base!$E$2:$E$102)-ROW(Base!$E$2)+1),ROWS($B$6:B32))),"") ->  | C32: 0 | D32: 0 | E32: 0 | F32: 0 | G32: =SUMPRODUCT((H32:AL32=Som)*(Base!$B$3:$B$20))-F32 -> 0 | AS32: Route | AV32: =IFERROR(LOOKUP(BC26,Janvier!A77:A126,Janvier!D78:D127),"") ->  | AX32: =IF(AV32="","",Base!$B$13) ->  | AZ32: =IFERROR(SUM(AV32*AX32),"") -> 
A33: =IF(B33<>"",COUNTA($B$6:B33),"") ->  | B33: =IFERROR(INDEX(Base!$E$2:$E$102,SMALL(IF(INDEX(Base!$E$2:$Q$102,,MATCH(Janvier!$B$4,Base!$F$1:$Q$1,0)+1)="x",ROW(Base!$E$2:$E$102)-ROW(Base!$E$2)+1),ROWS($B$6:B33))),"") ->  | C33: 0 | D33: 0 | E33: 0 | F33: 0 | G33: =SUMPRODUCT((H33:AL33=Som)*(Base!$B$3:$B$20))-F33 -> 0
A34: =IF(B34<>"",COUNTA($B$6:B34),"") ->  | B34: =IFERROR(INDEX(Base!$E$2:$E$102,SMALL(IF(INDEX(Base!$E$2:$Q$102,,MATCH(Janvier!$B$4,Base!$F$1:$Q$1,0)+1)="x",ROW(Base!$E$2:$E$102)-ROW(Base!$E$2)+1),ROWS($B$6:B34))),"") ->  | C34: 0 | D34: 0 | E34: 0 | F34: 0 | G34: =SUMPRODUCT((H34:AL34=Som)*(Base!$B$3:$B$20))-F34 -> 0 | AS34: H-Sup | AV34: =IFERROR(LOOKUP(BC26,Janvier!A77:A126,Janvier!E78:E127),"") ->  | AX34: =IF(AV34="","",200) ->  | AZ34: =IFERROR(SUM(AV34*AX34),"") -> 
A35: =IF(B35<>"",COUNTA($B$6:B35),"") ->  | B35: =IFERROR(INDEX(Base!$E$2:$E$102,SMALL(IF(INDEX(Base!$E$2:$Q$102,,MATCH(Janvier!$B$4,Base!$F$1:$Q$1,0)+1)="x",ROW(Base!$E$2:$E$102)-ROW(Base!$E$2)+1),ROWS($B$6:B35))),"") ->  | C35: 0 | D35: 0 | E35: 0 | F35: 0 | G35: =SUMPRODUCT((H35:AL35=Som)*(Base!$B$3:$B$20))-F35 -> 0
A36: =IF(B36<>"",COUNTA($B$6:B36),"") ->  | B36: =IFERROR(INDEX(Base!$E$2:$E$102,SMALL(IF(INDEX(Base!$E$2:$Q$102,,MATCH(Janvier!$B$4,Base!$F$1:$Q$1,0)+1)="x",ROW(Base!$E$2:$E$102)-ROW(Base!$E$2)+1),ROWS($B$6:B36))),"") ->  | C36: 0 | D36: 0 | E36: 0 | F36: 0 | G36: =SUMPRODUCT((H36:AL36=Som)*(Base!$B$3:$B$20))-F36 -> 0 | AS36: Net A Paye | AV36: =SUM(AZ30:BA35)-AZ36 -> 0 | AY36: AC
A37: =IF(B37<>"",COUNTA($B$6:B37),"") ->  | B37: =IFERROR(INDEX(Base!$E$2:$E$102,SMALL(IF(INDEX(Base!$E$2:$Q$102,,MATCH(Janvier!$B$4,Base!$F$1:$Q$1,0)+1)="x",ROW(Base!$E$2:$E$102)-ROW(Base!$E$2)+1),ROWS($B$6:B37))),"") ->  | C37: 0 | D37: 0 | E37: 0 | F37: 0 | G37: =SUMPRODUCT((H37:AL37=Som)*(Base!$B$3:$B$20))-F37 -> 0
A38: =IF(B38<>"",COUNTA($B$6:B38),"") ->  | B38: =IFERROR(INDEX(Base!$E$2:$E$102,SMALL(IF(INDEX(Base!$E$2:$Q$102,,MATCH(Janvier!$B$4,Base!$F$1:$Q$1,0)+1)="x",ROW(Base!$E$2:$E$102)-ROW(Base!$E$2)+1),ROWS($B$6:B38))),"") ->  | C38: 0 | D38: 0 | E38: 0 | F38: 0 | G38: =SUMPRODUCT((H38:AL38=Som)*(Base!$B$3:$B$20))-F38 -> 0 | AW38: 1 | BC38: =BC26+1 -> 4
A39: =IF(B39<>"",COUNTA($B$6:B39),"") ->  | B39: =IFERROR(INDEX(Base!$E$2:$E$102,SMALL(IF(INDEX(Base!$E$2:$Q$102,,MATCH(Janvier!$B$4,Base!$F$1:$Q$1,0)+1)="x",ROW(Base!$E$2:$E$102)-ROW(Base!$E$2)+1),ROWS($B$6:B39))),"") ->  | C39: 0 | D39: 0 | E39: 0 | F39: 0 | G39: =SUMPRODUCT((H39:AL39=Som)*(Base!$B$3:$B$20))-F39 -> 0
A40: =IF(B40<>"",COUNTA($B$6:B40),"") ->  | B40: =IFERROR(INDEX(Base!$E$2:$E$102,SMALL(IF(INDEX(Base!$E$2:$Q$102,,MATCH(Janvier!$B$4,Base!$F$1:$Q$1,0)+1)="x",ROW(Base!$E$2:$E$102)-ROW(Base!$E$2)+1),ROWS($B$6:B40))),"") ->  | C40: 0 | D40: 0 | E40: 0 | F40: 0 | G40: =SUMPRODUCT((H40:AL40=Som)*(Base!$B$3:$B$20))-F40 -> 0 | AS40: Nom | AV40: =IFERROR(LOOKUP(BC38,Janvier!$A89:A138,Janvier!B89:B138),"") -> 
A41: =IF(B41<>"",COUNTA($B$6:B41),"") ->  | B41: =IFERROR(INDEX(Base!$E$2:$E$102,SMALL(IF(INDEX(Base!$E$2:$Q$102,,MATCH(Janvier!$B$4,Base!$F$1:$Q$1,0)+1)="x",ROW(Base!$E$2:$E$102)-ROW(Base!$E$2)+1),ROWS($B$6:B41))),"") ->  | C41: 0 | D41: 0 | E41: 0 | F41: 0 | G41: =SUMPRODUCT((H41:AL41=Som)*(Base!$B$3:$B$20))-F41 -> 0
A42: =IF(B42<>"",COUNTA($B$6:B42),"") ->  | B42: =IFERROR(INDEX(Base!$E$2:$E$102,SMALL(IF(INDEX(Base!$E$2:$Q$102,,MATCH(Janvier!$B$4,Base!$F$1:$Q$1,0)+1)="x",ROW(Base!$E$2:$E$102)-ROW(Base!$E$2)+1),ROWS($B$6:B42))),"") ->  | C42: 0 | D42: 0 | E42: 0 | F42: 0 | G42: =SUMPRODUCT((H42:AL42=Som)*(Base!$B$3:$B$20))-F42 -> 0 | AS42: Usine | AV42: =IFERROR(LOOKUP(BC38,Janvier!A89:A138,Janvier!C90:C139),"") ->  | AX42: =IF(AV42="","",Base!$B$3) ->  | AZ42: =IFERROR(SUM(AV42*AX42),"") -> 
A43: =IF(B43<>"",COUNTA($B$6:B43),"") ->  | B43: =IFERROR(INDEX(Base!$E$2:$E$102,SMALL(IF(INDEX(Base!$E$2:$Q$102,,MATCH(Janvier!$B$4,Base!$F$1:$Q$1,0)+1)="x",ROW(Base!$E$2:$E$102)-ROW(Base!$E$2)+1),ROWS($B$6:B43))),"") ->  | C43: 0 | D43: 0 | E43: 0 | F43: 0 | G43: =SUMPRODUCT((H43:AL43=Som)*(Base!$B$3:$B$20))-F43 -> 0
A44: =IF(B44<>"",COUNTA($B$6:B44),"") ->  | B44: =IFERROR(INDEX(Base!$E$2:$E$102,SMALL(IF(INDEX(Base!$E$2:$Q$102,,MATCH(Janvier!$B$4,Base!$F$1:$Q$1,0)+1)="x",ROW(Base!$E$2:$E$102)-ROW(Base!$E$2)+1),ROWS($B$6:B44))),"") ->  | C44: 0 | D44: 0 | E44: 0 | F44: 0 | G44: =SUMPRODUCT((H44:AL44=Som)*(Base!$B$3:$B$20))-F44 -> 0 | AS44: Route | AV44: =IFERROR(LOOKUP(BC38,Janvier!A89:A138,Janvier!D90:D139),"") ->  | AX44: =IF(AV44="","",Base!$B$13) ->  | AZ44: =IFERROR(SUM(AV44*AX44),"") -> 
A45: =IF(B45<>"",COUNTA($B$6:B45),"") ->  | B45: =IFERROR(INDEX(Base!$E$2:$E$102,SMALL(IF(INDEX(Base!$E$2:$Q$102,,MATCH(Janvier!$B$4,Base!$F$1:$Q$1,0)+1)="x",ROW(Base!$E$2:$E$102)-ROW(Base!$E$2)+1),ROWS($B$6:B45))),"") ->  | C45: 0 | D45: 0 | E45: 0 | F45: 0 | G45: =SUMPRODUCT((H45:AL45=Som)*(Base!$B$3:$B$20))-F45 -> 0
A46: =IF(B46<>"",COUNTA($B$6:B46),"") ->  | B46: =IFERROR(INDEX(Base!$E$2:$E$102,SMALL(IF(INDEX(Base!$E$2:$Q$102,,MATCH(Janvier!$B$4,Base!$F$1:$Q$1,0)+1)="x",ROW(Base!$E$2:$E$102)-ROW(Base!$E$2)+1),ROWS($B$6:B46))),"") ->  | C46: 0 | D46: 0 | E46: 0 | F46: 0 | G46: =SUMPRODUCT((H46:AL46=Som)*(Base!$B$3:$B$20))-F46 -> 0 | AS46: H-Sup | AV46: =IFERROR(LOOKUP(BC38,Janvier!A89:A138,Janvier!E90:E139),"") ->  | AX46: =IF(AV46="","",200) ->  | AZ46: =IFERROR(SUM(AV46*AX46),"") -> 
A47: =IF(B47<>"",COUNTA($B$6:B47),"") ->  | B47: =IFERROR(INDEX(Base!$E$2:$E$102,SMALL(IF(INDEX(Base!$E$2:$Q$102,,MATCH(Janvier!$B$4,Base!$F$1:$Q$1,0)+1)="x",ROW(Base!$E$2:$E$102)-ROW(Base!$E$2)+1),ROWS($B$6:B47))),"") ->  | C47: 0 | D47: 0 | E47: 0 | F47: 0 | G47: =SUMPRODUCT((H47:AL47=Som)*(Base!$B$3:$B$20))-F47 -> 0
A48: =IF(B48<>"",COUNTA($B$6:B48),"") ->  | B48: =IFERROR(INDEX(Base!$E$2:$E$102,SMALL(IF(INDEX(Base!$E$2:$Q$102,,MATCH(Janvier!$B$4,Base!$F$1:$Q$1,0)+1)="x",ROW(Base!$E$2:$E$102)-ROW(Base!$E$2)+1),ROWS($B$6:B48))),"") ->  | C48: 0 | D48: 0 | E48: 0 | F48: 0 | G48: =SUMPRODUCT((H48:AL48=Som)*(Base!$B$3:$B$20))-F48 -> 0 | AS48: Net A Paye | AV48: =SUM(AZ42:BA47)-AZ48 -> 0 | AY48: AC
A49: =IF(B49<>"",COUNTA($B$6:B49),"") ->  | B49: =IFERROR(INDEX(Base!$E$2:$E$102,SMALL(IF(INDEX(Base!$E$2:$Q$102,,MATCH(Janvier!$B$4,Base!$F$1:$Q$1,0)+1)="x",ROW(Base!$E$2:$E$102)-ROW(Base!$E$2)+1),ROWS($B$6:B49))),"") ->  | C49: 0 | D49: 0 | E49: 0 | F49: 0 | G49: =SUMPRODUCT((H49:AL49=Som)*(Base!$B$3:$B$20))-F49 -> 0
A50: =IF(B50<>"",COUNTA($B$6:B50),"") ->  | B50: =IFERROR(INDEX(Base!$E$2:$E$102,SMALL(IF(INDEX(Base!$E$2:$Q$102,,MATCH(Janvier!$B$4,Base!$F$1:$Q$1,0)+1)="x",ROW(Base!$E$2:$E$102)-ROW(Base!$E$2)+1),ROWS($B$6:B50))),"") ->  | C50: 0 | D50: 0 | E50: 0 | F50: 0 | G50: =SUMPRODUCT((H50:AL50=Som)*(Base!$B$3:$B$20))-F50 -> 0 | AW50: 1 | BC50: =BC38+1 -> 5
A51: =IF(B51<>"",COUNTA($B$6:B51),"") ->  | B51: =IFERROR(INDEX(Base!$E$2:$E$102,SMALL(IF(INDEX(Base!$E$2:$Q$102,,MATCH(Janvier!$B$4,Base!$F$1:$Q$1,0)+1)="x",ROW(Base!$E$2:$E$102)-ROW(Base!$E$2)+1),ROWS($B$6:B51))),"") ->  | C51: 0 | D51: 0 | E51: 0 | F51: 0 | G51: =SUMPRODUCT((H51:AL51=Som)*(Base!$B$3:$B$20))-F51 -> 0
A52: =IF(B52<>"",COUNTA($B$6:B52),"") ->  | B52: =IFERROR(INDEX(Base!$E$2:$E$102,SMALL(IF(INDEX(Base!$E$2:$Q$102,,MATCH(Janvier!$B$4,Base!$F$1:$Q$1,0)+1)="x",ROW(Base!$E$2:$E$102)-ROW(Base!$E$2)+1),ROWS($B$6:B52))),"") ->  | C52: 0 | D52: 0 | E52: 0 | F52: 0 | G52: =SUMPRODUCT((H52:AL52=Som)*(Base!$B$3:$B$20))-F52 -> 0 | AS52: Nom | AV52: =IFERROR(LOOKUP(BC50,Janvier!$A101:A150,Janvier!B101:B150),"") -> 
A53: =IF(B53<>"",COUNTA($B$6:B53),"") ->  | B53: =IFERROR(INDEX(Base!$E$2:$E$102,SMALL(IF(INDEX(Base!$E$2:$Q$102,,MATCH(Janvier!$B$4,Base!$F$1:$Q$1,0)+1)="x",ROW(Base!$E$2:$E$102)-ROW(Base!$E$2)+1),ROWS($B$6:B53))),"") ->  | C53: 0 | D53: 0 | E53: 0 | F53: 0 | G53: =SUMPRODUCT((H53:AL53=Som)*(Base!$B$3:$B$20))-F53 -> 0
A54: =IF(B54<>"",COUNTA($B$6:B54),"") ->  | B54: =IFERROR(INDEX(Base!$E$2:$E$102,SMALL(IF(INDEX(Base!$E$2:$Q$102,,MATCH(Janvier!$B$4,Base!$F$1:$Q$1,0)+1)="x",ROW(Base!$E$2:$E$102)-ROW(Base!$E$2)+1),ROWS($B$6:B54))),"") ->  | C54: 0 | D54: 0 | E54: 0 | F54: 0 | G54: =SUMPRODUCT((H54:AL54=Som)*(Base!$B$3:$B$20))-F54 -> 0 | AS54: Usine | AV54: =IFERROR(LOOKUP(BC50,Janvier!A101:A150,Janvier!C102:C151),"") ->  | AX54: =IF(AV54="","",Base!$B$3) ->  | AZ54: =IFERROR(SUM(AV54*AX54),"") -> 
C55: 0 | D55: 0 | E55: 0 | F55: 0 | G55: =SUMPRODUCT((H55:AL55=Som)*(Base!$B$3:$B$20))-F55 -> 0
AS56: Route | AV56: =IFERROR(LOOKUP(BC50,Janvier!A101:A150,Janvier!D102:D151),"") ->  | AX56: =IF(AV56="","",Base!$B$13) ->  | AZ56: =IFERROR(SUM(AV56*AX56),"") -> 
AS58: H-Sup | AV58: =IFERROR(LOOKUP(BC50,Janvier!A101:A150,Janvier!E102:E151),"") ->  | AX58: =IF(AV58="","",200) ->  | AZ58: =IFERROR(SUM(AV58*AX58),"") -> 
AS60: Net A Paye | AV60: =SUM(AZ54:BA59)-AZ60 -> 0 | AY60: AC
AW62: 1 | BC62: =BC50+1 -> 6
AS64: Nom | AV64: =IFERROR(LOOKUP(BC62,Janvier!$A113:A162,Janvier!B113:B162),"") -> 
AS66: Usine | AV66: =IFERROR(LOOKUP(BC62,Janvier!A113:A162,Janvier!C114:C163),"") ->  | AX66: =IF(AV66="","",Base!$B$3) ->  | AZ66: =IFERROR(SUM(AV66*AX66),"") -> 
AS68: Route | AV68: =IFERROR(LOOKUP(BC62,Janvier!A113:A162,Janvier!D114:D163),"") ->  | AX68: =IF(AV68="","",Base!$B$13) ->  | AZ68: =IFERROR(SUM(AV68*AX68),"") -> 
AS70: H-Sup | AV70: =IFERROR(LOOKUP(BC62,Janvier!A113:A162,Janvier!E114:E163),"") ->  | AX70: =IF(AV70="","",200) ->  | AZ70: =IFERROR(SUM(AV70*AX70),"") -> 
AS72: Net A Paye | AV72: =SUM(AZ66:BA71)-AZ72 -> 0 | AY72: AC
AW74: 1 | BC74: =BC62+1 -> 7
AS76: Nom | AV76: =IFERROR(LOOKUP(BC74,Janvier!$A125:A174,Janvier!B125:B174),"") -> 
AS78: Usine | AV78: =IFERROR(LOOKUP(BC74,Janvier!A125:A174,Janvier!C126:C175),"") ->  | AX78: =IF(AV78="","",Base!$B$3) ->  | AZ78: =IFERROR(SUM(AV78*AX78),"") -> 
AS80: Route | AV80: =IFERROR(LOOKUP(BC74,Janvier!A125:A174,Janvier!D126:D175),"") ->  | AX80: =IF(AV80="","",Base!$B$13) ->  | AZ80: =IFERROR(SUM(AV80*AX80),"") -> 
AS82: H-Sup | AV82: =IFERROR(LOOKUP(BC74,Janvier!A125:A174,Janvier!E126:E175),"") ->  | AX82: =IF(AV82="","",200) ->  | AZ82: =IFERROR(SUM(AV82*AX82),"") -> 
AS84: Net A Paye | AV84: =SUM(AZ78:BA83)-AZ84 -> 0 | AY84: AC
AW86: 1 | BC86: =BC74+1 -> 8
AS88: Nom | AV88: =IFERROR(LOOKUP(BC86,Janvier!$A137:A186,Janvier!B137:B186),"") -> 
AS90: Usine | AV90: =IFERROR(LOOKUP(BC86,Janvier!A137:A186,Janvier!C138:C187),"") ->  | AX90: =IF(AV90="","",Base!$B$3) ->  | AZ90: =IFERROR(SUM(AV90*AX90),"") -> 
AS92: Route | AV92: =IFERROR(LOOKUP(BC86,Janvier!A137:A186,Janvier!D138:D187),"") ->  | AX92: =IF(AV92="","",Base!$B$13) ->  | AZ92: =IFERROR(SUM(AV92*AX92),"") -> 
AS94: H-Sup | AV94: =IFERROR(LOOKUP(BC86,Janvier!A137:A186,Janvier!E138:E187),"") ->  | AX94: =IF(AV94="","",200) ->  | AZ94: =IFERROR(SUM(AV94*AX94),"") -> 
AS96: Net A Paye | AV96: =SUM(AZ90:BA95)-AZ96 -> 0 | AY96: AC
AW98: 1 | BC98: =BC86+1 -> 9
AS100: Nom | AV100: =IFERROR(LOOKUP(BC98,Janvier!$A149:A198,Janvier!B149:B198),"") -> 
AS102: Usine | AV102: =IFERROR(LOOKUP(BC98,Janvier!A149:A198,Janvier!C150:C199),"") ->  | AX102: =IF(AV102="","",Base!$B$3) ->  | AZ102: =IFERROR(SUM(AV102*AX102),"") -> 
AS104: Route | AV104: =IFERROR(LOOKUP(BC98,Janvier!A149:A198,Janvier!D150:D199),"") ->  | AX104: =IF(AV104="","",Base!$B$13) ->  | AZ104: =IFERROR(SUM(AV104*AX104),"") -> 
AS106: H-Sup | AV106: =IFERROR(LOOKUP(BC98,Janvier!A149:A198,Janvier!E150:E199),"") ->  | AX106: =IF(AV106="","",200) ->  | AZ106: =IFERROR(SUM(AV106*AX106),"") -> 
AS108: Net A Paye | AV108: =SUM(AZ102:BA107)-AZ108 -> 0 | AY108: AC
AW110: 1 | BC110: =BC98+1 -> 10
AS112: Nom | AV112: =IFERROR(LOOKUP(BC110,Janvier!$A161:A210,Janvier!B161:B210),"") -> 
AS114: Usine | AV114: =IFERROR(LOOKUP(BC110,Janvier!A161:A210,Janvier!C162:C211),"") ->  | AX114: =IF(AV114="","",Base!$B$3) ->  | AZ114: =IFERROR(SUM(AV114*AX114),"") -> 
AS116: Route | AV116: =IFERROR(LOOKUP(BC110,Janvier!A161:A210,Janvier!D162:D211),"") ->  | AX116: =IF(AV116="","",Base!$B$13) ->  | AZ116: =IFERROR(SUM(AV116*AX116),"") -> 
AS118: H-Sup | AV118: =IFERROR(LOOKUP(BC110,Janvier!A161:A210,Janvier!E162:E211),"") ->  | AX118: =IF(AV118="","",200) ->  | AZ118: =IFERROR(SUM(AV118*AX118),"") -> 
AS120: Net A Paye | AV120: =SUM(AZ114:BA119)-AZ120 -> 0 | AY120: AC
AW122: 1 | BC122: =BC110+1 -> 11
AS124: Nom | AV124: =IFERROR(LOOKUP(BC122,Janvier!$A173:A222,Janvier!B173:B222),"") -> 
AS126: Usine | AV126: =IFERROR(LOOKUP(BC122,Janvier!A173:A222,Janvier!C174:C223),"") ->  | AX126: =IF(AV126="","",Base!$B$3) ->  | AZ126: =IFERROR(SUM(AV126*AX126),"") -> 
AS128: Route | AV128: =IFERROR(LOOKUP(BC122,Janvier!A173:A222,Janvier!D174:D223),"") ->  | AX128: =IF(AV128="","",Base!$B$13) ->  | AZ128: =IFERROR(SUM(AV128*AX128),"") -> 
AS130: H-Sup | AV130: =IFERROR(LOOKUP(BC122,Janvier!A173:A222,Janvier!E174:E223),"") ->  | AX130: =IF(AV130="","",200) ->  | AZ130: =IFERROR(SUM(AV130*AX130),"") -> 
AS132: Net A Paye | AV132: =SUM(AZ126:BA131)-AZ132 -> 0 | AY132: AC
AW134: 1 | BC134: =BC122+1 -> 12
AS136: Nom | AV136: =IFERROR(LOOKUP(BC134,Janvier!$A185:A234,Janvier!B185:B234),"") -> 
AS138: Usine | AV138: =IFERROR(LOOKUP(BC134,Janvier!A185:A234,Janvier!C186:C235),"") ->  | AX138: =IF(AV138="","",Base!$B$3) ->  | AZ138: =IFERROR(SUM(AV138*AX138),"") -> 
AS140: Route | AV140: =IFERROR(LOOKUP(BC134,Janvier!A185:A234,Janvier!D186:D235),"") ->  | AX140: =IF(AV140="","",Base!$B$13) ->  | AZ140: =IFERROR(SUM(AV140*AX140),"") -> 
AS142: H-Sup | AV142: =IFERROR(LOOKUP(BC134,Janvier!A185:A234,Janvier!E186:E235),"") ->  | AX142: =IF(AV142="","",200) ->  | AZ142: =IFERROR(SUM(AV142*AX142),"") -> 
AS144: Net A Paye | AV144: =SUM(AZ138:BA143)-AZ144 -> 0 | AY144: AC
AW146: 1 | BC146: =BC134+1 -> 13
AS148: Nom | AV148: =IFERROR(LOOKUP(BC146,Janvier!$A197:A246,Janvier!B197:B246),"") -> 
AS150: Usine | AV150: =IFERROR(LOOKUP(BC146,Janvier!A197:A246,Janvier!C198:C247),"") ->  | AX150: =IF(AV150="","",Base!$B$3) ->  | AZ150: =IFERROR(SUM(AV150*AX150),"") -> 
AS152: Route | AV152: =IFERROR(LOOKUP(BC146,Janvier!A197:A246,Janvier!D198:D247),"") ->  | AX152: =IF(AV152="","",Base!$B$13) ->  | AZ152: =IFERROR(SUM(AV152*AX152),"") -> 
AS154: H-Sup | AV154: =IFERROR(LOOKUP(BC146,Janvier!A197:A246,Janvier!E198:E247),"") ->  | AX154: =IF(AV154="","",200) ->  | AZ154: =IFERROR(SUM(AV154*AX154),"") -> 
AS156: Net A Paye | AV156: =SUM(AZ150:BA155)-AZ156 -> 0 | AY156: AC
AW158: 1 | BC158: =BC146+1 -> 14
AS160: Nom | AV160: =IFERROR(LOOKUP(BC158,Janvier!$A209:A258,Janvier!B209:B258),"") -> 
AS162: Usine | AV162: =IFERROR(LOOKUP(BC158,Janvier!A209:A258,Janvier!C210:C259),"") ->  | AX162: =IF(AV162="","",Base!$B$3) ->  | AZ162: =IFERROR(SUM(AV162*AX162),"") -> 
AS164: Route | AV164: =IFERROR(LOOKUP(BC158,Janvier!A209:A258,Janvier!D210:D259),"") ->  | AX164: =IF(AV164="","",Base!$B$13) ->  | AZ164: =IFERROR(SUM(AV164*AX164),"") -> 
AS166: H-Sup | AV166: =IFERROR(LOOKUP(BC158,Janvier!A209:A258,Janvier!E210:E259),"") ->  | AX166: =IF(AV166="","",200) ->  | AZ166: =IFERROR(SUM(AV166*AX166),"") -> 
AS168: Net A Paye | AV168: =SUM(AZ162:BA167)-AZ168 -> 0 | AY168: AC
AW170: 1 | BC170: =BC158+1 -> 15
AS172: Nom | AV172: =IFERROR(LOOKUP(BC170,Janvier!$A221:A270,Janvier!B221:B270),"") -> 
AS174: Usine | AV174: =IFERROR(LOOKUP(BC170,Janvier!A221:A270,Janvier!C222:C271),"") ->  | AX174: =IF(AV174="","",Base!$B$3) ->  | AZ174: =IFERROR(SUM(AV174*AX174),"") -> 
AS176: Route | AV176: =IFERROR(LOOKUP(BC170,Janvier!A221:A270,Janvier!D222:D271),"") ->  | AX176: =IF(AV176="","",Base!$B$13) ->  | AZ176: =IFERROR(SUM(AV176*AX176),"") -> 
AS178: H-Sup | AV178: =IFERROR(LOOKUP(BC170,Janvier!A221:A270,Janvier!E222:E271),"") ->  | AX178: =IF(AV178="","",200) ->  | AZ178: =IFERROR(SUM(AV178*AX178),"") -> 
AS180: Net A Paye | AV180: =SUM(AZ174:BA179)-AZ180 -> 0 | AY180: AC
AW182: 1 | BC182: =BC170+1 -> 16
AS184: Nom | AV184: =IFERROR(LOOKUP(BC182,Janvier!$A233:A282,Janvier!B233:B282),"") -> 
AS186: Usine | AV186: =IFERROR(LOOKUP(BC182,Janvier!A233:A282,Janvier!C234:C283),"") ->  | AX186: =IF(AV186="","",Base!$B$3) ->  | AZ186: =IFERROR(SUM(AV186*AX186),"") -> 
AS188: Route | AV188: =IFERROR(LOOKUP(BC182,Janvier!A233:A282,Janvier!D234:D283),"") ->  | AX188: =IF(AV188="","",Base!$B$13) ->  | AZ188: =IFERROR(SUM(AV188*AX188),"") -> 
AS190: H-Sup | AV190: =IFERROR(LOOKUP(BC182,Janvier!A233:A282,Janvier!E234:E283),"") ->  | AX190: =IF(AV190="","",200) ->  | AZ190: =IFERROR(SUM(AV190*AX190),"") -> 
AS192: Net A Paye | AV192: =SUM(AZ186:BA191)-AZ192 -> 0 | AY192: AC
AW194: 1 | BC194: =BC182+1 -> 17
AS196: Nom | AV196: =IFERROR(LOOKUP(BC194,Janvier!$A245:A294,Janvier!B245:B294),"") -> 
AS198: Usine | AV198: =IFERROR(LOOKUP(BC194,Janvier!A245:A294,Janvier!C246:C295),"") ->  | AX198: =IF(AV198="","",Base!$B$3) ->  | AZ198: =IFERROR(SUM(AV198*AX198),"") -> 
AS200: Route | AV200: =IFERROR(LOOKUP(BC194,Janvier!A245:A294,Janvier!D246:D295),"") ->  | AX200: =IF(AV200="","",Base!$B$13) ->  | AZ200: =IFERROR(SUM(AV200*AX200),"") -> 
AS202: H-Sup | AV202: =IFERROR(LOOKUP(BC194,Janvier!A245:A294,Janvier!E246:E295),"") ->  | AX202: =IF(AV202="","",200) ->  | AZ202: =IFERROR(SUM(AV202*AX202),"") -> 
AS204: Net A Paye | AV204: =SUM(AZ198:BA203)-AZ204 -> 0 | AY204: AC
AW206: 1 | BC206: =BC194+1 -> 18
AS208: Nom | AV208: =IFERROR(LOOKUP(BC206,Janvier!$A257:A306,Janvier!B257:B306),"") -> 
AS210: Usine | AV210: =IFERROR(LOOKUP(BC206,Janvier!A257:A306,Janvier!C258:C307),"") ->  | AX210: =IF(AV210="","",Base!$B$3) ->  | AZ210: =IFERROR(SUM(AV210*AX210),"") -> 
AS212: Route | AV212: =IFERROR(LOOKUP(BC206,Janvier!A257:A306,Janvier!D258:D307),"") ->  | AX212: =IF(AV212="","",Base!$B$13) ->  | AZ212: =IFERROR(SUM(AV212*AX212),"") -> 
AS214: H-Sup | AV214: =IFERROR(LOOKUP(BC206,Janvier!A257:A306,Janvier!E258:E307),"") ->  | AX214: =IF(AV214="","",200) ->  | AZ214: =IFERROR(SUM(AV214*AX214),"") -> 
AS216: Net A Paye | AV216: =SUM(AZ210:BA215)-AZ216 -> 0 | AY216: AC
AW218: 1 | BC218: =BC206+1 -> 19
AS220: Nom | AV220: =IFERROR(LOOKUP(BC218,Janvier!$A269:A318,Janvier!B269:B318),"") -> 
AS222: Usine | AV222: =IFERROR(LOOKUP(BC218,Janvier!A269:A318,Janvier!C270:C319),"") ->  | AX222: =IF(AV222="","",Base!$B$3) ->  | AZ222: =IFERROR(SUM(AV222*AX222),"") -> 
AS224: Route | AV224: =IFERROR(LOOKUP(BC218,Janvier!A269:A318,Janvier!D270:D319),"") ->  | AX224: =IF(AV224="","",Base!$B$13) ->  | AZ224: =IFERROR(SUM(AV224*AX224),"") -> 
AS226: H-Sup | AV226: =IFERROR(LOOKUP(BC218,Janvier!A269:A318,Janvier!E270:E319),"") ->  | AX226: =IF(AV226="","",200) ->  | AZ226: =IFERROR(SUM(AV226*AX226),"") -> 
AS228: Net A Paye | AV228: =SUM(AZ222:BA227)-AZ228 -> 0 | AY228: AC
AW230: 1 | BC230: =BC218+1 -> 20
AS232: Nom | AV232: =IFERROR(LOOKUP(BC230,Janvier!$A281:A330,Janvier!B281:B330),"") -> 
AS234: Usine | AV234: =IFERROR(LOOKUP(BC230,Janvier!A281:A330,Janvier!C282:C331),"") ->  | AX234: =IF(AV234="","",Base!$B$3) ->  | AZ234: =IFERROR(SUM(AV234*AX234),"") -> 
AS236: Route | AV236: =IFERROR(LOOKUP(BC230,Janvier!A281:A330,Janvier!D282:D331),"") ->  | AX236: =IF(AV236="","",Base!$B$13) ->  | AZ236: =IFERROR(SUM(AV236*AX236),"") -> 
AS238: H-Sup | AV238: =IFERROR(LOOKUP(BC230,Janvier!A281:A330,Janvier!E282:E331),"") ->  | AX238: =IF(AV238="","",200) ->  | AZ238: =IFERROR(SUM(AV238*AX238),"") -> 
AS240: Net A Paye | AV240: =SUM(AZ234:BA239)-AZ240 -> 0 | AY240: AC
AW242: 1 | BC242: =BC230+1 -> 21
AS244: Nom | AV244: =IFERROR(LOOKUP(BC242,Janvier!$A293:A342,Janvier!B293:B342),"") -> 
AS246: Usine | AV246: =IFERROR(LOOKUP(BC242,Janvier!A293:A342,Janvier!C294:C343),"") ->  | AX246: =IF(AV246="","",Base!$B$3) ->  | AZ246: =IFERROR(SUM(AV246*AX246),"") -> 
AS248: Route | AV248: =IFERROR(LOOKUP(BC242,Janvier!A293:A342,Janvier!D294:D343),"") ->  | AX248: =IF(AV248="","",Base!$B$13) ->  | AZ248: =IFERROR(SUM(AV248*AX248),"") -> 
AS250: H-Sup | AV250: =IFERROR(LOOKUP(BC242,Janvier!A293:A342,Janvier!E294:E343),"") ->  | AX250: =IF(AV250="","",200) ->  | AZ250: =IFERROR(SUM(AV250*AX250),"") -> 
AS252: Net A Paye | AV252: =SUM(AZ246:BA251)-AZ252 -> 0 | AY252: AC
AW254: 1 | BC254: =BC242+1 -> 22
AS256: Nom | AV256: =IFERROR(LOOKUP(BC254,Janvier!$A305:A354,Janvier!B305:B354),"") -> 
AS258: Usine | AV258: =IFERROR(LOOKUP(BC254,Janvier!A305:A354,Janvier!C306:C355),"") ->  | AX258: =IF(AV258="","",Base!$B$3) ->  | AZ258: =IFERROR(SUM(AV258*AX258),"") -> 
AS260: Route | AV260: =IFERROR(LOOKUP(BC254,Janvier!A305:A354,Janvier!D306:D355),"") ->  | AX260: =IF(AV260="","",Base!$B$13) ->  | AZ260: =IFERROR(SUM(AV260*AX260),"") -> 
AS262: H-Sup | AV262: =IFERROR(LOOKUP(BC254,Janvier!A305:A354,Janvier!E306:E355),"") ->  | AX262: =IF(AV262="","",200) ->  | AZ262: =IFERROR(SUM(AV262*AX262),"") -> 
AS264: Net A Paye | AV264: =SUM(AZ258:BA263)-AZ264 -> 0 | AY264: AC
AW266: 1 | BC266: =BC254+1 -> 23
AS268: Nom | AV268: =IFERROR(LOOKUP(BC266,Janvier!$A317:A366,Janvier!B317:B366),"") -> 
AS270: Usine | AV270: =IFERROR(LOOKUP(BC266,Janvier!A317:A366,Janvier!C318:C367),"") ->  | AX270: =IF(AV270="","",Base!$B$3) ->  | AZ270: =IFERROR(SUM(AV270*AX270),"") -> 
AS272: Route | AV272: =IFERROR(LOOKUP(BC266,Janvier!A317:A366,Janvier!D318:D367),"") ->  | AX272: =IF(AV272="","",Base!$B$13) ->  | AZ272: =IFERROR(SUM(AV272*AX272),"") -> 
AS274: H-Sup | AV274: =IFERROR(LOOKUP(BC266,Janvier!A317:A366,Janvier!E318:E367),"") ->  | AX274: =IF(AV274="","",200) ->  | AZ274: =IFERROR(SUM(AV274*AX274),"") -> 
AS276: Net A Paye | AV276: =SUM(AZ270:BA275)-AZ276 -> 0 | AY276: AC
AW278: 1 | BC278: =BC266+1 -> 24
AS280: Nom | AV280: =IFERROR(LOOKUP(BC278,Janvier!$A329:A378,Janvier!B329:B378),"") -> 
AS282: Usine | AV282: =IFERROR(LOOKUP(BC278,Janvier!A329:A378,Janvier!C330:C379),"") ->  | AX282: =IF(AV282="","",Base!$B$3) ->  | AZ282: =IFERROR(SUM(AV282*AX282),"") -> 
AS284: Route | AV284: =IFERROR(LOOKUP(BC278,Janvier!A329:A378,Janvier!D330:D379),"") ->  | AX284: =IF(AV284="","",Base!$B$13) ->  | AZ284: =IFERROR(SUM(AV284*AX284),"") -> 
AS286: H-Sup | AV286: =IFERROR(LOOKUP(BC278,Janvier!A329:A378,Janvier!E330:E379),"") ->  | AX286: =IF(AV286="","",200) ->  | AZ286: =IFERROR(SUM(AV286*AX286),"") -> 
AS288: Net A Paye | AV288: =SUM(AZ282:BA287)-AZ288 -> 0 | AY288: AC
AW290: 1 | BC290: =BC278+1 -> 25
AS292: Nom | AV292: =IFERROR(LOOKUP(BC290,Janvier!$A341:A390,Janvier!B341:B390),"") -> 
AS294: Usine | AV294: =IFERROR(LOOKUP(BC290,Janvier!A341:A390,Janvier!C342:C391),"") ->  | AX294: =IF(AV294="","",Base!$B$3) ->  | AZ294: =IFERROR(SUM(AV294*AX294),"") -> 
AS296: Route | AV296: =IFERROR(LOOKUP(BC290,Janvier!A341:A390,Janvier!D342:D391),"") ->  | AX296: =IF(AV296="","",Base!$B$13) ->  | AZ296: =IFERROR(SUM(AV296*AX296),"") -> 
AS298: H-Sup | AV298: =IFERROR(LOOKUP(BC290,Janvier!A341:A390,Janvier!E342:E391),"") ->  | AX298: =IF(AV298="","",200) ->  | AZ298: =IFERROR(SUM(AV298*AX298),"") -> 
AS300: Net A Paye | AV300: =SUM(AZ294:BA299)-AZ300 -> 0 | AY300: AC
AW302: 1 | BC302: =BC290+1 -> 26
AS304: Nom | AV304: =IFERROR(LOOKUP(BC302,Janvier!$A353:A402,Janvier!B353:B402),"") -> 
AS306: Usine | AV306: =IFERROR(LOOKUP(BC302,Janvier!A353:A402,Janvier!C354:C403),"") ->  | AX306: =IF(AV306="","",Base!$B$3) ->  | AZ306: =IFERROR(SUM(AV306*AX306),"") -> 
AS308: Route | AV308: =IFERROR(LOOKUP(BC302,Janvier!A353:A402,Janvier!D354:D403),"") ->  | AX308: =IF(AV308="","",Base!$B$13) ->  | AZ308: =IFERROR(SUM(AV308*AX308),"") -> 
AS310: H-Sup | AV310: =IFERROR(LOOKUP(BC302,Janvier!A353:A402,Janvier!E354:E403),"") ->  | AX310: =IF(AV310="","",200) ->  | AZ310: =IFERROR(SUM(AV310*AX310),"") -> 
AS312: Net A Paye | AV312: =SUM(AZ306:BA311)-AZ312 -> 0 | AY312: AC
AW314: 1 | BC314: =BC302+1 -> 27
AS316: Nom | AV316: =IFERROR(LOOKUP(BC314,Janvier!$A365:A414,Janvier!B365:B414),"") -> 
AS318: Usine | AV318: =IFERROR(LOOKUP(BC314,Janvier!A365:A414,Janvier!C366:C415),"") ->  | AX318: =IF(AV318="","",Base!$B$3) ->  | AZ318: =IFERROR(SUM(AV318*AX318),"") -> 
AS320: Route | AV320: =IFERROR(LOOKUP(BC314,Janvier!A365:A414,Janvier!D366:D415),"") ->  | AX320: =IF(AV320="","",Base!$B$13) ->  | AZ320: =IFERROR(SUM(AV320*AX320),"") -> 
AS322: H-Sup | AV322: =IFERROR(LOOKUP(BC314,Janvier!A365:A414,Janvier!E366:E415),"") ->  | AX322: =IF(AV322="","",200) ->  | AZ322: =IFERROR(SUM(AV322*AX322),"") -> 
AS324: Net A Paye | AV324: =SUM(AZ318:BA323)-AZ324 -> 0 | AY324: AC
AW326: 1 | BC326: =BC314+1 -> 28
AS328: Nom | AV328: =IFERROR(LOOKUP(BC326,Janvier!$A377:A426,Janvier!B377:B426),"") -> 
AS330: Usine | AV330: =IFERROR(LOOKUP(BC326,Janvier!A377:A426,Janvier!C378:C427),"") ->  | AX330: =IF(AV330="","",Base!$B$3) ->  | AZ330: =IFERROR(SUM(AV330*AX330),"") -> 
AS332: Route | AV332: =IFERROR(LOOKUP(BC326,Janvier!A377:A426,Janvier!D378:D427),"") ->  | AX332: =IF(AV332="","",Base!$B$13) ->  | AZ332: =IFERROR(SUM(AV332*AX332),"") -> 
AS334: H-Sup | AV334: =IFERROR(LOOKUP(BC326,Janvier!A377:A426,Janvier!E378:E427),"") ->  | AX334: =IF(AV334="","",200) ->  | AZ334: =IFERROR(SUM(AV334*AX334),"") -> 
AS336: Net A Paye | AV336: =SUM(AZ330:BA335)-AZ336 -> 0 | AY336: AC
AW338: 1 | BC338: =BC326+1 -> 29
AS340: Nom | AV340: =IFERROR(LOOKUP(BC338,Janvier!$A389:A438,Janvier!B389:B438),"") -> 
AS342: Usine | AV342: =IFERROR(LOOKUP(BC338,Janvier!A389:A438,Janvier!C390:C439),"") ->  | AX342: =IF(AV342="","",Base!$B$3) ->  | AZ342: =IFERROR(SUM(AV342*AX342),"") -> 
AS344: Route | AV344: =IFERROR(LOOKUP(BC338,Janvier!A389:A438,Janvier!D390:D439),"") ->  | AX344: =IF(AV344="","",Base!$B$13) ->  | AZ344: =IFERROR(SUM(AV344*AX344),"") -> 
... 116 more rows

Sheet Fevrier
B1: F E R I E R 2 0 2 0 | E1: 5
AW2: 1 | BC2: 1
B3: 2020-02-01 | C3: =EOMONTH(B3,0) -> 2020-02-29 | H3: =B3 -> 2020-02-01 | I3: =H3+1 -> 2020-02-02 | J3: =I3+1 -> 2020-02-03 | K3: 2020-02-04 | L3: 2020-02-05 | M3: 2020-02-06 | N3: 2020-02-07 | O3: 2020-02-08 | P3: 2020-02-09 | Q3: 2020-02-10 | R3: 2020-02-11 | S3: 2020-02-12 | T3: 2020-02-13 | U3: 2020-02-14 | V3: 2020-02-15 | W3: 2020-02-16 | X3: 2020-02-17 | Y3: 2020-02-18 | Z3: 2020-02-19 | AA3: 2020-02-20 | AB3: 2020-02-21 | AC3: 2020-02-22 | AD3: 2020-02-23 | AE3: 2020-02-24 | AF3: 2020-02-25 | AG3: 2020-02-26 | AH3: 2020-02-27 | AI3: 2020-02-28 | AJ3: =IFERROR(IF(AI3+1>C3,"",AI3+1),"") -> 2020-02-29 | AK3: 2020-03-01 | AL3: 2020-03-02
B4: Février | C4: العمليات الحسابيه | H4: =DAY(H3) -> 1 | I4: =DAY(I3) -> 2 | J4: 3 | K4: 4 | L4: 5 | M4: 6 | N4: 7 | O4: 8 | P4: 9 | Q4: 10 | R4: 11 | S4: 12 | T4: 13 | U4: 14 | V4: 15 | W4: 16 | X4: 17 | Y4: 18 | Z4: 19 | AA4: 20 | AB4: 21 | AC4: 22 | AD4: 23 | AE4: 24 | AF4: 25 | AG4: 26 | AH4: 27 | AI4: 28 | AJ4: 29 | AK4: 1 | AL4: 2 | AS4: Nom | AV4: =IFERROR(LOOKUP(BC2,Fevrier!$A6:A102,Fevrier!B6:B102),"") -> الموظف 1
B5: الموظف | C5: المكتب | D5: الرقابه | E5: إظافه | F5: سلف | G5: الاجر الصافي | H5: =WEEKDAY(H3) -> 1900-01-07 | I5: =WEEKDAY(I3) -> 1900-01-01 | J5: 1900-01-02 | K5: 1900-01-03 | L5: 1900-01-04 | M5: 1900-01-05 | N5: 1900-01-06 | O5: 1900-01-07 | P5: 1900-01-01 | Q5: 1900-01-02 | R5: 1900-01-03 | S5: 1900-01-04 | T5: 1900-01-05 | U5: 1900-01-06 | V5: 1900-01-07 | W5: 1900-01-01 | X5: 1900-01-02 | Y5: 1900-01-03 | Z5: 1900-01-04 | AA5: 1900-01-05 | AB5: 1900-01-06 | AC5: 1900-01-07 | AD5: 1900-01-01 | AE5: 1900-01-02 | AF5: 1900-01-03 | AG5: 1900-01-04 | AH5: 1900-01-05 | AI5: 1900-01-06 | AJ5: 1900-01-07 | AK5: 1900-01-01 | AL5: 1900-01-02 | AN5: ACOMPTE
A6: =IF(B6<>"",COUNTA($B$6:B6),"") -> 1 | B6: =IFERROR(INDEX(Base!$E$2:$E$102,SMALL(IF(INDEX(Base!$E$2:$Q$102,,MATCH(Fevrier!$B$4,Base!$F$1:$Q$1,0)+1)="x",ROW(Base!$E$2:$E$102)-ROW(Base!$E$2)+1),ROWS($B$6:B6))),"") -> الموظف 1 | C6: =COUNTIF($H6:$AL6, "u")*1+COUNTIF($H6:$AL6, "U 1")*1+COUNTIF($H6:$AL6, "u 2")*1+COUNTIF($H6:$AL6, "u 3")*1+COUNTIF($H6:$AL6, "U 4")*1+COUNTIF($H6:$AL6, "u 5")*1+COUNTIF($H6:$AL6, "u 6")*1+COUNTIF($H6:$AL6, "U 7")*1+COUNTIF($H6:$AL6, "u 8")*1+COUNTIF($H6:$AL6, "u 9")*1+COUNTIF($H6:$AL6, "500")*1+COUNTIF($H6:$AL6, "1000")*1+COUNTIF($H6:$AL6, "1500")*1+COUNTIF($H6:$AL6, "2000")*1+COUNTIF($H6:$AL6, "3000")*1+COUNTIF($H6:$AL6, "4000")*1+COUNTIF($H6:$AL6, "5000")*1 -> 6 | D6: =COUNTIF($H6:$AL6, "R")*1+COUNTIF($H6:$AL6, "R 1")*1+COUNTIF($H6:$AL6, "R 2")*1+COUNTIF($H6:$AL6, "R 3")*1+COUNTIF($H6:$AL6, "R 4")*1+COUNTIF($H6:$AL6, "R 5")*1+COUNTIF($H6:$AL6, "R 6")*1+COUNTIF($H6:$AL6, "R 7")*1+COUNTIF($H6:$AL6, "R 8")*1+COUNTIF($H6:$AL6, "R 9")*1 -> 0 | E6: =COUNTIF($H6:$AL6, "U 1")*1+COUNTIF($H6:$AL6, "u 2")*2+COUNTIF($H6:$AL6, "u 3")*3+COUNTIF($H6:$AL6, "U 4")*4+COUNTIF($H6:$AL6, "u 5")*5+COUNTIF($H6:$AL6, "u 6")*6+COUNTIF($H6:$AL6, "U 7")*7+COUNTIF($H6:$AL6, "u 8")*8+COUNTIF($H6:$AL6, "u 9")*9+COUNTIF($H6:$AL6, "R 1")*1+COUNTIF($H6:$AL6, "R 2")*2+COUNTIF($H6:$AL6, "R 3")*3+COUNTIF($H6:$AL6, "R 4")*4+COUNTIF($H6:$AL6, "R 5")*5+COUNTIF($H6:$AL6, "R 6")*6+COUNTIF($H6:$AL6, "R 7")*7+COUNTIF($H6:$AL6, "R 8")*8+COUNTIF($H6:$AL6, "R 9")*9 -> 0 | F6: =SUM(H6:AL6) -> 2000 | G6: =SUMPRODUCT((H6:AL6=Som)*(Base!$B$3:$B$20))-F6 -> 4000 | I6: U | O6: A | P6: U | Q6: 2000 | R6: U | S6: U | T6: U | AS6: Usine | AV6: =IFERROR(LOOKUP(BC2,Fevrier!A6:A102,Fevrier!C6:C103),"") -> 6 | AX6: =IF(AV6="","",Base!$B$3) -> 1000 | AZ6: =IFERROR(SUM(AV6*AX6),"") -> 6000
A7: =IF(B7<>"",COUNTA($B$6:B7),"") -> 2 | B7: =IFERROR(INDEX(Base!$E$2:$E$102,SMALL(IF(INDEX(Base!$E$2:$Q$102,,MATCH(Fevrier!$B$4,Base!$F$1:$Q$1,0)+1)="x",ROW(Base!$E$2:$E$102)-ROW(Base!$E$2)+1),ROWS($B$6:B7))),"") -> الموظف 3 | C7: =COUNTIF($H7:$AL7, "u")*1+COUNTIF($H7:$AL7, "U 1")*1+COUNTIF($H7:$AL7, "u 2")*1+COUNTIF($H7:$AL7, "u 3")*1+COUNTIF($H7:$AL7, "U 4")*1+COUNTIF($H7:$AL7, "u 5")*1+COUNTIF($H7:$AL7, "u 6")*1+COUNTIF($H7:$AL7, "U 7")*1+COUNTIF($H7:$AL7, "u 8")*1+COUNTIF($H7:$AL7, "u 9")*1+COUNTIF($H7:$AL7, "500")*1+COUNTIF($H7:$AL7, "1000")*1+COUNTIF($H7:$AL7, "1500")*1+COUNTIF($H7:$AL7, "2000")*1+COUNTIF($H7:$AL7, "3000")*1+COUNTIF($H7:$AL7, "4000")*1+COUNTIF($H7:$AL7, "5000")*1 -> 2 | D7: =COUNTIF($H7:$AL7, "R")*1+COUNTIF($H7:$AL7, "R 1")*1+COUNTIF($H7:$AL7, "R 2")*1+COUNTIF($H7:$AL7, "R 3")*1+COUNTIF($H7:$AL7, "R 4")*1+COUNTIF($H7:$AL7, "R 5")*1+COUNTIF($H7:$AL7, "R 6")*1+COUNTIF($H7:$AL7, "R 7")*1+COUNTIF($H7:$AL7, "R 8")*1+COUNTIF($H7:$AL7, "R 9")*1 -> 0 | E7: =COUNTIF($H7:$AL7, "U 1")*1+COUNTIF($H7:$AL7, "u 2")*2+COUNTIF($H7:$AL7, "u 3")*3+COUNTIF($H7:$AL7, "U 4")*4+COUNTIF($H7:$AL7, "u 5")*5+COUNTIF($H7:$AL7, "u 6")*6+COUNTIF($H7:$AL7, "U 7")*7+COUNTIF($H7:$AL7, "u 8")*8+COUNTIF($H7:$AL7, "u 9")*9+COUNTIF($H7:$AL7, "R 1")*1+COUNTIF($H7:$AL7, "R 2")*2+COUNTIF($H7:$AL7, "R 3")*3+COUNTIF($H7:$AL7, "R 4")*4+COUNTIF($H7:$AL7, "R 5")*5+COUNTIF($H7:$AL7, "R 6")*6+COUNTIF($H7:$AL7, "R 7")*7+COUNTIF($H7:$AL7, "R 8")*8+COUNTIF($H7:$AL7, "R 9")*9 -> 0 | F7: =SUM(H7:AL7) -> 0 | G7: =SUMPRODUCT((H7:AL7=Som)*(Base!$B$3:$B$20))-F7 -> 2000 | H7: U | I7: U | O7: A | P7: A | Q7: A | R7: A | S7: A | T7: A
A8: =IF(B8<>"",COUNTA($B$6:B8),"") -> 3 | B8: =IFERROR(INDEX(Base!$E$2:$E$102,SMALL(IF(INDEX(Base!$E$2:$Q$102,,MATCH(Fevrier!$B$4,Base!$F$1:$Q$1,0)+1)="x",ROW(Base!$E$2:$E$102)-ROW(Base!$E$2)+1),ROWS($B$6:B8))),"") -> الموظف 5 | C8: 6 | D8: 0 | E8: 0 | F8: 1000 | G8: =SUMPRODUCT((H8:AL8=Som)*(Base!$B$3:$B$20))-F8 -> 5000 | I8: U | O8: A | P8: U | Q8: U | R8: U | S8: U | T8: 1000 | AS8: Route | AV8: =IFERROR(LOOKUP(BC2,Fevrier!A53:A102,Fevrier!D54:D103),"") ->  | AX8: =IF(AV8="","",Base!$B$13) ->  | AZ8: =IFERROR(SUM(AV8*AX8),"") -> 
A9: =IF(B9<>"",COUNTA($B$6:B9),"") -> 4 | B9: =IFERROR(INDEX(Base!$E$2:$E$102,SMALL(IF(INDEX(Base!$E$2:$Q$102,,MATCH(Fevrier!$B$4,Base!$F$1:$Q$1,0)+1)="x",ROW(Base!$E$2:$E$102)-ROW(Base!$E$2)+1),ROWS($B$6:B9))),"") -> الموظف 6 | C9: 6 | D9: 0 | E9: 0 | F9: 0 | G9: =SUMPRODUCT((H9:AL9=Som)*(Base!$B$3:$B$20))-F9 -> 6000 | I9: U | O9: A | P9: U | Q9: U | R9: U | S9: U | T9: U
A10: =IF(B10<>"",COUNTA($B$6:B10),"") -> 5 | B10: =IFERROR(INDEX(Base!$E$2:$E$102,SMALL(IF(INDEX(Base!$E$2:$Q$102,,MATCH(Fevrier!$B$4,Base!$F$1:$Q$1,0)+1)="x",ROW(Base!$E$2:$E$102)-ROW(Base!$E$2)+1),ROWS($B$6:B10))),"") -> الموظف 7 | C10: 6 | D10: 0 | E10: 0 | F10: 1000 | G10: =SUMPRODUCT((H10:AL10=Som)*(Base!$B$3:$B$20))-F10 -> 5000 | I10: U | O10: A | P10: U | Q10: U | R10: 500 | S10: U | T10: 500 | AS10: H-Sup | AV10: =IFERROR(LOOKUP(BC2,Fevrier!A53:A102,Fevrier!E54:E103),"") ->  | AX10: =IF(AV10="","",200) ->  | AZ10: =IFERROR(SUM(AV10*AX10),"") -> 
A11: =IF(B11<>"",COUNTA($B$6:B11),"") -> 6 | B11: =IFERROR(INDEX(Base!$E$2:$E$102,SMALL(IF(INDEX(Base!$E$2:$Q$102,,MATCH(Fevrier!$B$4,Base!$F$1:$Q$1,0)+1)="x",ROW(Base!$E$2:$E$102)-ROW(Base!$E$2)+1),ROWS($B$6:B11))),"") -> الموظف 8 | C11: 5 | D11: 0 | E11: 0 | F11: 1000 | G11: =SUMPRODUCT((H11:AL11=Som)*(Base!$B$3:$B$20))-F11 -> 4000 | I11: U | O11: A | P11: U | Q11: U | R11: U | S11: A | T11: 1000
A12: =IF(B12<>"",COUNTA($B$6:B12),"") -> 7 | B12: =IFERROR(INDEX(Base!$E$2:$E$102,SMALL(IF(INDEX(Base!$E$2:$Q$102,,MATCH(Fevrier!$B$4,Base!$F$1:$Q$1,0)+1)="x",ROW(Base!$E$2:$E$102)-ROW(Base!$E$2)+1),ROWS($B$6:B12))),"") -> الموظف 9 | C12: 7 | D12: 0 | E12: 0 | F12: 0 | G12: =SUMPRODUCT((H12:AL12=Som)*(Base!$B$3:$B$20))-F12 -> 7000 | I12: U | O12: U | P12: U | Q12: U | R12: U | S12: U | T12: U | AS12: Net A Paye | AV12: =SUM(AZ6:BA11)-AZ12 -> 6000 | AY12: AC
A13: =IF(B13<>"",COUNTA($B$6:B13),"") -> 8 | B13: =IFERROR(INDEX(Base!$E$2:$E$102,SMALL(IF(INDEX(Base!$E$2:$Q$102,,MATCH(Fevrier!$B$4,Base!$F$1:$Q$1,0)+1)="x",ROW(Base!$E$2:$E$102)-ROW(Base!$E$2)+1),ROWS($B$6:B13))),"") -> الموظف 10 | C13: 0 | D13: 0 | E13: 0 | F13: 0 | G13: =SUMPRODUCT((H13:AL13=Som)*(Base!$B$3:$B$20))-F13 -> 0
A14: =IF(B14<>"",COUNTA($B$6:B14),"") -> 9 | B14: =IFERROR(INDEX(Base!$E$2:$E$102,SMALL(IF(INDEX(Base!$E$2:$Q$102,,MATCH(Fevrier!$B$4,Base!$F$1:$Q$1,0)+1)="x",ROW(Base!$E$2:$E$102)-ROW(Base!$E$2)+1),ROWS($B$6:B14))),"") -> الموظف 11 | C14: 5 | D14: 0 | E14: 0 | F14: 4000 | G14: =SUMPRODUCT((H14:AL14=Som)*(Base!$B$3:$B$20))-F14 -> 1000 | I14: U | O14: A | P14: U | Q14: 1000 | R14: A | S14: U | T14: 3000 | AW14: 1 | BC14: =BC2+1 -> 2
A15: =IF(B15<>"",COUNTA($B$6:B15),"") -> 10 | B15: =IFERROR(INDEX(Base!$E$2:$E$102,SMALL(IF(INDEX(Base!$E$2:$Q$102,,MATCH(Fevrier!$B$4,Base!$F$1:$Q$1,0)+1)="x",ROW(Base!$E$2:$E$102)-ROW(Base!$E$2)+1),ROWS($B$6:B15))),"") -> الموظف 13 | C15: 6 | D15: 0 | E15: 0 | F15: 0 | G15: =SUMPRODUCT((H15:AL15=Som)*(Base!$B$3:$B$20))-F15 -> 6000 | I15: U | O15: A | P15: U | Q15: U | R15: U | S15: U | T15: U
A16: =IF(B16<>"",COUNTA($B$6:B16),"") -> 11 | B16: =IFERROR(INDEX(Base!$E$2:$E$102,SMALL(IF(INDEX(Base!$E$2:$Q$102,,MATCH(Fevrier!$B$4,Base!$F$1:$Q$1,0)+1)="x",ROW(Base!$E$2:$E$102)-ROW(Base!$E$2)+1),ROWS($B$6:B16))),"") -> الموظف 14 | C16: 8 | D16: 0 | E16: 0 | F16: 1000 | G16: =SUMPRODUCT((H16:AL16=Som)*(Base!$B$3:$B$20))-F16 -> 7000 | H16: U | I16: U | O16: U | P16: U | Q16: U | R16: U | S16: U | T16: 1000 | AS16: Nom | AV16: =IFERROR(LOOKUP(BC14,Fevrier!$A7:A114,Fevrier!B7:B114),"") -> الموظف 3
A17: =IF(B17<>"",COUNTA($B$6:B17),"") -> 12 | B17: =IFERROR(INDEX(Base!$E$2:$E$102,SMALL(IF(INDEX(Base!$E$2:$Q$102,,MATCH(Fevrier!$B$4,Base!$F$1:$Q$1,0)+1)="x",ROW(Base!$E$2:$E$102)-ROW(Base!$E$2)+1),ROWS($B$6:B17))),"") -> الموظف 16 | C17: 2 | D17: 0 | E17: 0 | F17: 0 | G17: =SUMPRODUCT((H17:AL17=Som)*(Base!$B$3:$B$20))-F17 -> 2000 | H17: U | I17: U | O17: A | P17: A | Q17: A | R17: A | S17: A | T17: A
A18: =IF(B18<>"",COUNTA($B$6:B18),"") -> 13 | B18: =IFERROR(INDEX(Base!$E$2:$E$102,SMALL(IF(INDEX(Base!$E$2:$Q$102,,MATCH(Fevrier!$B$4,Base!$F$1:$Q$1,0)+1)="x",ROW(Base!$E$2:$E$102)-ROW(Base!$E$2)+1),ROWS($B$6:B18))),"") -> الموظف 17 | C18: 6 | D18: 2 | E18: 2 | F18: 0 | G18: =SUMPRODUCT((H18:AL18=Som)*(Base!$B$3:$B$20))-F18 -> 8800 | H18: U | I18: U | O18: U | P18: U | Q18: R | R18: R | S18: U 1 | T18: U 1 | AS18: Usine | AV18: =IFERROR(LOOKUP(BC14,Fevrier!A65:A114,Fevrier!C66:C115),"") ->  | AX18: =IF(AV18="","",Base!$B$3) ->  | AZ18: =IFERROR(SUM(AV18*AX18),"") -> 
A19: =IF(B19<>"",COUNTA($B$6:B19),"") -> 14 | B19: =IFERROR(INDEX(Base!$E$2:$E$102,SMALL(IF(INDEX(Base!$E$2:$Q$102,,MATCH(Fevrier!$B$4,Base!$F$1:$Q$1,0)+1)="x",ROW(Base!$E$2:$E$102)-ROW(Base!$E$2)+1),ROWS($B$6:B19))),"") -> الموظف 18 | C19: 6 | D19: 2 | E19: 0 | F19: 1000 | G19: =SUMPRODUCT((H19:AL19=Som)*(Base!$B$3:$B$20))-F19 -> 7400 | H19: U | I19: U | O19: U | P19: U | Q19: R | R19: R | S19: 1000 | T19: U
A20: =IF(B20<>"",COUNTA($B$6:B20),"") -> 15 | B20: =IFERROR(INDEX(Base!$E$2:$E$102,SMALL(IF(INDEX(Base!$E$2:$Q$102,,MATCH(Fevrier!$B$4,Base!$F$1:$Q$1,0)+1)="x",ROW(Base!$E$2:$E$102)-ROW(Base!$E$2)+1),ROWS($B$6:B20))),"") -> الموظف 19 | C20: 6 | D20: 2 | E20: 0 | F20: 0 | G20: =SUMPRODUCT((H20:AL20=Som)*(Base!$B$3:$B$20))-F20 -> 8400 | H20: U | I20: U | O20: U | P20: U | Q20: R | R20: R | S20: U | T20: U | AS20: Route | AV20: =IFERROR(LOOKUP(BC14,Fevrier!A65:A114,Fevrier!D66:D115),"") ->  | AX20: =IF(AV20="","",Base!$B$13) ->  | AZ20: =IFERROR(SUM(AV20*AX20),"") -> 
A21: =IF(B21<>"",COUNTA($B$6:B21),"") -> 16 | B21: =IFERROR(INDEX(Base!$E$2:$E$102,SMALL(IF(INDEX(Base!$E$2:$Q$102,,MATCH(Fevrier!$B$4,Base!$F$1:$Q$1,0)+1)="x",ROW(Base!$E$2:$E$102)-ROW(Base!$E$2)+1),ROWS($B$6:B21))),"") -> الموظف 21 | C21: 6 | D21: 2 | E21: 2 | F21: 0 | G21: =SUMPRODUCT((H21:AL21=Som)*(Base!$B$3:$B$20))-F21 -> 8800 | H21: U | I21: U | O21: U | P21: U | Q21: R | R21: R | S21: U 1 | T21: U 1
A22: =IF(B22<>"",COUNTA($B$6:B22),"") -> 17 | B22: =IFERROR(INDEX(Base!$E$2:$E$102,SMALL(IF(INDEX(Base!$E$2:$Q$102,,MATCH(Fevrier!$B$4,Base!$F$1:$Q$1,0)+1)="x",ROW(Base!$E$2:$E$102)-ROW(Base!$E$2)+1),ROWS($B$6:B22))),"") -> الموظف 22 | C22: 4 | D22: 1 | E22: 0 | F22: 1000 | G22: =SUMPRODUCT((H22:AL22=Som)*(Base!$B$3:$B$20))-F22 -> 4200 | I22: U | O22: A | P22: U | R22: R | S22: U | T22: 1000 | AS22: H-Sup | AV22: =IFERROR(LOOKUP(BC14,Fevrier!A65:A114,Fevrier!E66:E115),"") ->  | AX22: =IF(AV22="","",200) ->  | AZ22: =IFERROR(SUM(AV22*AX22),"") -> 
A23: =IF(B23<>"",COUNTA($B$6:B23),"") -> 18 | B23: =IFERROR(INDEX(Base!$E$2:$E$102,SMALL(IF(INDEX(Base!$E$2:$Q$102,,MATCH(Fevrier!$B$4,Base!$F$1:$Q$1,0)+1)="x",ROW(Base!$E$2:$E$102)-ROW(Base!$E$2)+1),ROWS($B$6:B23))),"") -> الموظف 25 | C23: 7 | D23: 0 | E23: 0 | F23: 0 | G23: =SUMPRODUCT((H23:AL23=Som)*(Base!$B$3:$B$20))-F23 -> 7000 | I23: U | O23: U | P23: U | Q23: U | R23: U | S23: U | T23: U
A24: =IF(B24<>"",COUNTA($B$6:B24),"") ->  | B24: =IFERROR(INDEX(Base!$E$2:$E$102,SMALL(IF(INDEX(Base!$E$2:$Q$102,,MATCH(Fevrier!$B$4,Base!$F$1:$Q$1,0)+1)="x",ROW(Base!$E$2:$E$102)-ROW(Base!$E$2)+1),ROWS($B$6:B24))),"") ->  | C24: 5 | D24: 0 | E24: 0 | F24: 0 | G24: =SUMPRODUCT((H24:AL24=Som)*(Base!$B$3:$B$20))-F24 -> 5000 | I24: U | O24: A | P24: U | Q24: U | R24: U | S24: U | T24: A | AS24: Net A Paye | AV24: =SUM(AZ18:BA23)-AZ24 -> 0 | AY24: AC
A25: =IF(B25<>"",COUNTA($B$6:B25),"") ->  | B25: =IFERROR(INDEX(Base!$E$2:$E$102,SMALL(IF(INDEX(Base!$E$2:$Q$102,,MATCH(Fevrier!$B$4,Base!$F$1:$Q$1,0)+1)="x",ROW(Base!$E$2:$E$102)-ROW(Base!$E$2)+1),ROWS($B$6:B25))),"") ->  | C25: 7 | D25: 0 | E25: 0 | F25: 0 | G25: =SUMPRODUCT((H25:AL25=Som)*(Base!$B$3:$B$20))-F25 -> 7000 | H25: U | I25: U | O25: A | P25: U | Q25: U | R25: U | S25: U | T25: U
A26: =IF(B26<>"",COUNTA($B$6:B26),"") ->  | B26: =IFERROR(INDEX(Base!$E$2:$E$102,SMALL(IF(INDEX(Base!$E$2:$Q$102,,MATCH(Fevrier!$B$4,Base!$F$1:$Q$1,0)+1)="x",ROW(Base!$E$2:$E$102)-ROW(Base!$E$2)+1),ROWS($B$6:B26))),"") ->  | C26: 6 | D26: 0 | E26: 0 | F26: 0 | G26: =SUMPRODUCT((H26:AL26=Som)*(Base!$B$3:$B$20))-F26 -> 6000 | I26: U | O26: A | P26: U | Q26: U | R26: U | S26: U | T26: U | AW26: 1 | BC26: =BC14+1 -> 3
A27: =IF(B27<>"",COUNTA($B$6:B27),"") ->  | B27: =IFERROR(INDEX(Base!$E$2:$E$102,SMALL(IF(INDEX(Base!$E$2:$Q$102,,MATCH(Fevrier!$B$4,Base!$F$1:$Q$1,0)+1)="x",ROW(Base!$E$2:$E$102)-ROW(Base!$E$2)+1),ROWS($B$6:B27))),"") ->  | C27: 4 | D27: 0 | E27: 0 | F27: 0 | G27: =SUMPRODUCT((H27:AL27=Som)*(Base!$B$3:$B$20))-F27 -> 4000 | O27: A | Q27: U | R27: U | S27: U | T27: U
A28: =IF(B28<>"",COUNTA($B$6:B28),"") ->  | B28: =IFERROR(INDEX(Base!$E$2:$E$102,SMALL(IF(INDEX(Base!$E$2:$Q$102,,MATCH(Fevrier!$B$4,Base!$F$1:$Q$1,0)+1)="x",ROW(Base!$E$2:$E$102)-ROW(Base!$E$2)+1),ROWS($B$6:B28))),"") ->  | C28: 0 | D28: 0 | E28: 0 | F28: 0 | G28: =SUMPRODUCT((H28:AL28=Som)*(Base!$B$3:$B$20))-F28 -> 0 | AS28: Nom | AV28: =IFERROR(LOOKUP(BC26,Fevrier!$A77:A126,Fevrier!B77:B126),"") -> 
A29: =IF(B29<>"",COUNTA($B$6:B29),"") ->  | B29: =IFERROR(INDEX(Base!$E$2:$E$102,SMALL(IF(INDEX(Base!$E$2:$Q$102,,MATCH(Fevrier!$B$4,Base!$F$1:$Q$1,0)+1)="x",ROW(Base!$E$2:$E$102)-ROW(Base!$E$2)+1),ROWS($B$6:B29))),"") ->  | C29: 0 | D29: 0 | E29: 0 | F29: 0 | G29: =SUMPRODUCT((H29:AL29=Som)*(Base!$B$3:$B$20))-F29 -> 0
A30: =IF(B30<>"",COUNTA($B$6:B30),"") ->  | B30: =IFERROR(INDEX(Base!$E$2:$E$102,SMALL(IF(INDEX(Base!$E$2:$Q$102,,MATCH(Fevrier!$B$4,Base!$F$1:$Q$1,0)+1)="x",ROW(Base!$E$2:$E$102)-ROW(Base!$E$2)+1),ROWS($B$6:B30))),"") ->  | C30: 0 | D30: 0 | E30: 0 | F30: 0 | G30: =SUMPRODUCT((H30:AL30=Som)*(Base!$B$3:$B$20))-F30 -> 0 | AS30: Usine | AV30: =IFERROR(LOOKUP(BC26,Fevrier!A77:A126,Fevrier!C78:C127),"") ->  | AX30: =IF(AV30="","",Base!$B$3) ->  | AZ30: =IFERROR(SUM(AV30*AX30),"") -> 
A31: =IF(B31<>"",COUNTA($B$6:B31),"") ->  | B31: =IFERROR(INDEX(Base!$E$2:$E$102,SMALL(IF(INDEX(Base!$E$2:$Q$102,,MATCH(Fevrier!$B$4,Base!$F$1:$Q$1,0)+1)="x",ROW(Base!$E$2:$E$102)-ROW(Base!$E$2)+1),ROWS($B$6:B31))),"") ->  | C31: 0 | D31: 0 | E31: 0 | F31: 0 | G31: =SUMPRODUCT((H31:AL31=Som)*(Base!$B$3:$B$20))-F31 -> 0
A32: =IF(B32<>"",COUNTA($B$6:B32),"") ->  | B32: =IFERROR(INDEX(Base!$E$2:$E$102,SMALL(IF(INDEX(Base!$E$2:$Q$102,,MATCH(Fevrier!$B$4,Base!$F$1:$Q$1,0)+1)="x",ROW(Base!$E$2:$E$102)-ROW(Base!$E$2)+1),ROWS($B$6:B32))),"") ->  | C32: 0 | D32: 0 | E32: 0 | F32: 0 | G32: =SUMPRODUCT((H32:AL32=Som)*(Base!$B$3:$B$20))-F32 -> 0 | AS32: Route | AV32: =IFERROR(LOOKUP(BC26,Fevrier!A77:A126,Fevrier!D78:D127),"") ->  | AX32: =IF(AV32="","",Base!$B$13) ->  | AZ32: =IFERROR(SUM(AV32*AX32),"") -> 
A33: =IF(B33<>"",COUNTA($B$6:B33),"") ->  | B33: =IFERROR(INDEX(Base!$E$2:$E$102,SMALL(IF(INDEX(Base!$E$2:$Q$102,,MATCH(Fevrier!$B$4,Base!$F$1:$Q$1,0)+1)="x",ROW(Base!$E$2:$E$102)-ROW(Base!$E$2)+1),ROWS($B$6:B33))),"") ->  | C33: 0 | D33: 0 | E33: 0 | F33: 0 | G33: =SUMPRODUCT((H33:AL33=Som)*(Base!$B$3:$B$20))-F33 -> 0
A34: =IF(B34<>"",COUNTA($B$6:B34),"") ->  | B34: =IFERROR(INDEX(Base!$E$2:$E$102,SMALL(IF(INDEX(Base!$E$2:$Q$102,,MATCH(Fevrier!$B$4,Base!$F$1:$Q$1,0)+1)="x",ROW(Base!$E$2:$E$102)-ROW(Base!$E$2)+1),ROWS($B$6:B34))),"") ->  | C34: 0 | D34: 0 | E34: 0 | F34: 0 | G34: =SUMPRODUCT((H34:AL34=Som)*(Base!$B$3:$B$20))-F34 -> 0 | AS34: H-Sup | AV34: =IFERROR(LOOKUP(BC26,Fevrier!A77:A126,Fevrier!E78:E127),"") ->  | AX34: =IF(AV34="","",200) ->  | AZ34: =IFERROR(SUM(AV34*AX34),"") -> 
A35: =IF(B35<>"",COUNTA($B$6:B35),"") ->  | B35: =IFERROR(INDEX(Base!$E$2:$E$102,SMALL(IF(INDEX(Base!$E$2:$Q$102,,MATCH(Fevrier!$B$4,Base!$F$1:$Q$1,0)+1)="x",ROW(Base!$E$2:$E$102)-ROW(Base!$E$2)+1),ROWS($B$6:B35))),"") ->  | C35: 0 | D35: 0 | E35: 0 | F35: 0 | G35: =SUMPRODUCT((H35:AL35=Som)*(Base!$B$3:$B$20))-F35 -> 0
A36: =IF(B36<>"",COUNTA($B$6:B36),"") ->  | B36: =IFERROR(INDEX(Base!$E$2:$E$102,SMALL(IF(INDEX(Base!$E$2:$Q$102,,MATCH(Fevrier!$B$4,Base!$F$1:$Q$1,0)+1)="x",ROW(Base!$E$2:$E$102)-ROW(Base!$E$2)+1),ROWS($B$6:B36))),"") ->  | C36: 0 | D36: 0 | E36: 0 | F36: 0 | G36: =SUMPRODUCT((H36:AL36=Som)*(Base!$B$3:$B$20))-F36 -> 0 | AS36: Net A Paye | AV36: =SUM(AZ30:BA35)-AZ36 -> 0 | AY36: AC
A37: =IF(B37<>"",COUNTA($B$6:B37),"") ->  | B37: =IFERROR(INDEX(Base!$E$2:$E$102,SMALL(IF(INDEX(Base!$E$2:$Q$102,,MATCH(Fevrier!$B$4,Base!$F$1:$Q$1,0)+1)="x",ROW(Base!$E$2:$E$102)-ROW(Base!$E$2)+1),ROWS($B$6:B37))),"") ->  | C37: 0 | D37: 0 | E37: 0 | F37: 0 | G37: =SUMPRODUCT((H37:AL37=Som)*(Base!$B$3:$B$20))-F37 -> 0
A38: =IF(B38<>"",COUNTA($B$6:B38),"") ->  | B38: =IFERROR(INDEX(Base!$E$2:$E$102,SMALL(IF(INDEX(Base!$E$2:$Q$102,,MATCH(Fevrier!$B$4,Base!$F$1:$Q$1,0)+1)="x",ROW(Base!$E$2:$E$102)-ROW(Base!$E$2)+1),ROWS($B$6:B38))),"") ->  | C38: 0 | D38: 0 | E38: 0 | F38: 0 | G38: =SUMPRODUCT((H38:AL38=Som)*(Base!$B$3:$B$20))-F38 -> 0 | AW38: 1 | BC38: =BC26+1 -> 4
A39: =IF(B39<>"",COUNTA($B$6:B39),"") ->  | B39: =IFERROR(INDEX(Base!$E$2:$E$102,SMALL(IF(INDEX(Base!$E$2:$Q$102,,MATCH(Fevrier!$B$4,Base!$F$1:$Q$1,0)+1)="x",ROW(Base!$E$2:$E$102)-ROW(Base!$E$2)+1),ROWS($B$6:B39))),"") ->  | C39: 0 | D39: 0 | E39: 0 | F39: 0 | G39: =SUMPRODUCT((H39:AL39=Som)*(Base!$B$3:$B$20))-F39 -> 0
A40: =IF(B40<>"",COUNTA($B$6:B40),"") ->  | B40: =IFERROR(INDEX(Base!$E$2:$E$102,SMALL(IF(INDEX(Base!$E$2:$Q$102,,MATCH(Fevrier!$B$4,Base!$F$1:$Q$1,0)+1)="x",ROW(Base!$E$2:$E$102)-ROW(Base!$E$2)+1),ROWS($B$6:B40))),"") ->  | C40: 0 | D40: 0 | E40: 0 | F40: 0 | G40: =SUMPRODUCT((H40:AL40=Som)*(Base!$B$3:$B$20))-F40 -> 0 | AS40: Nom | AV40: =IFERROR(LOOKUP(BC38,Fevrier!$A89:A138,Fevrier!B89:B138),"") -> 
A41: =IF(B41<>"",COUNTA($B$6:B41),"") ->  | B41: =IFERROR(INDEX(Base!$E$2:$E$102,SMALL(IF(INDEX(Base!$E$2:$Q$102,,MATCH(Fevrier!$B$4,Base!$F$1:$Q$1,0)+1)="x",ROW(Base!$E$2:$E$102)-ROW(Base!$E$2)+1),ROWS($B$6:B41))),"") ->  | C41: 0 | D41: 0 | E41: 0 | F41: 0 | G41: =SUMPRODUCT((H41:AL41=Som)*(Base!$B$3:$B$20))-F41 -> 0
A42: =IF(B42<>"",COUNTA($B$6:B42),"") ->  | B42: =IFERROR(INDEX(Base!$E$2:$E$102,SMALL(IF(INDEX(Base!$E$2:$Q$102,,MATCH(Fevrier!$B$4,Base!$F$1:$Q$1,0)+1)="x",ROW(Base!$E$2:$E$102)-ROW(Base!$E$2)+1),ROWS($B$6:B42))),"") ->  | C42: 0 | D42: 0 | E42: 0 | F42: 0 | G42: =SUMPRODUCT((H42:AL42=Som)*(Base!$B$3:$B$20))-F42 -> 0 | AS42: Usine | AV42: =IFERROR(LOOKUP(BC38,Fevrier!A89:A138,Fevrier!C90:C139),"") ->  | AX42: =IF(AV42="","",Base!$B$3) ->  | AZ42: =IFERROR(SUM(AV42*AX42),"") -> 
A43: =IF(B43<>"",COUNTA($B$6:B43),"") ->  | B43: =IFERROR(INDEX(Base!$E$2:$E$102,SMALL(IF(INDEX(Base!$E$2:$Q$102,,MATCH(Fevrier!$B$4,Base!$F$1:$Q$1,0)+1)="x",ROW(Base!$E$2:$E$102)-ROW(Base!$E$2)+1),ROWS($B$6:B43))),"") ->  | C43: 0 | D43: 0 | E43: 0 | F43: 0 | G43: =SUMPRODUCT((H43:AL43=Som)*(Base!$B$3:$B$20))-F43 -> 0
A44: =IF(B44<>"",COUNTA($B$6:B44),"") ->  | B44: =IFERROR(INDEX(Base!$E$2:$E$102,SMALL(IF(INDEX(Base!$E$2:$Q$102,,MATCH(Fevrier!$B$4,Base!$F$1:$Q$1,0)+1)="x",ROW(Base!$E$2:$E$102)-ROW(Base!$E$2)+1),ROWS($B$6:B44))),"") ->  | C44: 0 | D44: 0 | E44: 0 | F44: 0 | G44: =SUMPRODUCT((H44:AL44=Som)*(Base!$B$3:$B$20))-F44 -> 0 | AS44: Route | AV44: =IFERROR(LOOKUP(BC38,Fevrier!A89:A138,Fevrier!D90:D139),"") ->  | AX44: =IF(AV44="","",Base!$B$13) ->  | AZ44: =IFERROR(SUM(AV44*AX44),"") -> 
A45: =IF(B45<>"",COUNTA($B$6:B45),"") ->  | B45: =IFERROR(INDEX(Base!$E$2:$E$102,SMALL(IF(INDEX(Base!$E$2:$Q$102,,MATCH(Fevrier!$B$4,Base!$F$1:$Q$1,0)+1)="x",ROW(Base!$E$2:$E$102)-ROW(Base!$E$2)+1),ROWS($B$6:B45))),"") ->  | C45: 0 | D45: 0 | E45: 0 | F45: 0 | G45: =SUMPRODUCT((H45:AL45=Som)*(Base!$B$3:$B$20))-F45 -> 0
A46: =IF(B46<>"",COUNTA($B$6:B46),"") ->  | B46: =IFERROR(INDEX(Base!$E$2:$E$102,SMALL(IF(INDEX(Base!$E$2:$Q$102,,MATCH(Fevrier!$B$4,Base!$F$1:$Q$1,0)+1)="x",ROW(Base!$E$2:$E$102)-ROW(Base!$E$2)+1),ROWS($B$6:B46))),"") ->  | C46: 0 | D46: 0 | E46: 0 | F46: 0 | G46: =SUMPRODUCT((H46:AL46=Som)*(Base!$B$3:$B$20))-F46 -> 0 | AS46: H-Sup | AV46: =IFERROR(LOOKUP(BC38,Fevrier!A89:A138,Fevrier!E90:E139),"") ->  | AX46: =IF(AV46="","",200) ->  | AZ46: =IFERROR(SUM(AV46*AX46),"") -> 
A47: =IF(B47<>"",COUNTA($B$6:B47),"") ->  | B47: =IFERROR(INDEX(Base!$E$2:$E$102,SMALL(IF(INDEX(Base!$E$2:$Q$102,,MATCH(Fevrier!$B$4,Base!$F$1:$Q$1,0)+1)="x",ROW(Base!$E$2:$E$102)-ROW(Base!$E$2)+1),ROWS($B$6:B47))),"") ->  | C47: 0 | D47: 0 | E47: 0 | F47: 0 | G47: =SUMPRODUCT((H47:AL47=Som)*(Base!$B$3:$B$20))-F47 -> 0
A48: =IF(B48<>"",COUNTA($B$6:B48),"") ->  | B48: =IFERROR(INDEX(Base!$E$2:$E$102,SMALL(IF(INDEX(Base!$E$2:$Q$102,,MATCH(Fevrier!$B$4,Base!$F$1:$Q$1,0)+1)="x",ROW(Base!$E$2:$E$102)-ROW(Base!$E$2)+1),ROWS($B$6:B48))),"") ->  | C48: 0 | D48: 0 | E48: 0 | F48: 0 | G48: =SUMPRODUCT((H48:AL48=Som)*(Base!$B$3:$B$20))-F48 -> 0 | AS48: Net A Paye | AV48: =SUM(AZ42:BA47)-AZ48 -> 0 | AY48: AC
A49: =IF(B49<>"",COUNTA($B$6:B49),"") ->  | B49: =IFERROR(INDEX(Base!$E$2:$E$102,SMALL(IF(INDEX(Base!$E$2:$Q$102,,MATCH(Fevrier!$B$4,Base!$F$1:$Q$1,0)+1)="x",ROW(Base!$E$2:$E$102)-ROW(Base!$E$2)+1),ROWS($B$6:B49))),"") ->  | C49: 0 | D49: 0 | E49: 0 | F49: 0 | G49: =SUMPRODUCT((H49:AL49=Som)*(Base!$B$3:$B$20))-F49 -> 0
A50: =IF(B50<>"",COUNTA($B$6:B50),"") ->  | B50: =IFERROR(INDEX(Base!$E$2:$E$102,SMALL(IF(INDEX(Base!$E$2:$Q$102,,MATCH(Fevrier!$B$4,Base!$F$1:$Q$1,0)+1)="x",ROW(Base!$E$2:$E$102)-ROW(Base!$E$2)+1),ROWS($B$6:B50))),"") ->  | C50: 0 | D50: 0 | E50: 0 | F50: 0 | G50: =SUMPRODUCT((H50:AL50=Som)*(Base!$B$3:$B$20))-F50 -> 0 | AW50: 1 | BC50: =BC38+1 -> 5
A51: =IF(B51<>"",COUNTA($B$6:B51),"") ->  | B51: =IFERROR(INDEX(Base!$E$2:$E$102,SMALL(IF(INDEX(Base!$E$2:$Q$102,,MATCH(Fevrier!$B$4,Base!$F$1:$Q$1,0)+1)="x",ROW(Base!$E$2:$E$102)-ROW(Base!$E$2)+1),ROWS($B$6:B51))),"") ->  | C51: 0 | D51: 0 | E51: 0 | F51: 0 | G51: =SUMPRODUCT((H51:AL51=Som)*(Base!$B$3:$B$20))-F51 -> 0
A52: =IF(B52<>"",COUNTA($B$6:B52),"") ->  | B52: =IFERROR(INDEX(Base!$E$2:$E$102,SMALL(IF(INDEX(Base!$E$2:$Q$102,,MATCH(Fevrier!$B$4,Base!$F$1:$Q$1,0)+1)="x",ROW(Base!$E$2:$E$102)-ROW(Base!$E$2)+1),ROWS($B$6:B52))),"") ->  | C52: 0 | D52: 0 | E52: 0 | F52: 0 | G52: =SUMPRODUCT((H52:AL52=Som)*(Base!$B$3:$B$20))-F52 -> 0 | AS52: Nom | AV52: =IFERROR(LOOKUP(BC50,Fevrier!$A101:A150,Fevrier!B101:B150),"") -> 
A53: =IF(B53<>"",COUNTA($B$6:B53),"") ->  | B53: =IFERROR(INDEX(Base!$E$2:$E$102,SMALL(IF(INDEX(Base!$E$2:$Q$102,,MATCH(Fevrier!$B$4,Base!$F$1:$Q$1,0)+1)="x",ROW(Base!$E$2:$E$102)-ROW(Base!$E$2)+1),ROWS($B$6:B53))),"") ->  | C53: 0 | D53: 0 | E53: 0 | F53: 0 | G53: =SUMPRODUCT((H53:AL53=Som)*(Base!$B$3:$B$20))-F53 -> 0
A54: =IF(B54<>"",COUNTA($B$6:B54),"") ->  | B54: =IFERROR(INDEX(Base!$E$2:$E$102,SMALL(IF(INDEX(Base!$E$2:$Q$102,,MATCH(Fevrier!$B$4,Base!$F$1:$Q$1,0)+1)="x",ROW(Base!$E$2:$E$102)-ROW(Base!$E$2)+1),ROWS($B$6:B54))),"") ->  | C54: 0 | D54: 0 | E54: 0 | F54: 0 | G54: =SUMPRODUCT((H54:AL54=Som)*(Base!$B$3:$B$20))-F54 -> 0 | AS54: Usine | AV54: =IFERROR(LOOKUP(BC50,Fevrier!A101:A150,Fevrier!C102:C151),"") ->  | AX54: =IF(AV54="","",Base!$B$3) ->  | AZ54: =IFERROR(SUM(AV54*AX54),"") -> 
C55: 0 | D55: 0 | E55: 0 | F55: 0 | G55: =SUMPRODUCT((H55:AL55=Som)*(Base!$B$3:$B$20))-F55 -> 0
AS56: Route | AV56: =IFERROR(LOOKUP(BC50,Fevrier!A101:A150,Fevrier!D102:D151),"") ->  | AX56: =IF(AV56="","",Base!$B$13) ->  | AZ56: =IFERROR(SUM(AV56*AX56),"") -> 
AS58: H-Sup | AV58: =IFERROR(LOOKUP(BC50,Fevrier!A101:A150,Fevrier!E102:E151),"") ->  | AX58: =IF(AV58="","",200) ->  | AZ58: =IFERROR(SUM(AV58*AX58),"") -> 
AS60: Net A Paye | AV60: =SUM(AZ54:BA59)-AZ60 -> 0 | AY60: AC
AW62: 1 | BC62: =BC50+1 -> 6
AS64: Nom | AV64: =IFERROR(LOOKUP(BC62,Fevrier!$A113:A162,Fevrier!B113:B162),"") -> 
AS66: Usine | AV66: =IFERROR(LOOKUP(BC62,Fevrier!A113:A162,Fevrier!C114:C163),"") ->  | AX66: =IF(AV66="","",Base!$B$3) ->  | AZ66: =IFERROR(SUM(AV66*AX66),"") -> 
AS68: Route | AV68: =IFERROR(LOOKUP(BC62,Fevrier!A113:A162,Fevrier!D114:D163),"") ->  | AX68: =IF(AV68="","",Base!$B$13) ->  | AZ68: =IFERROR(SUM(AV68*AX68),"") -> 
AS70: H-Sup | AV70: =IFERROR(LOOKUP(BC62,Fevrier!A113:A162,Fevrier!E114:E163),"") ->  | AX70: =IF(AV70="","",200) ->  | AZ70: =IFERROR(SUM(AV70*AX70),"") -> 
AS72: Net A Paye | AV72: =SUM(AZ66:BA71)-AZ72 -> 0 | AY72: AC
AW74: 1 | BC74: =BC62+1 -> 7
AS76: Nom | AV76: =IFERROR(LOOKUP(BC74,Fevrier!$A125:A174,Fevrier!B125:B174),"") -> 
AS78: Usine | AV78: =IFERROR(LOOKUP(BC74,Fevrier!A125:A174,Fevrier!C126:C175),"") ->  | AX78: =IF(AV78="","",Base!$B$3) ->  | AZ78: =IFERROR(SUM(AV78*AX78),"") -> 
AS80: Route | AV80: =IFERROR(LOOKUP(BC74,Fevrier!A125:A174,Fevrier!D126:D175),"") ->  | AX80: =IF(AV80="","",Base!$B$13) ->  | AZ80: =IFERROR(SUM(AV80*AX80),"") -> 
AS82: H-Sup | AV82: =IFERROR(LOOKUP(BC74,Fevrier!A125:A174,Fevrier!E126:E175),"") ->  | AX82: =IF(AV82="","",200) ->  | AZ82: =IFERROR(SUM(AV82*AX82),"") -> 
AS84: Net A Paye | AV84: =SUM(AZ78:BA83)-AZ84 -> 0 | AY84: AC
AW86: 1 | BC86: =BC74+1 -> 8
AS88: Nom | AV88: =IFERROR(LOOKUP(BC86,Fevrier!$A137:A186,Fevrier!B137:B186),"") -> 
AS90: Usine | AV90: =IFERROR(LOOKUP(BC86,Fevrier!A137:A186,Fevrier!C138:C187),"") ->  | AX90: =IF(AV90="","",Base!$B$3) ->  | AZ90: =IFERROR(SUM(AV90*AX90),"") -> 
AS92: Route | AV92: =IFERROR(LOOKUP(BC86,Fevrier!A137:A186,Fevrier!D138:D187),"") ->  | AX92: =IF(AV92="","",Base!$B$13) ->  | AZ92: =IFERROR(SUM(AV92*AX92),"") -> 
AS94: H-Sup | AV94: =IFERROR(LOOKUP(BC86,Fevrier!A137:A186,Fevrier!E138:E187),"") ->  | AX94: =IF(AV94="","",200) ->  | AZ94: =IFERROR(SUM(AV94*AX94),"") -> 
AS96: Net A Paye | AV96: =SUM(AZ90:BA95)-AZ96 -> 0 | AY96: AC
AW98: 1 | BC98: =BC86+1 -> 9
AS100: Nom | AV100: =IFERROR(LOOKUP(BC98,Fevrier!$A149:A198,Fevrier!B149:B198),"") -> 
AS102: Usine | AV102: =IFERROR(LOOKUP(BC98,Fevrier!A149:A198,Fevrier!C150:C199),"") ->  | AX102: =IF(AV102="","",Base!$B$3) ->  | AZ102: =IFERROR(SUM(AV102*AX102),"") -> 
AS104: Route | AV104: =IFERROR(LOOKUP(BC98,Fevrier!A149:A198,Fevrier!D150:D199),"") ->  | AX104: =IF(AV104="","",Base!$B$13) ->  | AZ104: =IFERROR(SUM(AV104*AX104),"") -> 
AS106: H-Sup | AV106: =IFERROR(LOOKUP(BC98,Fevrier!A149:A198,Fevrier!E150:E199),"") ->  | AX106: =IF(AV106="","",200) ->  | AZ106: =IFERROR(SUM(AV106*AX106),"") -> 
AS108: Net A Paye | AV108: =SUM(AZ102:BA107)-AZ108 -> 0 | AY108: AC
AW110: 1 | BC110: =BC98+1 -> 10
AS112: Nom | AV112: =IFERROR(LOOKUP(BC110,Fevrier!$A161:A210,Fevrier!B161:B210),"") -> 
AS114: Usine | AV114: =IFERROR(LOOKUP(BC110,Fevrier!A161:A210,Fevrier!C162:C211),"") ->  | AX114: =IF(AV114="","",Base!$B$3) ->  | AZ114: =IFERROR(SUM(AV114*AX114),"") -> 
AS116: Route | AV116: =IFERROR(LOOKUP(BC110,Fevrier!A161:A210,Fevrier!D162:D211),"") ->  | AX116: =IF(AV116="","",Base!$B$13) ->  | AZ116: =IFERROR(SUM(AV116*AX116),"") -> 
AS118: H-Sup | AV118: =IFERROR(LOOKUP(BC110,Fevrier!A161:A210,Fevrier!E162:E211),"") ->  | AX118: =IF(AV118="","",200) ->  | AZ118: =IFERROR(SUM(AV118*AX118),"") -> 
AS120: Net A Paye | AV120: =SUM(AZ114:BA119)-AZ120 -> 0 | AY120: AC
AW122: 1 | BC122: =BC110+1 -> 11
AS124: Nom | AV124: =IFERROR(LOOKUP(BC122,Fevrier!$A173:A222,Fevrier!B173:B222),"") -> 
AS126: Usine | AV126: =IFERROR(LOOKUP(BC122,Fevrier!A173:A222,Fevrier!C174:C223),"") ->  | AX126: =IF(AV126="","",Base!$B$3) ->  | AZ126: =IFERROR(SUM(AV126*AX126),"") -> 
AS128: Route | AV128: =IFERROR(LOOKUP(BC122,Fevrier!A173:A222,Fevrier!D174:D223),"") ->  | AX128: =IF(AV128="","",Base!$B$13) ->  | AZ128: =IFERROR(SUM(AV128*AX128),"") -> 
AS130: H-Sup | AV130: =IFERROR(LOOKUP(BC122,Fevrier!A173:A222,Fevrier!E174:E223),"") ->  | AX130: =IF(AV130="","",200) ->  | AZ130: =IFERROR(SUM(AV130*AX130),"") -> 
AS132: Net A Paye | AV132: =SUM(AZ126:BA131)-AZ132 -> 0 | AY132: AC
AW134: 1 | BC134: =BC122+1 -> 12
AS136: Nom | AV136: =IFERROR(LOOKUP(BC134,Fevrier!$A185:A234,Fevrier!B185:B234),"") -> 
AS138: Usine | AV138: =IFERROR(LOOKUP(BC134,Fevrier!A185:A234,Fevrier!C186:C235),"") ->  | AX138: =IF(AV138="","",Base!$B$3) ->  | AZ138: =IFERROR(SUM(AV138*AX138),"") -> 
AS140: Route | AV140: =IFERROR(LOOKUP(BC134,Fevrier!A185:A234,Fevrier!D186:D235),"") ->  | AX140: =IF(AV140="","",Base!$B$13) ->  | AZ140: =IFERROR(SUM(AV140*AX140),"") -> 
AS142: H-Sup | AV142: =IFERROR(LOOKUP(BC134,Fevrier!A185:A234,Fevrier!E186:E235),"") ->  | AX142: =IF(AV142="","",200) ->  | AZ142: =IFERROR(SUM(AV142*AX142),"") -> 
AS144: Net A Paye | AV144: =SUM(AZ138:BA143)-AZ144 -> 0 | AY144: AC
AW146: 1 | BC146: =BC134+1 -> 13
AS148: Nom | AV148: =IFERROR(LOOKUP(BC146,Fevrier!$A197:A246,Fevrier!B197:B246),"") -> 
AS150: Usine | AV150: =IFERROR(LOOKUP(BC146,Fevrier!A197:A246,Fevrier!C198:C247),"") ->  | AX150: =IF(AV150="","",Base!$B$3) ->  | AZ150: =IFERROR(SUM(AV150*AX150),"") -> 
AS152: Route | AV152: =IFERROR(LOOKUP(BC146,Fevrier!A197:A246,Fevrier!D198:D247),"") ->  | AX152: =IF(AV152="","",Base!$B$13) ->  | AZ152: =IFERROR(SUM(AV152*AX152),"") -> 
AS154: H-Sup | AV154: =IFERROR(LOOKUP(BC146,Fevrier!A197:A246,Fevrier!E198:E247),"") ->  | AX154: =IF(AV154="","",200) ->  | AZ154: =IFERROR(SUM(AV154*AX154),"") -> 
AS156: Net A Paye | AV156: =SUM(AZ150:BA155)-AZ156 -> 0 | AY156: AC
AW158: 1 | BC158: =BC146+1 -> 14
AS160: Nom | AV160: =IFERROR(LOOKUP(BC158,Fevrier!$A209:A258,Fevrier!B209:B258),"") -> 
AS162: Usine | AV162: =IFERROR(LOOKUP(BC158,Fevrier!A209:A258,Fevrier!C210:C259),"") ->  | AX162: =IF(AV162="","",Base!$B$3) ->  | AZ162: =IFERROR(SUM(AV162*AX162),"") -> 
AS164: Route | AV164: =IFERROR(LOOKUP(BC158,Fevrier!A209:A258,Fevrier!D210:D259),"") ->  | AX164: =IF(AV164="","",Base!$B$13) ->  | AZ164: =IFERROR(SUM(AV164*AX164),"") -> 
AS166: H-Sup | AV166: =IFERROR(LOOKUP(BC158,Fevrier!A209:A258,Fevrier!E210:E259),"") ->  | AX166: =IF(AV166="","",200) ->  | AZ166: =IFERROR(SUM(AV166*AX166),"") -> 
AS168: Net A Paye | AV168: =SUM(AZ162:BA167)-AZ168 -> 0 | AY168: AC
AW170: 1 | BC170: =BC158+1 -> 15
AS172: Nom | AV172: =IFERROR(LOOKUP(BC170,Fevrier!$A221:A270,Fevrier!B221:B270),"") -> 
AS174: Usine | AV174: =IFERROR(LOOKUP(BC170,Fevrier!A221:A270,Fevrier!C222:C271),"") ->  | AX174: =IF(AV174="","",Base!$B$3) ->  | AZ174: =IFERROR(SUM(AV174*AX174),"") -> 
AS176: Route | AV176: =IFERROR(LOOKUP(BC170,Fevrier!A221:A270,Fevrier!D222:D271),"") ->  | AX176: =IF(AV176="","",Base!$B$13) ->  | AZ176: =IFERROR(SUM(AV176*AX176),"") -> 
AS178: H-Sup | AV178: =IFERROR(LOOKUP(BC170,Fevrier!A221:A270,Fevrier!E222:E271),"") ->  | AX178: =IF(AV178="","",200) ->  | AZ178: =IFERROR(SUM(AV178*AX178),"") -> 
AS180: Net A Paye | AV180: =SUM(AZ174:BA179)-AZ180 -> 0 | AY180: AC
AW182: 1 | BC182: =BC170+1 -> 16
AS184: Nom | AV184: =IFERROR(LOOKUP(BC182,Fevrier!$A233:A282,Fevrier!B233:B282),"") -> 
AS186: Usine | AV186: =IFERROR(LOOKUP(BC182,Fevrier!A233:A282,Fevrier!C234:C283),"") ->  | AX186: =IF(AV186="","",Base!$B$3) ->  | AZ186: =IFERROR(SUM(AV186*AX186),"") -> 
AS188: Route | AV188: =IFERROR(LOOKUP(BC182,Fevrier!A233:A282,Fevrier!D234:D283),"") ->  | AX188: =IF(AV188="","",Base!$B$13) ->  | AZ188: =IFERROR(SUM(AV188*AX188),"") -> 
AS190: H-Sup | AV190: =IFERROR(LOOKUP(BC182,Fevrier!A233:A282,Fevrier!E234:E283),"") ->  | AX190: =IF(AV190="","",200) ->  | AZ190: =IFERROR(SUM(AV190*AX190),"") -> 
AS192: Net A Paye | AV192: =SUM(AZ186:BA191)-AZ192 -> 0 | AY192: AC
AW194: 1 | BC194: =BC182+1 -> 17
AS196: Nom | AV196: =IFERROR(LOOKUP(BC194,Fevrier!$A245:A294,Fevrier!B245:B294),"") -> 
AS198: Usine | AV198: =IFERROR(LOOKUP(BC194,Fevrier!A245:A294,Fevrier!C246:C295),"") ->  | AX198: =IF(AV198="","",Base!$B$3) ->  | AZ198: =IFERROR(SUM(AV198*AX198),"") -> 
AS200: Route | AV200: =IFERROR(LOOKUP(BC194,Fevrier!A245:A294,Fevrier!D246:D295),"") ->  | AX200: =IF(AV200="","",Base!$B$13) ->  | AZ200: =IFERROR(SUM(AV200*AX200),"") -> 
AS202: H-Sup | AV202: =IFERROR(LOOKUP(BC194,Fevrier!A245:A294,Fevrier!E246:E295),"") ->  | AX202: =IF(AV202="","",200) ->  | AZ202: =IFERROR(SUM(AV202*AX202),"") -> 
AS204: Net A Paye | AV204: =SUM(AZ198:BA203)-AZ204 -> 0 | AY204: AC
AW206: 1 | BC206: =BC194+1 -> 18
AS208: Nom | AV208: =IFERROR(LOOKUP(BC206,Fevrier!$A257:A306,Fevrier!B257:B306),"") -> 
AS210: Usine | AV210: =IFERROR(LOOKUP(BC206,Fevrier!A257:A306,Fevrier!C258:C307),"") ->  | AX210: =IF(AV210="","",Base!$B$3) ->  | AZ210: =IFERROR(SUM(AV210*AX210),"") -> 
AS212: Route | AV212: =IFERROR(LOOKUP(BC206,Fevrier!A257:A306,Fevrier!D258:D307),"") ->  | AX212: =IF(AV212="","",Base!$B$13) ->  | AZ212: =IFERROR(SUM(AV212*AX212),"") -> 
AS214: H-Sup | AV214: =IFERROR(LOOKUP(BC206,Fevrier!A257:A306,Fevrier!E258:E307),"") ->  | AX214: =IF(AV214="","",200) ->  | AZ214: =IFERROR(SUM(AV214*AX214),"") -> 
AS216: Net A Paye | AV216: =SUM(AZ210:BA215)-AZ216 -> 0 | AY216: AC
AW218: 1 | BC218: =BC206+1 -> 19
AS220: Nom | AV220: =IFERROR(LOOKUP(BC218,Fevrier!$A269:A318,Fevrier!B269:B318),"") -> 
AS222: Usine | AV222: =IFERROR(LOOKUP(BC218,Fevrier!A269:A318,Fevrier!C270:C319),"") ->  | AX222: =IF(AV222="","",Base!$B$3) ->  | AZ222: =IFERROR(SUM(AV222*AX222),"") -> 
AS224: Route | AV224: =IFERROR(LOOKUP(BC218,Fevrier!A269:A318,Fevrier!D270:D319),"") ->  | AX224: =IF(AV224="","",Base!$B$13) ->  | AZ224: =IFERROR(SUM(AV224*AX224),"") -> 
AS226: H-Sup | AV226: =IFERROR(LOOKUP(BC218,Fevrier!A269:A318,Fevrier!E270:E319),"") ->  | AX226: =IF(AV226="","",200) ->  | AZ226: =IFERROR(SUM(AV226*AX226),"") -> 
AS228: Net A Paye | AV228: =SUM(AZ222:BA227)-AZ228 -> 0 | AY228: AC
AW230: 1 | BC230: =BC218+1 -> 20
AS232: Nom | AV232: =IFERROR(LOOKUP(BC230,Fevrier!$A281:A330,Fevrier!B281:B330),"") -> 
AS234: Usine | AV234: =IFERROR(LOOKUP(BC230,Fevrier!A281:A330,Fevrier!C282:C331),"") ->  | AX234: =IF(AV234="","",Base!$B$3) ->  | AZ234: =IFERROR(SUM(AV234*AX234),"") -> 
AS236: Route | AV236: =IFERROR(LOOKUP(BC230,Fevrier!A281:A330,Fevrier!D282:D331),"") ->  | AX236: =IF(AV236="","",Base!$B$13) ->  | AZ236: =IFERROR(SUM(AV236*AX236),"") -> 
AS238: H-Sup | AV238: =IFERROR(LOOKUP(BC230,Fevrier!A281:A330,Fevrier!E282:E331),"") ->  | AX238: =IF(AV238="","",200) ->  | AZ238: =IFERROR(SUM(AV238*AX238),"") -> 
AS240: Net A Paye | AV240: =SUM(AZ234:BA239)-AZ240 -> 0 | AY240: AC
AW242: 1 | BC242: =BC230+1 -> 21
AS244: Nom | AV244: =IFERROR(LOOKUP(BC242,Fevrier!$A293:A342,Fevrier!B293:B342),"") -> 
AS246: Usine | AV246: =IFERROR(LOOKUP(BC242,Fevrier!A293:A342,Fevrier!C294:C343),"") ->  | AX246: =IF(AV246="","",Base!$B$3) ->  | AZ246: =IFERROR(SUM(AV246*AX246),"") -> 
AS248: Route | AV248: =IFERROR(LOOKUP(BC242,Fevrier!A293:A342,Fevrier!D294:D343),"") ->  | AX248: =IF(AV248="","",Base!$B$13) ->  | AZ248: =IFERROR(SUM(AV248*AX248),"") -> 
AS250: H-Sup | AV250: =IFERROR(LOOKUP(BC242,Fevrier!A293:A342,Fevrier!E294:E343),"") ->  | AX250: =IF(AV250="","",200) ->  | AZ250: =IFERROR(SUM(AV250*AX250),"") -> 
AS252: Net A Paye | AV252: =SUM(AZ246:BA251)-AZ252 -> 0 | AY252: AC
AW254: 1 | BC254: =BC242+1 -> 22
AS256: Nom | AV256: =IFERROR(LOOKUP(BC254,Fevrier!$A305:A354,Fevrier!B305:B354),"") -> 
AS258: Usine | AV258: =IFERROR(LOOKUP(BC254,Fevrier!A305:A354,Fevrier!C306:C355),"") ->  | AX258: =IF(AV258="","",Base!$B$3) ->  | AZ258: =IFERROR(SUM(AV258*AX258),"") -> 
AS260: Route | AV260: =IFERROR(LOOKUP(BC254,Fevrier!A305:A354,Fevrier!D306:D355),"") ->  | AX260: =IF(AV260="","",Base!$B$13) ->  | AZ260: =IFERROR(SUM(AV260*AX260),"") -> 
AS262: H-Sup | AV262: =IFERROR(LOOKUP(BC254,Fevrier!A305:A354,Fevrier!E306:E355),"") ->  | AX262: =IF(AV262="","",200) ->  | AZ262: =IFERROR(SUM(AV262*AX262),"") -> 
AS264: Net A Paye | AV264: =SUM(AZ258:BA263)-AZ264 -> 0 | AY264: AC
AW266: 1 | BC266: =BC254+1 -> 23
AS268: Nom | AV268: =IFERROR(LOOKUP(BC266,Fevrier!$A317:A366,Fevrier!B317:B366),"") -> 
AS270: Usine | AV270: =IFERROR(LOOKUP(BC266,Fevrier!A317:A366,Fevrier!C318:C367),"") ->  | AX270: =IF(AV270="","",Base!$B$3) ->  | AZ270: =IFERROR(SUM(AV270*AX270),"") -> 
AS272: Route | AV272: =IFERROR(LOOKUP(BC266,Fevrier!A317:A366,Fevrier!D318:D367),"") ->  | AX272: =IF(AV272="","",Base!$B$13) ->  | AZ272: =IFERROR(SUM(AV272*AX272),"") -> 
AS274: H-Sup | AV274: =IFERROR(LOOKUP(BC266,Fevrier!A317:A366,Fevrier!E318:E367),"") ->  | AX274: =IF(AV274="","",200) ->  | AZ274: =IFERROR(SUM(AV274*AX274),"") -> 
AS276: Net A Paye | AV276: =SUM(AZ270:BA275)-AZ276 -> 0 | AY276: AC
AW278: 1 | BC278: =BC266+1 -> 24
AS280: Nom | AV280: =IFERROR(LOOKUP(BC278,Fevrier!$A329:A378,Fevrier!B329:B378),"") -> 
AS282: Usine | AV282: =IFERROR(LOOKUP(BC278,Fevrier!A329:A378,Fevrier!C330:C379),"") ->  | AX282: =IF(AV282="","",Base!$B$3) ->  | AZ282: =IFERROR(SUM(AV282*AX282),"") -> 
AS284: Route | AV284: =IFERROR(LOOKUP(BC278,Fevrier!A329:A378,Fevrier!D330:D379),"") ->  | AX284: =IF(AV284="","",Base!$B$13) ->  | AZ284: =IFERROR(SUM(AV284*AX284),"") -> 
AS286: H-Sup | AV286: =IFERROR(LOOKUP(BC278,Fevrier!A329:A378,Fevrier!E330:E379),"") ->  | AX286: =IF(AV286="","",200) ->  | AZ286: =IFERROR(SUM(AV286*AX286),"") -> 
AS288: Net A Paye | AV288: =SUM(AZ282:BA287)-AZ288 -> 0 | AY288: AC
AW290: 1 | BC290: =BC278+1 -> 25
AS292: Nom | AV292: =IFERROR(LOOKUP(BC290,Fevrier!$A341:A390,Fevrier!B341:B390),"") -> 
AS294: Usine | AV294: =IFERROR(LOOKUP(BC290,Fevrier!A341:A390,Fevrier!C342:C391),"") ->  | AX294: =IF(AV294="","",Base!$B$3) ->  | AZ294: =IFERROR(SUM(AV294*AX294),"") -> 
AS296: Route | AV296: =IFERROR(LOOKUP(BC290,Fevrier!A341:A390,Fevrier!D342:D391),"") ->  | AX296: =IF(AV296="","",Base!$B$13) ->  | AZ296: =IFERROR(SUM(AV296*AX296),"") -> 
AS298: H-Sup | AV298: =IFERROR(LOOKUP(BC290,Fevrier!A341:A390,Fevrier!E342:E391),"") ->  | AX298: =IF(AV298="","",200) ->  | AZ298: =IFERROR(SUM(AV298*AX298),"") -> 
AS300: Net A Paye | AV300: =SUM(AZ294:BA299)-AZ300 -> 0 | AY300: AC
AW302: 1 | BC302: =BC290+1 -> 26
AS304: Nom | AV304: =IFERROR(LOOKUP(BC302,Fevrier!$A353:A402,Fevrier!B353:B402),"") -> 
AS306: Usine | AV306: =IFERROR(LOOKUP(BC302,Fevrier!A353:A402,Fevrier!C354:C403),"") ->  | AX306: =IF(AV306="","",Base!$B$3) ->  | AZ306: =IFERROR(SUM(AV306*AX306),"") -> 
AS308: Route | AV308: =IFERROR(LOOKUP(BC302,Fevrier!A353:A402,Fevrier!D354:D403),"") ->  | AX308: =IF(AV308="","",Base!$B$13) ->  | AZ308: =IFERROR(SUM(AV308*AX308),"") -> 
AS310: H-Sup | AV310: =IFERROR(LOOKUP(BC302,Fevrier!A353:A402,Fevrier!E354:E403),"") ->  | AX310: =IF(AV310="","",200) ->  | AZ310: =IFERROR(SUM(AV310*AX310),"") -> 
AS312: Net A Paye | AV312: =SUM(AZ306:BA311)-AZ312 -> 0 | AY312: AC
AW314: 1 | BC314: =BC302+1 -> 27
AS316: Nom | AV316: =IFERROR(LOOKUP(BC314,Fevrier!$A365:A414,Fevrier!B365:B414),"") -> 
AS318: Usine | AV318: =IFERROR(LOOKUP(BC314,Fevrier!A365:A414,Fevrier!C366:C415),"") ->  | AX318: =IF(AV318="","",Base!$B$3) ->  | AZ318: =IFERROR(SUM(AV318*AX318),"") -> 
AS320: Route | AV320: =IFERROR(LOOKUP(BC314,Fevrier!A365:A414,Fevrier!D366:D415),"") ->  | AX320: =IF(AV320="","",Base!$B$13) ->  | AZ320: =IFERROR(SUM(AV320*AX320),"") -> 
AS322: H-Sup | AV322: =IFERROR(LOOKUP(BC314,Fevrier!A365:A414,Fevrier!E366:E415),"") ->  | AX322: =IF(AV322="","",200) ->  | AZ322: =IFERROR(SUM(AV322*AX322),"") -> 
AS324: Net A Paye | AV324: =SUM(AZ318:BA323)-AZ324 -> 0 | AY324: AC
AW326: 1 | BC326: =BC314+1 -> 28
AS328: Nom | AV328: =IFERROR(LOOKUP(BC326,Fevrier!$A377:A426,Fevrier!B377:B426),"") -> 
AS330: Usine | AV330: =IFERROR(LOOKUP(BC326,Fevrier!A377:A426,Fevrier!C378:C427),"") ->  | AX330: =IF(AV330="","",Base!$B$3) ->  | AZ330: =IFERROR(SUM(AV330*AX330),"") -> 
AS332: Route | AV332: =IFERROR(LOOKUP(BC326,Fevrier!A377:A426,Fevrier!D378:D427),"") ->  | AX332: =IF(AV332="","",Base!$B$13) ->  | AZ332: =IFERROR(SUM(AV332*AX332),"") -> 
AS334: H-Sup | AV334: =IFERROR(LOOKUP(BC326,Fevrier!A377:A426,Fevrier!E378:E427),"") ->  | AX334: =IF(AV334="","",200) ->  | AZ334: =IFERROR(SUM(AV334*AX334),"") -> 
AS336: Net A Paye | AV336: =SUM(AZ330:BA335)-AZ336 -> 0 | AY336: AC
AW338: 1 | BC338: =BC326+1 -> 29
AS340: Nom | AV340: =IFERROR(LOOKUP(BC338,Fevrier!$A389:A438,Fevrier!B389:B438),"") -> 
AS342: Usine | AV342: =IFERROR(LOOKUP(BC338,Fevrier!A389:A438,Fevrier!C390:C439),"") ->  | AX342: =IF(AV342="","",Base!$B$3) ->  | AZ342: =IFERROR(SUM(AV342*AX342),"") -> 
AS344: Route | AV344: =IFERROR(LOOKUP(BC338,Fevrier!A389:A438,Fevrier!D390:D439),"") ->  | AX344: =IF(AV344="","",Base!$B$13) ->  | AZ344: =IFERROR(SUM(AV344*AX344),"") -> 
... 116 more rows

Sheet Mars
B1: M A R S 2 0 2 0 | E1: 5
AW2: 1 | BC2: 1
B3: 2020-03-01 | C3: =EOMONTH(B3,0) -> 2020-03-31 | H3: =B3 -> 2020-03-01 | I3: =H3+1 -> 2020-03-02 | J3: =I3+1 -> 2020-03-03 | K3: 2020-03-04 | L3: 2020-03-05 | M3: 2020-03-06 | N3: 2020-03-07 | O3: 2020-03-08 | P3: 2020-03-09 | Q3: 2020-03-10 | R3: 2020-03-11 | S3: 2020-03-12 | T3: 2020-03-13 | U3: 2020-03-14 | V3: 2020-03-15 | W3: 2020-03-16 | X3: 2020-03-17 | Y3: 2020-03-18 | Z3: 2020-03-19 | AA3: 2020-03-20 | AB3: 2020-03-21 | AC3: 2020-03-22 | AD3: 2020-03-23 | AE3: 2020-03-24 | AF3: 2020-03-25 | AG3: 2020-03-26 | AH3: 2020-03-27 | AI3: 2020-03-28 | AJ3: =IFERROR(IF(AI3+1>C3,"",AI3+1),"") -> 2020-03-29 | AK3: 2020-03-30 | AL3: 2020-03-31
B4: Mars | C4: العمليات الحسابيه | H4: =DAY(H3) -> 1 | I4: =DAY(I3) -> 2 | J4: 3 | K4: 4 | L4: 5 | M4: 6 | N4: 7 | O4: 8 | P4: 9 | Q4: 10 | R4: 11 | S4: 12 | T4: 13 | U4: 14 | V4: 15 | W4: 16 | X4: 17 | Y4: 18 | Z4: 19 | AA4: 20 | AB4: 21 | AC4: 22 | AD4: 23 | AE4: 24 | AF4: 25 | AG4: 26 | AH4: 27 | AI4: 28 | AJ4: 29 | AK4: 30 | AL4: 31 | AS4: Nom | AV4: =IFERROR(LOOKUP(BC2,Mars!$A6:A102,Mars!B6:B102),"") -> الموظف 1
B5: الموظف | C5: المكتب | D5: الرقابه | E5: إظافه | F5: سلف | G5: الاجر الصافي | H5: =WEEKDAY(H3) -> 1900-01-01 | I5: =WEEKDAY(I3) -> 1900-01-02 | J5: 1900-01-03 | K5: 1900-01-04 | L5: 1900-01-05 | M5: 1900-01-06 | N5: 1900-01-07 | O5: 1900-01-01 | P5: 1900-01-02 | Q5: 1900-01-03 | R5: 1900-01-04 | S5: 1900-01-05 | T5: 1900-01-06 | U5: 1900-01-07 | V5: 1900-01-01 | W5: 1900-01-02 | X5: 1900-01-03 | Y5: 1900-01-04 | Z5: 1900-01-05 | AA5: 1900-01-06 | AB5: 1900-01-07 | AC5: 1900-01-01 | AD5: 1900-01-02 | AE5: 1900-01-03 | AF5: 1900-01-04 | AG5: 1900-01-05 | AH5: 1900-01-06 | AI5: 1900-01-07 | AJ5: 1900-01-01 | AK5: 1900-01-02 | AL5: 1900-01-03 | AN5: ACOMPTE
A6: =IF(B6<>"",COUNTA($B$6:B6),"") -> 1 | B6: =IFERROR(INDEX(Base!$E$2:$E$102,SMALL(IF(INDEX(Base!$E$2:$Q$102,,MATCH(Mars!$B$4,Base!$F$1:$Q$1,0)+1)="x",ROW(Base!$E$2:$E$102)-ROW(Base!$E$2)+1),ROWS($B$6:B6))),"") -> الموظف 1 | C6: =COUNTIF($H6:$AL6, "u")*1+COUNTIF($H6:$AL6, "U 1")*1+COUNTIF($H6:$AL6, "u 2")*1+COUNTIF($H6:$AL6, "u 3")*1+COUNTIF($H6:$AL6, "U 4")*1+COUNTIF($H6:$AL6, "u 5")*1+COUNTIF($H6:$AL6, "u 6")*1+COUNTIF($H6:$AL6, "U 7")*1+COUNTIF($H6:$AL6, "u 8")*1+COUNTIF($H6:$AL6, "u 9")*1+COUNTIF($H6:$AL6, "500")*1+COUNTIF($H6:$AL6, "1000")*1+COUNTIF($H6:$AL6, "1500")*1+COUNTIF($H6:$AL6, "2000")*1+COUNTIF($H6:$AL6, "3000")*1+COUNTIF($H6:$AL6, "4000")*1+COUNTIF($H6:$AL6, "5000")*1 -> 0 | D6: =COUNTIF($H6:$AL6, "R")*1+COUNTIF($H6:$AL6, "R 1")*1+COUNTIF($H6:$AL6, "R 2")*1+COUNTIF($H6:$AL6, "R 3")*1+COUNTIF($H6:$AL6, "R 4")*1+COUNTIF($H6:$AL6, "R 5")*1+COUNTIF($H6:$AL6, "R 6")*1+COUNTIF($H6:$AL6, "R 7")*1+COUNTIF($H6:$AL6, "R 8")*1+COUNTIF($H6:$AL6, "R 9")*1 -> 0 | E6: =COUNTIF($H6:$AL6, "U 1")*1+COUNTIF($H6:$AL6, "u 2")*2+COUNTIF($H6:$AL6, "u 3")*3+COUNTIF($H6:$AL6, "U 4")*4+COUNTIF($H6:$AL6, "u 5")*5+COUNTIF($H6:$AL6, "u 6")*6+COUNTIF($H6:$AL6, "U 7")*7+COUNTIF($H6:$AL6, "u 8")*8+COUNTIF($H6:$AL6, "u 9")*9+COUNTIF($H6:$AL6, "R 1")*1+COUNTIF($H6:$AL6, "R 2")*2+COUNTIF($H6:$AL6, "R 3")*3+COUNTIF($H6:$AL6, "R 4")*4+COUNTIF($H6:$AL6, "R 5")*5+COUNTIF($H6:$AL6, "R 6")*6+COUNTIF($H6:$AL6, "R 7")*7+COUNTIF($H6:$AL6, "R 8")*8+COUNTIF($H6:$AL6, "R 9")*9 -> 0 | F6: =SUM(H6:AL6) -> 0 | G6: =SUMPRODUCT((H6:AL6=Som)*(Base!$B$3:$B$20))-F6 -> 0 | AS6: Usine | AV6: =IFERROR(LOOKUP(BC2,Mars!A6:A102,Mars!C6:C103),"") -> 0 | AX6: =IF(AV6="","",Base!$B$3) -> 1000 | AZ6: =IFERROR(SUM(AV6*AX6),"") -> 0
A7: =IF(B7<>"",COUNTA($B$6:B7),"") -> 2 | B7: =IFERROR(INDEX(Base!$E$2:$E$102,SMALL(IF(INDEX(Base!$E$2:$Q$102,,MATCH(Mars!$B$4,Base!$F$1:$Q$1,0)+1)="x",ROW(Base!$E$2:$E$102)-ROW(Base!$E$2)+1),ROWS($B$6:B7))),"") -> الموظف 2 | C7: =COUNTIF($H7:$AL7, "u")*1+COUNTIF($H7:$AL7, "U 1")*1+COUNTIF($H7:$AL7, "u 2")*1+COUNTIF($H7:$AL7, "u 3")*1+COUNTIF($H7:$AL7, "U 4")*1+COUNTIF($H7:$AL7, "u 5")*1+COUNTIF($H7:$AL7, "u 6")*1+COUNTIF($H7:$AL7, "U 7")*1+COUNTIF($H7:$AL7, "u 8")*1+COUNTIF($H7:$AL7, "u 9")*1+COUNTIF($H7:$AL7, "500")*1+COUNTIF($H7:$AL7, "1000")*1+COUNTIF($H7:$AL7, "1500")*1+COUNTIF($H7:$AL7, "2000")*1+COUNTIF($H7:$AL7, "3000")*1+COUNTIF($H7:$AL7, "4000")*1+COUNTIF($H7:$AL7, "5000")*1 -> 0 | D7: =COUNTIF($H7:$AL7, "R")*1+COUNTIF($H7:$AL7, "R 1")*1+COUNTIF($H7:$AL7, "R 2")*1+COUNTIF($H7:$AL7, "R 3")*1+COUNTIF($H7:$AL7, "R 4")*1+COUNTIF($H7:$AL7, "R 5")*1+COUNTIF($H7:$AL7, "R 6")*1+COUNTIF($H7:$AL7, "R 7")*1+COUNTIF($H7:$AL7, "R 8")*1+COUNTIF($H7:$AL7, "R 9")*1 -> 0 | E7: =COUNTIF($H7:$AL7, "U 1")*1+COUNTIF($H7:$AL7, "u 2")*2+COUNTIF($H7:$AL7, "u 3")*3+COUNTIF($H7:$AL7, "U 4")*4+COUNTIF($H7:$AL7, "u 5")*5+COUNTIF($H7:$AL7, "u 6")*6+COUNTIF($H7:$AL7, "U 7")*7+COUNTIF($H7:$AL7, "u 8")*8+COUNTIF($H7:$AL7, "u 9")*9+COUNTIF($H7:$AL7, "R 1")*1+COUNTIF($H7:$AL7, "R 2")*2+COUNTIF($H7:$AL7, "R 3")*3+COUNTIF($H7:$AL7, "R 4")*4+COUNTIF($H7:$AL7, "R 5")*5+COUNTIF($H7:$AL7, "R 6")*6+COUNTIF($H7:$AL7, "R 7")*7+COUNTIF($H7:$AL7, "R 8")*8+COUNTIF($H7:$AL7, "R 9")*9 -> 0 | F7: =SUM(H7:AL7) -> 0 | G7: =SUMPRODUCT((H7:AL7=Som)*(Base!$B$3:$B$20))-F7 -> 0
A8: =IF(B8<>"",COUNTA($B$6:B8),"") -> 3 | B8: =IFERROR(INDEX(Base!$E$2:$E$102,SMALL(IF(INDEX(Base!$E$2:$Q$102,,MATCH(Mars!$B$4,Base!$F$1:$Q$1,0)+1)="x",ROW(Base!$E$2:$E$102)-ROW(Base!$E$2)+1),ROWS($B$6:B8))),"") -> الموظف 4 | C8: 0 | D8: 0 | E8: 0 | F8: 0 | G8: =SUMPRODUCT((H8:AL8=Som)*(Base!$B$3:$B$20))-F8 -> 0 | AS8: Route | AV8: =IFERROR(LOOKUP(BC2,Mars!A53:A102,Mars!D54:D103),"") ->  | AX8: =IF(AV8="","",Base!$B$13) ->  | AZ8: =IFERROR(SUM(AV8*AX8),"") -> 
A9: =IF(B9<>"",COUNTA($B$6:B9),"") -> 4 | B9: =IFERROR(INDEX(Base!$E$2:$E$102,SMALL(IF(INDEX(Base!$E$2:$Q$102,,MATCH(Mars!$B$4,Base!$F$1:$Q$1,0)+1)="x",ROW(Base!$E$2:$E$102)-ROW(Base!$E$2)+1),ROWS($B$6:B9))),"") -> الموظف 5 | C9: 0 | D9: 0 | E9: 0 | F9: 0 | G9: =SUMPRODUCT((H9:AL9=Som)*(Base!$B$3:$B$20))-F9 -> 0
A10: =IF(B10<>"",COUNTA($B$6:B10),"") -> 5 | B10: =IFERROR(INDEX(Base!$E$2:$E$102,SMALL(IF(INDEX(Base!$E$2:$Q$102,,MATCH(Mars!$B$4,Base!$F$1:$Q$1,0)+1)="x",ROW(Base!$E$2:$E$102)-ROW(Base!$E$2)+1),ROWS($B$6:B10))),"") -> الموظف 12 | C10: 0 | D10: 0 | E10: 0 | F10: 0 | G10: =SUMPRODUCT((H10:AL10=Som)*(Base!$B$3:$B$20))-F10 -> 0 | AS10: H-Sup | AV10: =IFERROR(LOOKUP(BC2,Mars!A53:A102,Mars!E54:E103),"") ->  | AX10: =IF(AV10="","",200) ->  | AZ10: =IFERROR(SUM(AV10*AX10),"") -> 
A11: =IF(B11<>"",COUNTA($B$6:B11),"") ->  | B11: =IFERROR(INDEX(Base!$E$2:$E$102,SMALL(IF(INDEX(Base!$E$2:$Q$102,,MATCH(Mars!$B$4,Base!$F$1:$Q$1,0)+1)="x",ROW(Base!$E$2:$E$102)-ROW(Base!$E$2)+1),ROWS($B$6:B11))),"") ->  | C11: 0 | D11: 0 | E11: 0 | F11: 0 | G11: =SUMPRODUCT((H11:AL11=Som)*(Base!$B$3:$B$20))-F11 -> 0
A12: =IF(B12<>"",COUNTA($B$6:B12),"") ->  | B12: =IFERROR(INDEX(Base!$E$2:$E$102,SMALL(IF(INDEX(Base!$E$2:$Q$102,,MATCH(Mars!$B$4,Base!$F$1:$Q$1,0)+1)="x",ROW(Base!$E$2:$E$102)-ROW(Base!$E$2)+1),ROWS($B$6:B12))),"") ->  | C12: 0 | D12: 0 | E12: 0 | F12: 0 | G12: =SUMPRODUCT((H12:AL12=Som)*(Base!$B$3:$B$20))-F12 -> 0 | AS12: Net A Paye | AV12: =SUM(AZ6:BA11)-AZ12 -> 0 | AY12: AC
A13: =IF(B13<>"",COUNTA($B$6:B13),"") ->  | B13: =IFERROR(INDEX(Base!$E$2:$E$102,SMALL(IF(INDEX(Base!$E$2:$Q$102,,MATCH(Mars!$B$4,Base!$F$1:$Q$1,0)+1)="x",ROW(Base!$E$2:$E$102)-ROW(Base!$E$2)+1),ROWS($B$6:B13))),"") ->  | C13: 0 | D13: 0 | E13: 0 | F13: 0 | G13: =SUMPRODUCT((H13:AL13=Som)*(Base!$B$3:$B$20))-F13 -> 0
A14: =IF(B14<>"",COUNTA($B$6:B14),"") ->  | B14: =IFERROR(INDEX(Base!$E$2:$E$102,SMALL(IF(INDEX(Base!$E$2:$Q$102,,MATCH(Mars!$B$4,Base!$F$1:$Q$1,0)+1)="x",ROW(Base!$E$2:$E$102)-ROW(Base!$E$2)+1),ROWS($B$6:B14))),"") ->  | C14: 0 | D14: 0 | E14: 0 | F14: 0 | G14: =SUMPRODUCT((H14:AL14=Som)*(Base!$B$3:$B$20))-F14 -> 0 | AW14: 1 | BC14: =BC2+1 -> 2
A15: =IF(B15<>"",COUNTA($B$6:B15),"") ->  | B15: =IFERROR(INDEX(Base!$E$2:$E$102,SMALL(IF(INDEX(Base!$E$2:$Q$102,,MATCH(Mars!$B$4,Base!$F$1:$Q$1,0)+1)="x",ROW(Base!$E$2:$E$102)-ROW(Base!$E$2)+1),ROWS($B$6:B15))),"") ->  | C15: 0 | D15: 0 | E15: 0 | F15: 0 | G15: =SUMPRODUCT((H15:AL15=Som)*(Base!$B$3:$B$20))-F15 -> 0
A16: =IF(B16<>"",COUNTA($B$6:B16),"") ->  | B16: =IFERROR(INDEX(Base!$E$2:$E$102,SMALL(IF(INDEX(Base!$E$2:$Q$102,,MATCH(Mars!$B$4,Base!$F$1:$Q$1,0)+1)="x",ROW(Base!$E$2:$E$102)-ROW(Base!$E$2)+1),ROWS($B$6:B16))),"") ->  | C16: 0 | D16: 0 | E16: 0 | F16: 0 | G16: =SUMPRODUCT((H16:AL16=Som)*(Base!$B$3:$B$20))-F16 -> 0 | AS16: Nom | AV16: =IFERROR(LOOKUP(BC14,Mars!$A7:A114,Mars!B7:B114),"") -> الموظف 2
A17: =IF(B17<>"",COUNTA($B$6:B17),"") ->  | B17: =IFERROR(INDEX(Base!$E$2:$E$102,SMALL(IF(INDEX(Base!$E$2:$Q$102,,MATCH(Mars!$B$4,Base!$F$1:$Q$1,0)+1)="x",ROW(Base!$E$2:$E$102)-ROW(Base!$E$2)+1),ROWS($B$6:B17))),"") ->  | C17: 0 | D17: 0 | E17: 0 | F17: 0 | G17: =SUMPRODUCT((H17:AL17=Som)*(Base!$B$3:$B$20))-F17 -> 0
A18: =IF(B18<>"",COUNTA($B$6:B18),"") ->  | B18: =IFERROR(INDEX(Base!$E$2:$E$102,SMALL(IF(INDEX(Base!$E$2:$Q$102,,MATCH(Mars!$B$4,Base!$F$1:$Q$1,0)+1)="x",ROW(Base!$E$2:$E$102)-ROW(Base!$E$2)+1),ROWS($B$6:B18))),"") ->  | C18: 0 | D18: 0 | E18: 0 | F18: 0 | G18: =SUMPRODUCT((H18:AL18=Som)*(Base!$B$3:$B$20))-F18 -> 0 | AS18: Usine | AV18: =IFERROR(LOOKUP(BC14,Mars!A65:A114,Mars!C66:C115),"") ->  | AX18: =IF(AV18="","",Base!$B$3) ->  | AZ18: =IFERROR(SUM(AV18*AX18),"") -> 
A19: =IF(B19<>"",COUNTA($B$6:B19),"") ->  | B19: =IFERROR(INDEX(Base!$E$2:$E$102,SMALL(IF(INDEX(Base!$E$2:$Q$102,,MATCH(Mars!$B$4,Base!$F$1:$Q$1,0)+1)="x",ROW(Base!$E$2:$E$102)-ROW(Base!$E$2)+1),ROWS($B$6:B19))),"") ->  | C19: 0 | D19: 0 | E19: 0 | F19: 0 | G19: =SUMPRODUCT((H19:AL19=Som)*(Base!$B$3:$B$20))-F19 -> 0
A20: =IF(B20<>"",COUNTA($B$6:B20),"") ->  | B20: =IFERROR(INDEX(Base!$E$2:$E$102,SMALL(IF(INDEX(Base!$E$2:$Q$102,,MATCH(Mars!$B$4,Base!$F$1:$Q$1,0)+1)="x",ROW(Base!$E$2:$E$102)-ROW(Base!$E$2)+1),ROWS($B$6:B20))),"") ->  | C20: 0 | D20: 0 | E20: 0 | F20: 0 | G20: =SUMPRODUCT((H20:AL20=Som)*(Base!$B$3:$B$20))-F20 -> 0 | AS20: Route | AV20: =IFERROR(LOOKUP(BC14,Mars!A65:A114,Mars!D66:D115),"") ->  | AX20: =IF(AV20="","",Base!$B$13) ->  | AZ20: =IFERROR(SUM(AV20*AX20),"") -> 
A21: =IF(B21<>"",COUNTA($B$6:B21),"") ->  | B21: =IFERROR(INDEX(Base!$E$2:$E$102,SMALL(IF(INDEX(Base!$E$2:$Q$102,,MATCH(Mars!$B$4,Base!$F$1:$Q$1,0)+1)="x",ROW(Base!$E$2:$E$102)-ROW(Base!$E$2)+1),ROWS($B$6:B21))),"") ->  | C21: 0 | D21: 0 | E21: 0 | F21: 0 | G21: =SUMPRODUCT((H21:AL21=Som)*(Base!$B$3:$B$20))-F21 -> 0
A22: =IF(B22<>"",COUNTA($B$6:B22),"") ->  | B22: =IFERROR(INDEX(Base!$E$2:$E$102,SMALL(IF(INDEX(Base!$E$2:$Q$102,,MATCH(Mars!$B$4,Base!$F$1:$Q$1,0)+1)="x",ROW(Base!$E$2:$E$102)-ROW(Base!$E$2)+1),ROWS($B$6:B22))),"") ->  | C22: 0 | D22: 0 | E22: 0 | F22: 0 | G22: =SUMPRODUCT((H22:AL22=Som)*(Base!$B$3:$B$20))-F22 -> 0 | AS22: H-Sup | AV22: =IFERROR(LOOKUP(BC14,Mars!A65:A114,Mars!E66:E115),"") ->  | AX22: =IF(AV22="","",200) ->  | AZ22: =IFERROR(SUM(AV22*AX22),"") -> 
A23: =IF(B23<>"",COUNTA($B$6:B23),"") ->  | B23: =IFERROR(INDEX(Base!$E$2:$E$102,SMALL(IF(INDEX(Base!$E$2:$Q$102,,MATCH(Mars!$B$4,Base!$F$1:$Q$1,0)+1)="x",ROW(Base!$E$2:$E$102)-ROW(Base!$E$2)+1),ROWS($B$6:B23))),"") ->  | C23: 0 | D23: 0 | E23: 0 | F23: 0 | G23: =SUMPRODUCT((H23:AL23=Som)*(Base!$B$3:$B$20))-F23 -> 0
A24: =IF(B24<>"",COUNTA($B$6:B24),"") ->  | B24: =IFERROR(INDEX(Base!$E$2:$E$102,SMALL(IF(INDEX(Base!$E$2:$Q$102,,MATCH(Mars!$B$4,Base!$F$1:$Q$1,0)+1)="x",ROW(Base!$E$2:$E$102)-ROW(Base!$E$2)+1),ROWS($B$6:B24))),"") ->  | C24: 0 | D24: 0 | E24: 0 | F24: 0 | G24: =SUMPRODUCT((H24:AL24=Som)*(Base!$B$3:$B$20))-F24 -> 0 | AS24: Net A Paye | AV24: =SUM(AZ18:BA23)-AZ24 -> 0 | AY24: AC
A25: =IF(B25<>"",COUNTA($B$6:B25),"") ->  | B25: =IFERROR(INDEX(Base!$E$2:$E$102,SMALL(IF(INDEX(Base!$E$2:$Q$102,,MATCH(Mars!$B$4,Base!$F$1:$Q$1,0)+1)="x",ROW(Base!$E$2:$E$102)-ROW(Base!$E$2)+1),ROWS($B$6:B25))),"") ->  | C25: 0 | D25: 0 | E25: 0 | F25: 0 | G25: =SUMPRODUCT((H25:AL25=Som)*(Base!$B$3:$B$20))-F25 -> 0
A26: =IF(B26<>"",COUNTA($B$6:B26),"") ->  | B26: =IFERROR(INDEX(Base!$E$2:$E$102,SMALL(IF(INDEX(Base!$E$2:$Q$102,,MATCH(Mars!$B$4,Base!$F$1:$Q$1,0)+1)="x",ROW(Base!$E$2:$E$102)-ROW(Base!$E$2)+1),ROWS($B$6:B26))),"") ->  | C26: 0 | D26: 0 | E26: 0 | F26: 0 | G26: =SUMPRODUCT((H26:AL26=Som)*(Base!$B$3:$B$20))-F26 -> 0 | AW26: 1 | BC26: =BC14+1 -> 3
A27: =IF(B27<>"",COUNTA($B$6:B27),"") ->  | B27: =IFERROR(INDEX(Base!$E$2:$E$102,SMALL(IF(INDEX(Base!$E$2:$Q$102,,MATCH(Mars!$B$4,Base!$F$1:$Q$1,0)+1)="x",ROW(Base!$E$2:$E$102)-ROW(Base!$E$2)+1),ROWS($B$6:B27))),"") ->  | C27: 0 | D27: 0 | E27: 0 | F27: 0 | G27: =SUMPRODUCT((H27:AL27=Som)*(Base!$B$3:$B$20))-F27 -> 0
A28: =IF(B28<>"",COUNTA($B$6:B28),"") ->  | B28: =IFERROR(INDEX(Base!$E$2:$E$102,SMALL(IF(INDEX(Base!$E$2:$Q$102,,MATCH(Mars!$B$4,Base!$F$1:$Q$1,0)+1)="x",ROW(Base!$E$2:$E$102)-ROW(Base!$E$2)+1),ROWS($B$6:B28))),"") ->  | C28: 0 | D28: 0 | E28: 0 | F28: 0 | G28: =SUMPRODUCT((H28:AL28=Som)*(Base!$B$3:$B$20))-F28 -> 0 | AS28: Nom | AV28: =IFERROR(LOOKUP(BC26,Mars!$A77:A126,Mars!B77:B126),"") -> 
A29: =IF(B29<>"",COUNTA($B$6:B29),"") ->  | B29: =IFERROR(INDEX(Base!$E$2:$E$102,SMALL(IF(INDEX(Base!$E$2:$Q$102,,MATCH(Mars!$B$4,Base!$F$1:$Q$1,0)+1)="x",ROW(Base!$E$2:$E$102)-ROW(Base!$E$2)+1),ROWS($B$6:B29))),"") ->  | C29: 0 | D29: 0 | E29: 0 | F29: 0 | G29: =SUMPRODUCT((H29:AL29=Som)*(Base!$B$3:$B$20))-F29 -> 0
A30: =IF(B30<>"",COUNTA($B$6:B30),"") ->  | B30: =IFERROR(INDEX(Base!$E$2:$E$102,SMALL(IF(INDEX(Base!$E$2:$Q$102,,MATCH(Mars!$B$4,Base!$F$1:$Q$1,0)+1)="x",ROW(Base!$E$2:$E$102)-ROW(Base!$E$2)+1),ROWS($B$6:B30))),"") ->  | C30: 0 | D30: 0 | E30: 0 | F30: 0 | G30: =SUMPRODUCT((H30:AL30=Som)*(Base!$B$3:$B$20))-F30 -> 0 | AS30: Usine | AV30: =IFERROR(LOOKUP(BC26,Mars!A77:A126,Mars!C78:C127),"") ->  | AX30: =IF(AV30="","",Base!$B$3) ->  | AZ30: =IFERROR(SUM(AV30*AX30),"") -> 
A31: =IF(B31<>"",COUNTA($B$6:B31),"") ->  | B31: =IFERROR(INDEX(Base!$E$2:$E$102,SMALL(IF(INDEX(Base!$E$2:$Q$102,,MATCH(Mars!$B$4,Base!$F$1:$Q$1,0)+1)="x",ROW(Base!$E$2:$E$102)-ROW(Base!$E$2)+1),ROWS($B$6:B31))),"") ->  | C31: 0 | D31: 0 | E31: 0 | F31: 0 | G31: =SUMPRODUCT((H31:AL31=Som)*(Base!$B$3:$B$20))-F31 -> 0
A32: =IF(B32<>"",COUNTA($B$6:B32),"") ->  | B32: =IFERROR(INDEX(Base!$E$2:$E$102,SMALL(IF(INDEX(Base!$E$2:$Q$102,,MATCH(Mars!$B$4,Base!$F$1:$Q$1,0)+1)="x",ROW(Base!$E$2:$E$102)-ROW(Base!$E$2)+1),ROWS($B$6:B32))),"") ->  | C32: 0 | D32: 0 | E32: 0 | F32: 0 | G32: =SUMPRODUCT((H32:AL32=Som)*(Base!$B$3:$B$20))-F32 -> 0 | AS32: Route | AV32: =IFERROR(LOOKUP(BC26,Mars!A77:A126,Mars!D78:D127),"") ->  | AX32: =IF(AV32="","",Base!$B$13) ->  | AZ32: =IFERROR(SUM(AV32*AX32),"") -> 
A33: =IF(B33<>"",COUNTA($B$6:B33),"") ->  | B33: =IFERROR(INDEX(Base!$E$2:$E$102,SMALL(IF(INDEX(Base!$E$2:$Q$102,,MATCH(Mars!$B$4,Base!$F$1:$Q$1,0)+1)="x",ROW(Base!$E$2:$E$102)-ROW(Base!$E$2)+1),ROWS($B$6:B33))),"") ->  | C33: 0 | D33: 0 | E33: 0 | F33: 0 | G33: =SUMPRODUCT((H33:AL33=Som)*(Base!$B$3:$B$20))-F33 -> 0
A34: =IF(B34<>"",COUNTA($B$6:B34),"") ->  | B34: =IFERROR(INDEX(Base!$E$2:$E$102,SMALL(IF(INDEX(Base!$E$2:$Q$102,,MATCH(Mars!$B$4,Base!$F$1:$Q$1,0)+1)="x",ROW(Base!$E$2:$E$102)-ROW(Base!$E$2)+1),ROWS($B$6:B34))),"") ->  | C34: 0 | D34: 0 | E34: 0 | F34: 0 | G34: =SUMPRODUCT((H34:AL34=Som)*(Base!$B$3:$B$20))-F34 -> 0 | AS34: H-Sup | AV34: =IFERROR(LOOKUP(BC26,Mars!A77:A126,Mars!E78:E127),"") ->  | AX34: =IF(AV34="","",200) ->  | AZ34: =IFERROR(SUM(AV34*AX34),"") -> 
A35: =IF(B35<>"",COUNTA($B$6:B35),"") ->  | B35: =IFERROR(INDEX(Base!$E$2:$E$102,SMALL(IF(INDEX(Base!$E$2:$Q$102,,MATCH(Mars!$B$4,Base!$F$1:$Q$1,0)+1)="x",ROW(Base!$E$2:$E$102)-ROW(Base!$E$2)+1),ROWS($B$6:B35))),"") ->  | C35: 0 | D35: 0 | E35: 0 | F35: 0 | G35: =SUMPRODUCT((H35:AL35=Som)*(Base!$B$3:$B$20))-F35 -> 0
A36: =IF(B36<>"",COUNTA($B$6:B36),"") ->  | B36: =IFERROR(INDEX(Base!$E$2:$E$102,SMALL(IF(INDEX(Base!$E$2:$Q$102,,MATCH(Mars!$B$4,Base!$F$1:$Q$1,0)+1)="x",ROW(Base!$E$2:$E$102)-ROW(Base!$E$2)+1),ROWS($B$6:B36))),"") ->  | C36: 0 | D36: 0 | E36: 0 | F36: 0 | G36: =SUMPRODUCT((H36:AL36=Som)*(Base!$B$3:$B$20))-F36 -> 0 | AS36: Net A Paye | AV36: =SUM(AZ30:BA35)-AZ36 -> 0 | AY36: AC
A37: =IF(B37<>"",COUNTA($B$6:B37),"") ->  | B37: =IFERROR(INDEX(Base!$E$2:$E$102,SMALL(IF(INDEX(Base!$E$2:$Q$102,,MATCH(Mars!$B$4,Base!$F$1:$Q$1,0)+1)="x",ROW(Base!$E$2:$E$102)-ROW(Base!$E$2)+1),ROWS($B$6:B37))),"") ->  | C37: 0 | D37: 0 | E37: 0 | F37: 0 | G37: =SUMPRODUCT((H37:AL37=Som)*(Base!$B$3:$B$20))-F37 -> 0
A38: =IF(B38<>"",COUNTA($B$6:B38),"") ->  | B38: =IFERROR(INDEX(Base!$E$2:$E$102,SMALL(IF(INDEX(Base!$E$2:$Q$102,,MATCH(Mars!$B$4,Base!$F$1:$Q$1,0)+1)="x",ROW(Base!$E$2:$E$102)-ROW(Base!$E$2)+1),ROWS($B$6:B38))),"") ->  | C38: 0 | D38: 0 | E38: 0 | F38: 0 | G38: =SUMPRODUCT((H38:AL38=Som)*(Base!$B$3:$B$20))-F38 -> 0 | AW38: 1 | BC38: =BC26+1 -> 4
A39: =IF(B39<>"",COUNTA($B$6:B39),"") ->  | B39: =IFERROR(INDEX(Base!$E$2:$E$102,SMALL(IF(INDEX(Base!$E$2:$Q$102,,MATCH(Mars!$B$4,Base!$F$1:$Q$1,0)+1)="x",ROW(Base!$E$2:$E$102)-ROW(Base!$E$2)+1),ROWS($B$6:B39))),"") ->  | C39: 0 | D39: 0 | E39: 0 | F39: 0 | G39: =SUMPRODUCT((H39:AL39=Som)*(Base!$B$3:$B$20))-F39 -> 0
A40: =IF(B40<>"",COUNTA($B$6:B40),"") ->  | B40: =IFERROR(INDEX(Base!$E$2:$E$102,SMALL(IF(INDEX(Base!$E$2:$Q$102,,MATCH(Mars!$B$4,Base!$F$1:$Q$1,0)+1)="x",ROW(Base!$E$2:$E$102)-ROW(Base!$E$2)+1),ROWS($B$6:B40))),"") ->  | C40: 0 | D40: 0 | E40: 0 | F40: 0 | G40: =SUMPRODUCT((H40:AL40=Som)*(Base!$B$3:$B$20))-F40 -> 0 | AS40: Nom | AV40: =IFERROR(LOOKUP(BC38,Mars!$A89:A138,Mars!B89:B138),"") -> 
A41: =IF(B41<>"",COUNTA($B$6:B41),"") ->  | B41: =IFERROR(INDEX(Base!$E$2:$E$102,SMALL(IF(INDEX(Base!$E$2:$Q$102,,MATCH(Mars!$B$4,Base!$F$1:$Q$1,0)+1)="x",ROW(Base!$E$2:$E$102)-ROW(Base!$E$2)+1),ROWS($B$6:B41))),"") ->  | C41: 0 | D41: 0 | E41: 0 | F41: 0 | G41: =SUMPRODUCT((H41:AL41=Som)*(Base!$B$3:$B$20))-F41 -> 0
A42: =IF(B42<>"",COUNTA($B$6:B42),"") ->  | B42: =IFERROR(INDEX(Base!$E$2:$E$102,SMALL(IF(INDEX(Base!$E$2:$Q$102,,MATCH(Mars!$B$4,Base!$F$1:$Q$1,0)+1)="x",ROW(Base!$E$2:$E$102)-ROW(Base!$E$2)+1),ROWS($B$6:B42))),"") ->  | C42: 0 | D42: 0 | E42: 0 | F42: 0 | G42: =SUMPRODUCT((H42:AL42=Som)*(Base!$B$3:$B$20))-F42 -> 0 | AS42: Usine | AV42: =IFERROR(LOOKUP(BC38,Mars!A89:A138,Mars!C90:C139),"") ->  | AX42: =IF(AV42="","",Base!$B$3) ->  | AZ42: =IFERROR(SUM(AV42*AX42),"") -> 
A43: =IF(B43<>"",COUNTA($B$6:B43),"") ->  | B43: =IFERROR(INDEX(Base!$E$2:$E$102,SMALL(IF(INDEX(Base!$E$2:$Q$102,,MATCH(Mars!$B$4,Base!$F$1:$Q$1,0)+1)="x",ROW(Base!$E$2:$E$102)-ROW(Base!$E$2)+1),ROWS($B$6:B43))),"") ->  | C43: 0 | D43: 0 | E43: 0 | F43: 0 | G43: =SUMPRODUCT((H43:AL43=Som)*(Base!$B$3:$B$20))-F43 -> 0
A44: =IF(B44<>"",COUNTA($B$6:B44),"") ->  | B44: =IFERROR(INDEX(Base!$E$2:$E$102,SMALL(IF(INDEX(Base!$E$2:$Q$102,,MATCH(Mars!$B$4,Base!$F$1:$Q$1,0)+1)="x",ROW(Base!$E$2:$E$102)-ROW(Base!$E$2)+1),ROWS($B$6:B44))),"") ->  | C44: 0 | D44: 0 | E44: 0 | F44: 0 | G44: =SUMPRODUCT((H44:AL44=Som)*(Base!$B$3:$B$20))-F44 -> 0 | AS44: Route | AV44: =IFERROR(LOOKUP(BC38,Mars!A89:A138,Mars!D90:D139),"") ->  | AX44: =IF(AV44="","",Base!$B$13) ->  | AZ44: =IFERROR(SUM(AV44*AX44),"") -> 
A45: =IF(B45<>"",COUNTA($B$6:B45),"") ->  | B45: =IFERROR(INDEX(Base!$E$2:$E$102,SMALL(IF(INDEX(Base!$E$2:$Q$102,,MATCH(Mars!$B$4,Base!$F$1:$Q$1,0)+1)="x",ROW(Base!$E$2:$E$102)-ROW(Base!$E$2)+1),ROWS($B$6:B45))),"") ->  | C45: 0 | D45: 0 | E45: 0 | F45: 0 | G45: =SUMPRODUCT((H45:AL45=Som)*(Base!$B$3:$B$20))-F45 -> 0
A46: =IF(B46<>"",COUNTA($B$6:B46),"") ->  | B46: =IFERROR(INDEX(Base!$E$2:$E$102,SMALL(IF(INDEX(Base!$E$2:$Q$102,,MATCH(Mars!$B$4,Base!$F$1:$Q$1,0)+1)="x",ROW(Base!$E$2:$E$102)-ROW(Base!$E$2)+1),ROWS($B$6:B46))),"") ->  | C46: 0 | D46: 0 | E46: 0 | F46: 0 | G46: =SUMPRODUCT((H46:AL46=Som)*(Base!$B$3:$B$20))-F46 -> 0 | AS46: H-Sup | AV46: =IFERROR(LOOKUP(BC38,Mars!A89:A138,Mars!E90:E139),"") ->  | AX46: =IF(AV46="","",200) ->  | AZ46: =IFERROR(SUM(AV46*AX46),"") -> 
A47: =IF(B47<>"",COUNTA($B$6:B47),"") ->  | B47: =IFERROR(INDEX(Base!$E$2:$E$102,SMALL(IF(INDEX(Base!$E$2:$Q$102,,MATCH(Mars!$B$4,Base!$F$1:$Q$1,0)+1)="x",ROW(Base!$E$2:$E$102)-ROW(Base!$E$2)+1),ROWS($B$6:B47))),"") ->  | C47: 0 | D47: 0 | E47: 0 | F47: 0 | G47: =SUMPRODUCT((H47:AL47=Som)*(Base!$B$3:$B$20))-F47 -> 0
A48: =IF(B48<>"",COUNTA($B$6:B48),"") ->  | B48: =IFERROR(INDEX(Base!$E$2:$E$102,SMALL(IF(INDEX(Base!$E$2:$Q$102,,MATCH(Mars!$B$4,Base!$F$1:$Q$1,0)+1)="x",ROW(Base!$E$2:$E$102)-ROW(Base!$E$2)+1),ROWS($B$6:B48))),"") ->  | C48: 0 | D48: 0 | E48: 0 | F48: 0 | G48: =SUMPRODUCT((H48:AL48=Som)*(Base!$B$3:$B$20))-F48 -> 0 | AS48: Net A Paye | AV48: =SUM(AZ42:BA47)-AZ48 -> 0 | AY48: AC
A49: =IF(B49<>"",COUNTA($B$6:B49),"") ->  | B49: =IFERROR(INDEX(Base!$E$2:$E$102,SMALL(IF(INDEX(Base!$E$2:$Q$102,,MATCH(Mars!$B$4,Base!$F$1:$Q$1,0)+1)="x",ROW(Base!$E$2:$E$102)-ROW(Base!$E$2)+1),ROWS($B$6:B49))),"") ->  | C49: 0 | D49: 0 | E49: 0 | F49: 0 | G49: =SUMPRODUCT((H49:AL49=Som)*(Base!$B$3:$B$20))-F49 -> 0
A50: =IF(B50<>"",COUNTA($B$6:B50),"") ->  | B50: =IFERROR(INDEX(Base!$E$2:$E$102,SMALL(IF(INDEX(Base!$E$2:$Q$102,,MATCH(Mars!$B$4,Base!$F$1:$Q$1,0)+1)="x",ROW(Base!$E$2:$E$102)-ROW(Base!$E$2)+1),ROWS($B$6:B50))),"") ->  | C50: 0 | D50: 0 | E50: 0 | F50: 0 | G50: =SUMPRODUCT((H50:AL50=Som)*(Base!$B$3:$B$20))-F50 -> 0 | AW50: 1 | BC50: =BC38+1 -> 5
A51: =IF(B51<>"",COUNTA($B$6:B51),"") ->  | B51: =IFERROR(INDEX(Base!$E$2:$E$102,SMALL(IF(INDEX(Base!$E$2:$Q$102,,MATCH(Mars!$B$4,Base!$F$1:$Q$1,0)+1)="x",ROW(Base!$E$2:$E$102)-ROW(Base!$E$2)+1),ROWS($B$6:B51))),"") ->  | C51: 0 | D51: 0 | E51: 0 | F51: 0 | G51: =SUMPRODUCT((H51:AL51=Som)*(Base!$B$3:$B$20))-F51 -> 0
A52: =IF(B52<>"",COUNTA($B$6:B52),"") ->  | B52: =IFERROR(INDEX(Base!$E$2:$E$102,SMALL(IF(INDEX(Base!$E$2:$Q$102,,MATCH(Mars!$B$4,Base!$F$1:$Q$1,0)+1)="x",ROW(Base!$E$2:$E$102)-ROW(Base!$E$2)+1),ROWS($B$6:B52))),"") ->  | C52: 0 | D52: 0 | E52: 0 | F52: 0 | G52: =SUMPRODUCT((H52:AL52=Som)*(Base!$B$3:$B$20))-F52 -> 0 | AS52: Nom | AV52: =IFERROR(LOOKUP(BC50,Mars!$A101:A150,Mars!B101:B150),"") -> 
A53: =IF(B53<>"",COUNTA($B$6:B53),"") ->  | B53: =IFERROR(INDEX(Base!$E$2:$E$102,SMALL(IF(INDEX(Base!$E$2:$Q$102,,MATCH(Mars!$B$4,Base!$F$1:$Q$1,0)+1)="x",ROW(Base!$E$2:$E$102)-ROW(Base!$E$2)+1),ROWS($B$6:B53))),"") ->  | C53: 0 | D53: 0 | E53: 0 | F53: 0 | G53: =SUMPRODUCT((H53:AL53=Som)*(Base!$B$3:$B$20))-F53 -> 0
A54: =IF(B54<>"",COUNTA($B$6:B54),"") ->  | B54: =IFERROR(INDEX(Base!$E$2:$E$102,SMALL(IF(INDEX(Base!$E$2:$Q$102,,MATCH(Mars!$B$4,Base!$F$1:$Q$1,0)+1)="x",ROW(Base!$E$2:$E$102)-ROW(Base!$E$2)+1),ROWS($B$6:B54))),"") ->  | C54: 0 | D54: 0 | E54: 0 | F54: 0 | G54: =SUMPRODUCT((H54:AL54=Som)*(Base!$B$3:$B$20))-F54 -> 0 | AS54: Usine | AV54: =IFERROR(LOOKUP(BC50,Mars!A101:A150,Mars!C102:C151),"") ->  | AX54: =IF(AV54="","",Base!$B$3) ->  | AZ54: =IFERROR(SUM(AV54*AX54),"") -> 
C55: 0 | D55: 0 | E55: 0 | F55: 0 | G55: =SUMPRODUCT((H55:AL55=Som)*(Base!$B$3:$B$20))-F55 -> 0
AS56: Route | AV56: =IFERROR(LOOKUP(BC50,Mars!A101:A150,Mars!D102:D151),"") ->  | AX56: =IF(AV56="","",Base!$B$13) ->  | AZ56: =IFERROR(SUM(AV56*AX56),"") -> 
AS58: H-Sup | AV58: =IFERROR(LOOKUP(BC50,Mars!A101:A150,Mars!E102:E151),"") ->  | AX58: =IF(AV58="","",200) ->  | AZ58: =IFERROR(SUM(AV58*AX58),"") -> 
AS60: Net A Paye | AV60: =SUM(AZ54:BA59)-AZ60 -> 0 | AY60: AC
AW62: 1 | BC62: =BC50+1 -> 6
AS64: Nom | AV64: =IFERROR(LOOKUP(BC62,Mars!$A113:A162,Mars!B113:B162),"") -> 
AS66: Usine | AV66: =IFERROR(LOOKUP(BC62,Mars!A113:A162,Mars!C114:C163),"") ->  | AX66: =IF(AV66="","",Base!$B$3) ->  | AZ66: =IFERROR(SUM(AV66*AX66),"") -> 
AS68: Route | AV68: =IFERROR(LOOKUP(BC62,Mars!A113:A162,Mars!D114:D163),"") ->  | AX68: =IF(AV68="","",Base!$B$13) ->  | AZ68: =IFERROR(SUM(AV68*AX68),"") -> 
AS70: H-Sup | AV70: =IFERROR(LOOKUP(BC62,Mars!A113:A162,Mars!E114:E163),"") ->  | AX70: =IF(AV70="","",200) ->  | AZ70: =IFERROR(SUM(AV70*AX70),"") -> 
AS72: Net A Paye | AV72: =SUM(AZ66:BA71)-AZ72 -> 0 | AY72: AC
AW74: 1 | BC74: =BC62+1 -> 7
AS76: Nom | AV76: =IFERROR(LOOKUP(BC74,Mars!$A125:A174,Mars!B125:B174),"") -> 
AS78: Usine | AV78: =IFERROR(LOOKUP(BC74,Mars!A125:A174,Mars!C126:C175),"") ->  | AX78: =IF(AV78="","",Base!$B$3) ->  | AZ78: =IFERROR(SUM(AV78*AX78),"") -> 
AS80: Route | AV80: =IFERROR(LOOKUP(BC74,Mars!A125:A174,Mars!D126:D175),"") ->  | AX80: =IF(AV80="","",Base!$B$13) ->  | AZ80: =IFERROR(SUM(AV80*AX80),"") -> 
AS82: H-Sup | AV82: =IFERROR(LOOKUP(BC74,Mars!A125:A174,Mars!E126:E175),"") ->  | AX82: =IF(AV82="","",200) ->  | AZ82: =IFERROR(SUM(AV82*AX82),"") -> 
AS84: Net A Paye | AV84: =SUM(AZ78:BA83)-AZ84 -> 0 | AY84: AC
AW86: 1 | BC86: =BC74+1 -> 8
AS88: Nom | AV88: =IFERROR(LOOKUP(BC86,Mars!$A137:A186,Mars!B137:B186),"") -> 
AS90: Usine | AV90: =IFERROR(LOOKUP(BC86,Mars!A137:A186,Mars!C138:C187),"") ->  | AX90: =IF(AV90="","",Base!$B$3) ->  | AZ90: =IFERROR(SUM(AV90*AX90),"") -> 
AS92: Route | AV92: =IFERROR(LOOKUP(BC86,Mars!A137:A186,Mars!D138:D187),"") ->  | AX92: =IF(AV92="","",Base!$B$13) ->  | AZ92: =IFERROR(SUM(AV92*AX92),"") -> 
AS94: H-Sup | AV94: =IFERROR(LOOKUP(BC86,Mars!A137:A186,Mars!E138:E187),"") ->  | AX94: =IF(AV94="","",200) ->  | AZ94: =IFERROR(SUM(AV94*AX94),"") -> 
AS96: Net A Paye | AV96: =SUM(AZ90:BA95)-AZ96 -> 0 | AY96: AC
AW98: 1 | BC98: =BC86+1 -> 9
AS100: Nom | AV100: =IFERROR(LOOKUP(BC98,Mars!$A149:A198,Mars!B149:B198),"") -> 
AS102: Usine | AV102: =IFERROR(LOOKUP(BC98,Mars!A149:A198,Mars!C150:C199),"") ->  | AX102: =IF(AV102="","",Base!$B$3) ->  | AZ102: =IFERROR(SUM(AV102*AX102),"") -> 
AS104: Route | AV104: =IFERROR(LOOKUP(BC98,Mars!A149:A198,Mars!D150:D199),"") ->  | AX104: =IF(AV104="","",Base!$B$13) ->  | AZ104: =IFERROR(SUM(AV104*AX104),"") -> 
AS106: H-Sup | AV106: =IFERROR(LOOKUP(BC98,Mars!A149:A198,Mars!E150:E199),"") ->  | AX106: =IF(AV106="","",200) ->  | AZ106: =IFERROR(SUM(AV106*AX106),"") -> 
AS108: Net A Paye | AV108: =SUM(AZ102:BA107)-AZ108 -> 0 | AY108: AC
AW110: 1 | BC110: =BC98+1 -> 10
AS112: Nom | AV112: =IFERROR(LOOKUP(BC110,Mars!$A161:A210,Mars!B161:B210),"") -> 
AS114: Usine | AV114: =IFERROR(LOOKUP(BC110,Mars!A161:A210,Mars!C162:C211),"") ->  | AX114: =IF(AV114="","",Base!$B$3) ->  | AZ114: =IFERROR(SUM(AV114*AX114),"") -> 
AS116: Route | AV116: =IFERROR(LOOKUP(BC110,Mars!A161:A210,Mars!D162:D211),"") ->  | AX116: =IF(AV116="","",Base!$B$13) ->  | AZ116: =IFERROR(SUM(AV116*AX116),"") -> 
AS118: H-Sup | AV118: =IFERROR(LOOKUP(BC110,Mars!A161:A210,Mars!E162:E211),"") ->  | AX118: =IF(AV118="","",200) ->  | AZ118: =IFERROR(SUM(AV118*AX118),"") -> 
AS120: Net A Paye | AV120: =SUM(AZ114:BA119)-AZ120 -> 0 | AY120: AC
AW122: 1 | BC122: =BC110+1 -> 11
AS124: Nom | AV124: =IFERROR(LOOKUP(BC122,Mars!$A173:A222,Mars!B173:B222),"") -> 
AS126: Usine | AV126: =IFERROR(LOOKUP(BC122,Mars!A173:A222,Mars!C174:C223),"") ->  | AX126: =IF(AV126="","",Base!$B$3) ->  | AZ126: =IFERROR(SUM(AV126*AX126),"") -> 
AS128: Route | AV128: =IFERROR(LOOKUP(BC122,Mars!A173:A222,Mars!D174:D223),"") ->  | AX128: =IF(AV128="","",Base!$B$13) ->  | AZ128: =IFERROR(SUM(AV128*AX128),"") -> 
AS130: H-Sup | AV130: =IFERROR(LOOKUP(BC122,Mars!A173:A222,Mars!E174:E223),"") ->  | AX130: =IF(AV130="","",200) ->  | AZ130: =IFERROR(SUM(AV130*AX130),"") -> 
AS132: Net A Paye | AV132: =SUM(AZ126:BA131)-AZ132 -> 0 | AY132: AC
AW134: 1 | BC134: =BC122+1 -> 12
AS136: Nom | AV136: =IFERROR(LOOKUP(BC134,Mars!$A185:A234,Mars!B185:B234),"") -> 
AS138: Usine | AV138: =IFERROR(LOOKUP(BC134,Mars!A185:A234,Mars!C186:C235),"") ->  | AX138: =IF(AV138="","",Base!$B$3) ->  | AZ138: =IFERROR(SUM(AV138*AX138),"") -> 
AS140: Route | AV140: =IFERROR(LOOKUP(BC134,Mars!A185:A234,Mars!D186:D235),"") ->  | AX140: =IF(AV140="","",Base!$B$13) ->  | AZ140: =IFERROR(SUM(AV140*AX140),"") -> 
AS142: H-Sup | AV142: =IFERROR(LOOKUP(BC134,Mars!A185:A234,Mars!E186:E235),"") ->  | AX142: =IF(AV142="","",200) ->  | AZ142: =IFERROR(SUM(AV142*AX142),"") -> 
AS144: Net A Paye | AV144: =SUM(AZ138:BA143)-AZ144 -> 0 | AY144: AC
AW146: 1 | BC146: =BC134+1 -> 13
AS148: Nom | AV148: =IFERROR(LOOKUP(BC146,Mars!$A197:A246,Mars!B197:B246),"") -> 
AS150: Usine | AV150: =IFERROR(LOOKUP(BC146,Mars!A197:A246,Mars!C198:C247),"") ->  | AX150: =IF(AV150="","",Base!$B$3) ->  | AZ150: =IFERROR(SUM(AV150*AX150),"") -> 
AS152: Route | AV152: =IFERROR(LOOKUP(BC146,Mars!A197:A246,Mars!D198:D247),"") ->  | AX152: =IF(AV152="","",Base!$B$13) ->  | AZ152: =IFERROR(SUM(AV152*AX152),"") -> 
AS154: H-Sup | AV154: =IFERROR(LOOKUP(BC146,Mars!A197:A246,Mars!E198:E247),"") ->  | AX154: =IF(AV154="","",200) ->  | AZ154: =IFERROR(SUM(AV154*AX154),"") -> 
AS156: Net A Paye | AV156: =SUM(AZ150:BA155)-AZ156 -> 0 | AY156: AC
AW158: 1 | BC158: =BC146+1 -> 14
AS160: Nom | AV160: =IFERROR(LOOKUP(BC158,Mars!$A209:A258,Mars!B209:B258),"") -> 
AS162: Usine | AV162: =IFERROR(LOOKUP(BC158,Mars!A209:A258,Mars!C210:C259),"") ->  | AX162: =IF(AV162="","",Base!$B$3) ->  | AZ162: =IFERROR(SUM(AV162*AX162),"") -> 
AS164: Route | AV164: =IFERROR(LOOKUP(BC158,Mars!A209:A258,Mars!D210:D259),"") ->  | AX164: =IF(AV164="","",Base!$B$13) ->  | AZ164: =IFERROR(SUM(AV164*AX164),"") -> 
AS166: H-Sup | AV166: =IFERROR(LOOKUP(BC158,Mars!A209:A258,Mars!E210:E259),"") ->  | AX166: =IF(AV166="","",200) ->  | AZ166: =IFERROR(SUM(AV166*AX166),"") -> 
AS168: Net A Paye | AV168: =SUM(AZ162:BA167)-AZ168 -> 0 | AY168: AC
AW170: 1 | BC170: =BC158+1 -> 15
AS172: Nom | AV172: =IFERROR(LOOKUP(BC170,Mars!$A221:A270,Mars!B221:B270),"") -> 
AS174: Usine | AV174: =IFERROR(LOOKUP(BC170,Mars!A221:A270,Mars!C222:C271),"") ->  | AX174: =IF(AV174="","",Base!$B$3) ->  | AZ174: =IFERROR(SUM(AV174*AX174),"") -> 
AS176: Route | AV176: =IFERROR(LOOKUP(BC170,Mars!A221:A270,Mars!D222:D271),"") ->  | AX176: =IF(AV176="","",Base!$B$13) ->  | AZ176: =IFERROR(SUM(AV176*AX176),"") -> 
AS178: H-Sup | AV178: =IFERROR(LOOKUP(BC170,Mars!A221:A270,Mars!E222:E271),"") ->  | AX178: =IF(AV178="","",200) ->  | AZ178: =IFERROR(SUM(AV178*AX178),"") -> 
AS180: Net A Paye | AV180: =SUM(AZ174:BA179)-AZ180 -> 0 | AY180: AC
AW182: 1 | BC182: =BC170+1 -> 16
AS184: Nom | AV184: =IFERROR(LOOKUP(BC182,Mars!$A233:A282,Mars!B233:B282),"") -> 
AS186: Usine | AV186: =IFERROR(LOOKUP(BC182,Mars!A233:A282,Mars!C234:C283),"") ->  | AX186: =IF(AV186="","",Base!$B$3) ->  | AZ186: =IFERROR(SUM(AV186*AX186),"") -> 
AS188: Route | AV188: =IFERROR(LOOKUP(BC182,Mars!A233:A282,Mars!D234:D283),"") ->  | AX188: =IF(AV188="","",Base!$B$13) ->  | AZ188: =IFERROR(SUM(AV188*AX188),"") -> 
AS190: H-Sup | AV190: =IFERROR(LOOKUP(BC182,Mars!A233:A282,Mars!E234:E283),"") ->  | AX190: =IF(AV190="","",200) ->  | AZ190: =IFERROR(SUM(AV190*AX190),"") -> 
AS192: Net A Paye | AV192: =SUM(AZ186:BA191)-AZ192 -> 0 | AY192: AC
AW194: 1 | BC194: =BC182+1 -> 17
AS196: Nom | AV196: =IFERROR(LOOKUP(BC194,Mars!$A245:A294,Mars!B245:B294),"") -> 
AS198: Usine | AV198: =IFERROR(LOOKUP(BC194,Mars!A245:A294,Mars!C246:C295),"") ->  | AX198: =IF(AV198="","",Base!$B$3) ->  | AZ198: =IFERROR(SUM(AV198*AX198),"") -> 
AS200: Route | AV200: =IFERROR(LOOKUP(BC194,Mars!A245:A294,Mars!D246:D295),"") ->  | AX200: =IF(AV200="","",Base!$B$13) ->  | AZ200: =IFERROR(SUM(AV200*AX200),"") -> 
AS202: H-Sup | AV202: =IFERROR(LOOKUP(BC194,Mars!A245:A294,Mars!E246:E295),"") ->  | AX202: =IF(AV202="","",200) ->  | AZ202: =IFERROR(SUM(AV202*AX202),"") -> 
AS204: Net A Paye | AV204: =SUM(AZ198:BA203)-AZ204 -> 0 | AY204: AC
AW206: 1 | BC206: =BC194+1 -> 18
AS208: Nom | AV208: =IFERROR(LOOKUP(BC206,Mars!$A257:A306,Mars!B257:B306),"") -> 
AS210: Usine | AV210: =IFERROR(LOOKUP(BC206,Mars!A257:A306,Mars!C258:C307),"") ->  | AX210: =IF(AV210="","",Base!$B$3) ->  | AZ210: =IFERROR(SUM(AV210*AX210),"") -> 
AS212: Route | AV212: =IFERROR(LOOKUP(BC206,Mars!A257:A306,Mars!D258:D307),"") ->  | AX212: =IF(AV212="","",Base!$B$13) ->  | AZ212: =IFERROR(SUM(AV212*AX212),"") -> 
AS214: H-Sup | AV214: =IFERROR(LOOKUP(BC206,Mars!A257:A306,Mars!E258:E307),"") ->  | AX214: =IF(AV214="","",200) ->  | AZ214: =IFERROR(SUM(AV214*AX214),"") -> 
AS216: Net A Paye | AV216: =SUM(AZ210:BA215)-AZ216 -> 0 | AY216: AC
AW218: 1 | BC218: =BC206+1 -> 19
AS220: Nom | AV220: =IFERROR(LOOKUP(BC218,Mars!$A269:A318,Mars!B269:B318),"") -> 
AS222: Usine | AV222: =IFERROR(LOOKUP(BC218,Mars!A269:A318,Mars!C270:C319),"") ->  | AX222: =IF(AV222="","",Base!$B$3) ->  | AZ222: =IFERROR(SUM(AV222*AX222),"") -> 
AS224: Route | AV224: =IFERROR(LOOKUP(BC218,Mars!A269:A318,Mars!D270:D319),"") ->  | AX224: =IF(AV224="","",Base!$B$13) ->  | AZ224: =IFERROR(SUM(AV224*AX224),"") -> 
AS226: H-Sup | AV226: =IFERROR(LOOKUP(BC218,Mars!A269:A318,Mars!E270:E319),"") ->  | AX226: =IF(AV226="","",200) ->  | AZ226: =IFERROR(SUM(AV226*AX226),"") -> 
AS228: Net A Paye | AV228: =SUM(AZ222:BA227)-AZ228 -> 0 | AY228: AC
AW230: 1 | BC230: =BC218+1 -> 20
AS232: Nom | AV232: =IFERROR(LOOKUP(BC230,Mars!$A281:A330,Mars!B281:B330),"") -> 
AS234: Usine | AV234: =IFERROR(LOOKUP(BC230,Mars!A281:A330,Mars!C282:C331),"") ->  | AX234: =IF(AV234="","",Base!$B$3) ->  | AZ234: =IFERROR(SUM(AV234*AX234),"") -> 
AS236: Route | AV236: =IFERROR(LOOKUP(BC230,Mars!A281:A330,Mars!D282:D331),"") ->  | AX236: =IF(AV236="","",Base!$B$13) ->  | AZ236: =IFERROR(SUM(AV236*AX236),"") -> 
AS238: H-Sup | AV238: =IFERROR(LOOKUP(BC230,Mars!A281:A330,Mars!E282:E331),"") ->  | AX238: =IF(AV238="","",200) ->  | AZ238: =IFERROR(SUM(AV238*AX238),"") -> 
AS240: Net A Paye | AV240: =SUM(AZ234:BA239)-AZ240 -> 0 | AY240: AC
AW242: 1 | BC242: =BC230+1 -> 21
AS244: Nom | AV244: =IFERROR(LOOKUP(BC242,Mars!$A293:A342,Mars!B293:B342),"") -> 
AS246: Usine | AV246: =IFERROR(LOOKUP(BC242,Mars!A293:A342,Mars!C294:C343),"") ->  | AX246: =IF(AV246="","",Base!$B$3) ->  | AZ246: =IFERROR(SUM(AV246*AX246),"") -> 
AS248: Route | AV248: =IFERROR(LOOKUP(BC242,Mars!A293:A342,Mars!D294:D343),"") ->  | AX248: =IF(AV248="","",Base!$B$13) ->  | AZ248: =IFERROR(SUM(AV248*AX248),"") -> 
AS250: H-Sup | AV250: =IFERROR(LOOKUP(BC242,Mars!A293:A342,Mars!E294:E343),"") ->  | AX250: =IF(AV250="","",200) ->  | AZ250: =IFERROR(SUM(AV250*AX250),"") -> 
AS252: Net A Paye | AV252: =SUM(AZ246:BA251)-AZ252 -> 0 | AY252: AC
AW254: 1 | BC254: =BC242+1 -> 22
AS256: Nom | AV256: =IFERROR(LOOKUP(BC254,Mars!$A305:A354,Mars!B305:B354),"") -> 
AS258: Usine | AV258: =IFERROR(LOOKUP(BC254,Mars!A305:A354,Mars!C306:C355),"") ->  | AX258: =IF(AV258="","",Base!$B$3) ->  | AZ258: =IFERROR(SUM(AV258*AX258),"") -> 
AS260: Route | AV260: =IFERROR(LOOKUP(BC254,Mars!A305:A354,Mars!D306:D355),"") ->  | AX260: =IF(AV260="","",Base!$B$13) ->  | AZ260: =IFERROR(SUM(AV260*AX260),"") -> 
AS262: H-Sup | AV262: =IFERROR(LOOKUP(BC254,Mars!A305:A354,Mars!E306:E355),"") ->  | AX262: =IF(AV262="","",200) ->  | AZ262: =IFERROR(SUM(AV262*AX262),"") -> 
AS264: Net A Paye | AV264: =SUM(AZ258:BA263)-AZ264 -> 0 | AY264: AC
AW266: 1 | BC266: =BC254+1 -> 23
AS268: Nom | AV268: =IFERROR(LOOKUP(BC266,Mars!$A317:A366,Mars!B317:B366),"") -> 
AS270: Usine | AV270: =IFERROR(LOOKUP(BC266,Mars!A317:A366,Mars!C318:C367),"") ->  | AX270: =IF(AV270="","",Base!$B$3) ->  | AZ270: =IFERROR(SUM(AV270*AX270),"") -> 
AS272: Route | AV272: =IFERROR(LOOKUP(BC266,Mars!A317:A366,Mars!D318:D367),"") ->  | AX272: =IF(AV272="","",Base!$B$13) ->  | AZ272: =IFERROR(SUM(AV272*AX272),"") -> 
AS274: H-Sup | AV274: =IFERROR(LOOKUP(BC266,Mars!A317:A366,Mars!E318:E367),"") ->  | AX274: =IF(AV274="","",200) ->  | AZ274: =IFERROR(SUM(AV274*AX274),"") -> 
AS276: Net A Paye | AV276: =SUM(AZ270:BA275)-AZ276 -> 0 | AY276: AC
AW278: 1 | BC278: =BC266+1 -> 24
AS280: Nom | AV280: =IFERROR(LOOKUP(BC278,Mars!$A329:A378,Mars!B329:B378),"") -> 
AS282: Usine | AV282: =IFERROR(LOOKUP(BC278,Mars!A329:A378,Mars!C330:C379),"") ->  | AX282: =IF(AV282="","",Base!$B$3) ->  | AZ282: =IFERROR(SUM(AV282*AX282),"") -> 
AS284: Route | AV284: =IFERROR(LOOKUP(BC278,Mars!A329:A378,Mars!D330:D379),"") ->  | AX284: =IF(AV284="","",Base!$B$13) ->  | AZ284: =IFERROR(SUM(AV284*AX284),"") -> 
AS286: H-Sup | AV286: =IFERROR(LOOKUP(BC278,Mars!A329:A378,Mars!E330:E379),"") ->  | AX286: =IF(AV286="","",200) ->  | AZ286: =IFERROR(SUM(AV286*AX286),"") -> 
AS288: Net A Paye | AV288: =SUM(AZ282:BA287)-AZ288 -> 0 | AY288: AC
AW290: 1 | BC290: =BC278+1 -> 25
AS292: Nom | AV292: =IFERROR(LOOKUP(BC290,Mars!$A341:A390,Mars!B341:B390),"") -> 
AS294: Usine | AV294: =IFERROR(LOOKUP(BC290,Mars!A341:A390,Mars!C342:C391),"") ->  | AX294: =IF(AV294="","",Base!$B$3) ->  | AZ294: =IFERROR(SUM(AV294*AX294),"") -> 
AS296: Route | AV296: =IFERROR(LOOKUP(BC290,Mars!A341:A390,Mars!D342:D391),"") ->  | AX296: =IF(AV296="","",Base!$B$13) ->  | AZ296: =IFERROR(SUM(AV296*AX296),"") -> 
AS298: H-Sup | AV298: =IFERROR(LOOKUP(BC290,Mars!A341:A390,Mars!E342:E391),"") ->  | AX298: =IF(AV298="","",200) ->  | AZ298: =IFERROR(SUM(AV298*AX298),"") -> 
AS300: Net A Paye | AV300: =SUM(AZ294:BA299)-AZ300 -> 0 | AY300: AC
AW302: 1 | BC302: =BC290+1 -> 26
AS304: Nom | AV304: =IFERROR(LOOKUP(BC302,Mars!$A353:A402,Mars!B353:B402),"") -> 
AS306: Usine | AV306: =IFERROR(LOOKUP(BC302,Mars!A353:A402,Mars!C354:C403),"") ->  | AX306: =IF(AV306="","",Base!$B$3) ->  | AZ306: =IFERROR(SUM(AV306*AX306),"") -> 
AS308: Route | AV308: =IFERROR(LOOKUP(BC302,Mars!A353:A402,Mars!D354:D403),"") ->  | AX308: =IF(AV308="","",Base!$B$13) ->  | AZ308: =IFERROR(SUM(AV308*AX308),"") -> 
AS310: H-Sup | AV310: =IFERROR(LOOKUP(BC302,Mars!A353:A402,Mars!E354:E403),"") ->  | AX310: =IF(AV310="","",200) ->  | AZ310: =IFERROR(SUM(AV310*AX310),"") -> 
AS312: Net A Paye | AV312: =SUM(AZ306:BA311)-AZ312 -> 0 | AY312: AC
AW314: 1 | BC314: =BC302+1 -> 27
AS316: Nom | AV316: =IFERROR(LOOKUP(BC314,Mars!$A365:A414,Mars!B365:B414),"") -> 
AS318: Usine | AV318: =IFERROR(LOOKUP(BC314,Mars!A365:A414,Mars!C366:C415),"") ->  | AX318: =IF(AV318="","",Base!$B$3) ->  | AZ318: =IFERROR(SUM(AV318*AX318),"") -> 
AS320: Route | AV320: =IFERROR(LOOKUP(BC314,Mars!A365:A414,Mars!D366:D415),"") ->  | AX320: =IF(AV320="","",Base!$B$13) ->  | AZ320: =IFERROR(SUM(AV320*AX320),"") -> 
AS322: H-Sup | AV322: =IFERROR(LOOKUP(BC314,Mars!A365:A414,Mars!E366:E415),"") ->  | AX322: =IF(AV322="","",200) ->  | AZ322: =IFERROR(SUM(AV322*AX322),"") -> 
AS324: Net A Paye | AV324: =SUM(AZ318:BA323)-AZ324 -> 0 | AY324: AC
AW326: 1 | BC326: =BC314+1 -> 28
AS328: Nom | AV328: =IFERROR(LOOKUP(BC326,Mars!$A377:A426,Mars!B377:B426),"") -> 
AS330: Usine | AV330: =IFERROR(LOOKUP(BC326,Mars!A377:A426,Mars!C378:C427),"") ->  | AX330: =IF(AV330="","",Base!$B$3) ->  | AZ330: =IFERROR(SUM(AV330*AX330),"") -> 
AS332: Route | AV332: =IFERROR(LOOKUP(BC326,Mars!A377:A426,Mars!D378:D427),"") ->  | AX332: =IF(AV332="","",Base!$B$13) ->  | AZ332: =IFERROR(SUM(AV332*AX332),"") -> 
AS334: H-Sup | AV334: =IFERROR(LOOKUP(BC326,Mars!A377:A426,Mars!E378:E427),"") ->  | AX334: =IF(AV334="","",200) ->  | AZ334: =IFERROR(SUM(AV334*AX334),"") -> 
AS336: Net A Paye | AV336: =SUM(AZ330:BA335)-AZ336 -> 0 | AY336: AC
AW338: 1 | BC338: =BC326+1 -> 29
AS340: Nom | AV340: =IFERROR(LOOKUP(BC338,Mars!$A389:A438,Mars!B389:B438),"") -> 
AS342: Usine | AV342: =IFERROR(LOOKUP(BC338,Mars!A389:A438,Mars!C390:C439),"") ->  | AX342: =IF(AV342="","",Base!$B$3) ->  | AZ342: =IFERROR(SUM(AV342*AX342),"") -> 
AS344: Route | AV344: =IFERROR(LOOKUP(BC338,Mars!A389:A438,Mars!D390:D439),"") ->  | AX344: =IF(AV344="","",Base!$B$13) ->  | AZ344: =IFERROR(SUM(AV344*AX344),"") -> 
... 116 more rows

Sheet Avril
B1: A V R I L 2 0 2 0 | E1: 5
AW2: 1 | BC2: 1
B3: 2020-04-01 | C3: =EOMONTH(B3,0) -> 2020-04-30 | H3: =B3 -> 2020-04-01 | I3: =H3+1 -> 2020-04-02 | J3: =I3+1 -> 2020-04-03 | K3: 2020-04-04 | L3: 2020-04-05 | M3: 2020-04-06 | N3: 2020-04-07 | O3: 2020-04-08 | P3: 2020-04-09 | Q3: 2020-04-10 | R3: 2020-04-11 | S3: 2020-04-12 | T3: 2020-04-13 | U3: 2020-04-14 | V3: 2020-04-15 | W3: 2020-04-16 | X3: 2020-04-17 | Y3: 2020-04-18 | Z3: 2020-04-19 | AA3: 2020-04-20 | AB3: 2020-04-21 | AC3: 2020-04-22 | AD3: 2020-04-23 | AE3: 2020-04-24 | AF3: 2020-04-25 | AG3: 2020-04-26 | AH3: 2020-04-27 | AI3: 2020-04-28 | AJ3: =IFERROR(IF(AI3+1>C3,"",AI3+1),"") -> 2020-04-29 | AK3: 2020-04-30 | AL3: 2020-05-01
B4: Avril | C4: العمليات الحسابيه | H4: =DAY(H3) -> 1 | I4: =DAY(I3) -> 2 | J4: 3 | K4: 4 | L4: 5 | M4: 6 | N4: 7 | O4: 8 | P4: 9 | Q4: 10 | R4: 11 | S4: 12 | T4: 13 | U4: 14 | V4: 15 | W4: 16 | X4: 17 | Y4: 18 | Z4: 19 | AA4: 20 | AB4: 21 | AC4: 22 | AD4: 23 | AE4: 24 | AF4: 25 | AG4: 26 | AH4: 27 | AI4: 28 | AJ4: 29 | AK4: 30 | AL4: 1 | AS4: Nom | AV4: =IFERROR(LOOKUP(BC2,Avril!$A6:A102,Avril!B6:B102),"") -> 
B5: الموظف | C5: المكتب | D5: الرقابه | E5: إظافه | F5: سلف | G5: الاجر الصافي | H5: =WEEKDAY(H3) -> 1900-01-04 | I5: =WEEKDAY(I3) -> 1900-01-05 | J5: 1900-01-06 | K5: 1900-01-07 | L5: 1900-01-01 | M5: 1900-01-02 | N5: 1900-01-03 | O5: 1900-01-04 | P5: 1900-01-05 | Q5: 1900-01-06 | R5: 1900-01-07 | S5: 1900-01-01 | T5: 1900-01-02 | U5: 1900-01-03 | V5: 1900-01-04 | W5: 1900-01-05 | X5: 1900-01-06 | Y5: 1900-01-07 | Z5: 1900-01-01 | AA5: 1900-01-02 | AB5: 1900-01-03 | AC5: 1900-01-04 | AD5: 1900-01-05 | AE5: 1900-01-06 | AF5: 1900-01-07 | AG5: 1900-01-01 | AH5: 1900-01-02 | AI5: 1900-01-03 | AJ5: 1900-01-04 | AK5: 1900-01-05 | AL5: 1900-01-06 | AN5: ACOMPTE
A6: =IF(B6<>"",COUNTA($B$6:B6),"") ->  | B6: =IFERROR(INDEX(Base!$E$2:$E$102,SMALL(IF(INDEX(Base!$E$2:$Q$102,,MATCH(Avril!$B$4,Base!$F$1:$Q$1,0)+1)="x",ROW(Base!$E$2:$E$102)-ROW(Base!$E$2)+1),ROWS($B$6:B6))),"") ->  | C6: =COUNTIF($H6:$AL6, "u")*1+COUNTIF($H6:$AL6, "U 1")*1+COUNTIF($H6:$AL6, "u 2")*1+COUNTIF($H6:$AL6, "u 3")*1+COUNTIF($H6:$AL6, "U 4")*1+COUNTIF($H6:$AL6, "u 5")*1+COUNTIF($H6:$AL6, "u 6")*1+COUNTIF($H6:$AL6, "U 7")*1+COUNTIF($H6:$AL6, "u 8")*1+COUNTIF($H6:$AL6, "u 9")*1+COUNTIF($H6:$AL6, "500")*1+COUNTIF($H6:$AL6, "1000")*1+COUNTIF($H6:$AL6, "1500")*1+COUNTIF($H6:$AL6, "2000")*1+COUNTIF($H6:$AL6, "3000")*1+COUNTIF($H6:$AL6, "4000")*1+COUNTIF($H6:$AL6, "5000")*1 -> 0 | D6: =COUNTIF($H6:$AL6, "R")*1+COUNTIF($H6:$AL6, "R 1")*1+COUNTIF($H6:$AL6, "R 2")*1+COUNTIF($H6:$AL6, "R 3")*1+COUNTIF($H6:$AL6, "R 4")*1+COUNTIF($H6:$AL6, "R 5")*1+COUNTIF($H6:$AL6, "R 6")*1+COUNTIF($H6:$AL6, "R 7")*1+COUNTIF($H6:$AL6, "R 8")*1+COUNTIF($H6:$AL6, "R 9")*1 -> 0 | E6: =COUNTIF($H6:$AL6, "U 1")*1+COUNTIF($H6:$AL6, "u 2")*2+COUNTIF($H6:$AL6, "u 3")*3+COUNTIF($H6:$AL6, "U 4")*4+COUNTIF($H6:$AL6, "u 5")*5+COUNTIF($H6:$AL6, "u 6")*6+COUNTIF($H6:$AL6, "U 7")*7+COUNTIF($H6:$AL6, "u 8")*8+COUNTIF($H6:$AL6, "u 9")*9+COUNTIF($H6:$AL6, "R 1")*1+COUNTIF($H6:$AL6, "R 2")*2+COUNTIF($H6:$AL6, "R 3")*3+COUNTIF($H6:$AL6, "R 4")*4+COUNTIF($H6:$AL6, "R 5")*5+COUNTIF($H6:$AL6, "R 6")*6+COUNTIF($H6:$AL6, "R 7")*7+COUNTIF($H6:$AL6, "R 8")*8+COUNTIF($H6:$AL6, "R 9")*9 -> 0 | F6: =SUM(H6:AL6) -> 0 | G6: =SUMPRODUCT((H6:AL6=Som)*(Base!$B$3:$B$20))-F6 -> 0 | AS6: Usine | AV6: =IFERROR(LOOKUP(BC2,Avril!A6:A102,Avril!C6:C103),"") ->  | AX6: =IF(AV6="","",Base!$B$3) ->  | AZ6: =IFERROR(SUM(AV6*AX6),"") -> 
A7: =IF(B7<>"",COUNTA($B$6:B7),"") ->  | B7: =IFERROR(INDEX(Base!$E$2:$E$102,SMALL(IF(INDEX(Base!$E$2:$Q$102,,MATCH(Avril!$B$4,Base!$F$1:$Q$1,0)+1)="x",ROW(Base!$E$2:$E$102)-ROW(Base!$E$2)+1),ROWS($B$6:B7))),"") ->  | C7: =COUNTIF($H7:$AL7, "u")*1+COUNTIF($H7:$AL7, "U 1")*1+COUNTIF($H7:$AL7, "u 2")*1+COUNTIF($H7:$AL7, "u 3")*1+COUNTIF($H7:$AL7, "U 4")*1+COUNTIF($H7:$AL7, "u 5")*1+COUNTIF($H7:$AL7, "u 6")*1+COUNTIF($H7:$AL7, "U 7")*1+COUNTIF($H7:$AL7, "u 8")*1+COUNTIF($H7:$AL7, "u 9")*1+COUNTIF($H7:$AL7, "500")*1+COUNTIF($H7:$AL7, "1000")*1+COUNTIF($H7:$AL7, "1500")*1+COUNTIF($H7:$AL7, "2000")*1+COUNTIF($H7:$AL7, "3000")*1+COUNTIF($H7:$AL7, "4000")*1+COUNTIF($H7:$AL7, "5000")*1 -> 0 | D7: =COUNTIF($H7:$AL7, "R")*1+COUNTIF($H7:$AL7, "R 1")*1+COUNTIF($H7:$AL7, "R 2")*1+COUNTIF($H7:$AL7, "R 3")*1+COUNTIF($H7:$AL7, "R 4")*1+COUNTIF($H7:$AL7, "R 5")*1+COUNTIF($H7:$AL7, "R 6")*1+COUNTIF($H7:$AL7, "R 7")*1+COUNTIF($H7:$AL7, "R 8")*1+COUNTIF($H7:$AL7, "R 9")*1 -> 0 | E7: =COUNTIF($H7:$AL7, "U 1")*1+COUNTIF($H7:$AL7, "u 2")*2+COUNTIF($H7:$AL7, "u 3")*3+COUNTIF($H7:$AL7, "U 4")*4+COUNTIF($H7:$AL7, "u 5")*5+COUNTIF($H7:$AL7, "u 6")*6+COUNTIF($H7:$AL7, "U 7")*7+COUNTIF($H7:$AL7, "u 8")*8+COUNTIF($H7:$AL7, "u 9")*9+COUNTIF($H7:$AL7, "R 1")*1+COUNTIF($H7:$AL7, "R 2")*2+COUNTIF($H7:$AL7, "R 3")*3+COUNTIF($H7:$AL7, "R 4")*4+COUNTIF($H7:$AL7, "R 5")*5+COUNTIF($H7:$AL7, "R 6")*6+COUNTIF($H7:$AL7, "R 7")*7+COUNTIF($H7:$AL7, "R 8")*8+COUNTIF($H7:$AL7, "R 9")*9 -> 0 | F7: =SUM(H7:AL7) -> 0 | G7: =SUMPRODUCT((H7:AL7=Som)*(Base!$B$3:$B$20))-F7 -> 0
A8: =IF(B8<>"",COUNTA($B$6:B8),"") ->  | B8: =IFERROR(INDEX(Base!$E$2:$E$102,SMALL(IF(INDEX(Base!$E$2:$Q$102,,MATCH(Avril!$B$4,Base!$F$1:$Q$1,0)+1)="x",ROW(Base!$E$2:$E$102)-ROW(Base!$E$2)+1),ROWS($B$6:B8))),"") ->  | C8: 0 | D8: 0 | E8: 0 | F8: 0 | G8: =SUMPRODUCT((H8:AL8=Som)*(Base!$B$3:$B$20))-F8 -> 0 | AS8: Route | AV8: =IFERROR(LOOKUP(BC2,Avril!A53:A102,Avril!D54:D103),"") ->  | AX8: =IF(AV8="","",Base!$B$13) ->  | AZ8: =IFERROR(SUM(AV8*AX8),"") -> 
A9: =IF(B9<>"",COUNTA($B$6:B9),"") ->  | B9: =IFERROR(INDEX(Base!$E$2:$E$102,SMALL(IF(INDEX(Base!$E$2:$Q$102,,MATCH(Avril!$B$4,Base!$F$1:$Q$1,0)+1)="x",ROW(Base!$E$2:$E$102)-ROW(Base!$E$2)+1),ROWS($B$6:B9))),"") ->  | C9: 0 | D9: 0 | E9: 0 | F9: 0 | G9: =SUMPRODUCT((H9:AL9=Som)*(Base!$B$3:$B$20))-F9 -> 0
A10: =IF(B10<>"",COUNTA($B$6:B10),"") ->  | B10: =IFERROR(INDEX(Base!$E$2:$E$102,SMALL(IF(INDEX(Base!$E$2:$Q$102,,MATCH(Avril!$B$4,Base!$F$1:$Q$1,0)+1)="x",ROW(Base!$E$2:$E$102)-ROW(Base!$E$2)+1),ROWS($B$6:B10))),"") ->  | C10: 0 | D10: 0 | E10: 0 | F10: 0 | G10: =SUMPRODUCT((H10:AL10=Som)*(Base!$B$3:$B$20))-F10 -> 0 | AS10: H-Sup | AV10: =IFERROR(LOOKUP(BC2,Avril!A53:A102,Avril!E54:E103),"") ->  | AX10: =IF(AV10="","",200) ->  | AZ10: =IFERROR(SUM(AV10*AX10),"") -> 
A11: =IF(B11<>"",COUNTA($B$6:B11),"") ->  | B11: =IFERROR(INDEX(Base!$E$2:$E$102,SMALL(IF(INDEX(Base!$E$2:$Q$102,,MATCH(Avril!$B$4,Base!$F$1:$Q$1,0)+1)="x",ROW(Base!$E$2:$E$102)-ROW(Base!$E$2)+1),ROWS($B$6:B11))),"") ->  | C11: 0 | D11: 0 | E11: 0 | F11: 0 | G11: =SUMPRODUCT((H11:AL11=Som)*(Base!$B$3:$B$20))-F11 -> 0
A12: =IF(B12<>"",COUNTA($B$6:B12),"") ->  | B12: =IFERROR(INDEX(Base!$E$2:$E$102,SMALL(IF(INDEX(Base!$E$2:$Q$102,,MATCH(Avril!$B$4,Base!$F$1:$Q$1,0)+1)="x",ROW(Base!$E$2:$E$102)-ROW(Base!$E$2)+1),ROWS($B$6:B12))),"") ->  | C12: 0 | D12: 0 | E12: 0 | F12: 0 | G12: =SUMPRODUCT((H12:AL12=Som)*(Base!$B$3:$B$20))-F12 -> 0 | AS12: Net A Paye | AV12: =SUM(AZ6:BA11)-AZ12 -> 0 | AY12: AC
A13: =IF(B13<>"",COUNTA($B$6:B13),"") ->  | B13: =IFERROR(INDEX(Base!$E$2:$E$102,SMALL(IF(INDEX(Base!$E$2:$Q$102,,MATCH(Avril!$B$4,Base!$F$1:$Q$1,0)+1)="x",ROW(Base!$E$2:$E$102)-ROW(Base!$E$2)+1),ROWS($B$6:B13))),"") ->  | C13: 0 | D13: 0 | E13: 0 | F13: 0 | G13: =SUMPRODUCT((H13:AL13=Som)*(Base!$B$3:$B$20))-F13 -> 0
A14: =IF(B14<>"",COUNTA($B$6:B14),"") ->  | B14: =IFERROR(INDEX(Base!$E$2:$E$102,SMALL(IF(INDEX(Base!$E$2:$Q$102,,MATCH(Avril!$B$4,Base!$F$1:$Q$1,0)+1)="x",ROW(Base!$E$2:$E$102)-ROW(Base!$E$2)+1),ROWS($B$6:B14))),"") ->  | C14: 0 | D14: 0 | E14: 0 | F14: 0 | G14: =SUMPRODUCT((H14:AL14=Som)*(Base!$B$3:$B$20))-F14 -> 0 | AW14: 1 | BC14: =BC2+1 -> 2
A15: =IF(B15<>"",COUNTA($B$6:B15),"") ->  | B15: =IFERROR(INDEX(Base!$E$2:$E$102,SMALL(IF(INDEX(Base!$E$2:$Q$102,,MATCH(Avril!$B$4,Base!$F$1:$Q$1,0)+1)="x",ROW(Base!$E$2:$E$102)-ROW(Base!$E$2)+1),ROWS($B$6:B15))),"") ->  | C15: 0 | D15: 0 | E15: 0 | F15: 0 | G15: =SUMPRODUCT((H15:AL15=Som)*(Base!$B$3:$B$20))-F15 -> 0
A16: =IF(B16<>"",COUNTA($B$6:B16),"") ->  | B16: =IFERROR(INDEX(Base!$E$2:$E$102,SMALL(IF(INDEX(Base!$E$2:$Q$102,,MATCH(Avril!$B$4,Base!$F$1:$Q$1,0)+1)="x",ROW(Base!$E$2:$E$102)-ROW(Base!$E$2)+1),ROWS($B$6:B16))),"") ->  | C16: 0 | D16: 0 | E16: 0 | F16: 0 | G16: =SUMPRODUCT((H16:AL16=Som)*(Base!$B$3:$B$20))-F16 -> 0 | AS16: Nom | AV16: =IFERROR(LOOKUP(BC14,Avril!$A7:A114,Avril!B7:B114),"") -> 
A17: =IF(B17<>"",COUNTA($B$6:B17),"") ->  | B17: =IFERROR(INDEX(Base!$E$2:$E$102,SMALL(IF(INDEX(Base!$E$2:$Q$102,,MATCH(Avril!$B$4,Base!$F$1:$Q$1,0)+1)="x",ROW(Base!$E$2:$E$102)-ROW(Base!$E$2)+1),ROWS($B$6:B17))),"") ->  | C17: 0 | D17: 0 | E17: 0 | F17: 0 | G17: =SUMPRODUCT((H17:AL17=Som)*(Base!$B$3:$B$20))-F17 -> 0
A18: =IF(B18<>"",COUNTA($B$6:B18),"") ->  | B18: =IFERROR(INDEX(Base!$E$2:$E$102,SMALL(IF(INDEX(Base!$E$2:$Q$102,,MATCH(Avril!$B$4,Base!$F$1:$Q$1,0)+1)="x",ROW(Base!$E$2:$E$102)-ROW(Base!$E$2)+1),ROWS($B$6:B18))),"") ->  | C18: 0 | D18: 0 | E18: 0 | F18: 0 | G18: =SUMPRODUCT((H18:AL18=Som)*(Base!$B$3:$B$20))-F18 -> 0 | AS18: Usine | AV18: =IFERROR(LOOKUP(BC14,Avril!A65:A114,Avril!C66:C115),"") ->  | AX18: =IF(AV18="","",Base!$B$3) ->  | AZ18: =IFERROR(SUM(AV18*AX18),"") -> 
A19: =IF(B19<>"",COUNTA($B$6:B19),"") ->  | B19: =IFERROR(INDEX(Base!$E$2:$E$102,SMALL(IF(INDEX(Base!$E$2:$Q$102,,MATCH(Avril!$B$4,Base!$F$1:$Q$1,0)+1)="x",ROW(Base!$E$2:$E$102)-ROW(Base!$E$2)+1),ROWS($B$6:B19))),"") ->  | C19: 0 | D19: 0 | E19: 0 | F19: 0 | G19: =SUMPRODUCT((H19:AL19=Som)*(Base!$B$3:$B$20))-F19 -> 0
A20: =IF(B20<>"",COUNTA($B$6:B20),"") ->  | B20: =IFERROR(INDEX(Base!$E$2:$E$102,SMALL(IF(INDEX(Base!$E$2:$Q$102,,MATCH(Avril!$B$4,Base!$F$1:$Q$1,0)+1)="x",ROW(Base!$E$2:$E$102)-ROW(Base!$E$2)+1),ROWS($B$6:B20))),"") ->  | C20: 0 | D20: 0 | E20: 0 | F20: 0 | G20: =SUMPRODUCT((H20:AL20=Som)*(Base!$B$3:$B$20))-F20 -> 0 | AS20: Route | AV20: =IFERROR(LOOKUP(BC14,Avril!A65:A114,Avril!D66:D115),"") ->  | AX20: =IF(AV20="","",Base!$B$13) ->  | AZ20: =IFERROR(SUM(AV20*AX20),"") -> 
A21: =IF(B21<>"",COUNTA($B$6:B21),"") ->  | B21: =IFERROR(INDEX(Base!$E$2:$E$102,SMALL(IF(INDEX(Base!$E$2:$Q$102,,MATCH(Avril!$B$4,Base!$F$1:$Q$1,0)+1)="x",ROW(Base!$E$2:$E$102)-ROW(Base!$E$2)+1),ROWS($B$6:B21))),"") ->  | C21: 0 | D21: 0 | E21: 0 | F21: 0 | G21: =SUMPRODUCT((H21:AL21=Som)*(Base!$B$3:$B$20))-F21 -> 0
A22: =IF(B22<>"",COUNTA($B$6:B22),"") ->  | B22: =IFERROR(INDEX(Base!$E$2:$E$102,SMALL(IF(INDEX(Base!$E$2:$Q$102,,MATCH(Avril!$B$4,Base!$F$1:$Q$1,0)+1)="x",ROW(Base!$E$2:$E$102)-ROW(Base!$E$2)+1),ROWS($B$6:B22))),"") ->  | C22: 0 | D22: 0 | E22: 0 | F22: 0 | G22: =SUMPRODUCT((H22:AL22=Som)*(Base!$B$3:$B$20))-F22 -> 0 | AS22: H-Sup | AV22: =IFERROR(LOOKUP(BC14,Avril!A65:A114,Avril!E66:E115),"") ->  | AX22: =IF(AV22="","",200) ->  | AZ22: =IFERROR(SUM(AV22*AX22),"") -> 
A23: =IF(B23<>"",COUNTA($B$6:B23),"") ->  | B23: =IFERROR(INDEX(Base!$E$2:$E$102,SMALL(IF(INDEX(Base!$E$2:$Q$102,,MATCH(Avril!$B$4,Base!$F$1:$Q$1,0)+1)="x",ROW(Base!$E$2:$E$102)-ROW(Base!$E$2)+1),ROWS($B$6:B23))),"") ->  | C23: 0 | D23: 0 | E23: 0 | F23: 0 | G23: =SUMPRODUCT((H23:AL23=Som)*(Base!$B$3:$B$20))-F23 -> 0
A24: =IF(B24<>"",COUNTA($B$6:B24),"") ->  | B24: =IFERROR(INDEX(Base!$E$2:$E$102,SMALL(IF(INDEX(Base!$E$2:$Q$102,,MATCH(Avril!$B$4,Base!$F$1:$Q$1,0)+1)="x",ROW(Base!$E$2:$E$102)-ROW(Base!$E$2)+1),ROWS($B$6:B24))),"") ->  | C24: 0 | D24: 0 | E24: 0 | F24: 0 | G24: =SUMPRODUCT((H24:AL24=Som)*(Base!$B$3:$B$20))-F24 -> 0 | AS24: Net A Paye | AV24: =SUM(AZ18:BA23)-AZ24 -> 0 | AY24: AC
A25: =IF(B25<>"",COUNTA($B$6:B25),"") ->  | B25: =IFERROR(INDEX(Base!$E$2:$E$102,SMALL(IF(INDEX(Base!$E$2:$Q$102,,MATCH(Avril!$B$4,Base!$F$1:$Q$1,0)+1)="x",ROW(Base!$E$2:$E$102)-ROW(Base!$E$2)+1),ROWS($B$6:B25))),"") ->  | C25: 0 | D25: 0 | E25: 0 | F25: 0 | G25: =SUMPRODUCT((H25:AL25=Som)*(Base!$B$3:$B$20))-F25 -> 0
A26: =IF(B26<>"",COUNTA($B$6:B26),"") ->  | B26: =IFERROR(INDEX(Base!$E$2:$E$102,SMALL(IF(INDEX(Base!$E$2:$Q$102,,MATCH(Avril!$B$4,Base!$F$1:$Q$1,0)+1)="x",ROW(Base!$E$2:$E$102)-ROW(Base!$E$2)+1),ROWS($B$6:B26))),"") ->  | C26: 0 | D26: 0 | E26: 0 | F26: 0 | G26: =SUMPRODUCT((H26:AL26=Som)*(Base!$B$3:$B$20))-F26 -> 0 | AW26: 1 | BC26: =BC14+1 -> 3
A27: =IF(B27<>"",COUNTA($B$6:B27),"") ->  | B27: =IFERROR(INDEX(Base!$E$2:$E$102,SMALL(IF(INDEX(Base!$E$2:$Q$102,,MATCH(Avril!$B$4,Base!$F$1:$Q$1,0)+1)="x",ROW(Base!$E$2:$E$102)-ROW(Base!$E$2)+1),ROWS($B$6:B27))),"") ->  | C27: 0 | D27: 0 | E27: 0 | F27: 0 | G27: =SUMPRODUCT((H27:AL27=Som)*(Base!$B$3:$B$20))-F27 -> 0
A28: =IF(B28<>"",COUNTA($B$6:B28),"") ->  | B28: =IFERROR(INDEX(Base!$E$2:$E$102,SMALL(IF(INDEX(Base!$E$2:$Q$102,,MATCH(Avril!$B$4,Base!$F$1:$Q$1,0)+1)="x",ROW(Base!$E$2:$E$102)-ROW(Base!$E$2)+1),ROWS($B$6:B28))),"") ->  | C28: 0 | D28: 0 | E28: 0 | F28: 0 | G28: =SUMPRODUCT((H28:AL28=Som)*(Base!$B$3:$B$20))-F28 -> 0 | AS28: Nom | AV28: =IFERROR(LOOKUP(BC26,Avril!$A77:A126,Avril!B77:B126),"") -> 
A29: =IF(B29<>"",COUNTA($B$6:B29),"") ->  | B29: =IFERROR(INDEX(Base!$E$2:$E$102,SMALL(IF(INDEX(Base!$E$2:$Q$102,,MATCH(Avril!$B$4,Base!$F$1:$Q$1,0)+1)="x",ROW(Base!$E$2:$E$102)-ROW(Base!$E$2)+1),ROWS($B$6:B29))),"") ->  | C29: 0 | D29: 0 | E29: 0 | F29: 0 | G29: =SUMPRODUCT((H29:AL29=Som)*(Base!$B$3:$B$20))-F29 -> 0
A30: =IF(B30<>"",COUNTA($B$6:B30),"") ->  | B30: =IFERROR(INDEX(Base!$E$2:$E$102,SMALL(IF(INDEX(Base!$E$2:$Q$102,,MATCH(Avril!$B$4,Base!$F$1:$Q$1,0)+1)="x",ROW(Base!$E$2:$E$102)-ROW(Base!$E$2)+1),ROWS($B$6:B30))),"") ->  | C30: 0 | D30: 0 | E30: 0 | F30: 0 | G30: =SUMPRODUCT((H30:AL30=Som)*(Base!$B$3:$B$20))-F30 -> 0 | AS30: Usine | AV30: =IFERROR(LOOKUP(BC26,Avril!A77:A126,Avril!C78:C127),"") ->  | AX30: =IF(AV30="","",Base!$B$3) ->  | AZ30: =IFERROR(SUM(AV30*AX30),"") -> 
A31: =IF(B31<>"",COUNTA($B$6:B31),"") ->  | B31: =IFERROR(INDEX(Base!$E$2:$E$102,SMALL(IF(INDEX(Base!$E$2:$Q$102,,MATCH(Avril!$B$4,Base!$F$1:$Q$1,0)+1)="x",ROW(Base!$E$2:$E$102)-ROW(Base!$E$2)+1),ROWS($B$6:B31))),"") ->  | C31: 0 | D31: 0 | E31: 0 | F31: 0 | G31: =SUMPRODUCT((H31:AL31=Som)*(Base!$B$3:$B$20))-F31 -> 0
A32: =IF(B32<>"",COUNTA($B$6:B32),"") ->  | B32: =IFERROR(INDEX(Base!$E$2:$E$102,SMALL(IF(INDEX(Base!$E$2:$Q$102,,MATCH(Avril!$B$4,Base!$F$1:$Q$1,0)+1)="x",ROW(Base!$E$2:$E$102)-ROW(Base!$E$2)+1),ROWS($B$6:B32))),"") ->  | C32: 0 | D32: 0 | E32: 0 | F32: 0 | G32: =SUMPRODUCT((H32:AL32=Som)*(Base!$B$3:$B$20))-F32 -> 0 | AS32: Route | AV32: =IFERROR(LOOKUP(BC26,Avril!A77:A126,Avril!D78:D127),"") ->  | AX32: =IF(AV32="","",Base!$B$13) ->  | AZ32: =IFERROR(SUM(AV32*AX32),"") -> 
A33: =IF(B33<>"",COUNTA($B$6:B33),"") ->  | B33: =IFERROR(INDEX(Base!$E$2:$E$102,SMALL(IF(INDEX(Base!$E$2:$Q$102,,MATCH(Avril!$B$4,Base!$F$1:$Q$1,0)+1)="x",ROW(Base!$E$2:$E$102)-ROW(Base!$E$2)+1),ROWS($B$6:B33))),"") ->  | C33: 0 | D33: 0 | E33: 0 | F33: 0 | G33: =SUMPRODUCT((H33:AL33=Som)*(Base!$B$3:$B$20))-F33 -> 0
A34: =IF(B34<>"",COUNTA($B$6:B34),"") ->  | B34: =IFERROR(INDEX(Base!$E$2:$E$102,SMALL(IF(INDEX(Base!$E$2:$Q$102,,MATCH(Avril!$B$4,Base!$F$1:$Q$1,0)+1)="x",ROW(Base!$E$2:$E$102)-ROW(Base!$E$2)+1),ROWS($B$6:B34))),"") ->  | C34: 0 | D34: 0 | E34: 0 | F34: 0 | G34: =SUMPRODUCT((H34:AL34=Som)*(Base!$B$3:$B$20))-F34 -> 0 | AS34: H-Sup | AV34: =IFERROR(LOOKUP(BC26,Avril!A77:A126,Avril!E78:E127),"") ->  | AX34: =IF(AV34="","",200) ->  | AZ34: =IFERROR(SUM(AV34*AX34),"") -> 
A35: =IF(B35<>"",COUNTA($B$6:B35),"") ->  | B35: =IFERROR(INDEX(Base!$E$2:$E$102,SMALL(IF(INDEX(Base!$E$2:$Q$102,,MATCH(Avril!$B$4,Base!$F$1:$Q$1,0)+1)="x",ROW(Base!$E$2:$E$102)-ROW(Base!$E$2)+1),ROWS($B$6:B35))),"") ->  | C35: 0 | D35: 0 | E35: 0 | F35: 0 | G35: =SUMPRODUCT((H35:AL35=Som)*(Base!$B$3:$B$20))-F35 -> 0
A36: =IF(B36<>"",COUNTA($B$6:B36),"") ->  | B36: =IFERROR(INDEX(Base!$E$2:$E$102,SMALL(IF(INDEX(Base!$E$2:$Q$102,,MATCH(Avril!$B$4,Base!$F$1:$Q$1,0)+1)="x",ROW(Base!$E$2:$E$102)-ROW(Base!$E$2)+1),ROWS($B$6:B36))),"") ->  | C36: 0 | D36: 0 | E36: 0 | F36: 0 | G36: =SUMPRODUCT((H36:AL36=Som)*(Base!$B$3:$B$20))-F36 -> 0 | AS36: Net A Paye | AV36: =SUM(AZ30:BA35)-AZ36 -> 0 | AY36: AC
A37: =IF(B37<>"",COUNTA($B$6:B37),"") ->  | B37: =IFERROR(INDEX(Base!$E$2:$E$102,SMALL(IF(INDEX(Base!$E$2:$Q$102,,MATCH(Avril!$B$4,Base!$F$1:$Q$1,0)+1)="x",ROW(Base!$E$2:$E$102)-ROW(Base!$E$2)+1),ROWS($B$6:B37))),"") ->  | C37: 0 | D37: 0 | E37: 0 | F37: 0 | G37: =SUMPRODUCT((H37:AL37=Som)*(Base!$B$3:$B$20))-F37 -> 0
A38: =IF(B38<>"",COUNTA($B$6:B38),"") ->  | B38: =IFERROR(INDEX(Base!$E$2:$E$102,SMALL(IF(INDEX(Base!$E$2:$Q$102,,MATCH(Avril!$B$4,Base!$F$1:$Q$1,0)+1)="x",ROW(Base!$E$2:$E$102)-ROW(Base!$E$2)+1),ROWS($B$6:B38))),"") ->  | C38: 0 | D38: 0 | E38: 0 | F38: 0 | G38: =SUMPRODUCT((H38:AL38=Som)*(Base!$B$3:$B$20))-F38 -> 0 | AW38: 1 | BC38: =BC26+1 -> 4
A39: =IF(B39<>"",COUNTA($B$6:B39),"") ->  | B39: =IFERROR(INDEX(Base!$E$2:$E$102,SMALL(IF(INDEX(Base!$E$2:$Q$102,,MATCH(Avril!$B$4,Base!$F$1:$Q$1,0)+1)="x",ROW(Base!$E$2:$E$102)-ROW(Base!$E$2)+1),ROWS($B$6:B39))),"") ->  | C39: 0 | D39: 0 | E39: 0 | F39: 0 | G39: =SUMPRODUCT((H39:AL39=Som)*(Base!$B$3:$B$20))-F39 -> 0
A40: =IF(B40<>"",COUNTA($B$6:B40),"") ->  | B40: =IFERROR(INDEX(Base!$E$2:$E$102,SMALL(IF(INDEX(Base!$E$2:$Q$102,,MATCH(Avril!$B$4,Base!$F$1:$Q$1,0)+1)="x",ROW(Base!$E$2:$E$102)-ROW(Base!$E$2)+1),ROWS($B$6:B40))),"") ->  | C40: 0 | D40: 0 | E40: 0 | F40: 0 | G40: =SUMPRODUCT((H40:AL40=Som)*(Base!$B$3:$B$20))-F40 -> 0 | AS40: Nom | AV40: =IFERROR(LOOKUP(BC38,Avril!$A89:A138,Avril!B89:B138),"") -> 
A41: =IF(B41<>"",COUNTA($B$6:B41),"") ->  | B41: =IFERROR(INDEX(Base!$E$2:$E$102,SMALL(IF(INDEX(Base!$E$2:$Q$102,,MATCH(Avril!$B$4,Base!$F$1:$Q$1,0)+1)="x",ROW(Base!$E$2:$E$102)-ROW(Base!$E$2)+1),ROWS($B$6:B41))),"") ->  | C41: 0 | D41: 0 | E41: 0 | F41: 0 | G41: =SUMPRODUCT((H41:AL41=Som)*(Base!$B$3:$B$20))-F41 -> 0
A42: =IF(B42<>"",COUNTA($B$6:B42),"") ->  | B42: =IFERROR(INDEX(Base!$E$2:$E$102,SMALL(IF(INDEX(Base!$E$2:$Q$102,,MATCH(Avril!$B$4,Base!$F$1:$Q$1,0)+1)="x",ROW(Base!$E$2:$E$102)-ROW(Base!$E$2)+1),ROWS($B$6:B42))),"") ->  | C42: 0 | D42: 0 | E42: 0 | F42: 0 | G42: =SUMPRODUCT((H42:AL42=Som)*(Base!$B$3:$B$20))-F42 -> 0 | AS42: Usine | AV42: =IFERROR(LOOKUP(BC38,Avril!A89:A138,Avril!C90:C139),"") ->  | AX42: =IF(AV42="","",Base!$B$3) ->  | AZ42: =IFERROR(SUM(AV42*AX42),"") -> 
A43: =IF(B43<>"",COUNTA($B$6:B43),"") ->  | B43: =IFERROR(INDEX(Base!$E$2:$E$102,SMALL(IF(INDEX(Base!$E$2:$Q$102,,MATCH(Avril!$B$4,Base!$F$1:$Q$1,0)+1)="x",ROW(Base!$E$2:$E$102)-ROW(Base!$E$2)+1),ROWS($B$6:B43))),"") ->  | C43: 0 | D43: 0 | E43: 0 | F43: 0 | G43: =SUMPRODUCT((H43:AL43=Som)*(Base!$B$3:$B$20))-F43 -> 0
A44: =IF(B44<>"",COUNTA($B$6:B44),"") ->  | B44: =IFERROR(INDEX(Base!$E$2:$E$102,SMALL(IF(INDEX(Base!$E$2:$Q$102,,MATCH(Avril!$B$4,Base!$F$1:$Q$1,0)+1)="x",ROW(Base!$E$2:$E$102)-ROW(Base!$E$2)+1),ROWS($B$6:B44))),"") ->  | C44: 0 | D44: 0 | E44: 0 | F44: 0 | G44: =SUMPRODUCT((H44:AL44=Som)*(Base!$B$3:$B$20))-F44 -> 0 | AS44: Route | AV44: =IFERROR(LOOKUP(BC38,Avril!A89:A138,Avril!D90:D139),"") ->  | AX44: =IF(AV44="","",Base!$B$13) ->  | AZ44: =IFERROR(SUM(AV44*AX44),"") -> 
A45: =IF(B45<>"",COUNTA($B$6:B45),"") ->  | B45: =IFERROR(INDEX(Base!$E$2:$E$102,SMALL(IF(INDEX(Base!$E$2:$Q$102,,MATCH(Avril!$B$4,Base!$F$1:$Q$1,0)+1)="x",ROW(Base!$E$2:$E$102)-ROW(Base!$E$2)+1),ROWS($B$6:B45))),"") ->  | C45: 0 | D45: 0 | E45: 0 | F45: 0 | G45: =SUMPRODUCT((H45:AL45=Som)*(Base!$B$3:$B$20))-F45 -> 0
A46: =IF(B46<>"",COUNTA($B$6:B46),"") ->  | B46: =IFERROR(INDEX(Base!$E$2:$E$102,SMALL(IF(INDEX(Base!$E$2:$Q$102,,MATCH(Avril!$B$4,Base!$F$1:$Q$1,0)+1)="x",ROW(Base!$E$2:$E$102)-ROW(Base!$E$2)+1),ROWS($B$6:B46))),"") ->  | C46: 0 | D46: 0 | E46: 0 | F46: 0 | G46: =SUMPRODUCT((H46:AL46=Som)*(Base!$B$3:$B$20))-F46 -> 0 | AS46: H-Sup | AV46: =IFERROR(LOOKUP(BC38,Avril!A89:A138,Avril!E90:E139),"") ->  | AX46: =IF(AV46="","",200) ->  | AZ46: =IFERROR(SUM(AV46*AX46),"") -> 
A47: =IF(B47<>"",COUNTA($B$6:B47),"") ->  | B47: =IFERROR(INDEX(Base!$E$2:$E$102,SMALL(IF(INDEX(Base!$E$2:$Q$102,,MATCH(Avril!$B$4,Base!$F$1:$Q$1,0)+1)="x",ROW(Base!$E$2:$E$102)-ROW(Base!$E$2)+1),ROWS($B$6:B47))),"") ->  | C47: 0 | D47: 0 | E47: 0 | F47: 0 | G47: =SUMPRODUCT((H47:AL47=Som)*(Base!$B$3:$B$20))-F47 -> 0
A48: =IF(B48<>"",COUNTA($B$6:B48),"") ->  | B48: =IFERROR(INDEX(Base!$E$2:$E$102,SMALL(IF(INDEX(Base!$E$2:$Q$102,,MATCH(Avril!$B$4,Base!$F$1:$Q$1,0)+1)="x",ROW(Base!$E$2:$E$102)-ROW(Base!$E$2)+1),ROWS($B$6:B48))),"") ->  | C48: 0 | D48: 0 | E48: 0 | F48: 0 | G48: =SUMPRODUCT((H48:AL48=Som)*(Base!$B$3:$B$20))-F48 -> 0 | AS48: Net A Paye | AV48: =SUM(AZ42:BA47)-AZ48 -> 0 | AY48: AC
A49: =IF(B49<>"",COUNTA($B$6:B49),"") ->  | B49: =IFERROR(INDEX(Base!$E$2:$E$102,SMALL(IF(INDEX(Base!$E$2:$Q$102,,MATCH(Avril!$B$4,Base!$F$1:$Q$1,0)+1)="x",ROW(Base!$E$2:$E$102)-ROW(Base!$E$2)+1),ROWS($B$6:B49))),"") ->  | C49: 0 | D49: 0 | E49: 0 | F49: 0 | G49: =SUMPRODUCT((H49:AL49=Som)*(Base!$B$3:$B$20))-F49 -> 0
A50: =IF(B50<>"",COUNTA($B$6:B50),"") ->  | B50: =IFERROR(INDEX(Base!$E$2:$E$102,SMALL(IF(INDEX(Base!$E$2:$Q$102,,MATCH(Avril!$B$4,Base!$F$1:$Q$1,0)+1)="x",ROW(Base!$E$2:$E$102)-ROW(Base!$E$2)+1),ROWS($B$6:B50))),"") ->  | C50: 0 | D50: 0 | E50: 0 | F50: 0 | G50: =SUMPRODUCT((H50:AL50=Som)*(Base!$B$3:$B$20))-F50 -> 0 | AW50: 1 | BC50: =BC38+1 -> 5
A51: =IF(B51<>"",COUNTA($B$6:B51),"") ->  | B51: =IFERROR(INDEX(Base!$E$2:$E$102,SMALL(IF(INDEX(Base!$E$2:$Q$102,,MATCH(Avril!$B$4,Base!$F$1:$Q$1,0)+1)="x",ROW(Base!$E$2:$E$102)-ROW(Base!$E$2)+1),ROWS($B$6:B51))),"") ->  | C51: 0 | D51: 0 | E51: 0 | F51: 0 | G51: =SUMPRODUCT((H51:AL51=Som)*(Base!$B$3:$B$20))-F51 -> 0
A52: =IF(B52<>"",COUNTA($B$6:B52),"") ->  | B52: =IFERROR(INDEX(Base!$E$2:$E$102,SMALL(IF(INDEX(Base!$E$2:$Q$102,,MATCH(Avril!$B$4,Base!$F$1:$Q$1,0)+1)="x",ROW(Base!$E$2:$E$102)-ROW(Base!$E$2)+1),ROWS($B$6:B52))),"") ->  | C52: 0 | D52: 0 | E52: 0 | F52: 0 | G52: =SUMPRODUCT((H52:AL52=Som)*(Base!$B$3:$B$20))-F52 -> 0 | AS52: Nom | AV52: =IFERROR(LOOKUP(BC50,Avril!$A101:A150,Avril!B101:B150),"") -> 
A53: =IF(B53<>"",COUNTA($B$6:B53),"") ->  | B53: =IFERROR(INDEX(Base!$E$2:$E$102,SMALL(IF(INDEX(Base!$E$2:$Q$102,,MATCH(Avril!$B$4,Base!$F$1:$Q$1,0)+1)="x",ROW(Base!$E$2:$E$102)-ROW(Base!$E$2)+1),ROWS($B$6:B53))),"") ->  | C53: 0 | D53: 0 | E53: 0 | F53: 0 | G53: =SUMPRODUCT((H53:AL53=Som)*(Base!$B$3:$B$20))-F53 -> 0
A54: =IF(B54<>"",COUNTA($B$6:B54),"") ->  | B54: =IFERROR(INDEX(Base!$E$2:$E$102,SMALL(IF(INDEX(Base!$E$2:$Q$102,,MATCH(Avril!$B$4,Base!$F$1:$Q$1,0)+1)="x",ROW(Base!$E$2:$E$102)-ROW(Base!$E$2)+1),ROWS($B$6:B54))),"") ->  | C54: 0 | D54: 0 | E54: 0 | F54: 0 | G54: =SUMPRODUCT((H54:AL54=Som)*(Base!$B$3:$B$20))-F54 -> 0 | AS54: Usine | AV54: =IFERROR(LOOKUP(BC50,Avril!A101:A150,Avril!C102:C151),"") ->  | AX54: =IF(AV54="","",Base!$B$3) ->  | AZ54: =IFERROR(SUM(AV54*AX54),"") -> 
C55: 0 | D55: 0 | E55: 0 | F55: 0 | G55: =SUMPRODUCT((H55:AL55=Som)*(Base!$B$3:$B$20))-F55 -> 0
AS56: Route | AV56: =IFERROR(LOOKUP(BC50,Avril!A101:A150,Avril!D102:D151),"") ->  | AX56: =IF(AV56="","",Base!$B$13) ->  | AZ56: =IFERROR(SUM(AV56*AX56),"") -> 
AS58: H-Sup | AV58: =IFERROR(LOOKUP(BC50,Avril!A101:A150,Avril!E102:E151),"") ->  | AX58: =IF(AV58="","",200) ->  | AZ58: =IFERROR(SUM(AV58*AX58),"") -> 
AS60: Net A Paye | AV60: =SUM(AZ54:BA59)-AZ60 -> 0 | AY60: AC
AW62: 1 | BC62: =BC50+1 -> 6
AS64: Nom | AV64: =IFERROR(LOOKUP(BC62,Avril!$A113:A162,Avril!B113:B162),"") -> 
AS66: Usine | AV66: =IFERROR(LOOKUP(BC62,Avril!A113:A162,Avril!C114:C163),"") ->  | AX66: =IF(AV66="","",Base!$B$3) ->  | AZ66: =IFERROR(SUM(AV66*AX66),"") -> 
AS68: Route | AV68: =IFERROR(LOOKUP(BC62,Avril!A113:A162,Avril!D114:D163),"") ->  | AX68: =IF(AV68="","",Base!$B$13) ->  | AZ68: =IFERROR(SUM(AV68*AX68),"") -> 
AS70: H-Sup | AV70: =IFERROR(LOOKUP(BC62,Avril!A113:A162,Avril!E114:E163),"") ->  | AX70: =IF(AV70="","",200) ->  | AZ70: =IFERROR(SUM(AV70*AX70),"") -> 
AS72: Net A Paye | AV72: =SUM(AZ66:BA71)-AZ72 -> 0 | AY72: AC
AW74: 1 | BC74: =BC62+1 -> 7
AS76: Nom | AV76: =IFERROR(LOOKUP(BC74,Avril!$A125:A174,Avril!B125:B174),"") -> 
AS78: Usine | AV78: =IFERROR(LOOKUP(BC74,Avril!A125:A174,Avril!C126:C175),"") ->  | AX78: =IF(AV78="","",Base!$B$3) ->  | AZ78: =IFERROR(SUM(AV78*AX78),"") -> 
AS80: Route | AV80: =IFERROR(LOOKUP(BC74,Avril!A125:A174,Avril!D126:D175),"") ->  | AX80: =IF(AV80="","",Base!$B$13) ->  | AZ80: =IFERROR(SUM(AV80*AX80),"") -> 
AS82: H-Sup | AV82: =IFERROR(LOOKUP(BC74,Avril!A125:A174,Avril!E126:E175),"") ->  | AX82: =IF(AV82="","",200) ->  | AZ82: =IFERROR(SUM(AV82*AX82),"") -> 
AS84: Net A Paye | AV84: =SUM(AZ78:BA83)-AZ84 -> 0 | AY84: AC
AW86: 1 | BC86: =BC74+1 -> 8
AS88: Nom | AV88: =IFERROR(LOOKUP(BC86,Avril!$A137:A186,Avril!B137:B186),"") -> 
AS90: Usine | AV90: =IFERROR(LOOKUP(BC86,Avril!A137:A186,Avril!C138:C187),"") ->  | AX90: =IF(AV90="","",Base!$B$3) ->  | AZ90: =IFERROR(SUM(AV90*AX90),"") -> 
AS92: Route | AV92: =IFERROR(LOOKUP(BC86,Avril!A137:A186,Avril!D138:D187),"") ->  | AX92: =IF(AV92="","",Base!$B$13) ->  | AZ92: =IFERROR(SUM(AV92*AX92),"") -> 
AS94: H-Sup | AV94: =IFERROR(LOOKUP(BC86,Avril!A137:A186,Avril!E138:E187),"") ->  | AX94: =IF(AV94="","",200) ->  | AZ94: =IFERROR(SUM(AV94*AX94),"") -> 
AS96: Net A Paye | AV96: =SUM(AZ90:BA95)-AZ96 -> 0 | AY96: AC
AW98: 1 | BC98: =BC86+1 -> 9
AS100: Nom | AV100: =IFERROR(LOOKUP(BC98,Avril!$A149:A198,Avril!B149:B198),"") -> 
AS102: Usine | AV102: =IFERROR(LOOKUP(BC98,Avril!A149:A198,Avril!C150:C199),"") ->  | AX102: =IF(AV102="","",Base!$B$3) ->  | AZ102: =IFERROR(SUM(AV102*AX102),"") -> 
AS104: Route | AV104: =IFERROR(LOOKUP(BC98,Avril!A149:A198,Avril!D150:D199),"") ->  | AX104: =IF(AV104="","",Base!$B$13) ->  | AZ104: =IFERROR(SUM(AV104*AX104),"") -> 
AS106: H-Sup | AV106: =IFERROR(LOOKUP(BC98,Avril!A149:A198,Avril!E150:E199),"") ->  | AX106: =IF(AV106="","",200) ->  | AZ106: =IFERROR(SUM(AV106*AX106),"") -> 
AS108: Net A Paye | AV108: =SUM(AZ102:BA107)-AZ108 -> 0 | AY108: AC
AW110: 1 | BC110: =BC98+1 -> 10
AS112: Nom | AV112: =IFERROR(LOOKUP(BC110,Avril!$A161:A210,Avril!B161:B210),"") -> 
AS114: Usine | AV114: =IFERROR(LOOKUP(BC110,Avril!A161:A210,Avril!C162:C211),"") ->  | AX114: =IF(AV114="","",Base!$B$3) ->  | AZ114: =IFERROR(SUM(AV114*AX114),"") -> 
AS116: Route | AV116: =IFERROR(LOOKUP(BC110,Avril!A161:A210,Avril!D162:D211),"") ->  | AX116: =IF(AV116="","",Base!$B$13) ->  | AZ116: =IFERROR(SUM(AV116*AX116),"") -> 
AS118: H-Sup | AV118: =IFERROR(LOOKUP(BC110,Avril!A161:A210,Avril!E162:E211),"") ->  | AX118: =IF(AV118="","",200) ->  | AZ118: =IFERROR(SUM(AV118*AX118),"") -> 
AS120: Net A Paye | AV120: =SUM(AZ114:BA119)-AZ120 -> 0 | AY120: AC
AW122: 1 | BC122: =BC110+1 -> 11
AS124: Nom | AV124: =IFERROR(LOOKUP(BC122,Avril!$A173:A222,Avril!B173:B222),"") -> 
AS126: Usine | AV126: =IFERROR(LOOKUP(BC122,Avril!A173:A222,Avril!C174:C223),"") ->  | AX126: =IF(AV126="","",Base!$B$3) ->  | AZ126: =IFERROR(SUM(AV126*AX126),"") -> 
AS128: Route | AV128: =IFERROR(LOOKUP(BC122,Avril!A173:A222,Avril!D174:D223),"") ->  | AX128: =IF(AV128="","",Base!$B$13) ->  | AZ128: =IFERROR(SUM(AV128*AX128),"") -> 
AS130: H-Sup | AV130: =IFERROR(LOOKUP(BC122,Avril!A173:A222,Avril!E174:E223),"") ->  | AX130: =IF(AV130="","",200) ->  | AZ130: =IFERROR(SUM(AV130*AX130),"") -> 
AS132: Net A Paye | AV132: =SUM(AZ126:BA131)-AZ132 -> 0 | AY132: AC
AW134: 1 | BC134: =BC122+1 -> 12
AS136: Nom | AV136: =IFERROR(LOOKUP(BC134,Avril!$A185:A234,Avril!B185:B234),"") -> 
AS138: Usine | AV138: =IFERROR(LOOKUP(BC134,Avril!A185:A234,Avril!C186:C235),"") ->  | AX138: =IF(AV138="","",Base!$B$3) ->  | AZ138: =IFERROR(SUM(AV138*AX138),"") -> 
AS140: Route | AV140: =IFERROR(LOOKUP(BC134,Avril!A185:A234,Avril!D186:D235),"") ->  | AX140: =IF(AV140="","",Base!$B$13) ->  | AZ140: =IFERROR(SUM(AV140*AX140),"") -> 
AS142: H-Sup | AV142: =IFERROR(LOOKUP(BC134,Avril!A185:A234,Avril!E186:E235),"") ->  | AX142: =IF(AV142="","",200) ->  | AZ142: =IFERROR(SUM(AV142*AX142),"") -> 
AS144: Net A Paye | AV144: =SUM(AZ138:BA143)-AZ144 -> 0 | AY144: AC
AW146: 1 | BC146: =BC134+1 -> 13
AS148: Nom | AV148: =IFERROR(LOOKUP(BC146,Avril!$A197:A246,Avril!B197:B246),"") -> 
AS150: Usine | AV150: =IFERROR(LOOKUP(BC146,Avril!A197:A246,Avril!C198:C247),"") ->  | AX150: =IF(AV150="","",Base!$B$3) ->  | AZ150: =IFERROR(SUM(AV150*AX150),"") -> 
AS152: Route | AV152: =IFERROR(LOOKUP(BC146,Avril!A197:A246,Avril!D198:D247),"") ->  | AX152: =IF(AV152="","",Base!$B$13) ->  | AZ152: =IFERROR(SUM(AV152*AX152),"") -> 
AS154: H-Sup | AV154: =IFERROR(LOOKUP(BC146,Avril!A197:A246,Avril!E198:E247),"") ->  | AX154: =IF(AV154="","",200) ->  | AZ154: =IFERROR(SUM(AV154*AX154),"") -> 
AS156: Net A Paye | AV156: =SUM(AZ150:BA155)-AZ156 -> 0 | AY156: AC
AW158: 1 | BC158: =BC146+1 -> 14
AS160: Nom | AV160: =IFERROR(LOOKUP(BC158,Avril!$A209:A258,Avril!B209:B258),"") -> 
AS162: Usine | AV162: =IFERROR(LOOKUP(BC158,Avril!A209:A258,Avril!C210:C259),"") ->  | AX162: =IF(AV162="","",Base!$B$3) ->  | AZ162: =IFERROR(SUM(AV162*AX162),"") -> 
AS164: Route | AV164: =IFERROR(LOOKUP(BC158,Avril!A209:A258,Avril!D210:D259),"") ->  | AX164: =IF(AV164="","",Base!$B$13) ->  | AZ164: =IFERROR(SUM(AV164*AX164),"") -> 
AS166: H-Sup | AV166: =IFERROR(LOOKUP(BC158,Avril!A209:A258,Avril!E210:E259),"") ->  | AX166: =IF(AV166="","",200) ->  | AZ166: =IFERROR(SUM(AV166*AX166),"") -> 
AS168: Net A Paye | AV168: =SUM(AZ162:BA167)-AZ168 -> 0 | AY168: AC
AW170: 1 | BC170: =BC158+1 -> 15
AS172: Nom | AV172: =IFERROR(LOOKUP(BC170,Avril!$A221:A270,Avril!B221:B270),"") -> 
AS174: Usine | AV174: =IFERROR(LOOKUP(BC170,Avril!A221:A270,Avril!C222:C271),"") ->  | AX174: =IF(AV174="","",Base!$B$3) ->  | AZ174: =IFERROR(SUM(AV174*AX174),"") -> 
AS176: Route | AV176: =IFERROR(LOOKUP(BC170,Avril!A221:A270,Avril!D222:D271),"") ->  | AX176: =IF(AV176="","",Base!$B$13) ->  | AZ176: =IFERROR(SUM(AV176*AX176),"") -> 
AS178: H-Sup | AV178: =IFERROR(LOOKUP(BC170,Avril!A221:A270,Avril!E222:E271),"") ->  | AX178: =IF(AV178="","",200) ->  | AZ178: =IFERROR(SUM(AV178*AX178),"") -> 
AS180: Net A Paye | AV180: =SUM(AZ174:BA179)-AZ180 -> 0 | AY180: AC
AW182: 1 | BC182: =BC170+1 -> 16
AS184: Nom | AV184: =IFERROR(LOOKUP(BC182,Avril!$A233:A282,Avril!B233:B282),"") -> 
AS186: Usine | AV186: =IFERROR(LOOKUP(BC182,Avril!A233:A282,Avril!C234:C283),"") ->  | AX186: =IF(AV186="","",Base!$B$3) ->  | AZ186: =IFERROR(SUM(AV186*AX186),"") -> 
AS188: Route | AV188: =IFERROR(LOOKUP(BC182,Avril!A233:A282,Avril!D234:D283),"") ->  | AX188: =IF(AV188="","",Base!$B$13) ->  | AZ188: =IFERROR(SUM(AV188*AX188),"") -> 
AS190: H-Sup | AV190: =IFERROR(LOOKUP(BC182,Avril!A233:A282,Avril!E234:E283),"") ->  | AX190: =IF(AV190="","",200) ->  | AZ190: =IFERROR(SUM(AV190*AX190),"") -> 
AS192: Net A Paye | AV192: =SUM(AZ186:BA191)-AZ192 -> 0 | AY192: AC
AW194: 1 | BC194: =BC182+1 -> 17
AS196: Nom | AV196: =IFERROR(LOOKUP(BC194,Avril!$A245:A294,Avril!B245:B294),"") -> 
AS198: Usine | AV198: =IFERROR(LOOKUP(BC194,Avril!A245:A294,Avril!C246:C295),"") ->  | AX198: =IF(AV198="","",Base!$B$3) ->  | AZ198: =IFERROR(SUM(AV198*AX198),"") -> 
AS200: Route | AV200: =IFERROR(LOOKUP(BC194,Avril!A245:A294,Avril!D246:D295),"") ->  | AX200: =IF(AV200="","",Base!$B$13) ->  | AZ200: =IFERROR(SUM(AV200*AX200),"") -> 
AS202: H-Sup | AV202: =IFERROR(LOOKUP(BC194,Avril!A245:A294,Avril!E246:E295),"") ->  | AX202: =IF(AV202="","",200) ->  | AZ202: =IFERROR(SUM(AV202*AX202),"") -> 
AS204: Net A Paye | AV204: =SUM(AZ198:BA203)-AZ204 -> 0 | AY204: AC
AW206: 1 | BC206: =BC194+1 -> 18
AS208: Nom | AV208: =IFERROR(LOOKUP(BC206,Avril!$A257:A306,Avril!B257:B306),"") -> 
AS210: Usine | AV210: =IFERROR(LOOKUP(BC206,Avril!A257:A306,Avril!C258:C307),"") ->  | AX210: =IF(AV210="","",Base!$B$3) ->  | AZ210: =IFERROR(SUM(AV210*AX210),"") -> 
AS212: Route | AV212: =IFERROR(LOOKUP(BC206,Avril!A257:A306,Avril!D258:D307),"") ->  | AX212: =IF(AV212="","",Base!$B$13) ->  | AZ212: =IFERROR(SUM(AV212*AX212),"") -> 
AS214: H-Sup | AV214: =IFERROR(LOOKUP(BC206,Avril!A257:A306,Avril!E258:E307),"") ->  | AX214: =IF(AV214="","",200) ->  | AZ214: =IFERROR(SUM(AV214*AX214),"") -> 
AS216: Net A Paye | AV216: =SUM(AZ210:BA215)-AZ216 -> 0 | AY216: AC
AW218: 1 | BC218: =BC206+1 -> 19
AS220: Nom | AV220: =IFERROR(LOOKUP(BC218,Avril!$A269:A318,Avril!B269:B318),"") -> 
AS222: Usine | AV222: =IFERROR(LOOKUP(BC218,Avril!A269:A318,Avril!C270:C319),"") ->  | AX222: =IF(AV222="","",Base!$B$3) ->  | AZ222: =IFERROR(SUM(AV222*AX222),"") -> 
AS224: Route | AV224: =IFERROR(LOOKUP(BC218,Avril!A269:A318,Avril!D270:D319),"") ->  | AX224: =IF(AV224="","",Base!$B$13) ->  | AZ224: =IFERROR(SUM(AV224*AX224),"") -> 
AS226: H-Sup | AV226: =IFERROR(LOOKUP(BC218,Avril!A269:A318,Avril!E270:E319),"") ->  | AX226: =IF(AV226="","",200) ->  | AZ226: =IFERROR(SUM(AV226*AX226),"") -> 
AS228: Net A Paye | AV228: =SUM(AZ222:BA227)-AZ228 -> 0 | AY228: AC
AW230: 1 | BC230: =BC218+1 -> 20
AS232: Nom | AV232: =IFERROR(LOOKUP(BC230,Avril!$A281:A330,Avril!B281:B330),"") -> 
AS234: Usine | AV234: =IFERROR(LOOKUP(BC230,Avril!A281:A330,Avril!C282:C331),"") ->  | AX234: =IF(AV234="","",Base!$B$3) ->  | AZ234: =IFERROR(SUM(AV234*AX234),"") -> 
AS236: Route | AV236: =IFERROR(LOOKUP(BC230,Avril!A281:A330,Avril!D282:D331),"") ->  | AX236: =IF(AV236="","",Base!$B$13) ->  | AZ236: =IFERROR(SUM(AV236*AX236),"") -> 
AS238: H-Sup | AV238: =IFERROR(LOOKUP(BC230,Avril!A281:A330,Avril!E282:E331),"") ->  | AX238: =IF(AV238="","",200) ->  | AZ238: =IFERROR(SUM(AV238*AX238),"") -> 
AS240: Net A Paye | AV240: =SUM(AZ234:BA239)-AZ240 -> 0 | AY240: AC
AW242: 1 | BC242: =BC230+1 -> 21
AS244: Nom | AV244: =IFERROR(LOOKUP(BC242,Avril!$A293:A342,Avril!B293:B342),"") -> 
AS246: Usine | AV246: =IFERROR(LOOKUP(BC242,Avril!A293:A342,Avril!C294:C343),"") ->  | AX246: =IF(AV246="","",Base!$B$3) ->  | AZ246: =IFERROR(SUM(AV246*AX246),"") -> 
AS248: Route | AV248: =IFERROR(LOOKUP(BC242,Avril!A293:A342,Avril!D294:D343),"") ->  | AX248: =IF(AV248="","",Base!$B$13) ->  | AZ248: =IFERROR(SUM(AV248*AX248),"") -> 
AS250: H-Sup | AV250: =IFERROR(LOOKUP(BC242,Avril!A293:A342,Avril!E294:E343),"") ->  | AX250: =IF(AV250="","",200) ->  | AZ250: =IFERROR(SUM(AV250*AX250),"") -> 
AS252: Net A Paye | AV252: =SUM(AZ246:BA251)-AZ252 -> 0 | AY252: AC
AW254: 1 | BC254: =BC242+1 -> 22
AS256: Nom | AV256: =IFERROR(LOOKUP(BC254,Avril!$A305:A354,Avril!B305:B354),"") -> 
AS258: Usine | AV258: =IFERROR(LOOKUP(BC254,Avril!A305:A354,Avril!C306:C355),"") ->  | AX258: =IF(AV258="","",Base!$B$3) ->  | AZ258: =IFERROR(SUM(AV258*AX258),"") -> 
AS260: Route | AV260: =IFERROR(LOOKUP(BC254,Avril!A305:A354,Avril!D306:D355),"") ->  | AX260: =IF(AV260="","",Base!$B$13) ->  | AZ260: =IFERROR(SUM(AV260*AX260),"") -> 
AS262: H-Sup | AV262: =IFERROR(LOOKUP(BC254,Avril!A305:A354,Avril!E306:E355),"") ->  | AX262: =IF(AV262="","",200) ->  | AZ262: =IFERROR(SUM(AV262*AX262),"") -> 
AS264: Net A Paye | AV264: =SUM(AZ258:BA263)-AZ264 -> 0 | AY264: AC
AW266: 1 | BC266: =BC254+1 -> 23
AS268: Nom | AV268: =IFERROR(LOOKUP(BC266,Avril!$A317:A366,Avril!B317:B366),"") -> 
AS270: Usine | AV270: =IFERROR(LOOKUP(BC266,Avril!A317:A366,Avril!C318:C367),"") ->  | AX270: =IF(AV270="","",Base!$B$3) ->  | AZ270: =IFERROR(SUM(AV270*AX270),"") -> 
AS272: Route | AV272: =IFERROR(LOOKUP(BC266,Avril!A317:A366,Avril!D318:D367),"") ->  | AX272: =IF(AV272="","",Base!$B$13) ->  | AZ272: =IFERROR(SUM(AV272*AX272),"") -> 
AS274: H-Sup | AV274: =IFERROR(LOOKUP(BC266,Avril!A317:A366,Avril!E318:E367),"") ->  | AX274: =IF(AV274="","",200) ->  | AZ274: =IFERROR(SUM(AV274*AX274),"") -> 
AS276: Net A Paye | AV276: =SUM(AZ270:BA275)-AZ276 -> 0 | AY276: AC
AW278: 1 | BC278: =BC266+1 -> 24
AS280: Nom | AV280: =IFERROR(LOOKUP(BC278,Avril!$A329:A378,Avril!B329:B378),"") -> 
AS282: Usine | AV282: =IFERROR(LOOKUP(BC278,Avril!A329:A378,Avril!C330:C379),"") ->  | AX282: =IF(AV282="","",Base!$B$3) ->  | AZ282: =IFERROR(SUM(AV282*AX282),"") -> 
AS284: Route | AV284: =IFERROR(LOOKUP(BC278,Avril!A329:A378,Avril!D330:D379),"") ->  | AX284: =IF(AV284="","",Base!$B$13) ->  | AZ284: =IFERROR(SUM(AV284*AX284),"") -> 
AS286: H-Sup | AV286: =IFERROR(LOOKUP(BC278,Avril!A329:A378,Avril!E330:E379),"") ->  | AX286: =IF(AV286="","",200) ->  | AZ286: =IFERROR(SUM(AV286*AX286),"") -> 
AS288: Net A Paye | AV288: =SUM(AZ282:BA287)-AZ288 -> 0 | AY288: AC
AW290: 1 | BC290: =BC278+1 -> 25
AS292: Nom | AV292: =IFERROR(LOOKUP(BC290,Avril!$A341:A390,Avril!B341:B390),"") -> 
AS294: Usine | AV294: =IFERROR(LOOKUP(BC290,Avril!A341:A390,Avril!C342:C391),"") ->  | AX294: =IF(AV294="","",Base!$B$3) ->  | AZ294: =IFERROR(SUM(AV294*AX294),"") -> 
AS296: Route | AV296: =IFERROR(LOOKUP(BC290,Avril!A341:A390,Avril!D342:D391),"") ->  | AX296: =IF(AV296="","",Base!$B$13) ->  | AZ296: =IFERROR(SUM(AV296*AX296),"") -> 
AS298: H-Sup | AV298: =IFERROR(LOOKUP(BC290,Avril!A341:A390,Avril!E342:E391),"") ->  | AX298: =IF(AV298="","",200) ->  | AZ298: =IFERROR(SUM(AV298*AX298),"") -> 
AS300: Net A Paye | AV300: =SUM(AZ294:BA299)-AZ300 -> 0 | AY300: AC
AW302: 1 | BC302: =BC290+1 -> 26
AS304: Nom | AV304: =IFERROR(LOOKUP(BC302,Avril!$A353:A402,Avril!B353:B402),"") -> 
AS306: Usine | AV306: =IFERROR(LOOKUP(BC302,Avril!A353:A402,Avril!C354:C403),"") ->  | AX306: =IF(AV306="","",Base!$B$3) ->  | AZ306: =IFERROR(SUM(AV306*AX306),"") -> 
AS308: Route | AV308: =IFERROR(LOOKUP(BC302,Avril!A353:A402,Avril!D354:D403),"") ->  | AX308: =IF(AV308="","",Base!$B$13) ->  | AZ308: =IFERROR(SUM(AV308*AX308),"") -> 
AS310: H-Sup | AV310: =IFERROR(LOOKUP(BC302,Avril!A353:A402,Avril!E354:E403),"") ->  | AX310: =IF(AV310="","",200) ->  | AZ310: =IFERROR(SUM(AV310*AX310),"") -> 
AS312: Net A Paye | AV312: =SUM(AZ306:BA311)-AZ312 -> 0 | AY312: AC
AW314: 1 | BC314: =BC302+1 -> 27
AS316: Nom | AV316: =IFERROR(LOOKUP(BC314,Avril!$A365:A414,Avril!B365:B414),"") -> 
AS318: Usine | AV318: =IFERROR(LOOKUP(BC314,Avril!A365:A414,Avril!C366:C415),"") ->  | AX318: =IF(AV318="","",Base!$B$3) ->  | AZ318: =IFERROR(SUM(AV318*AX318),"") -> 
AS320: Route | AV320: =IFERROR(LOOKUP(BC314,Avril!A365:A414,Avril!D366:D415),"") ->  | AX320: =IF(AV320="","",Base!$B$13) ->  | AZ320: =IFERROR(SUM(AV320*AX320),"") -> 
AS322: H-Sup | AV322: =IFERROR(LOOKUP(BC314,Avril!A365:A414,Avril!E366:E415),"") ->  | AX322: =IF(AV322="","",200) ->  | AZ322: =IFERROR(SUM(AV322*AX322),"") -> 
AS324: Net A Paye | AV324: =SUM(AZ318:BA323)-AZ324 -> 0 | AY324: AC
AW326: 1 | BC326: =BC314+1 -> 28
AS328: Nom | AV328: =IFERROR(LOOKUP(BC326,Avril!$A377:A426,Avril!B377:B426),"") -> 
AS330: Usine | AV330: =IFERROR(LOOKUP(BC326,Avril!A377:A426,Avril!C378:C427),"") ->  | AX330: =IF(AV330="","",Base!$B$3) ->  | AZ330: =IFERROR(SUM(AV330*AX330),"") -> 
AS332: Route | AV332: =IFERROR(LOOKUP(BC326,Avril!A377:A426,Avril!D378:D427),"") ->  | AX332: =IF(AV332="","",Base!$B$13) ->  | AZ332: =IFERROR(SUM(AV332*AX332),"") -> 
AS334: H-Sup | AV334: =IFERROR(LOOKUP(BC326,Avril!A377:A426,Avril!E378:E427),"") ->  | AX334: =IF(AV334="","",200) ->  | AZ334: =IFERROR(SUM(AV334*AX334),"") -> 
AS336: Net A Paye | AV336: =SUM(AZ330:BA335)-AZ336 -> 0 | AY336: AC
AW338: 1 | BC338: =BC326+1 -> 29
AS340: Nom | AV340: =IFERROR(LOOKUP(BC338,Avril!$A389:A438,Avril!B389:B438),"") -> 
AS342: Usine | AV342: =IFERROR(LOOKUP(BC338,Avril!A389:A438,Avril!C390:C439),"") ->  | AX342: =IF(AV342="","",Base!$B$3) ->  | AZ342: =IFERROR(SUM(AV342*AX342),"") -> 
AS344: Route | AV344: =IFERROR(LOOKUP(BC338,Avril!A389:A438,Avril!D390:D439),"") ->  | AX344: =IF(AV344="","",Base!$B$13) ->  | AZ344: =IFERROR(SUM(AV344*AX344),"") -> 
... 116 more rows

Sheet Mai
B1: M A I 2 0 2 0 | E1: 5
AW2: 1 | BC2: 1
B3: 2020-05-01 | C3: =EOMONTH(B3,0) -> 2020-05-31 | H3: =B3 -> 2020-05-01 | I3: =H3+1 -> 2020-05-02 | J3: =I3+1 -> 2020-05-03 | K3: 2020-05-04 | L3: 2020-05-05 | M3: 2020-05-06 | N3: 2020-05-07 | O3: 2020-05-08 | P3: 2020-05-09 | Q3: 2020-05-10 | R3: 2020-05-11 | S3: 2020-05-12 | T3: 2020-05-13 | U3: 2020-05-14 | V3: 2020-05-15 | W3: 2020-05-16 | X3: 2020-05-17 | Y3: 2020-05-18 | Z3: 2020-05-19 | AA3: 2020-05-20 | AB3: 2020-05-21 | AC3: 2020-05-22 | AD3: 2020-05-23 | AE3: 2020-05-24 | AF3: 2020-05-25 | AG3: 2020-05-26 | AH3: 2020-05-27 | AI3: 2020-05-28 | AJ3: =IFERROR(IF(AI3+1>C3,"",AI3+1),"") -> 2020-05-29 | AK3: 2020-05-30 | AL3: 2020-05-31
B4: Mai | C4: العمليات الحسابيه | H4: =DAY(H3) -> 1 | I4: =DAY(I3) -> 2 | J4: 3 | K4: 4 | L4: 5 | M4: 6 | N4: 7 | O4: 8 | P4: 9 | Q4: 10 | R4: 11 | S4: 12 | T4: 13 | U4: 14 | V4: 15 | W4: 16 | X4: 17 | Y4: 18 | Z4: 19 | AA4: 20 | AB4: 21 | AC4: 22 | AD4: 23 | AE4: 24 | AF4: 25 | AG4: 26 | AH4: 27 | AI4: 28 | AJ4: 29 | AK4: 30 | AL4: 31 | AS4: Nom | AV4: =IFERROR(LOOKUP(BC2,Mai!$A6:A102,Mai!B6:B102),"") -> 
B5: الموظف | C5: المكتب | D5: الرقابه | E5: إظافه | F5: سلف | G5: الاجر الصافي | H5: =WEEKDAY(H3) -> 1900-01-06 | I5: =WEEKDAY(I3) -> 1900-01-07 | J5: 1900-01-01 | K5: 1900-01-02 | L5: 1900-01-03 | M5: 1900-01-04 | N5: 1900-01-05 | O5: 1900-01-06 | P5: 1900-01-07 | Q5: 1900-01-01 | R5: 1900-01-02 | S5: 1900-01-03 | T5: 1900-01-04 | U5: 1900-01-05 | V5: 1900-01-06 | W5: 1900-01-07 | X5: 1900-01-01 | Y5: 1900-01-02 | Z5: 1900-01-03 | AA5: 1900-01-04 | AB5: 1900-01-05 | AC5: 1900-01-06 | AD5: 1900-01-07 | AE5: 1900-01-01 | AF5: 1900-01-02 | AG5: 1900-01-03 | AH5: 1900-01-04 | AI5: 1900-01-05 | AJ5: 1900-01-06 | AK5: 1900-01-07 | AL5: 1900-01-01 | AN5: ACOMPTE
A6: =IF(B6<>"",COUNTA($B$6:B6),"") ->  | B6: =IFERROR(INDEX(Base!$E$2:$E$102,SMALL(IF(INDEX(Base!$E$2:$Q$102,,MATCH(Mai!$B$4,Base!$F$1:$Q$1,0)+1)="x",ROW(Base!$E$2:$E$102)-ROW(Base!$E$2)+1),ROWS($B$6:B6))),"") ->  | C6: =COUNTIF($H6:$AL6, "u")*1+COUNTIF($H6:$AL6, "U 1")*1+COUNTIF($H6:$AL6, "u 2")*1+COUNTIF($H6:$AL6, "u 3")*1+COUNTIF($H6:$AL6, "U 4")*1+COUNTIF($H6:$AL6, "u 5")*1+COUNTIF($H6:$AL6, "u 6")*1+COUNTIF($H6:$AL6, "U 7")*1+COUNTIF($H6:$AL6, "u 8")*1+COUNTIF($H6:$AL6, "u 9")*1+COUNTIF($H6:$AL6, "500")*1+COUNTIF($H6:$AL6, "1000")*1+COUNTIF($H6:$AL6, "1500")*1+COUNTIF($H6:$AL6, "2000")*1+COUNTIF($H6:$AL6, "3000")*1+COUNTIF($H6:$AL6, "4000")*1+COUNTIF($H6:$AL6, "5000")*1 -> 0 | D6: =COUNTIF($H6:$AL6, "R")*1+COUNTIF($H6:$AL6, "R 1")*1+COUNTIF($H6:$AL6, "R 2")*1+COUNTIF($H6:$AL6, "R 3")*1+COUNTIF($H6:$AL6, "R 4")*1+COUNTIF($H6:$AL6, "R 5")*1+COUNTIF($H6:$AL6, "R 6")*1+COUNTIF($H6:$AL6, "R 7")*1+COUNTIF($H6:$AL6, "R 8")*1+COUNTIF($H6:$AL6, "R 9")*1 -> 0 | E6: =COUNTIF($H6:$AL6, "U 1")*1+COUNTIF($H6:$AL6, "u 2")*2+COUNTIF($H6:$AL6, "u 3")*3+COUNTIF($H6:$AL6, "U 4")*4+COUNTIF($H6:$AL6, "u 5")*5+COUNTIF($H6:$AL6, "u 6")*6+COUNTIF($H6:$AL6, "U 7")*7+COUNTIF($H6:$AL6, "u 8")*8+COUNTIF($H6:$AL6, "u 9")*9+COUNTIF($H6:$AL6, "R 1")*1+COUNTIF($H6:$AL6, "R 2")*2+COUNTIF($H6:$AL6, "R 3")*3+COUNTIF($H6:$AL6, "R 4")*4+COUNTIF($H6:$AL6, "R 5")*5+COUNTIF($H6:$AL6, "R 6")*6+COUNTIF($H6:$AL6, "R 7")*7+COUNTIF($H6:$AL6, "R 8")*8+COUNTIF($H6:$AL6, "R 9")*9 -> 0 | F6: =SUM(H6:AL6) -> 0 | G6: =SUMPRODUCT((H6:AL6=Som)*(Base!$B$3:$B$20))-F6 -> 0 | AS6: Usine | AV6: =IFERROR(LOOKUP(BC2,Mai!A6:A102,Mai!C6:C103),"") ->  | AX6: =IF(AV6="","",Base!$B$3) ->  | AZ6: =IFERROR(SUM(AV6*AX6),"") -> 
A7: =IF(B7<>"",COUNTA($B$6:B7),"") ->  | B7: =IFERROR(INDEX(Base!$E$2:$E$102,SMALL(IF(INDEX(Base!$E$2:$Q$102,,MATCH(Mai!$B$4,Base!$F$1:$Q$1,0)+1)="x",ROW(Base!$E$2:$E$102)-ROW(Base!$E$2)+1),ROWS($B$6:B7))),"") ->  | C7: =COUNTIF($H7:$AL7, "u")*1+COUNTIF($H7:$AL7, "U 1")*1+COUNTIF($H7:$AL7, "u 2")*1+COUNTIF($H7:$AL7, "u 3")*1+COUNTIF($H7:$AL7, "U 4")*1+COUNTIF($H7:$AL7, "u 5")*1+COUNTIF($H7:$AL7, "u 6")*1+COUNTIF($H7:$AL7, "U 7")*1+COUNTIF($H7:$AL7, "u 8")*1+COUNTIF($H7:$AL7, "u 9")*1+COUNTIF($H7:$AL7, "500")*1+COUNTIF($H7:$AL7, "1000")*1+COUNTIF($H7:$AL7, "1500")*1+COUNTIF($H7:$AL7, "2000")*1+COUNTIF($H7:$AL7, "3000")*1+COUNTIF($H7:$AL7, "4000")*1+COUNTIF($H7:$AL7, "5000")*1 -> 0 | D7: =COUNTIF($H7:$AL7, "R")*1+COUNTIF($H7:$AL7, "R 1")*1+COUNTIF($H7:$AL7, "R 2")*1+COUNTIF($H7:$AL7, "R 3")*1+COUNTIF($H7:$AL7, "R 4")*1+COUNTIF($H7:$AL7, "R 5")*1+COUNTIF($H7:$AL7, "R 6")*1+COUNTIF($H7:$AL7, "R 7")*1+COUNTIF($H7:$AL7, "R 8")*1+COUNTIF($H7:$AL7, "R 9")*1 -> 0 | E7: =COUNTIF($H7:$AL7, "U 1")*1+COUNTIF($H7:$AL7, "u 2")*2+COUNTIF($H7:$AL7, "u 3")*3+COUNTIF($H7:$AL7, "U 4")*4+COUNTIF($H7:$AL7, "u 5")*5+COUNTIF($H7:$AL7, "u 6")*6+COUNTIF($H7:$AL7, "U 7")*7+COUNTIF($H7:$AL7, "u 8")*8+COUNTIF($H7:$AL7, "u 9")*9+COUNTIF($H7:$AL7, "R 1")*1+COUNTIF($H7:$AL7, "R 2")*2+COUNTIF($H7:$AL7, "R 3")*3+COUNTIF($H7:$AL7, "R 4")*4+COUNTIF($H7:$AL7, "R 5")*5+COUNTIF($H7:$AL7, "R 6")*6+COUNTIF($H7:$AL7, "R 7")*7+COUNTIF($H7:$AL7, "R 8")*8+COUNTIF($H7:$AL7, "R 9")*9 -> 0 | F7: =SUM(H7:AL7) -> 0 | G7: =SUMPRODUCT((H7:AL7=Som)*(Base!$B$3:$B$20))-F7 -> 0
A8: =IF(B8<>"",COUNTA($B$6:B8),"") ->  | B8: =IFERROR(INDEX(Base!$E$2:$E$102,SMALL(IF(INDEX(Base!$E$2:$Q$102,,MATCH(Mai!$B$4,Base!$F$1:$Q$1,0)+1)="x",ROW(Base!$E$2:$E$102)-ROW(Base!$E$2)+1),ROWS($B$6:B8))),"") ->  | C8: 0 | D8: 0 | E8: 0 | F8: 0 | G8: =SUMPRODUCT((H8:AL8=Som)*(Base!$B$3:$B$20))-F8 -> 0 | AS8: Route | AV8: =IFERROR(LOOKUP(BC2,Mai!A53:A102,Mai!D54:D103),"") ->  | AX8: =IF(AV8="","",Base!$B$13) ->  | AZ8: =IFERROR(SUM(AV8*AX8),"") -> 
A9: =IF(B9<>"",COUNTA($B$6:B9),"") ->  | B9: =IFERROR(INDEX(Base!$E$2:$E$102,SMALL(IF(INDEX(Base!$E$2:$Q$102,,MATCH(Mai!$B$4,Base!$F$1:$Q$1,0)+1)="x",ROW(Base!$E$2:$E$102)-ROW(Base!$E$2)+1),ROWS($B$6:B9))),"") ->  | C9: 0 | D9: 0 | E9: 0 | F9: 0 | G9: =SUMPRODUCT((H9:AL9=Som)*(Base!$B$3:$B$20))-F9 -> 0
A10: =IF(B10<>"",COUNTA($B$6:B10),"") ->  | B10: =IFERROR(INDEX(Base!$E$2:$E$102,SMALL(IF(INDEX(Base!$E$2:$Q$102,,MATCH(Mai!$B$4,Base!$F$1:$Q$1,0)+1)="x",ROW(Base!$E$2:$E$102)-ROW(Base!$E$2)+1),ROWS($B$6:B10))),"") ->  | C10: 0 | D10: 0 | E10: 0 | F10: 0 | G10: =SUMPRODUCT((H10:AL10=Som)*(Base!$B$3:$B$20))-F10 -> 0 | AS10: H-Sup | AV10: =IFERROR(LOOKUP(BC2,Mai!A53:A102,Mai!E54:E103),"") ->  | AX10: =IF(AV10="","",200) ->  | AZ10: =IFERROR(SUM(AV10*AX10),"") -> 
A11: =IF(B11<>"",COUNTA($B$6:B11),"") ->  | B11: =IFERROR(INDEX(Base!$E$2:$E$102,SMALL(IF(INDEX(Base!$E$2:$Q$102,,MATCH(Mai!$B$4,Base!$F$1:$Q$1,0)+1)="x",ROW(Base!$E$2:$E$102)-ROW(Base!$E$2)+1),ROWS($B$6:B11))),"") ->  | C11: 0 | D11: 0 | E11: 0 | F11: 0 | G11: =SUMPRODUCT((H11:AL11=Som)*(Base!$B$3:$B$20))-F11 -> 0
A12: =IF(B12<>"",COUNTA($B$6:B12),"") ->  | B12: =IFERROR(INDEX(Base!$E$2:$E$102,SMALL(IF(INDEX(Base!$E$2:$Q$102,,MATCH(Mai!$B$4,Base!$F$1:$Q$1,0)+1)="x",ROW(Base!$E$2:$E$102)-ROW(Base!$E$2)+1),ROWS($B$6:B12))),"") ->  | C12: 0 | D12: 0 | E12: 0 | F12: 0 | G12: =SUMPRODUCT((H12:AL12=Som)*(Base!$B$3:$B$20))-F12 -> 0 | AS12: Net A Paye | AV12: =SUM(AZ6:BA11)-AZ12 -> 0 | AY12: AC
A13: =IF(B13<>"",COUNTA($B$6:B13),"") ->  | B13: =IFERROR(INDEX(Base!$E$2:$E$102,SMALL(IF(INDEX(Base!$E$2:$Q$102,,MATCH(Mai!$B$4,Base!$F$1:$Q$1,0)+1)="x",ROW(Base!$E$2:$E$102)-ROW(Base!$E$2)+1),ROWS($B$6:B13))),"") ->  | C13: 0 | D13: 0 | E13: 0 | F13: 0 | G13: =SUMPRODUCT((H13:AL13=Som)*(Base!$B$3:$B$20))-F13 -> 0
A14: =IF(B14<>"",COUNTA($B$6:B14),"") ->  | B14: =IFERROR(INDEX(Base!$E$2:$E$102,SMALL(IF(INDEX(Base!$E$2:$Q$102,,MATCH(Mai!$B$4,Base!$F$1:$Q$1,0)+1)="x",ROW(Base!$E$2:$E$102)-ROW(Base!$E$2)+1),ROWS($B$6:B14))),"") ->  | C14: 0 | D14: 0 | E14: 0 | F14: 0 | G14: =SUMPRODUCT((H14:AL14=Som)*(Base!$B$3:$B$20))-F14 -> 0 | AW14: 1 | BC14: =BC2+1 -> 2
A15: =IF(B15<>"",COUNTA($B$6:B15),"") ->  | B15: =IFERROR(INDEX(Base!$E$2:$E$102,SMALL(IF(INDEX(Base!$E$2:$Q$102,,MATCH(Mai!$B$4,Base!$F$1:$Q$1,0)+1)="x",ROW(Base!$E$2:$E$102)-ROW(Base!$E$2)+1),ROWS($B$6:B15))),"") ->  | C15: 0 | D15: 0 | E15: 0 | F15: 0 | G15: =SUMPRODUCT((H15:AL15=Som)*(Base!$B$3:$B$20))-F15 -> 0
A16: =IF(B16<>"",COUNTA($B$6:B16),"") ->  | B16: =IFERROR(INDEX(Base!$E$2:$E$102,SMALL(IF(INDEX(Base!$E$2:$Q$102,,MATCH(Mai!$B$4,Base!$F$1:$Q$1,0)+1)="x",ROW(Base!$E$2:$E$102)-ROW(Base!$E$2)+1),ROWS($B$6:B16))),"") ->  | C16: 0 | D16: 0 | E16: 0 | F16: 0 | G16: =SUMPRODUCT((H16:AL16=Som)*(Base!$B$3:$B$20))-F16 -> 0 | AS16: Nom | AV16: =IFERROR(LOOKUP(BC14,Mai!$A7:A114,Mai!B7:B114),"") -> 
A17: =IF(B17<>"",COUNTA($B$6:B17),"") ->  | B17: =IFERROR(INDEX(Base!$E$2:$E$102,SMALL(IF(INDEX(Base!$E$2:$Q$102,,MATCH(Mai!$B$4,Base!$F$1:$Q$1,0)+1)="x",ROW(Base!$E$2:$E$102)-ROW(Base!$E$2)+1),ROWS($B$6:B17))),"") ->  | C17: 0 | D17: 0 | E17: 0 | F17: 0 | G17: =SUMPRODUCT((H17:AL17=Som)*(Base!$B$3:$B$20))-F17 -> 0
A18: =IF(B18<>"",COUNTA($B$6:B18),"") ->  | B18: =IFERROR(INDEX(Base!$E$2:$E$102,SMALL(IF(INDEX(Base!$E$2:$Q$102,,MATCH(Mai!$B$4,Base!$F$1:$Q$1,0)+1)="x",ROW(Base!$E$2:$E$102)-ROW(Base!$E$2)+1),ROWS($B$6:B18))),"") ->  | C18: 0 | D18: 0 | E18: 0 | F18: 0 | G18: =SUMPRODUCT((H18:AL18=Som)*(Base!$B$3:$B$20))-F18 -> 0 | AS18: Usine | AV18: =IFERROR(LOOKUP(BC14,Mai!A65:A114,Mai!C66:C115),"") ->  | AX18: =IF(AV18="","",Base!$B$3) ->  | AZ18: =IFERROR(SUM(AV18*AX18),"") -> 
A19: =IF(B19<>"",COUNTA($B$6:B19),"") ->  | B19: =IFERROR(INDEX(Base!$E$2:$E$102,SMALL(IF(INDEX(Base!$E$2:$Q$102,,MATCH(Mai!$B$4,Base!$F$1:$Q$1,0)+1)="x",ROW(Base!$E$2:$E$102)-ROW(Base!$E$2)+1),ROWS($B$6:B19))),"") ->  | C19: 0 | D19: 0 | E19: 0 | F19: 0 | G19: =SUMPRODUCT((H19:AL19=Som)*(Base!$B$3:$B$20))-F19 -> 0
A20: =IF(B20<>"",COUNTA($B$6:B20),"") ->  | B20: =IFERROR(INDEX(Base!$E$2:$E$102,SMALL(IF(INDEX(Base!$E$2:$Q$102,,MATCH(Mai!$B$4,Base!$F$1:$Q$1,0)+1)="x",ROW(Base!$E$2:$E$102)-ROW(Base!$E$2)+1),ROWS($B$6:B20))),"") ->  | C20: 0 | D20: 0 | E20: 0 | F20: 0 | G20: =SUMPRODUCT((H20:AL20=Som)*(Base!$B$3:$B$20))-F20 -> 0 | AS20: Route | AV20: =IFERROR(LOOKUP(BC14,Mai!A65:A114,Mai!D66:D115),"") ->  | AX20: =IF(AV20="","",Base!$B$13) ->  | AZ20: =IFERROR(SUM(AV20*AX20),"") -> 
A21: =IF(B21<>"",COUNTA($B$6:B21),"") ->  | B21: =IFERROR(INDEX(Base!$E$2:$E$102,SMALL(IF(INDEX(Base!$E$2:$Q$102,,MATCH(Mai!$B$4,Base!$F$1:$Q$1,0)+1)="x",ROW(Base!$E$2:$E$102)-ROW(Base!$E$2)+1),ROWS($B$6:B21))),"") ->  | C21: 0 | D21: 0 | E21: 0 | F21: 0 | G21: =SUMPRODUCT((H21:AL21=Som)*(Base!$B$3:$B$20))-F21 -> 0
A22: =IF(B22<>"",COUNTA($B$6:B22),"") ->  | B22: =IFERROR(INDEX(Base!$E$2:$E$102,SMALL(IF(INDEX(Base!$E$2:$Q$102,,MATCH(Mai!$B$4,Base!$F$1:$Q$1,0)+1)="x",ROW(Base!$E$2:$E$102)-ROW(Base!$E$2)+1),ROWS($B$6:B22))),"") ->  | C22: 0 | D22: 0 | E22: 0 | F22: 0 | G22: =SUMPRODUCT((H22:AL22=Som)*(Base!$B$3:$B$20))-F22 -> 0 | AS22: H-Sup | AV22: =IFERROR(LOOKUP(BC14,Mai!A65:A114,Mai!E66:E115),"") ->  | AX22: =IF(AV22="","",200) ->  | AZ22: =IFERROR(SUM(AV22*AX22),"") -> 
A23: =IF(B23<>"",COUNTA($B$6:B23),"") ->  | B23: =IFERROR(INDEX(Base!$E$2:$E$102,SMALL(IF(INDEX(Base!$E$2:$Q$102,,MATCH(Mai!$B$4,Base!$F$1:$Q$1,0)+1)="x",ROW(Base!$E$2:$E$102)-ROW(Base!$E$2)+1),ROWS($B$6:B23))),"") ->  | C23: 0 | D23: 0 | E23: 0 | F23: 0 | G23: =SUMPRODUCT((H23:AL23=Som)*(Base!$B$3:$B$20))-F23 -> 0
A24: =IF(B24<>"",COUNTA($B$6:B24),"") ->  | B24: =IFERROR(INDEX(Base!$E$2:$E$102,SMALL(IF(INDEX(Base!$E$2:$Q$102,,MATCH(Mai!$B$4,Base!$F$1:$Q$1,0)+1)="x",ROW(Base!$E$2:$E$102)-ROW(Base!$E$2)+1),ROWS($B$6:B24))),"") ->  | C24: 0 | D24: 0 | E24: 0 | F24: 0 | G24: =SUMPRODUCT((H24:AL24=Som)*(Base!$B$3:$B$20))-F24 -> 0 | AS24: Net A Paye | AV24: =SUM(AZ18:BA23)-AZ24 -> 0 | AY24: AC
A25: =IF(B25<>"",COUNTA($B$6:B25),"") ->  | B25: =IFERROR(INDEX(Base!$E$2:$E$102,SMALL(IF(INDEX(Base!$E$2:$Q$102,,MATCH(Mai!$B$4,Base!$F$1:$Q$1,0)+1)="x",ROW(Base!$E$2:$E$102)-ROW(Base!$E$2)+1),ROWS($B$6:B25))),"") ->  | C25: 0 | D25: 0 | E25: 0 | F25: 0 | G25: =SUMPRODUCT((H25:AL25=Som)*(Base!$B$3:$B$20))-F25 -> 0
A26: =IF(B26<>"",COUNTA($B$6:B26),"") ->  | B26: =IFERROR(INDEX(Base!$E$2:$E$102,SMALL(IF(INDEX(Base!$E$2:$Q$102,,MATCH(Mai!$B$4,Base!$F$1:$Q$1,0)+1)="x",ROW(Base!$E$2:$E$102)-ROW(Base!$E$2)+1),ROWS($B$6:B26))),"") ->  | C26: 0 | D26: 0 | E26: 0 | F26: 0 | G26: =SUMPRODUCT((H26:AL26=Som)*(Base!$B$3:$B$20))-F26 -> 0 | AW26: 1 | BC26: =BC14+1 -> 3
A27: =IF(B27<>"",COUNTA($B$6:B27),"") ->  | B27: =IFERROR(INDEX(Base!$E$2:$E$102,SMALL(IF(INDEX(Base!$E$2:$Q$102,,MATCH(Mai!$B$4,Base!$F$1:$Q$1,0)+1)="x",ROW(Base!$E$2:$E$102)-ROW(Base!$E$2)+1),ROWS($B$6:B27))),"") ->  | C27: 0 | D27: 0 | E27: 0 | F27: 0 | G27: =SUMPRODUCT((H27:AL27=Som)*(Base!$B$3:$B$20))-F27 -> 0
A28: =IF(B28<>"",COUNTA($B$6:B28),"") ->  | B28: =IFERROR(INDEX(Base!$E$2:$E$102,SMALL(IF(INDEX(Base!$E$2:$Q$102,,MATCH(Mai!$B$4,Base!$F$1:$Q$1,0)+1)="x",ROW(Base!$E$2:$E$102)-ROW(Base!$E$2)+1),ROWS($B$6:B28))),"") ->  | C28: 0 | D28: 0 | E28: 0 | F28: 0 | G28: =SUMPRODUCT((H28:AL28=Som)*(Base!$B$3:$B$20))-F28 -> 0 | AS28: Nom | AV28: =IFERROR(LOOKUP(BC26,Mai!$A77:A126,Mai!B77:B126),"") -> 
A29: =IF(B29<>"",COUNTA($B$6:B29),"") ->  | B29: =IFERROR(INDEX(Base!$E$2:$E$102,SMALL(IF(INDEX(Base!$E$2:$Q$102,,MATCH(Mai!$B$4,Base!$F$1:$Q$1,0)+1)="x",ROW(Base!$E$2:$E$102)-ROW(Base!$E$2)+1),ROWS($B$6:B29))),"") ->  | C29: 0 | D29: 0 | E29: 0 | F29: 0 | G29: =SUMPRODUCT((H29:AL29=Som)*(Base!$B$3:$B$20))-F29 -> 0
A30: =IF(B30<>"",COUNTA($B$6:B30),"") ->  | B30: =IFERROR(INDEX(Base!$E$2:$E$102,SMALL(IF(INDEX(Base!$E$2:$Q$102,,MATCH(Mai!$B$4,Base!$F$1:$Q$1,0)+1)="x",ROW(Base!$E$2:$E$102)-ROW(Base!$E$2)+1),ROWS($B$6:B30))),"") ->  | C30: 0 | D30: 0 | E30: 0 | F30: 0 | G30: =SUMPRODUCT((H30:AL30=Som)*(Base!$B$3:$B$20))-F30 -> 0 | AS30: Usine | AV30: =IFERROR(LOOKUP(BC26,Mai!A77:A126,Mai!C78:C127),"") ->  | AX30: =IF(AV30="","",Base!$B$3) ->  | AZ30: =IFERROR(SUM(AV30*AX30),"") -> 
A31: =IF(B31<>"",COUNTA($B$6:B31),"") ->  | B31: =IFERROR(INDEX(Base!$E$2:$E$102,SMALL(IF(INDEX(Base!$E$2:$Q$102,,MATCH(Mai!$B$4,Base!$F$1:$Q$1,0)+1)="x",ROW(Base!$E$2:$E$102)-ROW(Base!$E$2)+1),ROWS($B$6:B31))),"") ->  | C31: 0 | D31: 0 | E31: 0 | F31: 0 | G31: =SUMPRODUCT((H31:AL31=Som)*(Base!$B$3:$B$20))-F31 -> 0
A32: =IF(B32<>"",COUNTA($B$6:B32),"") ->  | B32: =IFERROR(INDEX(Base!$E$2:$E$102,SMALL(IF(INDEX(Base!$E$2:$Q$102,,MATCH(Mai!$B$4,Base!$F$1:$Q$1,0)+1)="x",ROW(Base!$E$2:$E$102)-ROW(Base!$E$2)+1),ROWS($B$6:B32))),"") ->  | C32: 0 | D32: 0 | E32: 0 | F32: 0 | G32: =SUMPRODUCT((H32:AL32=Som)*(Base!$B$3:$B$20))-F32 -> 0 | AS32: Route | AV32: =IFERROR(LOOKUP(BC26,Mai!A77:A126,Mai!D78:D127),"") ->  | AX32: =IF(AV32="","",Base!$B$13) ->  | AZ32: =IFERROR(SUM(AV32*AX32),"") -> 
A33: =IF(B33<>"",COUNTA($B$6:B33),"") ->  | B33: =IFERROR(INDEX(Base!$E$2:$E$102,SMALL(IF(INDEX(Base!$E$2:$Q$102,,MATCH(Mai!$B$4,Base!$F$1:$Q$1,0)+1)="x",ROW(Base!$E$2:$E$102)-ROW(Base!$E$2)+1),ROWS($B$6:B33))),"") ->  | C33: 0 | D33: 0 | E33: 0 | F33: 0 | G33: =SUMPRODUCT((H33:AL33=Som)*(Base!$B$3:$B$20))-F33 -> 0
A34: =IF(B34<>"",COUNTA($B$6:B34),"") ->  | B34: =IFERROR(INDEX(Base!$E$2:$E$102,SMALL(IF(INDEX(Base!$E$2:$Q$102,,MATCH(Mai!$B$4,Base!$F$1:$Q$1,0)+1)="x",ROW(Base!$E$2:$E$102)-ROW(Base!$E$2)+1),ROWS($B$6:B34))),"") ->  | C34: 0 | D34: 0 | E34: 0 | F34: 0 | G34: =SUMPRODUCT((H34:AL34=Som)*(Base!$B$3:$B$20))-F34 -> 0 | AS34: H-Sup | AV34: =IFERROR(LOOKUP(BC26,Mai!A77:A126,Mai!E78:E127),"") ->  | AX34: =IF(AV34="","",200) ->  | AZ34: =IFERROR(SUM(AV34*AX34),"") -> 
A35: =IF(B35<>"",COUNTA($B$6:B35),"") ->  | B35: =IFERROR(INDEX(Base!$E$2:$E$102,SMALL(IF(INDEX(Base!$E$2:$Q$102,,MATCH(Mai!$B$4,Base!$F$1:$Q$1,0)+1)="x",ROW(Base!$E$2:$E$102)-ROW(Base!$E$2)+1),ROWS($B$6:B35))),"") ->  | C35: 0 | D35: 0 | E35: 0 | F35: 0 | G35: =SUMPRODUCT((H35:AL35=Som)*(Base!$B$3:$B$20))-F35 -> 0
A36: =IF(B36<>"",COUNTA($B$6:B36),"") ->  | B36: =IFERROR(INDEX(Base!$E$2:$E$102,SMALL(IF(INDEX(Base!$E$2:$Q$102,,MATCH(Mai!$B$4,Base!$F$1:$Q$1,0)+1)="x",ROW(Base!$E$2:$E$102)-ROW(Base!$E$2)+1),ROWS($B$6:B36))),"") ->  | C36: 0 | D36: 0 | E36: 0 | F36: 0 | G36: =SUMPRODUCT((H36:AL36=Som)*(Base!$B$3:$B$20))-F36 -> 0 | AS36: Net A Paye | AV36: =SUM(AZ30:BA35)-AZ36 -> 0 | AY36: AC
A37: =IF(B37<>"",COUNTA($B$6:B37),"") ->  | B37: =IFERROR(INDEX(Base!$E$2:$E$102,SMALL(IF(INDEX(Base!$E$2:$Q$102,,MATCH(Mai!$B$4,Base!$F$1:$Q$1,0)+1)="x",ROW(Base!$E$2:$E$102)-ROW(Base!$E$2)+1),ROWS($B$6:B37))),"") ->  | C37: 0 | D37: 0 | E37: 0 | F37: 0 | G37: =SUMPRODUCT((H37:AL37=Som)*(Base!$B$3:$B$20))-F37 -> 0
A38: =IF(B38<>"",COUNTA($B$6:B38),"") ->  | B38: =IFERROR(INDEX(Base!$E$2:$E$102,SMALL(IF(INDEX(Base!$E$2:$Q$102,,MATCH(Mai!$B$4,Base!$F$1:$Q$1,0)+1)="x",ROW(Base!$E$2:$E$102)-ROW(Base!$E$2)+1),ROWS($B$6:B38))),"") ->  | C38: 0 | D38: 0 | E38: 0 | F38: 0 | G38: =SUMPRODUCT((H38:AL38=Som)*(Base!$B$3:$B$20))-F38 -> 0 | AW38: 1 | BC38: =BC26+1 -> 4
A39: =IF(B39<>"",COUNTA($B$6:B39),"") ->  | B39: =IFERROR(INDEX(Base!$E$2:$E$102,SMALL(IF(INDEX(Base!$E$2:$Q$102,,MATCH(Mai!$B$4,Base!$F$1:$Q$1,0)+1)="x",ROW(Base!$E$2:$E$102)-ROW(Base!$E$2)+1),ROWS($B$6:B39))),"") ->  | C39: 0 | D39: 0 | E39: 0 | F39: 0 | G39: =SUMPRODUCT((H39:AL39=Som)*(Base!$B$3:$B$20))-F39 -> 0
A40: =IF(B40<>"",COUNTA($B$6:B40),"") ->  | B40: =IFERROR(INDEX(Base!$E$2:$E$102,SMALL(IF(INDEX(Base!$E$2:$Q$102,,MATCH(Mai!$B$4,Base!$F$1:$Q$1,0)+1)="x",ROW(Base!$E$2:$E$102)-ROW(Base!$E$2)+1),ROWS($B$6:B40))),"") ->  | C40: 0 | D40: 0 | E40: 0 | F40: 0 | G40: =SUMPRODUCT((H40:AL40=Som)*(Base!$B$3:$B$20))-F40 -> 0 | AS40: Nom | AV40: =IFERROR(LOOKUP(BC38,Mai!$A89:A138,Mai!B89:B138),"") -> 
A41: =IF(B41<>"",COUNTA($B$6:B41),"") ->  | B41: =IFERROR(INDEX(Base!$E$2:$E$102,SMALL(IF(INDEX(Base!$E$2:$Q$102,,MATCH(Mai!$B$4,Base!$F$1:$Q$1,0)+1)="x",ROW(Base!$E$2:$E$102)-ROW(Base!$E$2)+1),ROWS($B$6:B41))),"") ->  | C41: 0 | D41: 0 | E41: 0 | F41: 0 | G41: =SUMPRODUCT((H41:AL41=Som)*(Base!$B$3:$B$20))-F41 -> 0
A42: =IF(B42<>"",COUNTA($B$6:B42),"") ->  | B42: =IFERROR(INDEX(Base!$E$2:$E$102,SMALL(IF(INDEX(Base!$E$2:$Q$102,,MATCH(Mai!$B$4,Base!$F$1:$Q$1,0)+1)="x",ROW(Base!$E$2:$E$102)-ROW(Base!$E$2)+1),ROWS($B$6:B42))),"") ->  | C42: 0 | D42: 0 | E42: 0 | F42: 0 | G42: =SUMPRODUCT((H42:AL42=Som)*(Base!$B$3:$B$20))-F42 -> 0 | AS42: Usine | AV42: =IFERROR(LOOKUP(BC38,Mai!A89:A138,Mai!C90:C139),"") ->  | AX42: =IF(AV42="","",Base!$B$3) ->  | AZ42: =IFERROR(SUM(AV42*AX42),"") -> 
A43: =IF(B43<>"",COUNTA($B$6:B43),"") ->  | B43: =IFERROR(INDEX(Base!$E$2:$E$102,SMALL(IF(INDEX(Base!$E$2:$Q$102,,MATCH(Mai!$B$4,Base!$F$1:$Q$1,0)+1)="x",ROW(Base!$E$2:$E$102)-ROW(Base!$E$2)+1),ROWS($B$6:B43))),"") ->  | C43: 0 | D43: 0 | E43: 0 | F43: 0 | G43: =SUMPRODUCT((H43:AL43=Som)*(Base!$B$3:$B$20))-F43 -> 0
A44: =IF(B44<>"",COUNTA($B$6:B44),"") ->  | B44: =IFERROR(INDEX(Base!$E$2:$E$102,SMALL(IF(INDEX(Base!$E$2:$Q$102,,MATCH(Mai!$B$4,Base!$F$1:$Q$1,0)+1)="x",ROW(Base!$E$2:$E$102)-ROW(Base!$E$2)+1),ROWS($B$6:B44))),"") ->  | C44: 0 | D44: 0 | E44: 0 | F44: 0 | G44: =SUMPRODUCT((H44:AL44=Som)*(Base!$B$3:$B$20))-F44 -> 0 | AS44: Route | AV44: =IFERROR(LOOKUP(BC38,Mai!A89:A138,Mai!D90:D139),"") ->  | AX44: =IF(AV44="","",Base!$B$13) ->  | AZ44: =IFERROR(SUM(AV44*AX44),"") -> 
A45: =IF(B45<>"",COUNTA($B$6:B45),"") ->  | B45: =IFERROR(INDEX(Base!$E$2:$E$102,SMALL(IF(INDEX(Base!$E$2:$Q$102,,MATCH(Mai!$B$4,Base!$F$1:$Q$1,0)+1)="x",ROW(Base!$E$2:$E$102)-ROW(Base!$E$2)+1),ROWS($B$6:B45))),"") ->  | C45: 0 | D45: 0 | E45: 0 | F45: 0 | G45: =SUMPRODUCT((H45:AL45=Som)*(Base!$B$3:$B$20))-F45 -> 0
A46: =IF(B46<>"",COUNTA($B$6:B46),"") ->  | B46: =IFERROR(INDEX(Base!$E$2:$E$102,SMALL(IF(INDEX(Base!$E$2:$Q$102,,MATCH(Mai!$B$4,Base!$F$1:$Q$1,0)+1)="x",ROW(Base!$E$2:$E$102)-ROW(Base!$E$2)+1),ROWS($B$6:B46))),"") ->  | C46: 0 | D46: 0 | E46: 0 | F46: 0 | G46: =SUMPRODUCT((H46:AL46=Som)*(Base!$B$3:$B$20))-F46 -> 0 | AS46: H-Sup | AV46: =IFERROR(LOOKUP(BC38,Mai!A89:A138,Mai!E90:E139),"") ->  | AX46: =IF(AV46="","",200) ->  | AZ46: =IFERROR(SUM(AV46*AX46),"") -> 
A47: =IF(B47<>"",COUNTA($B$6:B47),"") ->  | B47: =IFERROR(INDEX(Base!$E$2:$E$102,SMALL(IF(INDEX(Base!$E$2:$Q$102,,MATCH(Mai!$B$4,Base!$F$1:$Q$1,0)+1)="x",ROW(Base!$E$2:$E$102)-ROW(Base!$E$2)+1),ROWS($B$6:B47))),"") ->  | C47: 0 | D47: 0 | E47: 0 | F47: 0 | G47: =SUMPRODUCT((H47:AL47=Som)*(Base!$B$3:$B$20))-F47 -> 0
A48: =IF(B48<>"",COUNTA($B$6:B48),"") ->  | B48: =IFERROR(INDEX(Base!$E$2:$E$102,SMALL(IF(INDEX(Base!$E$2:$Q$102,,MATCH(Mai!$B$4,Base!$F$1:$Q$1,0)+1)="x",ROW(Base!$E$2:$E$102)-ROW(Base!$E$2)+1),ROWS($B$6:B48))),"") ->  | C48: 0 | D48: 0 | E48: 0 | F48: 0 | G48: =SUMPRODUCT((H48:AL48=Som)*(Base!$B$3:$B$20))-F48 -> 0 | AS48: Net A Paye | AV48: =SUM(AZ42:BA47)-AZ48 -> 0 | AY48: AC
A49: =IF(B49<>"",COUNTA($B$6:B49),"") ->  | B49: =IFERROR(INDEX(Base!$E$2:$E$102,SMALL(IF(INDEX(Base!$E$2:$Q$102,,MATCH(Mai!$B$4,Base!$F$1:$Q$1,0)+1)="x",ROW(Base!$E$2:$E$102)-ROW(Base!$E$2)+1),ROWS($B$6:B49))),"") ->  | C49: 0 | D49: 0 | E49: 0 | F49: 0 | G49: =SUMPRODUCT((H49:AL49=Som)*(Base!$B$3:$B$20))-F49 -> 0
A50: =IF(B50<>"",COUNTA($B$6:B50),"") ->  | B50: =IFERROR(INDEX(Base!$E$2:$E$102,SMALL(IF(INDEX(Base!$E$2:$Q$102,,MATCH(Mai!$B$4,Base!$F$1:$Q$1,0)+1)="x",ROW(Base!$E$2:$E$102)-ROW(Base!$E$2)+1),ROWS($B$6:B50))),"") ->  | C50: 0 | D50: 0 | E50: 0 | F50: 0 | G50: =SUMPRODUCT((H50:AL50=Som)*(Base!$B$3:$B$20))-F50 -> 0 | AW50: 1 | BC50: =BC38+1 -> 5
A51: =IF(B51<>"",COUNTA($B$6:B51),"") ->  | B51: =IFERROR(INDEX(Base!$E$2:$E$102,SMALL(IF(INDEX(Base!$E$2:$Q$102,,MATCH(Mai!$B$4,Base!$F$1:$Q$1,0)+1)="x",ROW(Base!$E$2:$E$102)-ROW(Base!$E$2)+1),ROWS($B$6:B51))),"") ->  | C51: 0 | D51: 0 | E51: 0 | F51: 0 | G51: =SUMPRODUCT((H51:AL51=Som)*(Base!$B$3:$B$20))-F51 -> 0
A52: =IF(B52<>"",COUNTA($B$6:B52),"") ->  | B52: =IFERROR(INDEX(Base!$E$2:$E$102,SMALL(IF(INDEX(Base!$E$2:$Q$102,,MATCH(Mai!$B$4,Base!$F$1:$Q$1,0)+1)="x",ROW(Base!$E$2:$E$102)-ROW(Base!$E$2)+1),ROWS($B$6:B52))),"") ->  | C52: 0 | D52: 0 | E52: 0 | F52: 0 | G52: =SUMPRODUCT((H52:AL52=Som)*(Base!$B$3:$B$20))-F52 -> 0 | AS52: Nom | AV52: =IFERROR(LOOKUP(BC50,Mai!$A101:A150,Mai!B101:B150),"") -> 
A53: =IF(B53<>"",COUNTA($B$6:B53),"") ->  | B53: =IFERROR(INDEX(Base!$E$2:$E$102,SMALL(IF(INDEX(Base!$E$2:$Q$102,,MATCH(Mai!$B$4,Base!$F$1:$Q$1,0)+1)="x",ROW(Base!$E$2:$E$102)-ROW(Base!$E$2)+1),ROWS($B$6:B53))),"") ->  | C53: 0 | D53: 0 | E53: 0 | F53: 0 | G53: =SUMPRODUCT((H53:AL53=Som)*(Base!$B$3:$B$20))-F53 -> 0
A54: =IF(B54<>"",COUNTA($B$6:B54),"") ->  | B54: =IFERROR(INDEX(Base!$E$2:$E$102,SMALL(IF(INDEX(Base!$E$2:$Q$102,,MATCH(Mai!$B$4,Base!$F$1:$Q$1,0)+1)="x",ROW(Base!$E$2:$E$102)-ROW(Base!$E$2)+1),ROWS($B$6:B54))),"") ->  | C54: 0 | D54: 0 | E54: 0 | F54: 0 | G54: =SUMPRODUCT((H54:AL54=Som)*(Base!$B$3:$B$20))-F54 -> 0 | AS54: Usine | AV54: =IFERROR(LOOKUP(BC50,Mai!A101:A150,Mai!C102:C151),"") ->  | AX54: =IF(AV54="","",Base!$B$3) ->  | AZ54: =IFERROR(SUM(AV54*AX54),"") -> 
C55: 0 | D55: 0 | E55: 0 | F55: 0 | G55: =SUMPRODUCT((H55:AL55=Som)*(Base!$B$3:$B$20))-F55 -> 0
AS56: Route | AV56: =IFERROR(LOOKUP(BC50,Mai!A101:A150,Mai!D102:D151),"") ->  | AX56: =IF(AV56="","",Base!$B$13) ->  | AZ56: =IFERROR(SUM(AV56*AX56),"") -> 
AS58: H-Sup | AV58: =IFERROR(LOOKUP(BC50,Mai!A101:A150,Mai!E102:E151),"") ->  | AX58: =IF(AV58="","",200) ->  | AZ58: =IFERROR(SUM(AV58*AX58),"") -> 
AS60: Net A Paye | AV60: =SUM(AZ54:BA59)-AZ60 -> 0 | AY60: AC
AW62: 1 | BC62: =BC50+1 -> 6
AS64: Nom | AV64: =IFERROR(LOOKUP(BC62,Mai!$A113:A162,Mai!B113:B162),"") -> 
AS66: Usine | AV66: =IFERROR(LOOKUP(BC62,Mai!A113:A162,Mai!C114:C163),"") ->  | AX66: =IF(AV66="","",Base!$B$3) ->  | AZ66: =IFERROR(SUM(AV66*AX66),"") -> 
AS68: Route | AV68: =IFERROR(LOOKUP(BC62,Mai!A113:A162,Mai!D114:D163),"") ->  | AX68: =IF(AV68="","",Base!$B$13) ->  | AZ68: =IFERROR(SUM(AV68*AX68),"") -> 
AS70: H-Sup | AV70: =IFERROR(LOOKUP(BC62,Mai!A113:A162,Mai!E114:E163),"") ->  | AX70: =IF(AV70="","",200) ->  | AZ70: =IFERROR(SUM(AV70*AX70),"") -> 
AS72: Net A Paye | AV72: =SUM(AZ66:BA71)-AZ72 -> 0 | AY72: AC
AW74: 1 | BC74: =BC62+1 -> 7
AS76: Nom | AV76: =IFERROR(LOOKUP(BC74,Mai!$A125:A174,Mai!B125:B174),"") -> 
AS78: Usine | AV78: =IFERROR(LOOKUP(BC74,Mai!A125:A174,Mai!C126:C175),"") ->  | AX78: =IF(AV78="","",Base!$B$3) ->  | AZ78: =IFERROR(SUM(AV78*AX78),"") -> 
AS80: Route | AV80: =IFERROR(LOOKUP(BC74,Mai!A125:A174,Mai!D126:D175),"") ->  | AX80: =IF(AV80="","",Base!$B$13) ->  | AZ80: =IFERROR(SUM(AV80*AX80),"") -> 
AS82: H-Sup | AV82: =IFERROR(LOOKUP(BC74,Mai!A125:A174,Mai!E126:E175),"") ->  | AX82: =IF(AV82="","",200) ->  | AZ82: =IFERROR(SUM(AV82*AX82),"") -> 
AS84: Net A Paye | AV84: =SUM(AZ78:BA83)-AZ84 -> 0 | AY84: AC
AW86: 1 | BC86: =BC74+1 -> 8
AS88: Nom | AV88: =IFERROR(LOOKUP(BC86,Mai!$A137:A186,Mai!B137:B186),"") -> 
AS90: Usine | AV90: =IFERROR(LOOKUP(BC86,Mai!A137:A186,Mai!C138:C187),"") ->  | AX90: =IF(AV90="","",Base!$B$3) ->  | AZ90: =IFERROR(SUM(AV90*AX90),"") -> 
AS92: Route | AV92: =IFERROR(LOOKUP(BC86,Mai!A137:A186,Mai!D138:D187),"") ->  | AX92: =IF(AV92="","",Base!$B$13) ->  | AZ92: =IFERROR(SUM(AV92*AX92),"") -> 
AS94: H-Sup | AV94: =IFERROR(LOOKUP(BC86,Mai!A137:A186,Mai!E138:E187),"") ->  | AX94: =IF(AV94="","",200) ->  | AZ94: =IFERROR(SUM(AV94*AX94),"") -> 
AS96: Net A Paye | AV96: =SUM(AZ90:BA95)-AZ96 -> 0 | AY96: AC
AW98: 1 | BC98: =BC86+1 -> 9
AS100: Nom | AV100: =IFERROR(LOOKUP(BC98,Mai!$A149:A198,Mai!B149:B198),"") -> 
